Workbook

Sheet Comments
C2: Review
D3: IRR Theory; Multiple of Invested Capital and Growth Rate In Cash Flow
D4: Graph review with NA
D5: Economic Depreciation
D6: Multiple of Invested Capital
C8: A-Z Model Finish
D9: Balance Sheet
D10: LLCR and PLCR Compute
C12: Sumif Review -- Change Monthly to Semi-Annual or Annual Model
C14: Sculpting with fixed debt
D15: Prior exercise: Debt Service = CFADS/DSCR
D16: and NPV of Debt Service = Debt at COD
D17: Taxes with NOL
D18: Circular references from sculpting and tax
D20: Use formula NPV of Debt Service = Debt
D22: Can use LLCR Method -- LLCR = NPV of Cash Flow/Debt Given
D23: Then use the LLCR to Sculpt the Debt
D24: Average Debt Life -- Weighted Average of Repayment of Sum of Balance/Initial
C26: Currencies, Effective Interest Rates and Sculpting
D27: Issue with Sculpting and Debt Repayment with higher inflation
D28: Use Change in the Discount Rate combined with the Non-Base Currency to Compute Effective Interest Rate
D29: Compute a Translation Adjustment from the Opening Balance
D30: Use the Effective Interest Rate in Alternative Currency to Evaluate Sculpting
D32: Use formula NPV of Debt Service = Debt
C34: Mutiple Debt Issues and Sculpting
D35: Start with Debt IRR to sculpt all of the debt
D36: Compute the LLCR to Evaluate the Non-Capture Debt with Lower or Equal Tenor
D37: Use the Percent of the First Debt Issue
D38: Capture Debt issue with Remaining CF and DS
D39: Formula: DSCR = CF/(DS 1 + DS2)
D40: Formula: DSCR = CF/(DS 1 + Other)
D41: Rearrange: CF/DSCR = DS1 + Other (non-capture)
D42: Rearrange: DS1 = CF/DSCR - Other (non-capture)
D44: Finally compute the Debt IRR from Total
D45: Use Computed Debt in Debt Cash Flow
D46: Resolve Circular Reference
D48: Use formula NPV of Debt Service = Debt
C50: Mini-Perm and Re-financing
D51: Set-up with Different Cash Flow Scenarios
D52: Test the Level of Re-financing
D53: Compute the Amortisation
D54: Include Flag for Balloon Payment
D56: Evaluate Re-financing
D57: Test if a cash sweep applies
D58: Test realtive to case with no mini-perm
D60: Use formula NPV of Debt Service = Debt
C62: Review of Scenario Analysis
D63: Risk Analysis is a big Reason for Making Model
D64: Index and Choose with code number
D65: Problems with Data Tables
D66: Creative Presentiation
D67: Sensitiity and Scenario
D68: Control and Scenario
D69: Key for Setting up the Cash Flow Waterfall
C72: Review of VBA, Data Tables, Circular References
C74: Examples | I74: Use CNTL, k
D75: Your Own Short-cuts
D76: Goal Seek -- Automation | I76: Use Range Names after record
D77: Re-set Sensitivity | I77: Use Range Names with .value
D78: Circular References | I78: Loop with test to get out (DO While and LOOP)
D79: Fixing Data Tables | I79: For Next Loop and Cells
D80: Data Tables with Circular References | I80: Once the copy and paste is used, you cannot use data tables
D81: Monte Carlo Simulation | I81: For Next Loop and Cells with RAND() Function
D82: Read from Internet | I82: Use workbooks.open
D83: UDF for Add Text, Interpolate | I83: Cannot use from other open workbook as with subroutines
D84: UDF -- User Defined Function versus Standard Macro
C89: DSRA and Devlopment Fees
D90: Theory -- Cash versus Letter of Credit
D91: Development Fee Contast
D92: DSRA and Repayment
D93: DSRA and Sculpting
D95: Balance Sheet

Sheet Quick Excel
C2: Shift, CNTL, R | I2: generic macros
C3: CNTL, ALT, C
B5: Inputs
D6: Start Date | E6: Date | F6: 2022-01-01
D7: Periods | E7: Months | F7: 8
D8: Capacity | E8: Tons | F8: 1000
F10: 1 | G10: 10 | H10: 40
D11: Interest Rate | E11: % p.a. | F11: ='Input for A-Z Model'!F46 -> 0.02 | G11: 0.03 | H11: 0.04
B13: Model
D14: Period | E14: Period | I14: 1 | J14: 2 | K14: 3 | L14: 4 | M14: 5 | N14: 6 | O14: 7 | P14: 8 | Q14: 9 | R14: 10 | S14: 11 | T14: 12 | U14: 13 | V14: 14 | W14: 15 | X14: 16 | Y14: 17 | Z14: 18 | AA14: 19 | AB14: 20 | AC14: 21 | AD14: 22 | AE14: 23 | AF14: 24 | AG14: 25 | AH14: 26 | AI14: 27 | AJ14: 28 | AK14: 29 | AL14: 30 | AM14: 31 | AN14: 32 | AO14: 33 | AP14: 34 | AQ14: 35 | AR14: 36 | AS14: 37 | AT14: 38 | AU14: 39 | AV14: 40 | AW14: 41 | AX14: 42 | AY14: 43 | AZ14: 44 | BA14: 45 | BB14: 46 | BC14: 47 | BD14: 48 | BE14: 49 | BF14: 50 | BG14: 51 | BH14: 52 | BI14: 53 | BJ14: 54 | BK14: 55 | BL14: 56 | BM14: 57 | BN14: 58 | BO14: 59 | BP14: 60 | BQ14: 61 | BR14: 62 | BS14: 63 | BT14: 64 | BU14: 65 | BV14: 66 | BW14: 67 | BX14: 68 | BY14: 69 | BZ14: 70 | CA14: 71 | CB14: 72 | CC14: 73 | CD14: 74 | CE14: 75 | CF14: 76 | CG14: 77 | CH14: 78 | CI14: 79 | CJ14: 80 | CK14: 81 | CL14: 82 | CM14: 83 | CN14: 84 | CO14: 85 | CP14: 86 | CQ14: 87 | CR14: 88 | CS14: 89 | CT14: 90 | CU14: 91 | CV14: 92 | CW14: 93 | CX14: 94 | CY14: 95 | CZ14: 96 | DA14: 97 | DB14: 98 | DC14: 99 | DD14: 100
D15: Operating Flag | E15: Flag | F15: =F7 -> 8 | H15: =SUM(I15:DD15) -> 8 | I15: =(I14<=$F$15)*1 -> 1 | J15: =(J14<=$F$15)*1 -> 1 | K15: 1 | L15: 1 | M15: 1 | N15: 1 | O15: 1 | P15: 1 | Q15: 0 | R15: 0 | S15: 0 | T15: 0 | U15: 0 | V15: 0 | W15: 0 | X15: 0 | Y15: 0 | Z15: 0 | AA15: 0 | AB15: 0 | AC15: 0 | AD15: 0 | AE15: 0 | AF15: 0 | AG15: 0 | AH15: 0 | AI15: 0 | AJ15: 0 | AK15: 0 | AL15: 0 | AM15: 0 | AN15: 0 | AO15: 0 | AP15: 0 | AQ15: 0 | AR15: 0 | AS15: 0 | AT15: 0 | AU15: 0 | AV15: 0 | AW15: 0 | AX15: 0 | AY15: 0 | AZ15: 0 | BA15: 0 | BB15: 0 | BC15: 0 | BD15: 0 | BE15: 0 | BF15: 0 | BG15: 0 | BH15: 0 | BI15: 0 | BJ15: 0 | BK15: 0 | BL15: 0 | BM15: 0 | BN15: 0 | BO15: 0 | BP15: 0 | BQ15: 0 | BR15: 0 | BS15: 0 | BT15: 0 | BU15: 0 | BV15: =(BV14<=$F$15)*1 -> 0 | BW15: 0 | BX15: 0 | BY15: 0 | BZ15: 0 | CA15: 0 | CB15: 0 | CC15: 0 | CD15: 0 | CE15: 0 | CF15: 0 | CG15: 0 | CH15: 0 | CI15: 0 | CJ15: 0 | CK15: 0 | CL15: 0 | CM15: 0 | CN15: 0 | CO15: 0 | CP15: 0 | CQ15: 0 | CR15: 0 | CS15: 0 | CT15: 0 | CU15: 0 | CV15: 0 | CW15: 0 | CX15: 0 | CY15: 0 | CZ15: 0 | DA15: 0 | DB15: 0 | DC15: 0 | DD15: 0
D16: Capacity | E16: Tons | F16: =F8 -> 1000 | I16: =$F$16*I15 -> 1000 | J16: =$F$16*J15 -> 1000 | K16: 1000 | L16: 1000 | M16: 1000 | N16: 1000 | O16: 1000 | P16: 1000 | Q16: 0 | R16: 0 | S16: 0 | T16: 0 | U16: 0 | V16: 0 | W16: 0 | X16: 0 | Y16: 0 | Z16: 0 | AA16: 0 | AB16: 0 | AC16: 0 | AD16: 0 | AE16: 0 | AF16: 0 | AG16: 0 | AH16: 0 | AI16: 0 | AJ16: 0 | AK16: 0 | AL16: 0 | AM16: 0 | AN16: 0 | AO16: 0 | AP16: 0 | AQ16: 0 | AR16: 0 | AS16: 0 | AT16: 0 | AU16: 0 | AV16: 0 | AW16: 0 | AX16: 0 | AY16: 0 | AZ16: 0 | BA16: 0 | BB16: 0 | BC16: 0 | BD16: 0 | BE16: 0 | BF16: 0 | BG16: 0 | BH16: 0 | BI16: 0 | BJ16: 0 | BK16: 0 | BL16: 0 | BM16: 0 | BN16: 0 | BO16: 0 | BP16: 0 | BQ16: 0 | BR16: 0 | BS16: 0 | BT16: 0 | BU16: 0 | BV16: =$F$16*BV15 -> 0 | BW16: 0 | BX16: 0 | BY16: 0 | BZ16: 0 | CA16: 0 | CB16: 0 | CC16: 0 | CD16: 0 | CE16: 0 | CF16: 0 | CG16: 0 | CH16: 0 | CI16: 0 | CJ16: 0 | CK16: 0 | CL16: 0 | CM16: 0 | CN16: 0 | CO16: 0 | CP16: 0 | CQ16: 0 | CR16: 0 | CS16: 0 | CT16: 0 | CU16: 0 | CV16: 0 | CW16: 0 | CX16: 0 | CY16: 0 | CZ16: 0 | DA16: 0 | DB16: 0 | DC16: 0 | DD16: 0
D18: Interest Rate with Lookup | I18: =LOOKUP(I14,10:10,11:11) -> 0.02 | J18: =LOOKUP(J14,10:10,11:11) -> 0.02 | K18: 0.02 | L18: 0.02 | M18: 0.02 | N18: 0.02 | O18: 0.02 | P18: 0.02 | Q18: 0.02 | R18: 0.03 | S18: 0.03 | T18: 0.03 | U18: 0.03 | V18: 0.03 | W18: 0.03 | X18: 0.03 | Y18: 0.03 | Z18: 0.03 | AA18: 0.03 | AB18: 0.03 | AC18: 0.03 | AD18: 0.03 | AE18: 0.03 | AF18: 0.03 | AG18: 0.03 | AH18: 0.03 | AI18: 0.03 | AJ18: 0.03 | AK18: 0.03 | AL18: 0.03 | AM18: 0.03 | AN18: 0.03 | AO18: 0.03 | AP18: 0.03 | AQ18: 0.03 | AR18: 0.03 | AS18: 0.03 | AT18: 0.03 | AU18: 0.03 | AV18: 0.04 | AW18: 0.04 | AX18: 0.04 | AY18: 0.04 | AZ18: 0.04 | BA18: 0.04 | BB18: 0.04 | BC18: 0.04 | BD18: 0.04 | BE18: 0.04 | BF18: 0.04 | BG18: 0.04 | BH18: 0.04 | BI18: 0.04 | BJ18: 0.04 | BK18: 0.04 | BL18: 0.04 | BM18: 0.04 | BN18: 0.04 | BO18: 0.04 | BP18: 0.04 | BQ18: 0.04 | BR18: 0.04 | BS18: 0.04 | BT18: 0.04 | BU18: 0.04 | BV18: =LOOKUP(BV14,10:10,11:11) -> 0.04 | BW18: 0.04 | BX18: 0.04 | BY18: 0.04 | BZ18: 0.04 | CA18: 0.04 | CB18: 0.04 | CC18: 0.04 | CD18: 0.04 | CE18: 0.04 | CF18: 0.04 | CG18: 0.04 | CH18: 0.04 | CI18: 0.04 | CJ18: 0.04 | CK18: 0.04 | CL18: 0.04 | CM18: 0.04 | CN18: 0.04 | CO18: 0.04 | CP18: 0.04 | CQ18: 0.04 | CR18: 0.04 | CS18: 0.04 | CT18: 0.04 | CU18: 0.04 | CV18: 0.04 | CW18: 0.04 | CX18: 0.04 | CY18: 0.04 | CZ18: 0.04 | DA18: 0.04 | DB18: 0.04 | DC18: 0.04 | DD18: 0.04

Sheet PF Theory Inputs
B4: Timing Assumptions
C5: Model Start Date | E5: Date | F5: 2021-12-01
C6: Development Period | E6: Months | F6: 15
C7: Financial Close | E7: Date | F7: =EDATE(F5,F6) -> 2023-03-01 | L7: Colors made with Generic Macros and
C8: Construction period | E8: Months | F8: 35 | L8: CNTL, ALT, c
C9: COD Date | E9: Date | F9: =EDATE(F7,F8) -> 2026-02-01
C10: Total Months Pre-COD | E10: Months | F10: =F6+F8 -> 50
C12: Operating Period | E12: Years | F12: 29
C13: End of Project Life | E13: Date | F13: =EDATE(F9,F12*12) -> 2055-02-01
C15: Months in Period Pre-COD | F15: 1
C16: Months in Period Post-COD | F16: 12
B18: Capital Expenditures
C19: Development Cost | E19: EUR | F19: 30000
C21: EPC cost | E21: EUR | F21: 400000
C22: EPC S-curve
D23: Construction period | I23: 0 | J23: 1 | K23: 2 | L23: 3 | M23: 4 | N23: 5 | O23: 6 | P23: 7 | Q23: 8 | R23: 9 | S23: 10 | T23: 11 | U23: 12 | V23: 13 | W23: 14 | X23: 15 | Y23: 16 | Z23: 17 | AA23: 18 | AB23: 19 | AC23: 20 | AD23: 21 | AE23: 22 | AF23: 23 | AG23: 24 | AH23: 25 | AI23: 26 | AJ23: 27 | AK23: 28 | AL23: 29 | AM23: 30 | AN23: 31 | AO23: 32 | AP23: 33 | AQ23: 34 | AR23: 35 | AS23: 36 | AT23: 37 | AU23: 38 | AV23: 39 | AW23: 40
D24: Construciton flag | F24: =F8 -> 35 | I24: Sum | J24: =J23<=$F$24 -> TRUE | K24: =K23<=$F$24 -> TRUE | L24: TRUE | M24: TRUE | N24: TRUE | O24: TRUE | P24: TRUE | Q24: TRUE | R24: TRUE | S24: TRUE | T24: TRUE | U24: TRUE | V24: TRUE | W24: TRUE | X24: TRUE | Y24: TRUE | Z24: TRUE | AA24: TRUE | AB24: TRUE | AC24: TRUE | AD24: TRUE | AE24: TRUE | AF24: TRUE | AG24: TRUE | AH24: TRUE | AI24: TRUE | AJ24: TRUE | AK24: TRUE | AL24: TRUE | AM24: TRUE | AN24: TRUE | AO24: TRUE | AP24: TRUE | AQ24: TRUE | AR24: TRUE | AS24: FALSE | AT24: FALSE | AU24: FALSE | AV24: FALSE | AW24: FALSE
D25: Wiebull | F25: 1.8 | G25: 12 | I25: =SUM(J25:AW25) -> 0.9966240619 | J25: =_xlfn.WEIBULL.DIST(J23,$F$25,$G$25,0)*J24 -> 0.02031368976 | K25: =_xlfn.WEIBULL.DIST(K23,$F$25,$G$25,0)*K24 -> 0.034380123 | L25: 0.04556457547 | M25: 0.05423524177 | N25: 0.06054744883 | O25: 0.06464708149 | P25: 0.06671491073 | Q25: 0.06697207582 | R25: 0.06567223448 | S25: 0.06308883547 | T25: 0.05950127219 | U25: 0.05518191618 | V25: 0.05038515399 | W25: 0.04533900493 | X25: 0.04023951022 | Y25: 0.03524780135 | Z25: 0.03048955669 | AA25: 0.02605643023 | AB25: 0.02200897523 | AC25: 0.01838057755 | AD25: 0.01518194636 | AE25: 0.01240577105 | AF25: 0.01003123039 | AG25: 0.008028123266 | AH25: 0.006360470812 | AI25: 0.004989511438 | AJ25: 0.003876070092 | AK25: 0.00298232843 | AL25: 0.002273054301 | AM25: 0.001716367834 | AN25: 0.001284129597 | AO25: 0.0009520361684 | AP25: 0.0006995023052 | AQ25: 0.0005093990579 | AR25: 0.0003677054265 | AS25: 0 | AT25: 0 | AU25: 0 | AV25: 0 | AW25: 0
D26: S-Curve | J26: =J25/$I$25 -> 0.02038249981 | K26: =K25/$I$25 -> 0.03449658132 | L26: 0.04571891971 | M26: 0.0544189568 | N26: 0.06075254566 | O26: 0.06486606531 | P26: 0.06694089907 | Q26: 0.06719893527 | R26: 0.06589469088 | S26: 0.06330254093 | T26: 0.05970282523 | U26: 0.05536883795 | V26: 0.05055582733 | W26: 0.04549258508 | X26: 0.04037581648 | Y26: 0.03536719882 | Z26: 0.03059283621 | AA26: 0.0261446931 | AB26: 0.02208352786 | AC26: 0.01844283943 | AD26: 0.01523337328 | AE26: 0.01244779403 | AF26: 0.01006520991 | AG26: 0.00805531752 | AH26: 0.006382016104 | AI26: 0.005006412778 | AJ26: 0.00388919979 | AK26: 0.002992430691 | AL26: 0.002280753986 | AM26: 0.001722181813 | AN26: 0.001288479424 | AO26: 0.0009552610707 | AP26: 0.0007018717809 | AQ26: 0.0005111245829 | AR26: 0.0003689509822 | AS26: 0 | AT26: 0 | AU26: 0 | AV26: 0 | AW26: 0
F27: 0
C28: Operating Cash Flow
D29: EBITDA p.a. | E29: EUR | F29: 10974.11751
D30: EBITDA Growth | E30: % p.a. | F30: =J30/100 -> 0.03 | J30: 3 | K30: Spin Growth | M30: 3 | N30: Base Growth
B32: Valuation
C33: Target IRR of Buyer
C34: Scenario Analysis with Conditional Formatting
F36: Start | G36: Fin Close | H36: COD | I36: COD + 2 | J36: COD + 4
F37: =F5 -> 2021-12-01 | G37: =F7 -> 2023-03-01 | H37: =F9 -> 2026-02-01 | I37: =EDATE(H37,24) -> 2028-02-01 | J37: =EDATE(I37,24) -> 2030-02-01
C38: 1 | D38: Scenario 1 - Base Case | F38: 0.11 | G38: 0.09 | H38: 0.06 | I38: 0.05 | J38: 0.045
C39: 2 | D39: Scenario 2 - Lower Rate | F39: 0.1 | G39: 0.08 | H39: 0.05 | I39: 0.04 | J39: 0.04
C40: 3 | D40: Scenario 3 - Higher IRR | F40: 0.12 | G40: 0.1 | H40: 0.06 | I40: 0.06 | J40: 0.06
C41: 4 | D41: Scenario 4 - Flat IRR | F41: 0.07 | G41: 0.07 | H41: 0.07 | I41: 0.07 | J41: 0.07
D43: Scenario Number | F43: 2
D44: =INDEX(D38:D41,$F$43) -> Scenario 2 - Lower Rate | F44: =INDEX(F38:F41,$F$43) -> 0.1 | G44: =INDEX(G38:G41,$F$43) -> 0.08 | H44: =INDEX(H38:H41,$F$43) -> 0.05 | I44: =INDEX(I38:I41,$F$43) -> 0.04 | J44: =INDEX(J38:J41,$F$43) -> 0.04
D46: Terminal Period | F46: Year | G46: 3 | H46: =EDATE(F9,G46*12-1) -> 2029-01-01 | L46: 3 | M46: Base Hold
B48: Development Fee and Partnership
D49: Development Fee | E49: EUR | F49: =J49/100 -> 0.15 | J49: 15 | K49: Spin Fee | L49: 15 | M49: Base Fee
D51: Co-Sponsor Financing/Cash Flow | E51: % | F51: =J51/100 -> 0.5 | J51: 50 | K51: Spin Sponsor | L51: 50 | M51: Base Sponsor
D52: Re-investment Rate | E52: % | F52: 0.1
B55: Equity Bridge Loan
D56: Apply Equity Bridge Loan | E56: Flag | F56: FALSE
D57: Interest Rate on EBL | E57: % p.a. | F57: 0.01
D59: Repayment date for EBL | F59: 5
D61: Target Dev IRR | F61: 0.07

Sheet PF Theory Control
D3: Construction Period
D4: Life | F4: ='PF Theory Inputs'!F12 -> 29
D5: EBITDA | F5: 30009.72622
D6: EBITDA Growth | F6: ='PF Theory Inputs'!F30 -> 0.03
D8: Development Fee | F8: ='PF Theory Inputs'!F49 -> 0.15
D10: Valuation Scenario
D11: Holding Period | F11: ='PF Theory Inputs'!G46 -> 3
D12: Co-Investor Percent | E12: % | F12: ='PF Theory Inputs'!F51 -> 0.5
D14: Multiple of Invested Capital | E14: x | F14: ='PF Theory Model'!E121 -> 3.250501102
D15: Project IRR | E15: % | F15: ='PF Theory Model'!E27 -> 0.0728318423
D16: IRR without sale | E16: % | F16: =F15 -> 0.0728318423
D17: IRR with Sale | E17: % | F17: ='PF Theory Model'!E48 -> 0.1522217691
D18: IRR with Dev fee | E18: % | F18: ='PF Theory Model'!E54 -> 0.06227500737
D19: Co-Sponsor IRR | E19: % | F19: ='PF Theory Model'!E61 -> 0.06244592369
D20: Developer IRR with Dev Fee | E20: % | F20: ='PF Theory Model'!E69 -> 0.08581813276
D21: Inestment | E21: EUR | F21: ='PF Theory Model'!E122 -> 499823.3822
D22: Total Cash with Re-investment | E22: EUR | F22: ='PF Theory Model'!E123 -> 3842433.233
D24: Target IRR | E24: % | F24: ='PF Theory Model'!E26 -> 0.07
D25: NPV at Target IRR | E25: EUR | F25: ='PF Theory Model'!F26 -> 14773.96411 | G25: NPV_TARGET

Sheet PF Theory Model
B1: Timeline | D1: Units | E1: Constant 1 | F1: Constant 2 | G1: Sum
C2: Period | I2: 1 | J2: 2 | K2: 3 | L2: 4 | M2: 5 | N2: 6 | O2: 7 | P2: 8 | Q2: 9 | R2: 10 | S2: 11 | T2: 12 | U2: 13 | V2: 14 | W2: 15 | X2: 16 | Y2: 17 | Z2: 18 | AA2: 19 | AB2: 20 | AC2: 21 | AD2: 22 | AE2: 23 | AF2: 24 | AG2: 25 | AH2: 26 | AI2: 27 | AJ2: 28 | AK2: 29 | AL2: 30 | AM2: 31 | AN2: 32 | AO2: 33 | AP2: 34 | AQ2: 35 | AR2: 36 | AS2: 37 | AT2: 38 | AU2: 39 | AV2: 40 | AW2: 41 | AX2: 42 | AY2: 43 | AZ2: 44 | BA2: 45 | BB2: 46 | BC2: 47 | BD2: 48 | BE2: 49 | BF2: 50 | BG2: 51 | BH2: 52 | BI2: 53 | BJ2: 54 | BK2: 55 | BL2: 56 | BM2: 57 | BN2: 58 | BO2: 59 | BP2: 60 | BQ2: 61 | BR2: 62 | BS2: 63 | BT2: 64 | BU2: 65 | BV2: 66 | BW2: 67 | BX2: 68 | BY2: 69 | BZ2: 70 | CA2: 71 | CB2: 72 | CC2: 73 | CD2: 74 | CE2: 75 | CF2: 76 | CG2: 77 | CH2: 78 | CI2: 79 | CJ2: 80 | CK2: 81 | CL2: 82 | CM2: 83 | CN2: 84 | CO2: 85 | CP2: 86 | CQ2: 87 | CR2: 88 | CS2: 89 | CT2: 90 | CU2: 91 | CV2: 92 | CW2: 93 | CX2: 94 | CY2: 95 | CZ2: 96 | DA2: 97 | DB2: 98 | DC2: 99 | DD2: 100 | DE2: 101 | DF2: 102 | DG2: 103 | DH2: 104 | DI2: 105 | DJ2: 106 | DK2: 107 | DL2: 108 | DM2: 109 | DN2: 110 | DO2: 111 | DP2: 112 | DQ2: 113 | DR2: 114 | DS2: 115 | DT2: 116 | DU2: 117 | DV2: 118 | DW2: 119 | DX2: 120 | DY2: 121 | DZ2: 122 | EA2: 123 | EB2: 124 | EC2: 125 | ED2: 126 | EE2: 127 | EF2: 128 | EG2: 129 | EH2: 130 | EI2: 131 | EJ2: 132 | EK2: 133 | EL2: 134 | EM2: 135 | EN2: 136 | EO2: 137 | EP2: 138 | EQ2: 139 | ER2: 140 | ES2: 141 | ET2: 142 | EU2: 143 | EV2: 144 | EW2: 145 | EX2: 146 | EY2: 147 | EZ2: 148 | FA2: 149 | FB2: 150
C3: Pre-COD | D3: Months Pre COD | E3: ='PF Theory Inputs'!$F$10-1 -> 49 | I3: =I2<=$E$3 -> TRUE | J3: =J2<=$E$3 -> TRUE | K3: TRUE | L3: TRUE | M3: TRUE | N3: TRUE | O3: TRUE | P3: TRUE | Q3: TRUE | R3: TRUE | S3: TRUE | T3: TRUE | U3: TRUE | V3: TRUE | W3: TRUE | X3: TRUE | Y3: TRUE | Z3: TRUE | AA3: TRUE | AB3: TRUE | AC3: TRUE | AD3: TRUE | AE3: TRUE | AF3: TRUE | AG3: TRUE | AH3: TRUE | AI3: TRUE | AJ3: TRUE | AK3: TRUE | AL3: TRUE | AM3: TRUE | AN3: TRUE | AO3: TRUE | AP3: TRUE | AQ3: TRUE | AR3: TRUE | AS3: TRUE | AT3: TRUE | AU3: TRUE | AV3: TRUE | AW3: TRUE | AX3: TRUE | AY3: TRUE | AZ3: TRUE | BA3: TRUE | BB3: TRUE | BC3: TRUE | BD3: TRUE | BE3: TRUE | BF3: FALSE | BG3: FALSE | BH3: FALSE | BI3: FALSE | BJ3: FALSE | BK3: FALSE | BL3: FALSE | BM3: FALSE | BN3: FALSE | BO3: FALSE | BP3: FALSE | BQ3: FALSE | BR3: FALSE | BS3: FALSE | BT3: FALSE | BU3: FALSE | BV3: =BV2<=$E$3 -> FALSE | BW3: FALSE | BX3: FALSE | BY3: FALSE | BZ3: FALSE | CA3: FALSE | CB3: FALSE | CC3: FALSE | CD3: FALSE | CE3: FALSE | CF3: FALSE | CG3: FALSE | CH3: FALSE | CI3: FALSE | CJ3: FALSE | CK3: FALSE | CL3: FALSE | CM3: FALSE | CN3: FALSE | CO3: FALSE | CP3: FALSE | CQ3: FALSE | CR3: FALSE | CS3: FALSE | CT3: FALSE | CU3: FALSE | CV3: FALSE | CW3: FALSE | CX3: FALSE | CY3: FALSE | CZ3: FALSE | DA3: FALSE | DB3: FALSE | DC3: FALSE | DD3: FALSE | DE3: FALSE | DF3: FALSE | DG3: FALSE | DH3: FALSE | DI3: FALSE | DJ3: FALSE | DK3: FALSE | DL3: FALSE | DM3: FALSE | DN3: FALSE | DO3: FALSE | DP3: FALSE | DQ3: FALSE | DR3: FALSE | DS3: FALSE | DT3: FALSE | DU3: FALSE | DV3: FALSE | DW3: FALSE | DX3: FALSE | DY3: FALSE | DZ3: FALSE | EA3: FALSE | EB3: FALSE | EC3: FALSE | ED3: FALSE | EE3: FALSE | EF3: FALSE | EG3: FALSE | EH3: =EH2<=$E$3 -> FALSE | EI3: FALSE | EJ3: FALSE | EK3: FALSE | EL3: FALSE | EM3: FALSE | EN3: FALSE | EO3: FALSE | EP3: FALSE | EQ3: FALSE | ER3: FALSE | ES3: FALSE | ET3: FALSE | EU3: FALSE | EV3: FALSE | EW3: FALSE | EX3: FALSE | EY3: FALSE | EZ3: FALSE | FA3: FALSE | FB3: FALSE
C4: Month | D4: Mnts in Period | E4: ='PF Theory Inputs'!$F$15 -> 1 | F4: ='PF Theory Inputs'!$F$16 -> 12 | I4: =IF(I3,$E$4,$F$4) -> 1 | J4: =IF(J3,$E$4,$F$4) -> 1 | K4: 1 | L4: 1 | M4: 1 | N4: 1 | O4: 1 | P4: 1 | Q4: 1 | R4: 1 | S4: 1 | T4: 1 | U4: 1 | V4: 1 | W4: 1 | X4: 1 | Y4: 1 | Z4: 1 | AA4: 1 | AB4: 1 | AC4: 1 | AD4: 1 | AE4: 1 | AF4: 1 | AG4: 1 | AH4: 1 | AI4: 1 | AJ4: 1 | AK4: 1 | AL4: 1 | AM4: 1 | AN4: 1 | AO4: 1 | AP4: 1 | AQ4: 1 | AR4: 1 | AS4: 1 | AT4: 1 | AU4: 1 | AV4: 1 | AW4: 1 | AX4: 1 | AY4: 1 | AZ4: 1 | BA4: 1 | BB4: 1 | BC4: 1 | BD4: 1 | BE4: 1 | BF4: 12 | BG4: 12 | BH4: 12 | BI4: 12 | BJ4: 12 | BK4: 12 | BL4: 12 | BM4: 12 | BN4: 12 | BO4: 12 | BP4: 12 | BQ4: 12 | BR4: 12 | BS4: 12 | BT4: 12 | BU4: 12 | BV4: =IF(BV3,$E$4,$F$4) -> 12 | BW4: 12 | BX4: 12 | BY4: 12 | BZ4: 12 | CA4: 12 | CB4: 12 | CC4: 12 | CD4: 12 | CE4: 12 | CF4: 12 | CG4: 12 | CH4: 12 | CI4: 12 | CJ4: 12 | CK4: 12 | CL4: 12 | CM4: 12 | CN4: 12 | CO4: 12 | CP4: 12 | CQ4: 12 | CR4: 12 | CS4: 12 | CT4: 12 | CU4: 12 | CV4: 12 | CW4: 12 | CX4: 12 | CY4: 12 | CZ4: 12 | DA4: 12 | DB4: 12 | DC4: 12 | DD4: 12 | DE4: 12 | DF4: 12 | DG4: 12 | DH4: 12 | DI4: 12 | DJ4: 12 | DK4: 12 | DL4: 12 | DM4: 12 | DN4: 12 | DO4: 12 | DP4: 12 | DQ4: 12 | DR4: 12 | DS4: 12 | DT4: 12 | DU4: 12 | DV4: 12 | DW4: 12 | DX4: 12 | DY4: 12 | DZ4: 12 | EA4: 12 | EB4: 12 | EC4: 12 | ED4: 12 | EE4: 12 | EF4: 12 | EG4: 12 | EH4: =IF(EH3,$E$4,$F$4) -> 12 | EI4: 12 | EJ4: 12 | EK4: 12 | EL4: 12 | EM4: 12 | EN4: 12 | EO4: 12 | EP4: 12 | EQ4: 12 | ER4: 12 | ES4: 12 | ET4: 12 | EU4: 12 | EV4: 12 | EW4: 12 | EX4: 12 | EY4: 12 | EZ4: 12 | FA4: 12 | FB4: 12
C5: Date | D5: Date | H5: ='PF Theory Inputs'!$F$5 -> 2021-12-01 | I5: =EDATE(H5,I4) -> 2022-01-01 | J5: =EDATE(I5,J4) -> 2022-02-01 | K5: 2022-03-01 | L5: 2022-04-01 | M5: 2022-05-01 | N5: 2022-06-01 | O5: 2022-07-01 | P5: 2022-08-01 | Q5: 2022-09-01 | R5: 2022-10-01 | S5: 2022-11-01 | T5: 2022-12-01 | U5: 2023-01-01 | V5: 2023-02-01 | W5: 2023-03-01 | X5: 2023-04-01 | Y5: 2023-05-01 | Z5: 2023-06-01 | AA5: 2023-07-01 | AB5: 2023-08-01 | AC5: 2023-09-01 | AD5: 2023-10-01 | AE5: 2023-11-01 | AF5: 2023-12-01 | AG5: 2024-01-01 | AH5: 2024-02-01 | AI5: 2024-03-01 | AJ5: 2024-04-01 | AK5: 2024-05-01 | AL5: 2024-06-01 | AM5: 2024-07-01 | AN5: 2024-08-01 | AO5: 2024-09-01 | AP5: 2024-10-01 | AQ5: 2024-11-01 | AR5: 2024-12-01 | AS5: 2025-01-01 | AT5: 2025-02-01 | AU5: 2025-03-01 | AV5: 2025-04-01 | AW5: 2025-05-01 | AX5: 2025-06-01 | AY5: 2025-07-01 | AZ5: 2025-08-01 | BA5: 2025-09-01 | BB5: 2025-10-01 | BC5: 2025-11-01 | BD5: 2025-12-01 | BE5: 2026-01-01 | BF5: 2027-01-01 | BG5: 2028-01-01 | BH5: 2029-01-01 | BI5: 2030-01-01 | BJ5: 2031-01-01 | BK5: 2032-01-01 | BL5: 2033-01-01 | BM5: 2034-01-01 | BN5: 2035-01-01 | BO5: 2036-01-01 | BP5: 2037-01-01 | BQ5: 2038-01-01 | BR5: 2039-01-01 | BS5: 2040-01-01 | BT5: 2041-01-01 | BU5: 2042-01-01 | BV5: =EDATE(BU5,BV4) -> 2043-01-01 | BW5: 2044-01-01 | BX5: 2045-01-01 | BY5: 2046-01-01 | BZ5: 2047-01-01 | CA5: 2048-01-01 | CB5: 2049-01-01 | CC5: 2050-01-01 | CD5: 2051-01-01 | CE5: 2052-01-01 | CF5: 2053-01-01 | CG5: 2054-01-01 | CH5: 2055-01-01 | CI5: 2056-01-01 | CJ5: 2057-01-01 | CK5: 2058-01-01 | CL5: 2059-01-01 | CM5: 2060-01-01 | CN5: 2061-01-01 | CO5: 2062-01-01 | CP5: 2063-01-01 | CQ5: 2064-01-01 | CR5: 2065-01-01 | CS5: 2066-01-01 | CT5: 2067-01-01 | CU5: 2068-01-01 | CV5: 2069-01-01 | CW5: 2070-01-01 | CX5: 2071-01-01 | CY5: 2072-01-01 | CZ5: 2073-01-01 | DA5: 2074-01-01 | DB5: 2075-01-01 | DC5: 2076-01-01 | DD5: 2077-01-01 | DE5: 2078-01-01 | DF5: 2079-01-01 | DG5: 2080-01-01 | DH5: 2081-01-01 | DI5: 2082-01-01 | DJ5: 2083-01-01 | DK5: 2084-01-01 | DL5: 2085-01-01 | DM5: 2086-01-01 | DN5: 2087-01-01 | DO5: 2088-01-01 | DP5: 2089-01-01 | DQ5: 2090-01-01 | DR5: 2091-01-01 | DS5: 2092-01-01 | DT5: 2093-01-01 | DU5: 2094-01-01 | DV5: 2095-01-01 | DW5: 2096-01-01 | DX5: 2097-01-01 | DY5: 2098-01-01 | DZ5: 2099-01-01 | EA5: 2100-01-01 | EB5: 2101-01-01 | EC5: 2102-01-01 | ED5: 2103-01-01 | EE5: 2104-01-01 | EF5: 2105-01-01 | EG5: 2106-01-01 | EH5: =EDATE(EG5,EH4) -> 2107-01-01 | EI5: 2108-01-01 | EJ5: 2109-01-01 | EK5: 2110-01-01 | EL5: 2111-01-01 | EM5: 2112-01-01 | EN5: 2113-01-01 | EO5: 2114-01-01 | EP5: 2115-01-01 | EQ5: 2116-01-01 | ER5: 2117-01-01 | ES5: 2118-01-01 | ET5: 2119-01-01 | EU5: 2120-01-01 | EV5: 2121-01-01 | EW5: 2122-01-01 | EX5: 2123-01-01 | EY5: 2124-01-01 | EZ5: 2125-01-01 | FA5: 2126-01-01 | FB5: 2127-01-01
C6: Development Period | D6: Month | E6: ='PF Theory Inputs'!F7 -> 2023-03-01 | G6: =SUM(I6:FB6) -> 14 | I6: =(I5<$E$6)*1 -> 1 | J6: =(J5<$E$6)*1 -> 1 | K6: 1 | L6: 1 | M6: 1 | N6: 1 | O6: 1 | P6: 1 | Q6: 1 | R6: 1 | S6: 1 | T6: 1 | U6: 1 | V6: 1 | W6: 0 | X6: 0 | Y6: 0 | Z6: 0 | AA6: 0 | AB6: 0 | AC6: 0 | AD6: 0 | AE6: 0 | AF6: 0 | AG6: 0 | AH6: 0 | AI6: 0 | AJ6: 0 | AK6: 0 | AL6: 0 | AM6: 0 | AN6: 0 | AO6: 0 | AP6: 0 | AQ6: 0 | AR6: 0 | AS6: 0 | AT6: 0 | AU6: 0 | AV6: 0 | AW6: 0 | AX6: 0 | AY6: 0 | AZ6: 0 | BA6: 0 | BB6: 0 | BC6: 0 | BD6: 0 | BE6: 0 | BF6: 0 | BG6: 0 | BH6: 0 | BI6: 0 | BJ6: 0 | BK6: 0 | BL6: 0 | BM6: 0 | BN6: 0 | BO6: 0 | BP6: 0 | BQ6: 0 | BR6: 0 | BS6: 0 | BT6: 0 | BU6: 0 | BV6: =(BV5<$E$6)*1 -> 0 | BW6: 0 | BX6: 0 | BY6: 0 | BZ6: 0 | CA6: 0 | CB6: 0 | CC6: 0 | CD6: 0 | CE6: 0 | CF6: 0 | CG6: 0 | CH6: 0 | CI6: 0 | CJ6: 0 | CK6: 0 | CL6: 0 | CM6: 0 | CN6: 0 | CO6: 0 | CP6: 0 | CQ6: 0 | CR6: 0 | CS6: 0 | CT6: 0 | CU6: 0 | CV6: 0 | CW6: 0 | CX6: 0 | CY6: 0 | CZ6: 0 | DA6: 0 | DB6: 0 | DC6: 0 | DD6: 0 | DE6: 0 | DF6: 0 | DG6: 0 | DH6: 0 | DI6: 0 | DJ6: 0 | DK6: 0 | DL6: 0 | DM6: 0 | DN6: 0 | DO6: 0 | DP6: 0 | DQ6: 0 | DR6: 0 | DS6: 0 | DT6: 0 | DU6: 0 | DV6: 0 | DW6: 0 | DX6: 0 | DY6: 0 | DZ6: 0 | EA6: 0 | EB6: 0 | EC6: 0 | ED6: 0 | EE6: 0 | EF6: 0 | EG6: 0 | EH6: =(EH5<$E$6)*1 -> 0 | EI6: 0 | EJ6: 0 | EK6: 0 | EL6: 0 | EM6: 0 | EN6: 0 | EO6: 0 | EP6: 0 | EQ6: 0 | ER6: 0 | ES6: 0 | ET6: 0 | EU6: 0 | EV6: 0 | EW6: 0 | EX6: 0 | EY6: 0 | EZ6: 0 | FA6: 0 | FB6: 0
C7: Construction period | D7: Month | E7: ='PF Theory Inputs'!F7 -> 2023-03-01 | F7: ='PF Theory Inputs'!F9 -> 2026-02-01 | G7: =SUM(I7:FB7) -> 35 | I7: =AND(I$5>=$E7,I$5<$F7)*1 -> 0 | J7: =AND(J$5>=$E7,J$5<$F7)*1 -> 0 | K7: 0 | L7: 0 | M7: 0 | N7: 0 | O7: 0 | P7: 0 | Q7: 0 | R7: 0 | S7: 0 | T7: 0 | U7: 0 | V7: 0 | W7: 1 | X7: 1 | Y7: 1 | Z7: 1 | AA7: 1 | AB7: 1 | AC7: 1 | AD7: 1 | AE7: 1 | AF7: 1 | AG7: 1 | AH7: 1 | AI7: 1 | AJ7: 1 | AK7: 1 | AL7: 1 | AM7: 1 | AN7: 1 | AO7: 1 | AP7: 1 | AQ7: 1 | AR7: 1 | AS7: 1 | AT7: 1 | AU7: 1 | AV7: 1 | AW7: 1 | AX7: 1 | AY7: 1 | AZ7: 1 | BA7: 1 | BB7: 1 | BC7: 1 | BD7: 1 | BE7: 1 | BF7: 0 | BG7: 0 | BH7: 0 | BI7: 0 | BJ7: 0 | BK7: 0 | BL7: 0 | BM7: 0 | BN7: 0 | BO7: 0 | BP7: 0 | BQ7: 0 | BR7: 0 | BS7: 0 | BT7: 0 | BU7: 0 | BV7: =AND(BV$5>=$E7,BV$5<$F7)*1 -> 0 | BW7: 0 | BX7: 0 | BY7: 0 | BZ7: 0 | CA7: 0 | CB7: 0 | CC7: 0 | CD7: 0 | CE7: 0 | CF7: 0 | CG7: 0 | CH7: 0 | CI7: 0 | CJ7: 0 | CK7: 0 | CL7: 0 | CM7: 0 | CN7: 0 | CO7: 0 | CP7: 0 | CQ7: 0 | CR7: 0 | CS7: 0 | CT7: 0 | CU7: 0 | CV7: 0 | CW7: 0 | CX7: 0 | CY7: 0 | CZ7: 0 | DA7: 0 | DB7: 0 | DC7: 0 | DD7: 0 | DE7: 0 | DF7: 0 | DG7: 0 | DH7: 0 | DI7: 0 | DJ7: 0 | DK7: 0 | DL7: 0 | DM7: 0 | DN7: 0 | DO7: 0 | DP7: 0 | DQ7: 0 | DR7: 0 | DS7: 0 | DT7: 0 | DU7: 0 | DV7: 0 | DW7: 0 | DX7: 0 | DY7: 0 | DZ7: 0 | EA7: 0 | EB7: 0 | EC7: 0 | ED7: 0 | EE7: 0 | EF7: 0 | EG7: 0 | EH7: =AND(EH$5>=$E7,EH$5<$F7)*1 -> 0 | EI7: 0 | EJ7: 0 | EK7: 0 | EL7: 0 | EM7: 0 | EN7: 0 | EO7: 0 | EP7: 0 | EQ7: 0 | ER7: 0 | ES7: 0 | ET7: 0 | EU7: 0 | EV7: 0 | EW7: 0 | EX7: 0 | EY7: 0 | EZ7: 0 | FA7: 0 | FB7: 0
C8: Age of project | D8: Yrs
C9: Operating period | D9: Yr | E9: ='PF Theory Inputs'!F9 -> 2026-02-01 | F9: ='PF Theory Inputs'!F13 -> 2055-02-01 | G9: =SUM(I9:FB9) -> 29 | I9: =AND(I$5>=$E9,I$5<$F9)*1 -> 0 | J9: =AND(J$5>=$E9,J$5<$F9)*1 -> 0 | K9: 0 | L9: 0 | M9: 0 | N9: 0 | O9: 0 | P9: 0 | Q9: 0 | R9: 0 | S9: 0 | T9: 0 | U9: 0 | V9: 0 | W9: 0 | X9: 0 | Y9: 0 | Z9: 0 | AA9: 0 | AB9: 0 | AC9: 0 | AD9: 0 | AE9: 0 | AF9: 0 | AG9: 0 | AH9: 0 | AI9: 0 | AJ9: 0 | AK9: 0 | AL9: 0 | AM9: 0 | AN9: 0 | AO9: 0 | AP9: 0 | AQ9: 0 | AR9: 0 | AS9: 0 | AT9: 0 | AU9: 0 | AV9: 0 | AW9: 0 | AX9: 0 | AY9: 0 | AZ9: 0 | BA9: 0 | BB9: 0 | BC9: 0 | BD9: 0 | BE9: 0 | BF9: 1 | BG9: 1 | BH9: 1 | BI9: 1 | BJ9: 1 | BK9: 1 | BL9: 1 | BM9: 1 | BN9: 1 | BO9: 1 | BP9: 1 | BQ9: 1 | BR9: 1 | BS9: 1 | BT9: 1 | BU9: 1 | BV9: =AND(BV$5>=$E9,BV$5<$F9)*1 -> 1 | BW9: 1 | BX9: 1 | BY9: 1 | BZ9: 1 | CA9: 1 | CB9: 1 | CC9: 1 | CD9: 1 | CE9: 1 | CF9: 1 | CG9: 1 | CH9: 1 | CI9: 0 | CJ9: 0 | CK9: 0 | CL9: 0 | CM9: 0 | CN9: 0 | CO9: 0 | CP9: 0 | CQ9: 0 | CR9: 0 | CS9: 0 | CT9: 0 | CU9: 0 | CV9: 0 | CW9: 0 | CX9: 0 | CY9: 0 | CZ9: 0 | DA9: 0 | DB9: 0 | DC9: 0 | DD9: 0 | DE9: 0 | DF9: 0 | DG9: 0 | DH9: 0 | DI9: 0 | DJ9: 0 | DK9: 0 | DL9: 0 | DM9: 0 | DN9: 0 | DO9: 0 | DP9: 0 | DQ9: 0 | DR9: 0 | DS9: 0 | DT9: 0 | DU9: 0 | DV9: 0 | DW9: 0 | DX9: 0 | DY9: 0 | DZ9: 0 | EA9: 0 | EB9: 0 | EC9: 0 | ED9: 0 | EE9: 0 | EF9: 0 | EG9: 0 | EH9: =AND(EH$5>=$E9,EH$5<$F9)*1 -> 0 | EI9: 0 | EJ9: 0 | EK9: 0 | EL9: 0 | EM9: 0 | EN9: 0 | EO9: 0 | EP9: 0 | EQ9: 0 | ER9: 0 | ES9: 0 | ET9: 0 | EU9: 0 | EV9: 0 | EW9: 0 | EX9: 0 | EY9: 0 | EZ9: 0 | FA9: 0 | FB9: 0
B11: Fundamental Cash Flow Analysis
C12: Development Cost | D12: EUR | E12: ='PF Theory Inputs'!F19 -> 30000 | I12: =$E$12*I6 -> 30000 | J12: =$E$12*J6 -> 30000 | K12: 30000 | L12: 30000 | M12: 30000 | N12: 30000 | O12: 30000 | P12: 30000 | Q12: 30000 | R12: 30000 | S12: 30000 | T12: 30000 | U12: 30000 | V12: 30000 | W12: 0 | X12: 0 | Y12: 0 | Z12: 0 | AA12: 0 | AB12: 0 | AC12: 0 | AD12: 0 | AE12: 0 | AF12: 0 | AG12: 0 | AH12: 0 | AI12: 0 | AJ12: 0 | AK12: 0 | AL12: 0 | AM12: 0 | AN12: 0 | AO12: 0 | AP12: 0 | AQ12: 0 | AR12: 0 | AS12: 0 | AT12: 0 | AU12: 0 | AV12: 0 | AW12: 0 | AX12: 0 | AY12: 0 | AZ12: 0 | BA12: 0 | BB12: 0 | BC12: 0 | BD12: 0 | BE12: 0 | BF12: 0 | BG12: 0 | BH12: 0 | BI12: 0 | BJ12: 0 | BK12: 0 | BL12: 0 | BM12: 0 | BN12: 0 | BO12: 0 | BP12: 0 | BQ12: 0 | BR12: 0 | BS12: 0 | BT12: 0 | BU12: 0 | BV12: =$E$12*BV6 -> 0 | BW12: 0 | BX12: 0 | BY12: 0 | BZ12: 0 | CA12: 0 | CB12: 0 | CC12: 0 | CD12: 0 | CE12: 0 | CF12: 0 | CG12: 0 | CH12: 0 | CI12: 0 | CJ12: 0 | CK12: 0 | CL12: 0 | CM12: 0 | CN12: 0 | CO12: 0 | CP12: 0 | CQ12: 0 | CR12: 0 | CS12: 0 | CT12: 0 | CU12: 0 | CV12: 0 | CW12: 0 | CX12: 0 | CY12: 0 | CZ12: 0 | DA12: 0 | DB12: 0 | DC12: 0 | DD12: 0 | DE12: 0 | DF12: 0 | DG12: 0 | DH12: 0 | DI12: 0 | DJ12: 0 | DK12: 0 | DL12: 0 | DM12: 0 | DN12: 0 | DO12: 0 | DP12: 0 | DQ12: 0 | DR12: 0 | DS12: 0 | DT12: 0 | DU12: 0 | DV12: 0 | DW12: 0 | DX12: 0 | DY12: 0 | DZ12: 0 | EA12: 0 | EB12: 0 | EC12: 0 | ED12: 0 | EE12: 0 | EF12: 0 | EG12: 0 | EH12: =$E$12*EH6 -> 0 | EI12: 0 | EJ12: 0 | EK12: 0 | EL12: 0 | EM12: 0 | EN12: 0 | EO12: 0 | EP12: 0 | EQ12: 0 | ER12: 0 | ES12: 0 | ET12: 0 | EU12: 0 | EV12: 0 | EW12: 0 | EX12: 0 | EY12: 0 | EZ12: 0 | FA12: 0 | FB12: 0
C13: Development S-Curve | D13: % | E13: =G6 -> 14 | F13: =1/E13 -> 0.07142857143 | I13: =$F$13*I6 -> 0.07142857143 | J13: =$F$13*J6 -> 0.07142857143 | K13: 0.07142857143 | L13: 0.07142857143 | M13: 0.07142857143 | N13: 0.07142857143 | O13: 0.07142857143 | P13: 0.07142857143 | Q13: 0.07142857143 | R13: 0.07142857143 | S13: 0.07142857143 | T13: 0.07142857143 | U13: 0.07142857143 | V13: 0.07142857143 | W13: 0 | X13: 0 | Y13: 0 | Z13: 0 | AA13: 0 | AB13: 0 | AC13: 0 | AD13: 0 | AE13: 0 | AF13: 0 | AG13: 0 | AH13: 0 | AI13: 0 | AJ13: 0 | AK13: 0 | AL13: 0 | AM13: 0 | AN13: 0 | AO13: 0 | AP13: 0 | AQ13: 0 | AR13: 0 | AS13: 0 | AT13: 0 | AU13: 0 | AV13: 0 | AW13: 0 | AX13: 0 | AY13: 0 | AZ13: 0 | BA13: 0 | BB13: 0 | BC13: 0 | BD13: 0 | BE13: 0 | BF13: 0 | BG13: 0 | BH13: 0 | BI13: 0 | BJ13: 0 | BK13: 0 | BL13: 0 | BM13: 0 | BN13: 0 | BO13: 0 | BP13: 0 | BQ13: 0 | BR13: 0 | BS13: 0 | BT13: 0 | BU13: 0 | BV13: =$F$13*BV6 -> 0 | BW13: 0 | BX13: 0 | BY13: 0 | BZ13: 0 | CA13: 0 | CB13: 0 | CC13: 0 | CD13: 0 | CE13: 0 | CF13: 0 | CG13: 0 | CH13: 0 | CI13: 0 | CJ13: 0 | CK13: 0 | CL13: 0 | CM13: 0 | CN13: 0 | CO13: 0 | CP13: 0 | CQ13: 0 | CR13: 0 | CS13: 0 | CT13: 0 | CU13: 0 | CV13: 0 | CW13: 0 | CX13: 0 | CY13: 0 | CZ13: 0 | DA13: 0 | DB13: 0 | DC13: 0 | DD13: 0 | DE13: 0 | DF13: 0 | DG13: 0 | DH13: 0 | DI13: 0 | DJ13: 0 | DK13: 0 | DL13: 0 | DM13: 0 | DN13: 0 | DO13: 0 | DP13: 0 | DQ13: 0 | DR13: 0 | DS13: 0 | DT13: 0 | DU13: 0 | DV13: 0 | DW13: 0 | DX13: 0 | DY13: 0 | DZ13: 0 | EA13: 0 | EB13: 0 | EC13: 0 | ED13: 0 | EE13: 0 | EF13: 0 | EG13: 0 | EH13: =$F$13*EH6 -> 0 | EI13: 0 | EJ13: 0 | EK13: 0 | EL13: 0 | EM13: 0 | EN13: 0 | EO13: 0 | EP13: 0 | EQ13: 0 | ER13: 0 | ES13: 0 | ET13: 0 | EU13: 0 | EV13: 0 | EW13: 0 | EX13: 0 | EY13: 0 | EZ13: 0 | FA13: 0 | FB13: 0
C14: Development Expenditure | D14: EUR | I14: =I12*I13 -> 2142.857143 | J14: =J12*J13 -> 2142.857143 | K14: 2142.857143 | L14: 2142.857143 | M14: 2142.857143 | N14: 2142.857143 | O14: 2142.857143 | P14: 2142.857143 | Q14: 2142.857143 | R14: 2142.857143 | S14: 2142.857143 | T14: 2142.857143 | U14: 2142.857143 | V14: 2142.857143 | W14: 0 | X14: 0 | Y14: 0 | Z14: 0 | AA14: 0 | AB14: 0 | AC14: 0 | AD14: 0 | AE14: 0 | AF14: 0 | AG14: 0 | AH14: 0 | AI14: 0 | AJ14: 0 | AK14: 0 | AL14: 0 | AM14: 0 | AN14: 0 | AO14: 0 | AP14: 0 | AQ14: 0 | AR14: 0 | AS14: 0 | AT14: 0 | AU14: 0 | AV14: 0 | AW14: 0 | AX14: 0 | AY14: 0 | AZ14: 0 | BA14: 0 | BB14: 0 | BC14: 0 | BD14: 0 | BE14: 0 | BF14: 0 | BG14: 0 | BH14: 0 | BI14: 0 | BJ14: 0 | BK14: 0 | BL14: 0 | BM14: 0 | BN14: 0 | BO14: 0 | BP14: 0 | BQ14: 0 | BR14: 0 | BS14: 0 | BT14: 0 | BU14: 0 | BV14: =BV12*BV13 -> 0 | BW14: 0 | BX14: 0 | BY14: 0 | BZ14: 0 | CA14: 0 | CB14: 0 | CC14: 0 | CD14: 0 | CE14: 0 | CF14: 0 | CG14: 0 | CH14: 0 | CI14: 0 | CJ14: 0 | CK14: 0 | CL14: 0 | CM14: 0 | CN14: 0 | CO14: 0 | CP14: 0 | CQ14: 0 | CR14: 0 | CS14: 0 | CT14: 0 | CU14: 0 | CV14: 0 | CW14: 0 | CX14: 0 | CY14: 0 | CZ14: 0 | DA14: 0 | DB14: 0 | DC14: 0 | DD14: 0 | DE14: 0 | DF14: 0 | DG14: 0 | DH14: 0 | DI14: 0 | DJ14: 0 | DK14: 0 | DL14: 0 | DM14: 0 | DN14: 0 | DO14: 0 | DP14: 0 | DQ14: 0 | DR14: 0 | DS14: 0 | DT14: 0 | DU14: 0 | DV14: 0 | DW14: 0 | DX14: 0 | DY14: 0 | DZ14: 0 | EA14: 0 | EB14: 0 | EC14: 0 | ED14: 0 | EE14: 0 | EF14: 0 | EG14: 0 | EH14: =EH12*EH13 -> 0 | EI14: 0 | EJ14: 0 | EK14: 0 | EL14: 0 | EM14: 0 | EN14: 0 | EO14: 0 | EP14: 0 | EQ14: 0 | ER14: 0 | ES14: 0 | ET14: 0 | EU14: 0 | EV14: 0 | EW14: 0 | EX14: 0 | EY14: 0 | EZ14: 0 | FA14: 0 | FB14: 0
C16: EPC cost | D16: EUR | E16: ='PF Theory Inputs'!F21 -> 400000 | I16: =$E$16*I7 -> 0 | J16: =$E$16*J7 -> 0 | K16: 0 | L16: 0 | M16: 0 | N16: 0 | O16: 0 | P16: 0 | Q16: 0 | R16: 0 | S16: 0 | T16: 0 | U16: 0 | V16: 0 | W16: 400000 | X16: 400000 | Y16: 400000 | Z16: 400000 | AA16: 400000 | AB16: 400000 | AC16: 400000 | AD16: 400000 | AE16: 400000 | AF16: 400000 | AG16: 400000 | AH16: 400000 | AI16: 400000 | AJ16: 400000 | AK16: 400000 | AL16: 400000 | AM16: 400000 | AN16: 400000 | AO16: 400000 | AP16: 400000 | AQ16: 400000 | AR16: 400000 | AS16: 400000 | AT16: 400000 | AU16: 400000 | AV16: 400000 | AW16: 400000 | AX16: 400000 | AY16: 400000 | AZ16: 400000 | BA16: 400000 | BB16: 400000 | BC16: 400000 | BD16: 400000 | BE16: 400000 | BF16: 0 | BG16: 0 | BH16: 0 | BI16: 0 | BJ16: 0 | BK16: 0 | BL16: 0 | BM16: 0 | BN16: 0 | BO16: 0 | BP16: 0 | BQ16: 0 | BR16: 0 | BS16: 0 | BT16: 0 | BU16: 0 | BV16: =$E$16*BV7 -> 0 | BW16: 0 | BX16: 0 | BY16: 0 | BZ16: 0 | CA16: 0 | CB16: 0 | CC16: 0 | CD16: 0 | CE16: 0 | CF16: 0 | CG16: 0 | CH16: 0 | CI16: 0 | CJ16: 0 | CK16: 0 | CL16: 0 | CM16: 0 | CN16: 0 | CO16: 0 | CP16: 0 | CQ16: 0 | CR16: 0 | CS16: 0 | CT16: 0 | CU16: 0 | CV16: 0 | CW16: 0 | CX16: 0 | CY16: 0 | CZ16: 0 | DA16: 0 | DB16: 0 | DC16: 0 | DD16: 0 | DE16: 0 | DF16: 0 | DG16: 0 | DH16: 0 | DI16: 0 | DJ16: 0 | DK16: 0 | DL16: 0 | DM16: 0 | DN16: 0 | DO16: 0 | DP16: 0 | DQ16: 0 | DR16: 0 | DS16: 0 | DT16: 0 | DU16: 0 | DV16: 0 | DW16: 0 | DX16: 0 | DY16: 0 | DZ16: 0 | EA16: 0 | EB16: 0 | EC16: 0 | ED16: 0 | EE16: 0 | EF16: 0 | EG16: 0 | EH16: =$E$16*EH7 -> 0 | EI16: 0 | EJ16: 0 | EK16: 0 | EL16: 0 | EM16: 0 | EN16: 0 | EO16: 0 | EP16: 0 | EQ16: 0 | ER16: 0 | ES16: 0 | ET16: 0 | EU16: 0 | EV16: 0 | EW16: 0 | EX16: 0 | EY16: 0 | EZ16: 0 | FA16: 0 | FB16: 0
C17: Construction Period | I17: =I7+H17 -> 0 | J17: =J7+I17 -> 0 | K17: 0 | L17: 0 | M17: 0 | N17: 0 | O17: 0 | P17: 0 | Q17: 0 | R17: 0 | S17: 0 | T17: 0 | U17: 0 | V17: 0 | W17: 1 | X17: 2 | Y17: 3 | Z17: 4 | AA17: 5 | AB17: 6 | AC17: 7 | AD17: 8 | AE17: 9 | AF17: 10 | AG17: 11 | AH17: 12 | AI17: 13 | AJ17: 14 | AK17: 15 | AL17: 16 | AM17: 17 | AN17: 18 | AO17: 19 | AP17: 20 | AQ17: 21 | AR17: 22 | AS17: 23 | AT17: 24 | AU17: 25 | AV17: 26 | AW17: 27 | AX17: 28 | AY17: 29 | AZ17: 30 | BA17: 31 | BB17: 32 | BC17: 33 | BD17: 34 | BE17: 35 | BF17: 35 | BG17: 35 | BH17: 35 | BI17: 35 | BJ17: 35 | BK17: 35 | BL17: 35 | BM17: 35 | BN17: 35 | BO17: 35 | BP17: 35 | BQ17: 35 | BR17: 35 | BS17: 35 | BT17: 35 | BU17: 35 | BV17: =BV7+BU17 -> 35 | BW17: 35 | BX17: 35 | BY17: 35 | BZ17: 35 | CA17: 35 | CB17: 35 | CC17: 35 | CD17: 35 | CE17: 35 | CF17: 35 | CG17: 35 | CH17: 35 | CI17: 35 | CJ17: 35 | CK17: 35 | CL17: 35 | CM17: 35 | CN17: 35 | CO17: 35 | CP17: 35 | CQ17: 35 | CR17: 35 | CS17: 35 | CT17: 35 | CU17: 35 | CV17: 35 | CW17: 35 | CX17: 35 | CY17: 35 | CZ17: 35 | DA17: 35 | DB17: 35 | DC17: 35 | DD17: 35 | DE17: 35 | DF17: 35 | DG17: 35 | DH17: 35 | DI17: 35 | DJ17: 35 | DK17: 35 | DL17: 35 | DM17: 35 | DN17: 35 | DO17: 35 | DP17: 35 | DQ17: 35 | DR17: 35 | DS17: 35 | DT17: 35 | DU17: 35 | DV17: 35 | DW17: 35 | DX17: 35 | DY17: 35 | DZ17: 35 | EA17: 35 | EB17: 35 | EC17: 35 | ED17: 35 | EE17: 35 | EF17: 35 | EG17: 35 | EH17: =EH7+EG17 -> 35 | EI17: 35 | EJ17: 35 | EK17: 35 | EL17: 35 | EM17: 35 | EN17: 35 | EO17: 35 | EP17: 35 | EQ17: 35 | ER17: 35 | ES17: 35 | ET17: 35 | EU17: 35 | EV17: 35 | EW17: 35 | EX17: 35 | EY17: 35 | EZ17: 35 | FA17: 35 | FB17: 35
C18: S-Curve | D18: % | G18: =SUM(I18:FB18) -> 1 | I18: =LOOKUP(I17,'PF Theory Inputs'!23:23,'PF Theory Inputs'!26:26)*I7 -> 0 | J18: =LOOKUP(J17,'PF Theory Inputs'!23:23,'PF Theory Inputs'!26:26)*J7 -> 0 | K18: =LOOKUP(K17,'PF Theory Inputs'!23:23,'PF Theory Inputs'!26:26)*K7 -> 0 | L18: =LOOKUP(L17,'PF Theory Inputs'!23:23,'PF Theory Inputs'!26:26)*L7 -> 0 | M18: =LOOKUP(M17,'PF Theory Inputs'!23:23,'PF Theory Inputs'!26:26)*M7 -> 0 | N18: =LOOKUP(N17,'PF Theory Inputs'!23:23,'PF Theory Inputs'!26:26)*N7 -> 0 | O18: =LOOKUP(O17,'PF Theory Inputs'!23:23,'PF Theory Inputs'!26:26)*O7 -> 0 | P18: =LOOKUP(P17,'PF Theory Inputs'!23:23,'PF Theory Inputs'!26:26)*P7 -> 0 | Q18: =LOOKUP(Q17,'PF Theory Inputs'!23:23,'PF Theory Inputs'!26:26)*Q7 -> 0 | R18: =LOOKUP(R17,'PF Theory Inputs'!23:23,'PF Theory Inputs'!26:26)*R7 -> 0 | S18: =LOOKUP(S17,'PF Theory Inputs'!23:23,'PF Theory Inputs'!26:26)*S7 -> 0 | T18: =LOOKUP(T17,'PF Theory Inputs'!23:23,'PF Theory Inputs'!26:26)*T7 -> 0 | U18: =LOOKUP(U17,'PF Theory Inputs'!23:23,'PF Theory Inputs'!26:26)*U7 -> 0 | V18: =LOOKUP(V17,'PF Theory Inputs'!23:23,'PF Theory Inputs'!26:26)*V7 -> 0 | W18: =LOOKUP(W17,'PF Theory Inputs'!23:23,'PF Theory Inputs'!26:26)*W7 -> 0.02038249981 | X18: =LOOKUP(X17,'PF Theory Inputs'!23:23,'PF Theory Inputs'!26:26)*X7 -> 0.03449658132 | Y18: =LOOKUP(Y17,'PF Theory Inputs'!23:23,'PF Theory Inputs'!26:26)*Y7 -> 0.04571891971 | Z18: =LOOKUP(Z17,'PF Theory Inputs'!23:23,'PF Theory Inputs'!26:26)*Z7 -> 0.0544189568 | AA18: =LOOKUP(AA17,'PF Theory Inputs'!23:23,'PF Theory Inputs'!26:26)*AA7 -> 0.06075254566 | AB18: =LOOKUP(AB17,'PF Theory Inputs'!23:23,'PF Theory Inputs'!26:26)*AB7 -> 0.06486606531 | AC18: =LOOKUP(AC17,'PF Theory Inputs'!23:23,'PF Theory Inputs'!26:26)*AC7 -> 0.06694089907 | AD18: =LOOKUP(AD17,'PF Theory Inputs'!23:23,'PF Theory Inputs'!26:26)*AD7 -> 0.06719893527 | AE18: =LOOKUP(AE17,'PF Theory Inputs'!23:23,'PF Theory Inputs'!26:26)*AE7 -> 0.06589469088 | AF18: =LOOKUP(AF17,'PF Theory Inputs'!23:23,'PF Theory Inputs'!26:26)*AF7 -> 0.06330254093 | AG18: =LOOKUP(AG17,'PF Theory Inputs'!23:23,'PF Theory Inputs'!26:26)*AG7 -> 0.05970282523 | AH18: =LOOKUP(AH17,'PF Theory Inputs'!23:23,'PF Theory Inputs'!26:26)*AH7 -> 0.05536883795 | AI18: =LOOKUP(AI17,'PF Theory Inputs'!23:23,'PF Theory Inputs'!26:26)*AI7 -> 0.05055582733 | AJ18: =LOOKUP(AJ17,'PF Theory Inputs'!23:23,'PF Theory Inputs'!26:26)*AJ7 -> 0.04549258508 | AK18: =LOOKUP(AK17,'PF Theory Inputs'!23:23,'PF Theory Inputs'!26:26)*AK7 -> 0.04037581648 | AL18: =LOOKUP(AL17,'PF Theory Inputs'!23:23,'PF Theory Inputs'!26:26)*AL7 -> 0.03536719882 | AM18: =LOOKUP(AM17,'PF Theory Inputs'!23:23,'PF Theory Inputs'!26:26)*AM7 -> 0.03059283621 | AN18: =LOOKUP(AN17,'PF Theory Inputs'!23:23,'PF Theory Inputs'!26:26)*AN7 -> 0.0261446931 | AO18: =LOOKUP(AO17,'PF Theory Inputs'!23:23,'PF Theory Inputs'!26:26)*AO7 -> 0.02208352786 | AP18: =LOOKUP(AP17,'PF Theory Inputs'!23:23,'PF Theory Inputs'!26:26)*AP7 -> 0.01844283943 | AQ18: =LOOKUP(AQ17,'PF Theory Inputs'!23:23,'PF Theory Inputs'!26:26)*AQ7 -> 0.01523337328 | AR18: =LOOKUP(AR17,'PF Theory Inputs'!23:23,'PF Theory Inputs'!26:26)*AR7 -> 0.01244779403 | AS18: =LOOKUP(AS17,'PF Theory Inputs'!23:23,'PF Theory Inputs'!26:26)*AS7 -> 0.01006520991 | AT18: =LOOKUP(AT17,'PF Theory Inputs'!23:23,'PF Theory Inputs'!26:26)*AT7 -> 0.00805531752 | AU18: =LOOKUP(AU17,'PF Theory Inputs'!23:23,'PF Theory Inputs'!26:26)*AU7 -> 0.006382016104 | AV18: =LOOKUP(AV17,'PF Theory Inputs'!23:23,'PF Theory Inputs'!26:26)*AV7 -> 0.005006412778 | AW18: =LOOKUP(AW17,'PF Theory Inputs'!23:23,'PF Theory Inputs'!26:26)*AW7 -> 0.00388919979 | AX18: =LOOKUP(AX17,'PF Theory Inputs'!23:23,'PF Theory Inputs'!26:26)*AX7 -> 0.002992430691 | AY18: =LOOKUP(AY17,'PF Theory Inputs'!23:23,'PF Theory Inputs'!26:26)*AY7 -> 0.002280753986 | AZ18: =LOOKUP(AZ17,'PF Theory Inputs'!23:23,'PF Theory Inputs'!26:26)*AZ7 -> 0.001722181813 | BA18: =LOOKUP(BA17,'PF Theory Inputs'!23:23,'PF Theory Inputs'!26:26)*BA7 -> 0.001288479424 | BB18: =LOOKUP(BB17,'PF Theory Inputs'!23:23,'PF Theory Inputs'!26:26)*BB7 -> 0.0009552610707 | BC18: =LOOKUP(BC17,'PF Theory Inputs'!23:23,'PF Theory Inputs'!26:26)*BC7 -> 0.0007018717809 | BD18: =LOOKUP(BD17,'PF Theory Inputs'!23:23,'PF Theory Inputs'!26:26)*BD7 -> 0.0005111245829 | BE18: =LOOKUP(BE17,'PF Theory Inputs'!23:23,'PF Theory Inputs'!26:26)*BE7 -> 0.0003689509822 | BF18: =LOOKUP(BF17,'PF Theory Inputs'!23:23,'PF Theory Inputs'!26:26)*BF7 -> 0 | BG18: =LOOKUP(BG17,'PF Theory Inputs'!23:23,'PF Theory Inputs'!26:26)*BG7 -> 0 | BH18: =LOOKUP(BH17,'PF Theory Inputs'!23:23,'PF Theory Inputs'!26:26)*BH7 -> 0 | BI18: =LOOKUP(BI17,'PF Theory Inputs'!23:23,'PF Theory Inputs'!26:26)*BI7 -> 0 | BJ18: =LOOKUP(BJ17,'PF Theory Inputs'!23:23,'PF Theory Inputs'!26:26)*BJ7 -> 0 | BK18: =LOOKUP(BK17,'PF Theory Inputs'!23:23,'PF Theory Inputs'!26:26)*BK7 -> 0 | BL18: =LOOKUP(BL17,'PF Theory Inputs'!23:23,'PF Theory Inputs'!26:26)*BL7 -> 0 | BM18: =LOOKUP(BM17,'PF Theory Inputs'!23:23,'PF Theory Inputs'!26:26)*BM7 -> 0 | BN18: =LOOKUP(BN17,'PF Theory Inputs'!23:23,'PF Theory Inputs'!26:26)*BN7 -> 0 | BO18: =LOOKUP(BO17,'PF Theory Inputs'!23:23,'PF Theory Inputs'!26:26)*BO7 -> 0 | BP18: =LOOKUP(BP17,'PF Theory Inputs'!23:23,'PF Theory Inputs'!26:26)*BP7 -> 0 | BQ18: =LOOKUP(BQ17,'PF Theory Inputs'!23:23,'PF Theory Inputs'!26:26)*BQ7 -> 0 | BR18: =LOOKUP(BR17,'PF Theory Inputs'!23:23,'PF Theory Inputs'!26:26)*BR7 -> 0 | BS18: =LOOKUP(BS17,'PF Theory Inputs'!23:23,'PF Theory Inputs'!26:26)*BS7 -> 0 | BT18: =LOOKUP(BT17,'PF Theory Inputs'!23:23,'PF Theory Inputs'!26:26)*BT7 -> 0 | BU18: =LOOKUP(BU17,'PF Theory Inputs'!23:23,'PF Theory Inputs'!26:26)*BU7 -> 0 | BV18: =LOOKUP(BV17,'PF Theory Inputs'!23:23,'PF Theory Inputs'!26:26)*BV7 -> 0 | BW18: =LOOKUP(BW17,'PF Theory Inputs'!23:23,'PF Theory Inputs'!26:26)*BW7 -> 0 | BX18: =LOOKUP(BX17,'PF Theory Inputs'!23:23,'PF Theory Inputs'!26:26)*BX7 -> 0 | BY18: =LOOKUP(BY17,'PF Theory Inputs'!23:23,'PF Theory Inputs'!26:26)*BY7 -> 0 | BZ18: =LOOKUP(BZ17,'PF Theory Inputs'!23:23,'PF Theory Inputs'!26:26)*BZ7 -> 0 | CA18: =LOOKUP(CA17,'PF Theory Inputs'!23:23,'PF Theory Inputs'!26:26)*CA7 -> 0 | CB18: =LOOKUP(CB17,'PF Theory Inputs'!23:23,'PF Theory Inputs'!26:26)*CB7 -> 0 | CC18: =LOOKUP(CC17,'PF Theory Inputs'!23:23,'PF Theory Inputs'!26:26)*CC7 -> 0 | CD18: =LOOKUP(CD17,'PF Theory Inputs'!23:23,'PF Theory Inputs'!26:26)*CD7 -> 0 | CE18: =LOOKUP(CE17,'PF Theory Inputs'!23:23,'PF Theory Inputs'!26:26)*CE7 -> 0 | CF18: =LOOKUP(CF17,'PF Theory Inputs'!23:23,'PF Theory Inputs'!26:26)*CF7 -> 0 | CG18: =LOOKUP(CG17,'PF Theory Inputs'!23:23,'PF Theory Inputs'!26:26)*CG7 -> 0 | CH18: =LOOKUP(CH17,'PF Theory Inputs'!23:23,'PF Theory Inputs'!26:26)*CH7 -> 0 | CI18: =LOOKUP(CI17,'PF Theory Inputs'!23:23,'PF Theory Inputs'!26:26)*CI7 -> 0 | CJ18: =LOOKUP(CJ17,'PF Theory Inputs'!23:23,'PF Theory Inputs'!26:26)*CJ7 -> 0 | CK18: =LOOKUP(CK17,'PF Theory Inputs'!23:23,'PF Theory Inputs'!26:26)*CK7 -> 0 | CL18: =LOOKUP(CL17,'PF Theory Inputs'!23:23,'PF Theory Inputs'!26:26)*CL7 -> 0 | CM18: =LOOKUP(CM17,'PF Theory Inputs'!23:23,'PF Theory Inputs'!26:26)*CM7 -> 0 | CN18: =LOOKUP(CN17,'PF Theory Inputs'!23:23,'PF Theory Inputs'!26:26)*CN7 -> 0 | CO18: =LOOKUP(CO17,'PF Theory Inputs'!23:23,'PF Theory Inputs'!26:26)*CO7 -> 0 | CP18: =LOOKUP(CP17,'PF Theory Inputs'!23:23,'PF Theory Inputs'!26:26)*CP7 -> 0 | CQ18: =LOOKUP(CQ17,'PF Theory Inputs'!23:23,'PF Theory Inputs'!26:26)*CQ7 -> 0 | CR18: =LOOKUP(CR17,'PF Theory Inputs'!23:23,'PF Theory Inputs'!26:26)*CR7 -> 0 | CS18: =LOOKUP(CS17,'PF Theory Inputs'!23:23,'PF Theory Inputs'!26:26)*CS7 -> 0 | CT18: =LOOKUP(CT17,'PF Theory Inputs'!23:23,'PF Theory Inputs'!26:26)*CT7 -> 0 | CU18: =LOOKUP(CU17,'PF Theory Inputs'!23:23,'PF Theory Inputs'!26:26)*CU7 -> 0 | CV18: =LOOKUP(CV17,'PF Theory Inputs'!23:23,'PF Theory Inputs'!26:26)*CV7 -> 0 | CW18: =LOOKUP(CW17,'PF Theory Inputs'!23:23,'PF Theory Inputs'!26:26)*CW7 -> 0 | CX18: =LOOKUP(CX17,'PF Theory Inputs'!23:23,'PF Theory Inputs'!26:26)*CX7 -> 0 | CY18: =LOOKUP(CY17,'PF Theory Inputs'!23:23,'PF Theory Inputs'!26:26)*CY7 -> 0 | CZ18: =LOOKUP(CZ17,'PF Theory Inputs'!23:23,'PF Theory Inputs'!26:26)*CZ7 -> 0 | DA18: =LOOKUP(DA17,'PF Theory Inputs'!23:23,'PF Theory Inputs'!26:26)*DA7 -> 0 | DB18: =LOOKUP(DB17,'PF Theory Inputs'!23:23,'PF Theory Inputs'!26:26)*DB7 -> 0 | DC18: =LOOKUP(DC17,'PF Theory Inputs'!23:23,'PF Theory Inputs'!26:26)*DC7 -> 0 | DD18: =LOOKUP(DD17,'PF Theory Inputs'!23:23,'PF Theory Inputs'!26:26)*DD7 -> 0 | DE18: =LOOKUP(DE17,'PF Theory Inputs'!23:23,'PF Theory Inputs'!26:26)*DE7 -> 0 | DF18: =LOOKUP(DF17,'PF Theory Inputs'!23:23,'PF Theory Inputs'!26:26)*DF7 -> 0 | DG18: =LOOKUP(DG17,'PF Theory Inputs'!23:23,'PF Theory Inputs'!26:26)*DG7 -> 0 | DH18: =LOOKUP(DH17,'PF Theory Inputs'!23:23,'PF Theory Inputs'!26:26)*DH7 -> 0 | DI18: =LOOKUP(DI17,'PF Theory Inputs'!23:23,'PF Theory Inputs'!26:26)*DI7 -> 0 | DJ18: =LOOKUP(DJ17,'PF Theory Inputs'!23:23,'PF Theory Inputs'!26:26)*DJ7 -> 0 | DK18: =LOOKUP(DK17,'PF Theory Inputs'!23:23,'PF Theory Inputs'!26:26)*DK7 -> 0 | DL18: =LOOKUP(DL17,'PF Theory Inputs'!23:23,'PF Theory Inputs'!26:26)*DL7 -> 0 | DM18: =LOOKUP(DM17,'PF Theory Inputs'!23:23,'PF Theory Inputs'!26:26)*DM7 -> 0 | DN18: =LOOKUP(DN17,'PF Theory Inputs'!23:23,'PF Theory Inputs'!26:26)*DN7 -> 0 | DO18: =LOOKUP(DO17,'PF Theory Inputs'!23:23,'PF Theory Inputs'!26:26)*DO7 -> 0 | DP18: =LOOKUP(DP17,'PF Theory Inputs'!23:23,'PF Theory Inputs'!26:26)*DP7 -> 0 | DQ18: =LOOKUP(DQ17,'PF Theory Inputs'!23:23,'PF Theory Inputs'!26:26)*DQ7 -> 0 | DR18: =LOOKUP(DR17,'PF Theory Inputs'!23:23,'PF Theory Inputs'!26:26)*DR7 -> 0 | DS18: =LOOKUP(DS17,'PF Theory Inputs'!23:23,'PF Theory Inputs'!26:26)*DS7 -> 0 | DT18: =LOOKUP(DT17,'PF Theory Inputs'!23:23,'PF Theory Inputs'!26:26)*DT7 -> 0 | DU18: =LOOKUP(DU17,'PF Theory Inputs'!23:23,'PF Theory Inputs'!26:26)*DU7 -> 0 | DV18: =LOOKUP(DV17,'PF Theory Inputs'!23:23,'PF Theory Inputs'!26:26)*DV7 -> 0 | DW18: =LOOKUP(DW17,'PF Theory Inputs'!23:23,'PF Theory Inputs'!26:26)*DW7 -> 0 | DX18: =LOOKUP(DX17,'PF Theory Inputs'!23:23,'PF Theory Inputs'!26:26)*DX7 -> 0 | DY18: =LOOKUP(DY17,'PF Theory Inputs'!23:23,'PF Theory Inputs'!26:26)*DY7 -> 0 | DZ18: =LOOKUP(DZ17,'PF Theory Inputs'!23:23,'PF Theory Inputs'!26:26)*DZ7 -> 0 | EA18: =LOOKUP(EA17,'PF Theory Inputs'!23:23,'PF Theory Inputs'!26:26)*EA7 -> 0 | EB18: =LOOKUP(EB17,'PF Theory Inputs'!23:23,'PF Theory Inputs'!26:26)*EB7 -> 0 | EC18: =LOOKUP(EC17,'PF Theory Inputs'!23:23,'PF Theory Inputs'!26:26)*EC7 -> 0 | ED18: =LOOKUP(ED17,'PF Theory Inputs'!23:23,'PF Theory Inputs'!26:26)*ED7 -> 0 | EE18: =LOOKUP(EE17,'PF Theory Inputs'!23:23,'PF Theory Inputs'!26:26)*EE7 -> 0 | EF18: =LOOKUP(EF17,'PF Theory Inputs'!23:23,'PF Theory Inputs'!26:26)*EF7 -> 0 | EG18: =LOOKUP(EG17,'PF Theory Inputs'!23:23,'PF Theory Inputs'!26:26)*EG7 -> 0 | EH18: =LOOKUP(EH17,'PF Theory Inputs'!23:23,'PF Theory Inputs'!26:26)*EH7 -> 0 | EI18: =LOOKUP(EI17,'PF Theory Inputs'!23:23,'PF Theory Inputs'!26:26)*EI7 -> 0 | EJ18: =LOOKUP(EJ17,'PF Theory Inputs'!23:23,'PF Theory Inputs'!26:26)*EJ7 -> 0 | EK18: =LOOKUP(EK17,'PF Theory Inputs'!23:23,'PF Theory Inputs'!26:26)*EK7 -> 0 | EL18: =LOOKUP(EL17,'PF Theory Inputs'!23:23,'PF Theory Inputs'!26:26)*EL7 -> 0 | EM18: =LOOKUP(EM17,'PF Theory Inputs'!23:23,'PF Theory Inputs'!26:26)*EM7 -> 0 | EN18: =LOOKUP(EN17,'PF Theory Inputs'!23:23,'PF Theory Inputs'!26:26)*EN7 -> 0 | EO18: =LOOKUP(EO17,'PF Theory Inputs'!23:23,'PF Theory Inputs'!26:26)*EO7 -> 0 | EP18: =LOOKUP(EP17,'PF Theory Inputs'!23:23,'PF Theory Inputs'!26:26)*EP7 -> 0 | EQ18: =LOOKUP(EQ17,'PF Theory Inputs'!23:23,'PF Theory Inputs'!26:26)*EQ7 -> 0 | ER18: =LOOKUP(ER17,'PF Theory Inputs'!23:23,'PF Theory Inputs'!26:26)*ER7 -> 0 | ES18: =LOOKUP(ES17,'PF Theory Inputs'!23:23,'PF Theory Inputs'!26:26)*ES7 -> 0 | ET18: =LOOKUP(ET17,'PF Theory Inputs'!23:23,'PF Theory Inputs'!26:26)*ET7 -> 0 | EU18: =LOOKUP(EU17,'PF Theory Inputs'!23:23,'PF Theory Inputs'!26:26)*EU7 -> 0 | EV18: =LOOKUP(EV17,'PF Theory Inputs'!23:23,'PF Theory Inputs'!26:26)*EV7 -> 0 | EW18: =LOOKUP(EW17,'PF Theory Inputs'!23:23,'PF Theory Inputs'!26:26)*EW7 -> 0 | EX18: =LOOKUP(EX17,'PF Theory Inputs'!23:23,'PF Theory Inputs'!26:26)*EX7 -> 0 | EY18: =LOOKUP(EY17,'PF Theory Inputs'!23:23,'PF Theory Inputs'!26:26)*EY7 -> 0 | EZ18: =LOOKUP(EZ17,'PF Theory Inputs'!23:23,'PF Theory Inputs'!26:26)*EZ7 -> 0 | FA18: =LOOKUP(FA17,'PF Theory Inputs'!23:23,'PF Theory Inputs'!26:26)*FA7 -> 0 | FB18: =LOOKUP(FB17,'PF Theory Inputs'!23:23,'PF Theory Inputs'!26:26)*FB7 -> 0
C19: EPC Expenditure | I19: =I16*I18 -> 0 | J19: =J16*J18 -> 0 | K19: 0 | L19: 0 | M19: 0 | N19: 0 | O19: 0 | P19: 0 | Q19: 0 | R19: 0 | S19: 0 | T19: 0 | U19: 0 | V19: 0 | W19: 8152.999926 | X19: 13798.63253 | Y19: 18287.56788 | Z19: 21767.58272 | AA19: 24301.01826 | AB19: 25946.42612 | AC19: 26776.35963 | AD19: 26879.57411 | AE19: 26357.87635 | AF19: 25321.01637 | AG19: 23881.13009 | AH19: 22147.53518 | AI19: 20222.33093 | AJ19: 18197.03403 | AK19: 16150.32659 | AL19: 14146.87953 | AM19: 12237.13448 | AN19: 10457.87724 | AO19: 8833.411143 | AP19: 7377.135773 | AQ19: 6093.349314 | AR19: 4979.117613 | AS19: 4026.083965 | AT19: 3222.127008 | AU19: 2552.806442 | AV19: 2002.565111 | AW19: 1555.679916 | AX19: 1196.972276 | AY19: 912.3015942 | AZ19: 688.8727251 | BA19: 515.3917694 | BB19: 382.1044283 | BC19: 280.7487124 | BD19: 204.4498331 | BE19: 147.5803929 | BF19: 0 | BG19: 0 | BH19: 0 | BI19: 0 | BJ19: 0 | BK19: 0 | BL19: 0 | BM19: 0 | BN19: 0 | BO19: 0 | BP19: 0 | BQ19: 0 | BR19: 0 | BS19: 0 | BT19: 0 | BU19: 0 | BV19: =BV16*BV18 -> 0 | BW19: 0 | BX19: 0 | BY19: 0 | BZ19: 0 | CA19: 0 | CB19: 0 | CC19: 0 | CD19: 0 | CE19: 0 | CF19: 0 | CG19: 0 | CH19: 0 | CI19: 0 | CJ19: 0 | CK19: 0 | CL19: 0 | CM19: 0 | CN19: 0 | CO19: 0 | CP19: 0 | CQ19: 0 | CR19: 0 | CS19: 0 | CT19: 0 | CU19: 0 | CV19: 0 | CW19: 0 | CX19: 0 | CY19: 0 | CZ19: 0 | DA19: 0 | DB19: 0 | DC19: 0 | DD19: 0 | DE19: 0 | DF19: 0 | DG19: 0 | DH19: 0 | DI19: 0 | DJ19: 0 | DK19: 0 | DL19: 0 | DM19: 0 | DN19: 0 | DO19: 0 | DP19: 0 | DQ19: 0 | DR19: 0 | DS19: 0 | DT19: 0 | DU19: 0 | DV19: 0 | DW19: 0 | DX19: 0 | DY19: 0 | DZ19: 0 | EA19: 0 | EB19: 0 | EC19: 0 | ED19: 0 | EE19: 0 | EF19: 0 | EG19: 0 | EH19: =EH16*EH18 -> 0 | EI19: 0 | EJ19: 0 | EK19: 0 | EL19: 0 | EM19: 0 | EN19: 0 | EO19: 0 | EP19: 0 | EQ19: 0 | ER19: 0 | ES19: 0 | ET19: 0 | EU19: 0 | EV19: 0 | EW19: 0 | EX19: 0 | EY19: 0 | EZ19: 0 | FA19: 0 | FB19: 0
C21: Base EBITDA p.a. | D21: EUR | E21: ='PF Theory Control'!F5 -> 30009.72622 | I21: =($E$21*I9)/12*I4 -> 0 | J21: =($E$21*J9)/12*J4 -> 0 | K21: 0 | L21: 0 | M21: 0 | N21: 0 | O21: 0 | P21: 0 | Q21: 0 | R21: 0 | S21: 0 | T21: 0 | U21: 0 | V21: 0 | W21: 0 | X21: 0 | Y21: 0 | Z21: 0 | AA21: 0 | AB21: 0 | AC21: 0 | AD21: 0 | AE21: 0 | AF21: 0 | AG21: 0 | AH21: 0 | AI21: 0 | AJ21: 0 | AK21: 0 | AL21: 0 | AM21: 0 | AN21: 0 | AO21: 0 | AP21: 0 | AQ21: 0 | AR21: 0 | AS21: 0 | AT21: 0 | AU21: 0 | AV21: 0 | AW21: 0 | AX21: 0 | AY21: 0 | AZ21: 0 | BA21: 0 | BB21: 0 | BC21: 0 | BD21: 0 | BE21: 0 | BF21: 30009.72622 | BG21: 30009.72622 | BH21: 30009.72622 | BI21: 30009.72622 | BJ21: 30009.72622 | BK21: 30009.72622 | BL21: 30009.72622 | BM21: 30009.72622 | BN21: 30009.72622 | BO21: 30009.72622 | BP21: 30009.72622 | BQ21: 30009.72622 | BR21: 30009.72622 | BS21: 30009.72622 | BT21: 30009.72622 | BU21: 30009.72622 | BV21: =($E$21*BV9)/12*BV4 -> 30009.72622 | BW21: 30009.72622 | BX21: 30009.72622 | BY21: 30009.72622 | BZ21: 30009.72622 | CA21: 30009.72622 | CB21: 30009.72622 | CC21: 30009.72622 | CD21: 30009.72622 | CE21: 30009.72622 | CF21: 30009.72622 | CG21: 30009.72622 | CH21: 30009.72622 | CI21: 0 | CJ21: 0 | CK21: 0 | CL21: 0 | CM21: 0 | CN21: 0 | CO21: 0 | CP21: 0 | CQ21: 0 | CR21: 0 | CS21: 0 | CT21: 0 | CU21: 0 | CV21: 0 | CW21: 0 | CX21: 0 | CY21: 0 | CZ21: 0 | DA21: 0 | DB21: 0 | DC21: 0 | DD21: 0 | DE21: 0 | DF21: 0 | DG21: 0 | DH21: 0 | DI21: 0 | DJ21: 0 | DK21: 0 | DL21: 0 | DM21: 0 | DN21: 0 | DO21: 0 | DP21: 0 | DQ21: 0 | DR21: 0 | DS21: 0 | DT21: 0 | DU21: 0 | DV21: 0 | DW21: 0 | DX21: 0 | DY21: 0 | DZ21: 0 | EA21: 0 | EB21: 0 | EC21: 0 | ED21: 0 | EE21: 0 | EF21: 0 | EG21: 0 | EH21: =($E$21*EH9)/12*EH4 -> 0 | EI21: 0 | EJ21: 0 | EK21: 0 | EL21: 0 | EM21: 0 | EN21: 0 | EO21: 0 | EP21: 0 | EQ21: 0 | ER21: 0 | ES21: 0 | ET21: 0 | EU21: 0 | EV21: 0 | EW21: 0 | EX21: 0 | EY21: 0 | EZ21: 0 | FA21: 0 | FB21: 0
C22: Growth Index | D22: Index | E22: ='PF Theory Inputs'!F30 -> 0.03 | H22: 1 | I22: =H22*(1+$E$22*I9) -> 1 | J22: =I22*(1+$E$22*J9) -> 1 | K22: 1 | L22: 1 | M22: 1 | N22: 1 | O22: 1 | P22: 1 | Q22: 1 | R22: 1 | S22: 1 | T22: 1 | U22: 1 | V22: 1 | W22: 1 | X22: 1 | Y22: 1 | Z22: 1 | AA22: 1 | AB22: 1 | AC22: 1 | AD22: 1 | AE22: 1 | AF22: 1 | AG22: 1 | AH22: 1 | AI22: 1 | AJ22: 1 | AK22: 1 | AL22: 1 | AM22: 1 | AN22: 1 | AO22: 1 | AP22: 1 | AQ22: 1 | AR22: 1 | AS22: 1 | AT22: 1 | AU22: 1 | AV22: 1 | AW22: 1 | AX22: 1 | AY22: 1 | AZ22: 1 | BA22: 1 | BB22: 1 | BC22: 1 | BD22: 1 | BE22: 1 | BF22: 1.03 | BG22: 1.0609 | BH22: 1.092727 | BI22: 1.12550881 | BJ22: 1.159274074 | BK22: 1.194052297 | BL22: 1.229873865 | BM22: 1.266770081 | BN22: 1.304773184 | BO22: 1.343916379 | BP22: 1.384233871 | BQ22: 1.425760887 | BR22: 1.468533713 | BS22: 1.512589725 | BT22: 1.557967417 | BU22: 1.604706439 | BV22: =BU22*(1+$E$22*BV9) -> 1.652847632 | BW22: 1.702433061 | BX22: 1.753506053 | BY22: 1.806111235 | BZ22: 1.860294572 | CA22: 1.916103409 | CB22: 1.973586511 | CC22: 2.032794106 | CD22: 2.09377793 | CE22: 2.156591268 | CF22: 2.221289006 | CG22: 2.287927676 | CH22: 2.356565506 | CI22: 2.356565506 | CJ22: 2.356565506 | CK22: 2.356565506 | CL22: 2.356565506 | CM22: 2.356565506 | CN22: 2.356565506 | CO22: 2.356565506 | CP22: 2.356565506 | CQ22: 2.356565506 | CR22: 2.356565506 | CS22: 2.356565506 | CT22: 2.356565506 | CU22: 2.356565506 | CV22: 2.356565506 | CW22: 2.356565506 | CX22: 2.356565506 | CY22: 2.356565506 | CZ22: 2.356565506 | DA22: 2.356565506 | DB22: 2.356565506 | DC22: 2.356565506 | DD22: 2.356565506 | DE22: 2.356565506 | DF22: 2.356565506 | DG22: 2.356565506 | DH22: 2.356565506 | DI22: 2.356565506 | DJ22: 2.356565506 | DK22: 2.356565506 | DL22: 2.356565506 | DM22: 2.356565506 | DN22: 2.356565506 | DO22: 2.356565506 | DP22: 2.356565506 | DQ22: 2.356565506 | DR22: 2.356565506 | DS22: 2.356565506 | DT22: 2.356565506 | DU22: 2.356565506 | DV22: 2.356565506 | DW22: 2.356565506 | DX22: 2.356565506 | DY22: 2.356565506 | DZ22: 2.356565506 | EA22: 2.356565506 | EB22: 2.356565506 | EC22: 2.356565506 | ED22: 2.356565506 | EE22: 2.356565506 | EF22: 2.356565506 | EG22: 2.356565506 | EH22: =EG22*(1+$E$22*EH9) -> 2.356565506 | EI22: 2.356565506 | EJ22: 2.356565506 | EK22: 2.356565506 | EL22: 2.356565506 | EM22: 2.356565506 | EN22: 2.356565506 | EO22: 2.356565506 | EP22: 2.356565506 | EQ22: 2.356565506 | ER22: 2.356565506 | ES22: 2.356565506 | ET22: 2.356565506 | EU22: 2.356565506 | EV22: 2.356565506 | EW22: 2.356565506 | EX22: 2.356565506 | EY22: 2.356565506 | EZ22: 2.356565506 | FA22: 2.356565506 | FB22: 2.356565506
C23: EBTIDA with Growth | D23: EUR | I23: =I22*I21 -> 0 | J23: =J22*J21 -> 0 | K23: 0 | L23: 0 | M23: 0 | N23: 0 | O23: 0 | P23: 0 | Q23: 0 | R23: 0 | S23: 0 | T23: 0 | U23: 0 | V23: 0 | W23: 0 | X23: 0 | Y23: 0 | Z23: 0 | AA23: 0 | AB23: 0 | AC23: 0 | AD23: 0 | AE23: 0 | AF23: 0 | AG23: 0 | AH23: 0 | AI23: 0 | AJ23: 0 | AK23: 0 | AL23: 0 | AM23: 0 | AN23: 0 | AO23: 0 | AP23: 0 | AQ23: 0 | AR23: 0 | AS23: 0 | AT23: 0 | AU23: 0 | AV23: 0 | AW23: 0 | AX23: 0 | AY23: 0 | AZ23: 0 | BA23: 0 | BB23: 0 | BC23: 0 | BD23: 0 | BE23: 0 | BF23: 30910.01801 | BG23: 31837.31855 | BH23: 32792.4381 | BI23: 33776.21125 | BJ23: 34789.49758 | BK23: 35833.18251 | BL23: 36908.17799 | BM23: 38015.42333 | BN23: 39155.88603 | BO23: 40330.56261 | BP23: 41540.47949 | BQ23: 42786.69387 | BR23: 44070.29469 | BS23: 45392.40353 | BT23: 46754.17563 | BU23: 48156.8009 | BV23: =BV22*BV21 -> 49601.50493 | BW23: 51089.55008 | BX23: 52622.23658 | BY23: 54200.90368 | BZ23: 55826.93079 | CA23: 57501.73871 | CB23: 59226.79087 | CC23: 61003.5946 | CD23: 62833.70244 | CE23: 64718.71351 | CF23: 66660.27491 | CG23: 68660.08316 | CH23: 70719.88566 | CI23: 0 | CJ23: 0 | CK23: 0 | CL23: 0 | CM23: 0 | CN23: 0 | CO23: 0 | CP23: 0 | CQ23: 0 | CR23: 0 | CS23: 0 | CT23: 0 | CU23: 0 | CV23: 0 | CW23: 0 | CX23: 0 | CY23: 0 | CZ23: 0 | DA23: 0 | DB23: 0 | DC23: 0 | DD23: 0 | DE23: 0 | DF23: 0 | DG23: 0 | DH23: 0 | DI23: 0 | DJ23: 0 | DK23: 0 | DL23: 0 | DM23: 0 | DN23: 0 | DO23: 0 | DP23: 0 | DQ23: 0 | DR23: 0 | DS23: 0 | DT23: 0 | DU23: 0 | DV23: 0 | DW23: 0 | DX23: 0 | DY23: 0 | DZ23: 0 | EA23: 0 | EB23: 0 | EC23: 0 | ED23: 0 | EE23: 0 | EF23: 0 | EG23: 0 | EH23: =EH22*EH21 -> 0 | EI23: 0 | EJ23: 0 | EK23: 0 | EL23: 0 | EM23: 0 | EN23: 0 | EO23: 0 | EP23: 0 | EQ23: 0 | ER23: 0 | ES23: 0 | ET23: 0 | EU23: 0 | EV23: 0 | EW23: 0 | EX23: 0 | EY23: 0 | EZ23: 0 | FA23: 0 | FB23: 0
C25: Project Cash Flow | D25: EUR | I25: =I23-I19-I14 -> -2142.857143 | J25: =J23-J19-J14 -> -2142.857143 | K25: -2142.857143 | L25: -2142.857143 | M25: -2142.857143 | N25: -2142.857143 | O25: -2142.857143 | P25: -2142.857143 | Q25: -2142.857143 | R25: -2142.857143 | S25: -2142.857143 | T25: -2142.857143 | U25: -2142.857143 | V25: -2142.857143 | W25: -8152.999926 | X25: -13798.63253 | Y25: -18287.56788 | Z25: -21767.58272 | AA25: -24301.01826 | AB25: -25946.42612 | AC25: -26776.35963 | AD25: -26879.57411 | AE25: -26357.87635 | AF25: -25321.01637 | AG25: -23881.13009 | AH25: -22147.53518 | AI25: -20222.33093 | AJ25: -18197.03403 | AK25: -16150.32659 | AL25: -14146.87953 | AM25: -12237.13448 | AN25: -10457.87724 | AO25: -8833.411143 | AP25: -7377.135773 | AQ25: -6093.349314 | AR25: -4979.117613 | AS25: -4026.083965 | AT25: -3222.127008 | AU25: -2552.806442 | AV25: -2002.565111 | AW25: -1555.679916 | AX25: -1196.972276 | AY25: -912.3015942 | AZ25: -688.8727251 | BA25: -515.3917694 | BB25: -382.1044283 | BC25: -280.7487124 | BD25: -204.4498331 | BE25: -147.5803929 | BF25: 30910.01801 | BG25: 31837.31855 | BH25: 32792.4381 | BI25: 33776.21125 | BJ25: 34789.49758 | BK25: 35833.18251 | BL25: 36908.17799 | BM25: 38015.42333 | BN25: 39155.88603 | BO25: 40330.56261 | BP25: 41540.47949 | BQ25: 42786.69387 | BR25: 44070.29469 | BS25: 45392.40353 | BT25: 46754.17563 | BU25: 48156.8009 | BV25: =BV23-BV19-BV14 -> 49601.50493 | BW25: 51089.55008 | BX25: 52622.23658 | BY25: 54200.90368 | BZ25: 55826.93079 | CA25: 57501.73871 | CB25: 59226.79087 | CC25: 61003.5946 | CD25: 62833.70244 | CE25: 64718.71351 | CF25: 66660.27491 | CG25: 68660.08316 | CH25: 70719.88566 | CI25: 0 | CJ25: 0 | CK25: 0 | CL25: 0 | CM25: 0 | CN25: 0 | CO25: 0 | CP25: 0 | CQ25: 0 | CR25: 0 | CS25: 0 | CT25: 0 | CU25: 0 | CV25: 0 | CW25: 0 | CX25: 0 | CY25: 0 | CZ25: 0 | DA25: 0 | DB25: 0 | DC25: 0 | DD25: 0 | DE25: 0 | DF25: 0 | DG25: 0 | DH25: 0 | DI25: 0 | DJ25: 0 | DK25: 0 | DL25: 0 | DM25: 0 | DN25: 0 | DO25: 0 | DP25: 0 | DQ25: 0 | DR25: 0 | DS25: 0 | DT25: 0 | DU25: 0 | DV25: 0 | DW25: 0 | DX25: 0 | DY25: 0 | DZ25: 0 | EA25: 0 | EB25: 0 | EC25: 0 | ED25: 0 | EE25: 0 | EF25: 0 | EG25: 0 | EH25: =EH23-EH19-EH14 -> 0 | EI25: 0 | EJ25: 0 | EK25: 0 | EL25: 0 | EM25: 0 | EN25: 0 | EO25: 0 | EP25: 0 | EQ25: 0 | ER25: 0 | ES25: 0 | ET25: 0 | EU25: 0 | EV25: 0 | EW25: 0 | EX25: 0 | EY25: 0 | EZ25: 0 | FA25: 0 | FB25: 0
E26: ='PF Theory Inputs'!F61 -> 0.07 | F26: =XNPV(E26,I25:FB25,I5:FB5) -> 14773.96411
C27: Project IRR | D27: % | E27: =XIRR(I25:FB25,I5:FB5) -> 0.0728318423 | F27: =IRR(I25:FB25,) -> 0.0282046979
C28: Re-invesment Rate | D28: %
C29: XMIRR | D29: %
C31: Depreciation | D31: EUR | E31: =E16+E12 -> 430000 | F31: =1/G9 -> 0.03448275862 | I31: =$E$31*$F$31*I9 -> 0 | J31: =$E$31*$F$31*J9 -> 0 | K31: 0 | L31: 0 | M31: 0 | N31: 0 | O31: 0 | P31: 0 | Q31: 0 | R31: 0 | S31: 0 | T31: 0 | U31: 0 | V31: 0 | W31: 0 | X31: 0 | Y31: 0 | Z31: 0 | AA31: 0 | AB31: 0 | AC31: 0 | AD31: 0 | AE31: 0 | AF31: 0 | AG31: 0 | AH31: 0 | AI31: 0 | AJ31: 0 | AK31: 0 | AL31: 0 | AM31: 0 | AN31: 0 | AO31: 0 | AP31: 0 | AQ31: 0 | AR31: 0 | AS31: 0 | AT31: 0 | AU31: 0 | AV31: 0 | AW31: 0 | AX31: 0 | AY31: 0 | AZ31: 0 | BA31: 0 | BB31: 0 | BC31: 0 | BD31: 0 | BE31: 0 | BF31: 14827.58621 | BG31: 14827.58621 | BH31: 14827.58621 | BI31: 14827.58621 | BJ31: 14827.58621 | BK31: 14827.58621 | BL31: 14827.58621 | BM31: 14827.58621 | BN31: 14827.58621 | BO31: 14827.58621 | BP31: 14827.58621 | BQ31: 14827.58621 | BR31: 14827.58621 | BS31: 14827.58621 | BT31: 14827.58621 | BU31: 14827.58621 | BV31: =$E$31*$F$31*BV9 -> 14827.58621 | BW31: 14827.58621 | BX31: 14827.58621 | BY31: 14827.58621 | BZ31: 14827.58621 | CA31: 14827.58621 | CB31: 14827.58621 | CC31: 14827.58621 | CD31: 14827.58621 | CE31: 14827.58621 | CF31: 14827.58621 | CG31: 14827.58621 | CH31: 14827.58621 | CI31: 0 | CJ31: 0 | CK31: 0 | CL31: 0 | CM31: 0 | CN31: 0 | CO31: 0 | CP31: 0 | CQ31: 0 | CR31: 0 | CS31: 0 | CT31: 0 | CU31: 0 | CV31: 0 | CW31: 0 | CX31: 0 | CY31: 0 | CZ31: 0 | DA31: 0 | DB31: 0 | DC31: 0 | DD31: 0 | DE31: 0 | DF31: 0 | DG31: 0 | DH31: 0 | DI31: 0 | DJ31: 0 | DK31: 0 | DL31: 0 | DM31: 0 | DN31: 0 | DO31: 0 | DP31: 0 | DQ31: 0 | DR31: 0 | DS31: 0 | DT31: 0 | DU31: 0 | DV31: 0 | DW31: 0 | DX31: 0 | DY31: 0 | DZ31: 0 | EA31: 0 | EB31: 0 | EC31: 0 | ED31: 0 | EE31: 0 | EF31: 0 | EG31: 0 | EH31: =$E$31*$F$31*EH9 -> 0 | EI31: 0 | EJ31: 0 | EK31: 0 | EL31: 0 | EM31: 0 | EN31: 0 | EO31: 0 | EP31: 0 | EQ31: 0 | ER31: 0 | ES31: 0 | ET31: 0 | EU31: 0 | EV31: 0 | EW31: 0 | EX31: 0 | EY31: 0 | EZ31: 0 | FA31: 0 | FB31: 0
C32: Accumulated | D32: EUR | I32: =H32+I31 -> 0 | J32: =I32+J31 -> 0 | K32: 0 | L32: 0 | M32: 0 | N32: 0 | O32: 0 | P32: 0 | Q32: 0 | R32: 0 | S32: 0 | T32: 0 | U32: 0 | V32: 0 | W32: 0 | X32: 0 | Y32: 0 | Z32: 0 | AA32: 0 | AB32: 0 | AC32: 0 | AD32: 0 | AE32: 0 | AF32: 0 | AG32: 0 | AH32: 0 | AI32: 0 | AJ32: 0 | AK32: 0 | AL32: 0 | AM32: 0 | AN32: 0 | AO32: 0 | AP32: 0 | AQ32: 0 | AR32: 0 | AS32: 0 | AT32: 0 | AU32: 0 | AV32: 0 | AW32: 0 | AX32: 0 | AY32: 0 | AZ32: 0 | BA32: 0 | BB32: 0 | BC32: 0 | BD32: 0 | BE32: 0 | BF32: 14827.58621 | BG32: 29655.17241 | BH32: 44482.75862 | BI32: 59310.34483 | BJ32: 74137.93103 | BK32: 88965.51724 | BL32: 103793.1034 | BM32: 118620.6897 | BN32: 133448.2759 | BO32: 148275.8621 | BP32: 163103.4483 | BQ32: 177931.0345 | BR32: 192758.6207 | BS32: 207586.2069 | BT32: 222413.7931 | BU32: 237241.3793 | BV32: =BU32+BV31 -> 252068.9655 | BW32: 266896.5517 | BX32: 281724.1379 | BY32: 296551.7241 | BZ32: 311379.3103 | CA32: 326206.8966 | CB32: 341034.4828 | CC32: 355862.069 | CD32: 370689.6552 | CE32: 385517.2414 | CF32: 400344.8276 | CG32: 415172.4138 | CH32: 430000 | CI32: 430000 | CJ32: 430000 | CK32: 430000 | CL32: 430000 | CM32: 430000 | CN32: 430000 | CO32: 430000 | CP32: 430000 | CQ32: 430000 | CR32: 430000 | CS32: 430000 | CT32: 430000 | CU32: 430000 | CV32: 430000 | CW32: 430000 | CX32: 430000 | CY32: 430000 | CZ32: 430000 | DA32: 430000 | DB32: 430000 | DC32: 430000 | DD32: 430000 | DE32: 430000 | DF32: 430000 | DG32: 430000 | DH32: 430000 | DI32: 430000 | DJ32: 430000 | DK32: 430000 | DL32: 430000 | DM32: 430000 | DN32: 430000 | DO32: 430000 | DP32: 430000 | DQ32: 430000 | DR32: 430000 | DS32: 430000 | DT32: 430000 | DU32: 430000 | DV32: 430000 | DW32: 430000 | DX32: 430000 | DY32: 430000 | DZ32: 430000 | EA32: 430000 | EB32: 430000 | EC32: 430000 | ED32: 430000 | EE32: 430000 | EF32: 430000 | EG32: 430000 | EH32: =EG32+EH31 -> 430000 | EI32: 430000 | EJ32: 430000 | EK32: 430000 | EL32: 430000 | EM32: 430000 | EN32: 430000 | EO32: 430000 | EP32: 430000 | EQ32: 430000 | ER32: 430000 | ES32: 430000 | ET32: 430000 | EU32: 430000 | EV32: 430000 | EW32: 430000 | EX32: 430000 | EY32: 430000 | EZ32: 430000 | FA32: 430000 | FB32: 430000
C33: Gross Plant | D33: EUR | I33: =H33+I14+I19 -> 2142.857143 | J33: =I33+J14+J19 -> 4285.714286 | K33: 6428.571429 | L33: 8571.428571 | M33: 10714.28571 | N33: 12857.14286 | O33: 15000 | P33: 17142.85714 | Q33: 19285.71429 | R33: 21428.57143 | S33: 23571.42857 | T33: 25714.28571 | U33: 27857.14286 | V33: 30000 | W33: 38152.99993 | X33: 51951.63245 | Y33: 70239.20034 | Z33: 92006.78306 | AA33: 116307.8013 | AB33: 142254.2274 | AC33: 169030.5871 | AD33: 195910.1612 | AE33: 222268.0375 | AF33: 247589.0539 | AG33: 271470.184 | AH33: 293617.7192 | AI33: 313840.0501 | AJ33: 332037.0841 | AK33: 348187.4107 | AL33: 362334.2903 | AM33: 374571.4247 | AN33: 385029.302 | AO33: 393862.7131 | AP33: 401239.8489 | AQ33: 407333.1982 | AR33: 412312.3158 | AS33: 416338.3998 | AT33: 419560.5268 | AU33: 422113.3332 | AV33: 424115.8984 | AW33: 425671.5783 | AX33: 426868.5505 | AY33: 427780.8521 | AZ33: 428469.7249 | BA33: 428985.1166 | BB33: 429367.2211 | BC33: 429647.9698 | BD33: 429852.4196 | BE33: 430000 | BF33: 430000 | BG33: 430000 | BH33: 430000 | BI33: 430000 | BJ33: 430000 | BK33: 430000 | BL33: 430000 | BM33: 430000 | BN33: 430000 | BO33: 430000 | BP33: 430000 | BQ33: 430000 | BR33: 430000 | BS33: 430000 | BT33: 430000 | BU33: 430000 | BV33: =BU33+BV14+BV19 -> 430000 | BW33: 430000 | BX33: 430000 | BY33: 430000 | BZ33: 430000 | CA33: 430000 | CB33: 430000 | CC33: 430000 | CD33: 430000 | CE33: 430000 | CF33: 430000 | CG33: 430000 | CH33: 430000 | CI33: 430000 | CJ33: 430000 | CK33: 430000 | CL33: 430000 | CM33: 430000 | CN33: 430000 | CO33: 430000 | CP33: 430000 | CQ33: 430000 | CR33: 430000 | CS33: 430000 | CT33: 430000 | CU33: 430000 | CV33: 430000 | CW33: 430000 | CX33: 430000 | CY33: 430000 | CZ33: 430000 | DA33: 430000 | DB33: 430000 | DC33: 430000 | DD33: 430000 | DE33: 430000 | DF33: 430000 | DG33: 430000 | DH33: 430000 | DI33: 430000 | DJ33: 430000 | DK33: 430000 | DL33: 430000 | DM33: 430000 | DN33: 430000 | DO33: 430000 | DP33: 430000 | DQ33: 430000 | DR33: 430000 | DS33: 430000 | DT33: 430000 | DU33: 430000 | DV33: 430000 | DW33: 430000 | DX33: 430000 | DY33: 430000 | DZ33: 430000 | EA33: 430000 | EB33: 430000 | EC33: 430000 | ED33: 430000 | EE33: 430000 | EF33: 430000 | EG33: 430000 | EH33: =EG33+EH14+EH19 -> 430000 | EI33: 430000 | EJ33: 430000 | EK33: 430000 | EL33: 430000 | EM33: 430000 | EN33: 430000 | EO33: 430000 | EP33: 430000 | EQ33: 430000 | ER33: 430000 | ES33: 430000 | ET33: 430000 | EU33: 430000 | EV33: 430000 | EW33: 430000 | EX33: 430000 | EY33: 430000 | EZ33: 430000 | FA33: 430000 | FB33: 430000
C34: Net Plant in Service | D34: EUR | F34: =LOOKUP(F9,5:5,34:34)=0 -> TRUE | I34: =I33-I32 -> 2142.857143 | J34: =J33-J32 -> 4285.714286 | K34: 6428.571429 | L34: 8571.428571 | M34: 10714.28571 | N34: 12857.14286 | O34: 15000 | P34: 17142.85714 | Q34: 19285.71429 | R34: 21428.57143 | S34: 23571.42857 | T34: 25714.28571 | U34: 27857.14286 | V34: 30000 | W34: 38152.99993 | X34: 51951.63245 | Y34: 70239.20034 | Z34: 92006.78306 | AA34: 116307.8013 | AB34: 142254.2274 | AC34: 169030.5871 | AD34: 195910.1612 | AE34: 222268.0375 | AF34: 247589.0539 | AG34: 271470.184 | AH34: 293617.7192 | AI34: 313840.0501 | AJ34: 332037.0841 | AK34: 348187.4107 | AL34: 362334.2903 | AM34: 374571.4247 | AN34: 385029.302 | AO34: 393862.7131 | AP34: 401239.8489 | AQ34: 407333.1982 | AR34: 412312.3158 | AS34: 416338.3998 | AT34: 419560.5268 | AU34: 422113.3332 | AV34: 424115.8984 | AW34: 425671.5783 | AX34: 426868.5505 | AY34: 427780.8521 | AZ34: 428469.7249 | BA34: 428985.1166 | BB34: 429367.2211 | BC34: 429647.9698 | BD34: 429852.4196 | BE34: 430000 | BF34: 415172.4138 | BG34: 400344.8276 | BH34: 385517.2414 | BI34: 370689.6552 | BJ34: 355862.069 | BK34: 341034.4828 | BL34: 326206.8966 | BM34: 311379.3103 | BN34: 296551.7241 | BO34: 281724.1379 | BP34: 266896.5517 | BQ34: 252068.9655 | BR34: 237241.3793 | BS34: 222413.7931 | BT34: 207586.2069 | BU34: 192758.6207 | BV34: =BV33-BV32 -> 177931.0345 | BW34: 163103.4483 | BX34: 148275.8621 | BY34: 133448.2759 | BZ34: 118620.6897 | CA34: 103793.1034 | CB34: 88965.51724 | CC34: 74137.93103 | CD34: 59310.34483 | CE34: 44482.75862 | CF34: 29655.17241 | CG34: 14827.58621 | CH34: 0 | CI34: 0 | CJ34: 0 | CK34: 0 | CL34: 0 | CM34: 0 | CN34: 0 | CO34: 0 | CP34: 0 | CQ34: 0 | CR34: 0 | CS34: 0 | CT34: 0 | CU34: 0 | CV34: 0 | CW34: 0 | CX34: 0 | CY34: 0 | CZ34: 0 | DA34: 0 | DB34: 0 | DC34: 0 | DD34: 0 | DE34: 0 | DF34: 0 | DG34: 0 | DH34: 0 | DI34: 0 | DJ34: 0 | DK34: 0 | DL34: 0 | DM34: 0 | DN34: 0 | DO34: 0 | DP34: 0 | DQ34: 0 | DR34: 0 | DS34: 0 | DT34: 0 | DU34: 0 | DV34: 0 | DW34: 0 | DX34: 0 | DY34: 0 | DZ34: 0 | EA34: 0 | EB34: 0 | EC34: 0 | ED34: 0 | EE34: 0 | EF34: 0 | EG34: 0 | EH34: =EH33-EH32 -> 0 | EI34: 0 | EJ34: 0 | EK34: 0 | EL34: 0 | EM34: 0 | EN34: 0 | EO34: 0 | EP34: 0 | EQ34: 0 | ER34: 0 | ES34: 0 | ET34: 0 | EU34: 0 | EV34: 0 | EW34: 0 | EX34: 0 | EY34: 0 | EZ34: 0 | FA34: 0 | FB34: 0
C35: EBIT | D35: EUR | I35: =I23-I31 -> 0 | J35: =J23-J31 -> 0 | K35: 0 | L35: 0 | M35: 0 | N35: 0 | O35: 0 | P35: 0 | Q35: 0 | R35: 0 | S35: 0 | T35: 0 | U35: 0 | V35: 0 | W35: 0 | X35: 0 | Y35: 0 | Z35: 0 | AA35: 0 | AB35: 0 | AC35: 0 | AD35: 0 | AE35: 0 | AF35: 0 | AG35: 0 | AH35: 0 | AI35: 0 | AJ35: 0 | AK35: 0 | AL35: 0 | AM35: 0 | AN35: 0 | AO35: 0 | AP35: 0 | AQ35: 0 | AR35: 0 | AS35: 0 | AT35: 0 | AU35: 0 | AV35: 0 | AW35: 0 | AX35: 0 | AY35: 0 | AZ35: 0 | BA35: 0 | BB35: 0 | BC35: 0 | BD35: 0 | BE35: 0 | BF35: 16082.4318 | BG35: 17009.73234 | BH35: 17964.8519 | BI35: 18948.62504 | BJ35: 19961.91138 | BK35: 21005.59631 | BL35: 22080.59178 | BM35: 23187.83712 | BN35: 24328.29982 | BO35: 25502.9764 | BP35: 26712.89328 | BQ35: 27959.10766 | BR35: 29242.70848 | BS35: 30564.81732 | BT35: 31926.58943 | BU35: 33329.21469 | BV35: =BV23-BV31 -> 34773.91872 | BW35: 36261.96387 | BX35: 37794.65037 | BY35: 39373.31747 | BZ35: 40999.34458 | CA35: 42674.1525 | CB35: 44399.20466 | CC35: 46176.00839 | CD35: 48006.11623 | CE35: 49891.1273 | CF35: 51832.68871 | CG35: 53832.49695 | CH35: 55892.29945 | CI35: 0 | CJ35: 0 | CK35: 0 | CL35: 0 | CM35: 0 | CN35: 0 | CO35: 0 | CP35: 0 | CQ35: 0 | CR35: 0 | CS35: 0 | CT35: 0 | CU35: 0 | CV35: 0 | CW35: 0 | CX35: 0 | CY35: 0 | CZ35: 0 | DA35: 0 | DB35: 0 | DC35: 0 | DD35: 0 | DE35: 0 | DF35: 0 | DG35: 0 | DH35: 0 | DI35: 0 | DJ35: 0 | DK35: 0 | DL35: 0 | DM35: 0 | DN35: 0 | DO35: 0 | DP35: 0 | DQ35: 0 | DR35: 0 | DS35: 0 | DT35: 0 | DU35: 0 | DV35: 0 | DW35: 0 | DX35: 0 | DY35: 0 | DZ35: 0 | EA35: 0 | EB35: 0 | EC35: 0 | ED35: 0 | EE35: 0 | EF35: 0 | EG35: 0 | EH35: =EH23-EH31 -> 0 | EI35: 0 | EJ35: 0 | EK35: 0 | EL35: 0 | EM35: 0 | EN35: 0 | EO35: 0 | EP35: 0 | EQ35: 0 | ER35: 0 | ES35: 0 | ET35: 0 | EU35: 0 | EV35: 0 | EW35: 0 | EX35: 0 | EY35: 0 | EZ35: 0 | FA35: 0 | FB35: 0
C36: ROIC | D36: % | I36: =IF(I34,((I35/I34)*12)/I4) -> 0 | J36: =IF(J34,((J35/J34)*12)/J4) -> 0 | K36: 0 | L36: 0 | M36: 0 | N36: 0 | O36: 0 | P36: 0 | Q36: 0 | R36: 0 | S36: 0 | T36: 0 | U36: 0 | V36: 0 | W36: 0 | X36: 0 | Y36: 0 | Z36: 0 | AA36: 0 | AB36: 0 | AC36: 0 | AD36: 0 | AE36: 0 | AF36: 0 | AG36: 0 | AH36: 0 | AI36: 0 | AJ36: 0 | AK36: 0 | AL36: 0 | AM36: 0 | AN36: 0 | AO36: 0 | AP36: 0 | AQ36: 0 | AR36: 0 | AS36: 0 | AT36: 0 | AU36: 0 | AV36: 0 | AW36: 0 | AX36: 0 | AY36: 0 | AZ36: 0 | BA36: 0 | BB36: 0 | BC36: 0 | BD36: 0 | BE36: 0 | BF36: 0.03873675434 | BG36: 0.04248770352 | BH36: 0.0465993475 | BI36: 0.05111722104 | BJ36: 0.05609451841 | BK36: 0.06159376065 | BL36: 0.06768891772 | BM36: 0.07446813693 | BN36: 0.08203729009 | BO36: 0.09052464083 | BP36: 0.1000870678 | BQ36: 0.1109184846 | BR36: 0.1232614166 | BS36: 0.1374232097 | BT36: 0.1537991849 | BU36: 0.1729064805 | BV36: =IF(BV34,((BV35/BV34)*12)/BV4) -> 0.1954348145 | BW36: 0.222324937 | BX36: 0.2548941537 | BY36: 0.2950455314 | BZ36: 0.3456340095 | CA36: 0.4111463198 | CB36: 0.4990608276 | CC36: 0.6228391829 | CD36: 0.809405448 | CE36: 1.121583482 | CF36: 1.74784648 | CG36: 3.630563748 | CH36: FALSE | CI36: FALSE | CJ36: FALSE | CK36: FALSE | CL36: FALSE | CM36: FALSE | CN36: FALSE | CO36: FALSE | CP36: FALSE | CQ36: FALSE | CR36: FALSE | CS36: FALSE | CT36: FALSE | CU36: FALSE | CV36: FALSE | CW36: FALSE | CX36: FALSE | CY36: FALSE | CZ36: FALSE | DA36: FALSE | DB36: FALSE | DC36: FALSE | DD36: FALSE | DE36: FALSE | DF36: FALSE | DG36: FALSE | DH36: FALSE | DI36: FALSE | DJ36: FALSE | DK36: FALSE | DL36: FALSE | DM36: FALSE | DN36: FALSE | DO36: FALSE | DP36: FALSE | DQ36: FALSE | DR36: FALSE | DS36: FALSE | DT36: FALSE | DU36: FALSE | DV36: FALSE | DW36: FALSE | DX36: FALSE | DY36: FALSE | DZ36: FALSE | EA36: FALSE | EB36: FALSE | EC36: FALSE | ED36: FALSE | EE36: FALSE | EF36: FALSE | EG36: FALSE | EH36: =IF(EH34,((EH35/EH34)*12)/EH4) -> FALSE | EI36: FALSE | EJ36: FALSE | EK36: FALSE | EL36: FALSE | EM36: FALSE | EN36: FALSE | EO36: FALSE | EP36: FALSE | EQ36: FALSE | ER36: FALSE | ES36: FALSE | ET36: FALSE | EU36: FALSE | EV36: FALSE | EW36: FALSE | EX36: FALSE | EY36: FALSE | EZ36: FALSE | FA36: FALSE | FB36: FALSE
B38: Analysis of Project Sale and Risk Reduction
C40: Discount rate applied | D40: % | I40: =(LOOKUP(I5,'PF Theory Inputs'!37:37,'PF Theory Inputs'!44:44)) -> 0.1 | J40: =(LOOKUP(J5,'PF Theory Inputs'!37:37,'PF Theory Inputs'!44:44)) -> 0.1 | K40: =(LOOKUP(K5,'PF Theory Inputs'!37:37,'PF Theory Inputs'!44:44)) -> 0.1 | L40: =(LOOKUP(L5,'PF Theory Inputs'!37:37,'PF Theory Inputs'!44:44)) -> 0.1 | M40: =(LOOKUP(M5,'PF Theory Inputs'!37:37,'PF Theory Inputs'!44:44)) -> 0.1 | N40: =(LOOKUP(N5,'PF Theory Inputs'!37:37,'PF Theory Inputs'!44:44)) -> 0.1 | O40: =(LOOKUP(O5,'PF Theory Inputs'!37:37,'PF Theory Inputs'!44:44)) -> 0.1 | P40: =(LOOKUP(P5,'PF Theory Inputs'!37:37,'PF Theory Inputs'!44:44)) -> 0.1 | Q40: =(LOOKUP(Q5,'PF Theory Inputs'!37:37,'PF Theory Inputs'!44:44)) -> 0.1 | R40: =(LOOKUP(R5,'PF Theory Inputs'!37:37,'PF Theory Inputs'!44:44)) -> 0.1 | S40: =(LOOKUP(S5,'PF Theory Inputs'!37:37,'PF Theory Inputs'!44:44)) -> 0.1 | T40: =(LOOKUP(T5,'PF Theory Inputs'!37:37,'PF Theory Inputs'!44:44)) -> 0.1 | U40: =(LOOKUP(U5,'PF Theory Inputs'!37:37,'PF Theory Inputs'!44:44)) -> 0.1 | V40: =(LOOKUP(V5,'PF Theory Inputs'!37:37,'PF Theory Inputs'!44:44)) -> 0.1 | W40: =(LOOKUP(W5,'PF Theory Inputs'!37:37,'PF Theory Inputs'!44:44)) -> 0.08 | X40: =(LOOKUP(X5,'PF Theory Inputs'!37:37,'PF Theory Inputs'!44:44)) -> 0.08 | Y40: =(LOOKUP(Y5,'PF Theory Inputs'!37:37,'PF Theory Inputs'!44:44)) -> 0.08 | Z40: =(LOOKUP(Z5,'PF Theory Inputs'!37:37,'PF Theory Inputs'!44:44)) -> 0.08 | AA40: =(LOOKUP(AA5,'PF Theory Inputs'!37:37,'PF Theory Inputs'!44:44)) -> 0.08 | AB40: =(LOOKUP(AB5,'PF Theory Inputs'!37:37,'PF Theory Inputs'!44:44)) -> 0.08 | AC40: =(LOOKUP(AC5,'PF Theory Inputs'!37:37,'PF Theory Inputs'!44:44)) -> 0.08 | AD40: =(LOOKUP(AD5,'PF Theory Inputs'!37:37,'PF Theory Inputs'!44:44)) -> 0.08 | AE40: =(LOOKUP(AE5,'PF Theory Inputs'!37:37,'PF Theory Inputs'!44:44)) -> 0.08 | AF40: =(LOOKUP(AF5,'PF Theory Inputs'!37:37,'PF Theory Inputs'!44:44)) -> 0.08 | AG40: =(LOOKUP(AG5,'PF Theory Inputs'!37:37,'PF Theory Inputs'!44:44)) -> 0.08 | AH40: =(LOOKUP(AH5,'PF Theory Inputs'!37:37,'PF Theory Inputs'!44:44)) -> 0.08 | AI40: =(LOOKUP(AI5,'PF Theory Inputs'!37:37,'PF Theory Inputs'!44:44)) -> 0.08 | AJ40: =(LOOKUP(AJ5,'PF Theory Inputs'!37:37,'PF Theory Inputs'!44:44)) -> 0.08 | AK40: =(LOOKUP(AK5,'PF Theory Inputs'!37:37,'PF Theory Inputs'!44:44)) -> 0.08 | AL40: =(LOOKUP(AL5,'PF Theory Inputs'!37:37,'PF Theory Inputs'!44:44)) -> 0.08 | AM40: =(LOOKUP(AM5,'PF Theory Inputs'!37:37,'PF Theory Inputs'!44:44)) -> 0.08 | AN40: =(LOOKUP(AN5,'PF Theory Inputs'!37:37,'PF Theory Inputs'!44:44)) -> 0.08 | AO40: =(LOOKUP(AO5,'PF Theory Inputs'!37:37,'PF Theory Inputs'!44:44)) -> 0.08 | AP40: =(LOOKUP(AP5,'PF Theory Inputs'!37:37,'PF Theory Inputs'!44:44)) -> 0.08 | AQ40: =(LOOKUP(AQ5,'PF Theory Inputs'!37:37,'PF Theory Inputs'!44:44)) -> 0.08 | AR40: =(LOOKUP(AR5,'PF Theory Inputs'!37:37,'PF Theory Inputs'!44:44)) -> 0.08 | AS40: =(LOOKUP(AS5,'PF Theory Inputs'!37:37,'PF Theory Inputs'!44:44)) -> 0.08 | AT40: =(LOOKUP(AT5,'PF Theory Inputs'!37:37,'PF Theory Inputs'!44:44)) -> 0.08 | AU40: =(LOOKUP(AU5,'PF Theory Inputs'!37:37,'PF Theory Inputs'!44:44)) -> 0.08 | AV40: =(LOOKUP(AV5,'PF Theory Inputs'!37:37,'PF Theory Inputs'!44:44)) -> 0.08 | AW40: =(LOOKUP(AW5,'PF Theory Inputs'!37:37,'PF Theory Inputs'!44:44)) -> 0.08 | AX40: =(LOOKUP(AX5,'PF Theory Inputs'!37:37,'PF Theory Inputs'!44:44)) -> 0.08 | AY40: =(LOOKUP(AY5,'PF Theory Inputs'!37:37,'PF Theory Inputs'!44:44)) -> 0.08 | AZ40: =(LOOKUP(AZ5,'PF Theory Inputs'!37:37,'PF Theory Inputs'!44:44)) -> 0.08 | BA40: =(LOOKUP(BA5,'PF Theory Inputs'!37:37,'PF Theory Inputs'!44:44)) -> 0.08 | BB40: =(LOOKUP(BB5,'PF Theory Inputs'!37:37,'PF Theory Inputs'!44:44)) -> 0.08 | BC40: =(LOOKUP(BC5,'PF Theory Inputs'!37:37,'PF Theory Inputs'!44:44)) -> 0.08 | BD40: =(LOOKUP(BD5,'PF Theory Inputs'!37:37,'PF Theory Inputs'!44:44)) -> 0.08 | BE40: =(LOOKUP(BE5,'PF Theory Inputs'!37:37,'PF Theory Inputs'!44:44)) -> 0.08 | BF40: =(LOOKUP(BF5,'PF Theory Inputs'!37:37,'PF Theory Inputs'!44:44)) -> 0.05 | BG40: =(LOOKUP(BG5,'PF Theory Inputs'!37:37,'PF Theory Inputs'!44:44)) -> 0.05 | BH40: =(LOOKUP(BH5,'PF Theory Inputs'!37:37,'PF Theory Inputs'!44:44)) -> 0.04 | BI40: =(LOOKUP(BI5,'PF Theory Inputs'!37:37,'PF Theory Inputs'!44:44)) -> 0.04 | BJ40: =(LOOKUP(BJ5,'PF Theory Inputs'!37:37,'PF Theory Inputs'!44:44)) -> 0.04 | BK40: =(LOOKUP(BK5,'PF Theory Inputs'!37:37,'PF Theory Inputs'!44:44)) -> 0.04 | BL40: =(LOOKUP(BL5,'PF Theory Inputs'!37:37,'PF Theory Inputs'!44:44)) -> 0.04 | BM40: =(LOOKUP(BM5,'PF Theory Inputs'!37:37,'PF Theory Inputs'!44:44)) -> 0.04 | BN40: =(LOOKUP(BN5,'PF Theory Inputs'!37:37,'PF Theory Inputs'!44:44)) -> 0.04 | BO40: =(LOOKUP(BO5,'PF Theory Inputs'!37:37,'PF Theory Inputs'!44:44)) -> 0.04 | BP40: =(LOOKUP(BP5,'PF Theory Inputs'!37:37,'PF Theory Inputs'!44:44)) -> 0.04 | BQ40: =(LOOKUP(BQ5,'PF Theory Inputs'!37:37,'PF Theory Inputs'!44:44)) -> 0.04 | BR40: =(LOOKUP(BR5,'PF Theory Inputs'!37:37,'PF Theory Inputs'!44:44)) -> 0.04 | BS40: =(LOOKUP(BS5,'PF Theory Inputs'!37:37,'PF Theory Inputs'!44:44)) -> 0.04 | BT40: =(LOOKUP(BT5,'PF Theory Inputs'!37:37,'PF Theory Inputs'!44:44)) -> 0.04 | BU40: =(LOOKUP(BU5,'PF Theory Inputs'!37:37,'PF Theory Inputs'!44:44)) -> 0.04 | BV40: =(LOOKUP(BV5,'PF Theory Inputs'!37:37,'PF Theory Inputs'!44:44)) -> 0.04 | BW40: =(LOOKUP(BW5,'PF Theory Inputs'!37:37,'PF Theory Inputs'!44:44)) -> 0.04 | BX40: =(LOOKUP(BX5,'PF Theory Inputs'!37:37,'PF Theory Inputs'!44:44)) -> 0.04 | BY40: =(LOOKUP(BY5,'PF Theory Inputs'!37:37,'PF Theory Inputs'!44:44)) -> 0.04 | BZ40: =(LOOKUP(BZ5,'PF Theory Inputs'!37:37,'PF Theory Inputs'!44:44)) -> 0.04 | CA40: =(LOOKUP(CA5,'PF Theory Inputs'!37:37,'PF Theory Inputs'!44:44)) -> 0.04 | CB40: =(LOOKUP(CB5,'PF Theory Inputs'!37:37,'PF Theory Inputs'!44:44)) -> 0.04 | CC40: =(LOOKUP(CC5,'PF Theory Inputs'!37:37,'PF Theory Inputs'!44:44)) -> 0.04 | CD40: =(LOOKUP(CD5,'PF Theory Inputs'!37:37,'PF Theory Inputs'!44:44)) -> 0.04 | CE40: =(LOOKUP(CE5,'PF Theory Inputs'!37:37,'PF Theory Inputs'!44:44)) -> 0.04 | CF40: =(LOOKUP(CF5,'PF Theory Inputs'!37:37,'PF Theory Inputs'!44:44)) -> 0.04 | CG40: =(LOOKUP(CG5,'PF Theory Inputs'!37:37,'PF Theory Inputs'!44:44)) -> 0.04 | CH40: =(LOOKUP(CH5,'PF Theory Inputs'!37:37,'PF Theory Inputs'!44:44)) -> 0.04 | CI40: =(LOOKUP(CI5,'PF Theory Inputs'!37:37,'PF Theory Inputs'!44:44)) -> 0.04 | CJ40: =(LOOKUP(CJ5,'PF Theory Inputs'!37:37,'PF Theory Inputs'!44:44)) -> 0.04 | CK40: =(LOOKUP(CK5,'PF Theory Inputs'!37:37,'PF Theory Inputs'!44:44)) -> 0.04 | CL40: =(LOOKUP(CL5,'PF Theory Inputs'!37:37,'PF Theory Inputs'!44:44)) -> 0.04 | CM40: =(LOOKUP(CM5,'PF Theory Inputs'!37:37,'PF Theory Inputs'!44:44)) -> 0.04 | CN40: =(LOOKUP(CN5,'PF Theory Inputs'!37:37,'PF Theory Inputs'!44:44)) -> 0.04 | CO40: =(LOOKUP(CO5,'PF Theory Inputs'!37:37,'PF Theory Inputs'!44:44)) -> 0.04 | CP40: =(LOOKUP(CP5,'PF Theory Inputs'!37:37,'PF Theory Inputs'!44:44)) -> 0.04 | CQ40: =(LOOKUP(CQ5,'PF Theory Inputs'!37:37,'PF Theory Inputs'!44:44)) -> 0.04 | CR40: =(LOOKUP(CR5,'PF Theory Inputs'!37:37,'PF Theory Inputs'!44:44)) -> 0.04 | CS40: =(LOOKUP(CS5,'PF Theory Inputs'!37:37,'PF Theory Inputs'!44:44)) -> 0.04 | CT40: =(LOOKUP(CT5,'PF Theory Inputs'!37:37,'PF Theory Inputs'!44:44)) -> 0.04 | CU40: =(LOOKUP(CU5,'PF Theory Inputs'!37:37,'PF Theory Inputs'!44:44)) -> 0.04 | CV40: =(LOOKUP(CV5,'PF Theory Inputs'!37:37,'PF Theory Inputs'!44:44)) -> 0.04 | CW40: =(LOOKUP(CW5,'PF Theory Inputs'!37:37,'PF Theory Inputs'!44:44)) -> 0.04 | CX40: =(LOOKUP(CX5,'PF Theory Inputs'!37:37,'PF Theory Inputs'!44:44)) -> 0.04 | CY40: =(LOOKUP(CY5,'PF Theory Inputs'!37:37,'PF Theory Inputs'!44:44)) -> 0.04 | CZ40: =(LOOKUP(CZ5,'PF Theory Inputs'!37:37,'PF Theory Inputs'!44:44)) -> 0.04 | DA40: =(LOOKUP(DA5,'PF Theory Inputs'!37:37,'PF Theory Inputs'!44:44)) -> 0.04 | DB40: =(LOOKUP(DB5,'PF Theory Inputs'!37:37,'PF Theory Inputs'!44:44)) -> 0.04 | DC40: =(LOOKUP(DC5,'PF Theory Inputs'!37:37,'PF Theory Inputs'!44:44)) -> 0.04 | DD40: =(LOOKUP(DD5,'PF Theory Inputs'!37:37,'PF Theory Inputs'!44:44)) -> 0.04 | DE40: =(LOOKUP(DE5,'PF Theory Inputs'!37:37,'PF Theory Inputs'!44:44)) -> 0.04 | DF40: =(LOOKUP(DF5,'PF Theory Inputs'!37:37,'PF Theory Inputs'!44:44)) -> 0.04 | DG40: =(LOOKUP(DG5,'PF Theory Inputs'!37:37,'PF Theory Inputs'!44:44)) -> 0.04 | DH40: =(LOOKUP(DH5,'PF Theory Inputs'!37:37,'PF Theory Inputs'!44:44)) -> 0.04 | DI40: =(LOOKUP(DI5,'PF Theory Inputs'!37:37,'PF Theory Inputs'!44:44)) -> 0.04 | DJ40: =(LOOKUP(DJ5,'PF Theory Inputs'!37:37,'PF Theory Inputs'!44:44)) -> 0.04 | DK40: =(LOOKUP(DK5,'PF Theory Inputs'!37:37,'PF Theory Inputs'!44:44)) -> 0.04 | DL40: =(LOOKUP(DL5,'PF Theory Inputs'!37:37,'PF Theory Inputs'!44:44)) -> 0.04 | DM40: =(LOOKUP(DM5,'PF Theory Inputs'!37:37,'PF Theory Inputs'!44:44)) -> 0.04 | DN40: =(LOOKUP(DN5,'PF Theory Inputs'!37:37,'PF Theory Inputs'!44:44)) -> 0.04 | DO40: =(LOOKUP(DO5,'PF Theory Inputs'!37:37,'PF Theory Inputs'!44:44)) -> 0.04 | DP40: =(LOOKUP(DP5,'PF Theory Inputs'!37:37,'PF Theory Inputs'!44:44)) -> 0.04 | DQ40: =(LOOKUP(DQ5,'PF Theory Inputs'!37:37,'PF Theory Inputs'!44:44)) -> 0.04 | DR40: =(LOOKUP(DR5,'PF Theory Inputs'!37:37,'PF Theory Inputs'!44:44)) -> 0.04 | DS40: =(LOOKUP(DS5,'PF Theory Inputs'!37:37,'PF Theory Inputs'!44:44)) -> 0.04 | DT40: =(LOOKUP(DT5,'PF Theory Inputs'!37:37,'PF Theory Inputs'!44:44)) -> 0.04 | DU40: =(LOOKUP(DU5,'PF Theory Inputs'!37:37,'PF Theory Inputs'!44:44)) -> 0.04 | DV40: =(LOOKUP(DV5,'PF Theory Inputs'!37:37,'PF Theory Inputs'!44:44)) -> 0.04 | DW40: =(LOOKUP(DW5,'PF Theory Inputs'!37:37,'PF Theory Inputs'!44:44)) -> 0.04 | DX40: =(LOOKUP(DX5,'PF Theory Inputs'!37:37,'PF Theory Inputs'!44:44)) -> 0.04 | DY40: =(LOOKUP(DY5,'PF Theory Inputs'!37:37,'PF Theory Inputs'!44:44)) -> 0.04 | DZ40: =(LOOKUP(DZ5,'PF Theory Inputs'!37:37,'PF Theory Inputs'!44:44)) -> 0.04 | EA40: =(LOOKUP(EA5,'PF Theory Inputs'!37:37,'PF Theory Inputs'!44:44)) -> 0.04 | EB40: =(LOOKUP(EB5,'PF Theory Inputs'!37:37,'PF Theory Inputs'!44:44)) -> 0.04 | EC40: =(LOOKUP(EC5,'PF Theory Inputs'!37:37,'PF Theory Inputs'!44:44)) -> 0.04 | ED40: =(LOOKUP(ED5,'PF Theory Inputs'!37:37,'PF Theory Inputs'!44:44)) -> 0.04 | EE40: =(LOOKUP(EE5,'PF Theory Inputs'!37:37,'PF Theory Inputs'!44:44)) -> 0.04 | EF40: =(LOOKUP(EF5,'PF Theory Inputs'!37:37,'PF Theory Inputs'!44:44)) -> 0.04 | EG40: =(LOOKUP(EG5,'PF Theory Inputs'!37:37,'PF Theory Inputs'!44:44)) -> 0.04 | EH40: =(LOOKUP(EH5,'PF Theory Inputs'!37:37,'PF Theory Inputs'!44:44)) -> 0.04 | EI40: =(LOOKUP(EI5,'PF Theory Inputs'!37:37,'PF Theory Inputs'!44:44)) -> 0.04 | EJ40: =(LOOKUP(EJ5,'PF Theory Inputs'!37:37,'PF Theory Inputs'!44:44)) -> 0.04 | EK40: =(LOOKUP(EK5,'PF Theory Inputs'!37:37,'PF Theory Inputs'!44:44)) -> 0.04 | EL40: =(LOOKUP(EL5,'PF Theory Inputs'!37:37,'PF Theory Inputs'!44:44)) -> 0.04 | EM40: =(LOOKUP(EM5,'PF Theory Inputs'!37:37,'PF Theory Inputs'!44:44)) -> 0.04 | EN40: =(LOOKUP(EN5,'PF Theory Inputs'!37:37,'PF Theory Inputs'!44:44)) -> 0.04 | EO40: =(LOOKUP(EO5,'PF Theory Inputs'!37:37,'PF Theory Inputs'!44:44)) -> 0.04 | EP40: =(LOOKUP(EP5,'PF Theory Inputs'!37:37,'PF Theory Inputs'!44:44)) -> 0.04 | EQ40: =(LOOKUP(EQ5,'PF Theory Inputs'!37:37,'PF Theory Inputs'!44:44)) -> 0.04 | ER40: =(LOOKUP(ER5,'PF Theory Inputs'!37:37,'PF Theory Inputs'!44:44)) -> 0.04 | ES40: =(LOOKUP(ES5,'PF Theory Inputs'!37:37,'PF Theory Inputs'!44:44)) -> 0.04 | ET40: =(LOOKUP(ET5,'PF Theory Inputs'!37:37,'PF Theory Inputs'!44:44)) -> 0.04 | EU40: =(LOOKUP(EU5,'PF Theory Inputs'!37:37,'PF Theory Inputs'!44:44)) -> 0.04 | EV40: =(LOOKUP(EV5,'PF Theory Inputs'!37:37,'PF Theory Inputs'!44:44)) -> 0.04 | EW40: =(LOOKUP(EW5,'PF Theory Inputs'!37:37,'PF Theory Inputs'!44:44)) -> 0.04 | EX40: =(LOOKUP(EX5,'PF Theory Inputs'!37:37,'PF Theory Inputs'!44:44)) -> 0.04 | EY40: =(LOOKUP(EY5,'PF Theory Inputs'!37:37,'PF Theory Inputs'!44:44)) -> 0.04 | EZ40: =(LOOKUP(EZ5,'PF Theory Inputs'!37:37,'PF Theory Inputs'!44:44)) -> 0.04 | FA40: =(LOOKUP(FA5,'PF Theory Inputs'!37:37,'PF Theory Inputs'!44:44)) -> 0.04 | FB40: =(LOOKUP(FB5,'PF Theory Inputs'!37:37,'PF Theory Inputs'!44:44)) -> 0.04
I42: =IF(I43,I5,NA()) -> 2022-01-01 | J42: =IF(J43,J5,NA()) -> 2022-02-01 | K42: 2022-03-01 | L42: 2022-04-01 | M42: 2022-05-01 | N42: 2022-06-01 | O42: 2022-07-01 | P42: 2022-08-01 | Q42: 2022-09-01 | R42: 2022-10-01 | S42: 2022-11-01 | T42: 2022-12-01 | U42: 2023-01-01 | V42: 2023-02-01 | W42: 2023-03-01 | X42: 2023-04-01 | Y42: 2023-05-01 | Z42: 2023-06-01 | AA42: 2023-07-01 | AB42: 2023-08-01 | AC42: 2023-09-01 | AD42: 2023-10-01 | AE42: 2023-11-01 | AF42: 2023-12-01 | AG42: 2024-01-01 | AH42: 2024-02-01 | AI42: 2024-03-01 | AJ42: 2024-04-01 | AK42: 2024-05-01 | AL42: 2024-06-01 | AM42: 2024-07-01 | AN42: 2024-08-01 | AO42: 2024-09-01 | AP42: 2024-10-01 | AQ42: 2024-11-01 | AR42: 2024-12-01 | AS42: 2025-01-01 | AT42: 2025-02-01 | AU42: 2025-03-01 | AV42: 2025-04-01 | AW42: 2025-05-01 | AX42: 2025-06-01 | AY42: 2025-07-01 | AZ42: 2025-08-01 | BA42: 2025-09-01 | BB42: 2025-10-01 | BC42: 2025-11-01 | BD42: 2025-12-01 | BE42: 2026-01-01 | BF42: 2027-01-01 | BG42: 2028-01-01 | BH42: 2029-01-01 | BI42: 2030-01-01 | BJ42: 2031-01-01 | BK42: 2032-01-01 | BL42: 2033-01-01 | BM42: 2034-01-01 | BN42: 2035-01-01 | BO42: 2036-01-01 | BP42: 2037-01-01 | BQ42: 2038-01-01 | BR42: 2039-01-01 | BS42: 2040-01-01 | BT42: 2041-01-01 | BU42: 2042-01-01 | BV42: =IF(BV43,BV5,NA()) -> 2043-01-01 | BW42: 2044-01-01 | BX42: 2045-01-01 | BY42: 2046-01-01 | BZ42: 2047-01-01 | CA42: 2048-01-01 | CB42: 2049-01-01 | CC42: 2050-01-01 | CD42: 2051-01-01 | CE42: 2052-01-01 | CF42: 2053-01-01 | CG42: 2054-01-01 | CH42: 2055-01-01 | EH42: =IF(EH43,EH5,NA()) -> 
C43: Project Value | D43: EUR | I43: =XNPV(I40,I25:$FB$25,I$5:$FB$5) -> -103812.1875 | J43: =XNPV(J40,J25:$FB$25,J$5:$FB$5) -> -102495.6671 | K43: =XNPV(K40,K25:$FB$25,K$5:$FB$5) -> -101089.2249 | L43: =XNPV(L40,L25:$FB$25,L$5:$FB$5) -> -99750.57306 | M43: =XNPV(M40,M25:$FB$25,M$5:$FB$5) -> -98375.34958 | N43: =XNPV(N40,N25:$FB$25,N$5:$FB$5) -> -97014.6402 | O43: =XNPV(O40,O25:$FB$25,O$5:$FB$5) -> -95617.90004 | P43: =XNPV(P40,P25:$FB$25,P$5:$FB$5) -> -94234.77897 | Q43: =XNPV(Q40,Q25:$FB$25,Q$5:$FB$5) -> -92840.41632 | R43: =XNPV(R40,R25:$FB$25,R$5:$FB$5) -> -91410.84807 | S43: =XNPV(S40,S25:$FB$25,S$5:$FB$5) -> -89993.53339 | T43: =XNPV(T40,T25:$FB$25,T$5:$FB$5) -> -88541.57589 | U43: =XNPV(U40,U25:$FB$25,U$5:$FB$5) -> -87100.94066 | V43: =XNPV(V40,V25:$FB$25,V$5:$FB$5) -> -85648.5964 | W43: =XNPV(W40,W25:$FB$25,W$5:$FB$5) -> -5197.27144 | X43: =XNPV(X40,X25:$FB$25,X$5:$FB$5) -> 2975.11164 | Y43: =XNPV(Y40,Y25:$FB$25,Y$5:$FB$5) -> 16880.18387 | Z43: =XNPV(Z40,Z25:$FB$25,Z$5:$FB$5) -> 35398.37576 | AA43: =XNPV(AA40,AA25:$FB$25,AA$5:$FB$5) -> 57528.71156 | AB43: =XNPV(AB40,AB25:$FB$25,AB$5:$FB$5) -> 82366.35497 | AC43: =XNPV(AC40,AC25:$FB$25,AC$5:$FB$5) -> 109023.0775 | AD43: =XNPV(AD40,AD25:$FB$25,AD$5:$FB$5) -> 136661.1679 | AE43: =XNPV(AE40,AE25:$FB$25,AE$5:$FB$5) -> 164613.2137 | AF43: =XNPV(AF40,AF25:$FB$25,AF$5:$FB$5) -> 192182.9189 | AG43: =XNPV(AG40,AG25:$FB$25,AG$5:$FB$5) -> 218930.2882 | AH43: =XNPV(AH40,AH25:$FB$25,AH$5:$FB$5) -> 244403.7334 | AI43: =XNPV(AI40,AI25:$FB$25,AI$5:$FB$5) -> 268186.1464 | AJ43: =XNPV(AJ40,AJ25:$FB$25,AJ$5:$FB$5) -> 290299.81 | AK43: =XNPV(AK40,AK25:$FB$25,AK$5:$FB$5) -> 310454.4458 | AL43: =XNPV(AL40,AL25:$FB$25,AL$5:$FB$5) -> 328746.5897 | AM43: =XNPV(AM40,AM25:$FB$25,AM$5:$FB$5) -> 345069.3387 | AN43: =XNPV(AN40,AN25:$FB$25,AN$5:$FB$5) -> 359649.6269 | AO43: =XNPV(AO40,AO25:$FB$25,AO$5:$FB$5) -> 372534.6049 | AP43: =XNPV(AP40,AP25:$FB$25,AP$5:$FB$5) -> 383788.0301 | AQ43: =XNPV(AQ40,AQ25:$FB$25,AQ$5:$FB$5) -> 393730.359 | AR43: =XNPV(AR40,AR25:$FB$25,AR$5:$FB$5) -> 402360.8351 | AS43: =XNPV(AS40,AS25:$FB$25,AS$5:$FB$5) -> 410011.2174 | AT43: =XNPV(AT40,AT25:$FB$25,AT$5:$FB$5) -> 416752.486 | AU43: =XNPV(AU40,AU25:$FB$25,AU$5:$FB$5) -> 422461.4183 | AV43: =XNPV(AV40,AV25:$FB$25,AV$5:$FB$5) -> 427801.3941 | AW43: =XNPV(AW40,AW25:$FB$25,AW$5:$FB$5) -> 432531.3291 | AX43: =XNPV(AX40,AX25:$FB$25,AX$5:$FB$5) -> 436933.6762 | AY43: =XNPV(AY40,AY25:$FB$25,AY$5:$FB$5) -> 440910.8563 | AZ43: =XNPV(AZ40,AZ25:$FB$25,AZ$5:$FB$5) -> 444720.5573 | BA43: =XNPV(BA40,BA25:$FB$25,BA$5:$FB$5) -> 448330.3477 | BB43: =XNPV(BB40,BB25:$FB$25,BB$5:$FB$5) -> 451693.9411 | BC43: =XNPV(BC40,BC25:$FB$25,BC$5:$FB$5) -> 455040.6817 | BD43: =XNPV(BD40,BD25:$FB$25,BD$5:$FB$5) -> 458210.7243 | BE43: =XNPV(BE40,BE25:$FB$25,BE$5:$FB$5) -> 461421.3811 | BF43: =XNPV(BF40,BF25:$FB$25,BF$5:$FB$5) -> 693401.6399 | BG43: =XNPV(BG40,BG25:$FB$25,BG$5:$FB$5) -> 695616.203 | BH43: =XNPV(BH40,BH25:$FB$25,BH$5:$FB$5) -> 782868.8924 | BI43: =XNPV(BI40,BI25:$FB$25,BI$5:$FB$5) -> 780079.5124 | BJ43: =XNPV(BJ40,BJ25:$FB$25,BJ$5:$FB$5) -> 776155.4332 | BK43: =XNPV(BK40,BK25:$FB$25,BK$5:$FB$5) -> 771020.5731 | BL43: =XNPV(BL40,BL25:$FB$25,BL$5:$FB$5) -> 764677.0494 | BM43: =XNPV(BM40,BM25:$FB$25,BM$5:$FB$5) -> 756879.6262 | BN43: =XNPV(BN40,BN25:$FB$25,BN$5:$FB$5) -> 747618.771 | BO43: =XNPV(BO40,BO25:$FB$25,BO$5:$FB$5) -> 736801.4004 | BP43: =XNPV(BP40,BP25:$FB$25,BP$5:$FB$5) -> 724407.5076 | BQ43: =XNPV(BQ40,BQ25:$FB$25,BQ$5:$FB$5) -> 710181.7093 | BR43: =XNPV(BR40,BR25:$FB$25,BR$5:$FB$5) -> 694090.816 | BS43: =XNPV(BS40,BS25:$FB$25,BS$5:$FB$5) -> 676021.3422 | BT43: =XNPV(BT40,BT25:$FB$25,BT$5:$FB$5) -> 655924.5741 | BU43: =XNPV(BU40,BU25:$FB$25,BU$5:$FB$5) -> 633537.2144 | BV43: =XNPV(BV40,BV25:$FB$25,BV$5:$FB$5) -> 608795.6301 | BW43: =XNPV(BW40,BW25:$FB$25,BW$5:$FB$5) -> 581561.8901 | BX43: =XNPV(BX40,BX25:$FB$25,BX$5:$FB$5) -> 551750.5183 | BY43: =XNPV(BY40,BY25:$FB$25,BY$5:$FB$5) -> 519093.413 | BZ43: =XNPV(BZ40,BZ25:$FB$25,BZ$5:$FB$5) -> 483488.2097 | CA43: =XNPV(CA40,CA25:$FB$25,CA$5:$FB$5) -> 444767.73 | CB43: =XNPV(CB40,CB25:$FB$25,CB$5:$FB$5) -> 402799.9111 | CC43: =XNPV(CC40,CC25:$FB$25,CC$5:$FB$5) -> 357316.0451 | CD43: =XNPV(CD40,CD25:$FB$25,CD$5:$FB$5) -> 308164.9485 | CE43: =XNPV(CE40,CE25:$FB$25,CE$5:$FB$5) -> 255144.4959 | CF43: =XNPV(CF40,CF25:$FB$25,CF$5:$FB$5) -> 198064.0953 | CG43: =XNPV(CG40,CG25:$FB$25,CG$5:$FB$5) -> 136659.9732 | CH43: =XNPV(CH40,CH25:$FB$25,CH$5:$FB$5) -> 70719.88566 | CI43: =XNPV(CI40,CI25:$FB$25,CI$5:$FB$5) -> 0 | CJ43: =XNPV(CJ40,CJ25:$FB$25,CJ$5:$FB$5) -> 0 | CK43: =XNPV(CK40,CK25:$FB$25,CK$5:$FB$5) -> 0 | CL43: =XNPV(CL40,CL25:$FB$25,CL$5:$FB$5) -> 0 | CM43: =XNPV(CM40,CM25:$FB$25,CM$5:$FB$5) -> 0 | CN43: =XNPV(CN40,CN25:$FB$25,CN$5:$FB$5) -> 0 | CO43: =XNPV(CO40,CO25:$FB$25,CO$5:$FB$5) -> 0 | CP43: =XNPV(CP40,CP25:$FB$25,CP$5:$FB$5) -> 0 | CQ43: =XNPV(CQ40,CQ25:$FB$25,CQ$5:$FB$5) -> 0 | CR43: =XNPV(CR40,CR25:$FB$25,CR$5:$FB$5) -> 0 | CS43: =XNPV(CS40,CS25:$FB$25,CS$5:$FB$5) -> 0 | CT43: =XNPV(CT40,CT25:$FB$25,CT$5:$FB$5) -> 0 | CU43: =XNPV(CU40,CU25:$FB$25,CU$5:$FB$5) -> 0 | CV43: =XNPV(CV40,CV25:$FB$25,CV$5:$FB$5) -> 0 | CW43: =XNPV(CW40,CW25:$FB$25,CW$5:$FB$5) -> 0 | CX43: =XNPV(CX40,CX25:$FB$25,CX$5:$FB$5) -> 0 | CY43: =XNPV(CY40,CY25:$FB$25,CY$5:$FB$5) -> 0 | CZ43: =XNPV(CZ40,CZ25:$FB$25,CZ$5:$FB$5) -> 0 | DA43: =XNPV(DA40,DA25:$FB$25,DA$5:$FB$5) -> 0 | DB43: =XNPV(DB40,DB25:$FB$25,DB$5:$FB$5) -> 0 | DC43: =XNPV(DC40,DC25:$FB$25,DC$5:$FB$5) -> 0 | DD43: =XNPV(DD40,DD25:$FB$25,DD$5:$FB$5) -> 0 | DE43: =XNPV(DE40,DE25:$FB$25,DE$5:$FB$5) -> 0 | DF43: =XNPV(DF40,DF25:$FB$25,DF$5:$FB$5) -> 0 | DG43: =XNPV(DG40,DG25:$FB$25,DG$5:$FB$5) -> 0 | DH43: =XNPV(DH40,DH25:$FB$25,DH$5:$FB$5) -> 0 | DI43: =XNPV(DI40,DI25:$FB$25,DI$5:$FB$5) -> 0 | DJ43: =XNPV(DJ40,DJ25:$FB$25,DJ$5:$FB$5) -> 0 | DK43: =XNPV(DK40,DK25:$FB$25,DK$5:$FB$5) -> 0 | DL43: =XNPV(DL40,DL25:$FB$25,DL$5:$FB$5) -> 0 | DM43: =XNPV(DM40,DM25:$FB$25,DM$5:$FB$5) -> 0 | DN43: =XNPV(DN40,DN25:$FB$25,DN$5:$FB$5) -> 0 | DO43: =XNPV(DO40,DO25:$FB$25,DO$5:$FB$5) -> 0 | DP43: =XNPV(DP40,DP25:$FB$25,DP$5:$FB$5) -> 0 | DQ43: =XNPV(DQ40,DQ25:$FB$25,DQ$5:$FB$5) -> 0 | DR43: =XNPV(DR40,DR25:$FB$25,DR$5:$FB$5) -> 0 | DS43: =XNPV(DS40,DS25:$FB$25,DS$5:$FB$5) -> 0 | DT43: =XNPV(DT40,DT25:$FB$25,DT$5:$FB$5) -> 0 | DU43: =XNPV(DU40,DU25:$FB$25,DU$5:$FB$5) -> 0 | DV43: =XNPV(DV40,DV25:$FB$25,DV$5:$FB$5) -> 0 | DW43: =XNPV(DW40,DW25:$FB$25,DW$5:$FB$5) -> 0 | DX43: =XNPV(DX40,DX25:$FB$25,DX$5:$FB$5) -> 0 | DY43: =XNPV(DY40,DY25:$FB$25,DY$5:$FB$5) -> 0 | DZ43: =XNPV(DZ40,DZ25:$FB$25,DZ$5:$FB$5) -> 0 | EA43: =XNPV(EA40,EA25:$FB$25,EA$5:$FB$5) -> 0 | EB43: =XNPV(EB40,EB25:$FB$25,EB$5:$FB$5) -> 0 | EC43: =XNPV(EC40,EC25:$FB$25,EC$5:$FB$5) -> 0 | ED43: =XNPV(ED40,ED25:$FB$25,ED$5:$FB$5) -> 0 | EE43: =XNPV(EE40,EE25:$FB$25,EE$5:$FB$5) -> 0 | EF43: =XNPV(EF40,EF25:$FB$25,EF$5:$FB$5) -> 0 | EG43: =XNPV(EG40,EG25:$FB$25,EG$5:$FB$5) -> 0 | EH43: =XNPV(EH40,EH25:$FB$25,EH$5:$FB$5) -> 0 | EI43: =XNPV(EI40,EI25:$FB$25,EI$5:$FB$5) -> 0 | EJ43: =XNPV(EJ40,EJ25:$FB$25,EJ$5:$FB$5) -> 0 | EK43: =XNPV(EK40,EK25:$FB$25,EK$5:$FB$5) -> 0 | EL43: =XNPV(EL40,EL25:$FB$25,EL$5:$FB$5) -> 0 | EM43: =XNPV(EM40,EM25:$FB$25,EM$5:$FB$5) -> 0 | EN43: =XNPV(EN40,EN25:$FB$25,EN$5:$FB$5) -> 0 | EO43: =XNPV(EO40,EO25:$FB$25,EO$5:$FB$5) -> 0 | EP43: =XNPV(EP40,EP25:$FB$25,EP$5:$FB$5) -> 0 | EQ43: =XNPV(EQ40,EQ25:$FB$25,EQ$5:$FB$5) -> 0 | ER43: =XNPV(ER40,ER25:$FB$25,ER$5:$FB$5) -> 0 | ES43: =XNPV(ES40,ES25:$FB$25,ES$5:$FB$5) -> 0 | ET43: =XNPV(ET40,ET25:$FB$25,ET$5:$FB$5) -> 0 | EU43: =XNPV(EU40,EU25:$FB$25,EU$5:$FB$5) -> 0 | EV43: =XNPV(EV40,EV25:$FB$25,EV$5:$FB$5) -> 0 | EW43: =XNPV(EW40,EW25:$FB$25,EW$5:$FB$5) -> 0 | EX43: =XNPV(EX40,EX25:$FB$25,EX$5:$FB$5) -> 0 | EY43: =XNPV(EY40,EY25:$FB$25,EY$5:$FB$5) -> 0 | EZ43: =XNPV(EZ40,EZ25:$FB$25,EZ$5:$FB$5) -> 0 | FA43: =XNPV(FA40,FA25:$FB$25,FA$5:$FB$5) -> 0 | FB43: =XNPV(FB40,FB25:$FB$25,FB$5:$FB$5) -> 0
C45: Terminal Period | D45: Flag | E45: ='PF Theory Inputs'!H46 -> 2029-01-01 | G45: =SUM(I45:FB45) -> 1 | I45: =(I5=$E$45)*1 -> 0 | J45: =(J5=$E$45)*1 -> 0 | K45: 0 | L45: 0 | M45: 0 | N45: 0 | O45: 0 | P45: 0 | Q45: 0 | R45: 0 | S45: 0 | T45: 0 | U45: 0 | V45: 0 | W45: 0 | X45: 0 | Y45: 0 | Z45: 0 | AA45: 0 | AB45: 0 | AC45: 0 | AD45: 0 | AE45: 0 | AF45: 0 | AG45: 0 | AH45: 0 | AI45: 0 | AJ45: 0 | AK45: 0 | AL45: 0 | AM45: 0 | AN45: 0 | AO45: 0 | AP45: 0 | AQ45: 0 | AR45: 0 | AS45: 0 | AT45: 0 | AU45: 0 | AV45: 0 | AW45: 0 | AX45: 0 | AY45: 0 | AZ45: 0 | BA45: 0 | BB45: 0 | BC45: 0 | BD45: 0 | BE45: 0 | BF45: 0 | BG45: 0 | BH45: 1 | BI45: 0 | BJ45: 0 | BK45: 0 | BL45: 0 | BM45: 0 | BN45: 0 | BO45: 0 | BP45: 0 | BQ45: 0 | BR45: 0 | BS45: 0 | BT45: 0 | BU45: 0 | BV45: =(BV5=$E$45)*1 -> 0 | BW45: 0 | BX45: 0 | BY45: 0 | BZ45: 0 | CA45: 0 | CB45: 0 | CC45: 0 | CD45: 0 | CE45: 0 | CF45: 0 | CG45: 0 | CH45: 0 | CI45: 0 | CJ45: 0 | CK45: 0 | CL45: 0 | CM45: 0 | CN45: 0 | CO45: 0 | CP45: 0 | CQ45: 0 | CR45: 0 | CS45: 0 | CT45: 0 | CU45: 0 | CV45: 0 | CW45: 0 | CX45: 0 | CY45: 0 | CZ45: 0 | DA45: 0 | DB45: 0 | DC45: 0 | DD45: 0 | DE45: 0 | DF45: 0 | DG45: 0 | DH45: 0 | DI45: 0 | DJ45: 0 | DK45: 0 | DL45: 0 | DM45: 0 | DN45: 0 | DO45: 0 | DP45: 0 | DQ45: 0 | DR45: 0 | DS45: 0 | DT45: 0 | DU45: 0 | DV45: 0 | DW45: 0 | DX45: 0 | DY45: 0 | DZ45: 0 | EA45: 0 | EB45: 0 | EC45: 0 | ED45: 0 | EE45: 0 | EF45: 0 | EG45: 0 | EH45: =(EH5=$E$45)*1 -> 0 | EI45: 0 | EJ45: 0 | EK45: 0 | EL45: 0 | EM45: 0 | EN45: 0 | EO45: 0 | EP45: 0 | EQ45: 0 | ER45: 0 | ES45: 0 | ET45: 0 | EU45: 0 | EV45: 0 | EW45: 0 | EX45: 0 | EY45: 0 | EZ45: 0 | FA45: 0 | FB45: 0
C46: CF Period | D46: Flag | E46: =E45 -> 2029-01-01 | I46: =(I5<=$E$46)*1 -> 1 | J46: =(J5<=$E$46)*1 -> 1 | K46: 1 | L46: 1 | M46: 1 | N46: 1 | O46: 1 | P46: 1 | Q46: 1 | R46: 1 | S46: 1 | T46: 1 | U46: 1 | V46: 1 | W46: 1 | X46: 1 | Y46: 1 | Z46: 1 | AA46: 1 | AB46: 1 | AC46: 1 | AD46: 1 | AE46: 1 | AF46: 1 | AG46: 1 | AH46: 1 | AI46: 1 | AJ46: 1 | AK46: 1 | AL46: 1 | AM46: 1 | AN46: 1 | AO46: 1 | AP46: 1 | AQ46: 1 | AR46: 1 | AS46: 1 | AT46: 1 | AU46: 1 | AV46: 1 | AW46: 1 | AX46: 1 | AY46: 1 | AZ46: 1 | BA46: 1 | BB46: 1 | BC46: 1 | BD46: 1 | BE46: 1 | BF46: 1 | BG46: 1 | BH46: 1 | BI46: 0 | BJ46: 0 | BK46: 0 | BL46: 0 | BM46: 0 | BN46: 0 | BO46: 0 | BP46: 0 | BQ46: 0 | BR46: 0 | BS46: 0 | BT46: 0 | BU46: 0 | BV46: =(BV5<=$E$46)*1 -> 0 | BW46: 0 | BX46: 0 | BY46: 0 | BZ46: 0 | CA46: 0 | CB46: 0 | CC46: 0 | CD46: 0 | CE46: 0 | CF46: 0 | CG46: 0 | CH46: 0 | CI46: 0 | CJ46: 0 | CK46: 0 | CL46: 0 | CM46: 0 | CN46: 0 | CO46: 0 | CP46: 0 | CQ46: 0 | CR46: 0 | CS46: 0 | CT46: 0 | CU46: 0 | CV46: 0 | CW46: 0 | CX46: 0 | CY46: 0 | CZ46: 0 | DA46: 0 | DB46: 0 | DC46: 0 | DD46: 0 | DE46: 0 | DF46: 0 | DG46: 0 | DH46: 0 | DI46: 0 | DJ46: 0 | DK46: 0 | DL46: 0 | DM46: 0 | DN46: 0 | DO46: 0 | DP46: 0 | DQ46: 0 | DR46: 0 | DS46: 0 | DT46: 0 | DU46: 0 | DV46: 0 | DW46: 0 | DX46: 0 | DY46: 0 | DZ46: 0 | EA46: 0 | EB46: 0 | EC46: 0 | ED46: 0 | EE46: 0 | EF46: 0 | EG46: 0 | EH46: =(EH5<=$E$46)*1 -> 0 | EI46: 0 | EJ46: 0 | EK46: 0 | EL46: 0 | EM46: 0 | EN46: 0 | EO46: 0 | EP46: 0 | EQ46: 0 | ER46: 0 | ES46: 0 | ET46: 0 | EU46: 0 | EV46: 0 | EW46: 0 | EX46: 0 | EY46: 0 | EZ46: 0 | FA46: 0 | FB46: 0
C47: CF for holding period | D47: EUR | I47: =I46*I25+I45*I43 -> -2142.857143 | J47: -2142.857143 | K47: -2142.857143 | L47: -2142.857143 | M47: -2142.857143 | N47: -2142.857143 | O47: -2142.857143 | P47: -2142.857143 | Q47: -2142.857143 | R47: -2142.857143 | S47: -2142.857143 | T47: -2142.857143 | U47: -2142.857143 | V47: -2142.857143 | W47: -8152.999926 | X47: -13798.63253 | Y47: -18287.56788 | Z47: -21767.58272 | AA47: -24301.01826 | AB47: -25946.42612 | AC47: -26776.35963 | AD47: -26879.57411 | AE47: -26357.87635 | AF47: -25321.01637 | AG47: -23881.13009 | AH47: -22147.53518 | AI47: -20222.33093 | AJ47: -18197.03403 | AK47: -16150.32659 | AL47: -14146.87953 | AM47: -12237.13448 | AN47: -10457.87724 | AO47: -8833.411143 | AP47: -7377.135773 | AQ47: -6093.349314 | AR47: -4979.117613 | AS47: -4026.083965 | AT47: -3222.127008 | AU47: -2552.806442 | AV47: -2002.565111 | AW47: -1555.679916 | AX47: -1196.972276 | AY47: -912.3015942 | AZ47: -688.8727251 | BA47: -515.3917694 | BB47: -382.1044283 | BC47: -280.7487124 | BD47: -204.4498331 | BE47: -147.5803929 | BF47: 30910.01801 | BG47: 31837.31855 | BH47: 815661.3305 | BI47: 0 | BJ47: 0 | BK47: 0 | BL47: 0 | BM47: 0 | BN47: 0 | BO47: 0 | BP47: 0 | BQ47: 0 | BR47: 0 | BS47: 0 | BT47: 0 | BU47: 0 | BV47: =BV46*BV25+BV45*BV43 -> 0 | BW47: 0 | BX47: 0 | BY47: 0 | BZ47: 0 | CA47: 0 | CB47: 0 | CC47: 0 | CD47: 0 | CE47: 0 | CF47: 0 | CG47: 0 | CH47: 0 | CI47: 0 | CJ47: 0 | CK47: 0 | CL47: 0 | CM47: 0 | CN47: 0 | CO47: 0 | CP47: 0 | CQ47: 0 | CR47: 0 | CS47: 0 | CT47: 0 | CU47: 0 | CV47: 0 | CW47: 0 | CX47: 0 | CY47: 0 | CZ47: 0 | DA47: 0 | DB47: 0 | DC47: 0 | DD47: 0 | DE47: 0 | DF47: 0 | DG47: 0 | DH47: 0 | DI47: 0 | DJ47: 0 | DK47: 0 | DL47: 0 | DM47: 0 | DN47: 0 | DO47: 0 | DP47: 0 | DQ47: 0 | DR47: 0 | DS47: 0 | DT47: 0 | DU47: 0 | DV47: 0 | DW47: 0 | DX47: 0 | DY47: 0 | DZ47: 0 | EA47: 0 | EB47: 0 | EC47: 0 | ED47: 0 | EE47: 0 | EF47: 0 | EG47: 0 | EH47: =EH46*EH25+EH45*EH43 -> 0 | EI47: 0 | EJ47: 0 | EK47: 0 | EL47: 0 | EM47: 0 | EN47: 0 | EO47: 0 | EP47: 0 | EQ47: 0 | ER47: 0 | ES47: 0 | ET47: 0 | EU47: 0 | EV47: 0 | EW47: 0 | EX47: 0 | EY47: 0 | EZ47: 0 | FA47: 0 | FB47: 0
C48: IRR over Holding Period | D48: % p.a. | E48: =XIRR(I47:FB47,I5:FB5) -> 0.1522217691
B50: Development Fee Analysis
C51: Financial Close Date | D51: Flag | E51: ='PF Theory Inputs'!$F$7 -> 2023-03-01 | I51: =$E$51=I5 -> FALSE | J51: =$E$51=J5 -> FALSE | K51: FALSE | L51: FALSE | M51: FALSE | N51: FALSE | O51: FALSE | P51: FALSE | Q51: FALSE | R51: FALSE | S51: FALSE | T51: FALSE | U51: FALSE | V51: FALSE | W51: TRUE | X51: FALSE | Y51: FALSE | Z51: FALSE | AA51: FALSE | AB51: FALSE | AC51: FALSE | AD51: FALSE | AE51: FALSE | AF51: FALSE | AG51: FALSE | AH51: FALSE | AI51: FALSE | AJ51: FALSE | AK51: FALSE | AL51: FALSE | AM51: FALSE | AN51: FALSE | AO51: FALSE | AP51: FALSE | AQ51: FALSE | AR51: FALSE | AS51: FALSE | AT51: FALSE | AU51: FALSE | AV51: FALSE | AW51: FALSE | AX51: FALSE | AY51: FALSE | AZ51: FALSE | BA51: FALSE | BB51: FALSE | BC51: FALSE | BD51: FALSE | BE51: FALSE | BF51: FALSE | BG51: FALSE | BH51: FALSE | BI51: FALSE | BJ51: FALSE | BK51: FALSE | BL51: FALSE | BM51: FALSE | BN51: FALSE | BO51: FALSE | BP51: FALSE | BQ51: FALSE | BR51: FALSE | BS51: FALSE | BT51: FALSE | BU51: FALSE | BV51: =$E$51=BV5 -> FALSE | BW51: FALSE | BX51: FALSE | BY51: FALSE | BZ51: FALSE | CA51: FALSE | CB51: FALSE | CC51: FALSE | CD51: FALSE | CE51: FALSE | CF51: FALSE | CG51: FALSE | CH51: FALSE | CI51: FALSE | CJ51: FALSE | CK51: FALSE | CL51: FALSE | CM51: FALSE | CN51: FALSE | CO51: FALSE | CP51: FALSE | CQ51: FALSE | CR51: FALSE | CS51: FALSE | CT51: FALSE | CU51: FALSE | CV51: FALSE | CW51: FALSE | CX51: FALSE | CY51: FALSE | CZ51: FALSE | DA51: FALSE | DB51: FALSE | DC51: FALSE | DD51: FALSE | DE51: FALSE | DF51: FALSE | DG51: FALSE | DH51: FALSE | DI51: FALSE | DJ51: FALSE | DK51: FALSE | DL51: FALSE | DM51: FALSE | DN51: FALSE | DO51: FALSE | DP51: FALSE | DQ51: FALSE | DR51: FALSE | DS51: FALSE | DT51: FALSE | DU51: FALSE | DV51: FALSE | DW51: FALSE | DX51: FALSE | DY51: FALSE | DZ51: FALSE | EA51: FALSE | EB51: FALSE | EC51: FALSE | ED51: FALSE | EE51: FALSE | EF51: FALSE | EG51: FALSE | EH51: =$E$51=EH5 -> FALSE | EI51: FALSE | EJ51: FALSE | EK51: FALSE | EL51: FALSE | EM51: FALSE | EN51: FALSE | EO51: FALSE | EP51: FALSE | EQ51: FALSE | ER51: FALSE | ES51: FALSE | ET51: FALSE | EU51: FALSE | EV51: FALSE | EW51: FALSE | EX51: FALSE | EY51: FALSE | EZ51: FALSE | FA51: FALSE | FB51: FALSE
C52: Development Fee | D52: EUR | E52: ='PF Theory Inputs'!F19+'PF Theory Inputs'!F21 -> 430000 | F52: ='PF Theory Inputs'!F49 -> 0.15 | G52: =SUM(I52:FB52) -> 64500 | I52: =$E$52*$F$52*I51 -> 0 | J52: =$E$52*$F$52*J51 -> 0 | K52: 0 | L52: 0 | M52: 0 | N52: 0 | O52: 0 | P52: 0 | Q52: 0 | R52: 0 | S52: 0 | T52: 0 | U52: 0 | V52: 0 | W52: 64500 | X52: 0 | Y52: 0 | Z52: 0 | AA52: 0 | AB52: 0 | AC52: 0 | AD52: 0 | AE52: 0 | AF52: 0 | AG52: 0 | AH52: 0 | AI52: 0 | AJ52: 0 | AK52: 0 | AL52: 0 | AM52: 0 | AN52: 0 | AO52: 0 | AP52: 0 | AQ52: 0 | AR52: 0 | AS52: 0 | AT52: 0 | AU52: 0 | AV52: 0 | AW52: 0 | AX52: 0 | AY52: 0 | AZ52: 0 | BA52: 0 | BB52: 0 | BC52: 0 | BD52: 0 | BE52: 0 | BF52: 0 | BG52: 0 | BH52: 0 | BI52: 0 | BJ52: 0 | BK52: 0 | BL52: 0 | BM52: 0 | BN52: 0 | BO52: 0 | BP52: 0 | BQ52: 0 | BR52: 0 | BS52: 0 | BT52: 0 | BU52: 0 | BV52: =$E$52*$F$52*BV51 -> 0 | BW52: 0 | BX52: 0 | BY52: 0 | BZ52: 0 | CA52: 0 | CB52: 0 | CC52: 0 | CD52: 0 | CE52: 0 | CF52: 0 | CG52: 0 | CH52: 0 | CI52: 0 | CJ52: 0 | CK52: 0 | CL52: 0 | CM52: 0 | CN52: 0 | CO52: 0 | CP52: 0 | CQ52: 0 | CR52: 0 | CS52: 0 | CT52: 0 | CU52: 0 | CV52: 0 | CW52: 0 | CX52: 0 | CY52: 0 | CZ52: 0 | DA52: 0 | DB52: 0 | DC52: 0 | DD52: 0 | DE52: 0 | DF52: 0 | DG52: 0 | DH52: 0 | DI52: 0 | DJ52: 0 | DK52: 0 | DL52: 0 | DM52: 0 | DN52: 0 | DO52: 0 | DP52: 0 | DQ52: 0 | DR52: 0 | DS52: 0 | DT52: 0 | DU52: 0 | DV52: 0 | DW52: 0 | DX52: 0 | DY52: 0 | DZ52: 0 | EA52: 0 | EB52: 0 | EC52: 0 | ED52: 0 | EE52: 0 | EF52: 0 | EG52: 0 | EH52: =$E$52*$F$52*EH51 -> 0 | EI52: 0 | EJ52: 0 | EK52: 0 | EL52: 0 | EM52: 0 | EN52: 0 | EO52: 0 | EP52: 0 | EQ52: 0 | ER52: 0 | ES52: 0 | ET52: 0 | EU52: 0 | EV52: 0 | EW52: 0 | EX52: 0 | EY52: 0 | EZ52: 0 | FA52: 0 | FB52: 0
C53: Cash Flow Less Development Fee | D53: EUR | I53: =I25-I52 -> -2142.857143 | J53: =J25-J52 -> -2142.857143 | K53: -2142.857143 | L53: -2142.857143 | M53: -2142.857143 | N53: -2142.857143 | O53: -2142.857143 | P53: -2142.857143 | Q53: -2142.857143 | R53: -2142.857143 | S53: -2142.857143 | T53: -2142.857143 | U53: -2142.857143 | V53: -2142.857143 | W53: -72652.99993 | X53: -13798.63253 | Y53: -18287.56788 | Z53: -21767.58272 | AA53: -24301.01826 | AB53: -25946.42612 | AC53: -26776.35963 | AD53: -26879.57411 | AE53: -26357.87635 | AF53: -25321.01637 | AG53: -23881.13009 | AH53: -22147.53518 | AI53: -20222.33093 | AJ53: -18197.03403 | AK53: -16150.32659 | AL53: -14146.87953 | AM53: -12237.13448 | AN53: -10457.87724 | AO53: -8833.411143 | AP53: -7377.135773 | AQ53: -6093.349314 | AR53: -4979.117613 | AS53: -4026.083965 | AT53: -3222.127008 | AU53: -2552.806442 | AV53: -2002.565111 | AW53: -1555.679916 | AX53: -1196.972276 | AY53: -912.3015942 | AZ53: -688.8727251 | BA53: -515.3917694 | BB53: -382.1044283 | BC53: -280.7487124 | BD53: -204.4498331 | BE53: -147.5803929 | BF53: 30910.01801 | BG53: 31837.31855 | BH53: 32792.4381 | BI53: 33776.21125 | BJ53: 34789.49758 | BK53: 35833.18251 | BL53: 36908.17799 | BM53: 38015.42333 | BN53: 39155.88603 | BO53: 40330.56261 | BP53: 41540.47949 | BQ53: 42786.69387 | BR53: 44070.29469 | BS53: 45392.40353 | BT53: 46754.17563 | BU53: 48156.8009 | BV53: =BV25-BV52 -> 49601.50493 | BW53: 51089.55008 | BX53: 52622.23658 | BY53: 54200.90368 | BZ53: 55826.93079 | CA53: 57501.73871 | CB53: 59226.79087 | CC53: 61003.5946 | CD53: 62833.70244 | CE53: 64718.71351 | CF53: 66660.27491 | CG53: 68660.08316 | CH53: 70719.88566 | CI53: 0 | CJ53: 0 | CK53: 0 | CL53: 0 | CM53: 0 | CN53: 0 | CO53: 0 | CP53: 0 | CQ53: 0 | CR53: 0 | CS53: 0 | CT53: 0 | CU53: 0 | CV53: 0 | CW53: 0 | CX53: 0 | CY53: 0 | CZ53: 0 | DA53: 0 | DB53: 0 | DC53: 0 | DD53: 0 | DE53: 0 | DF53: 0 | DG53: 0 | DH53: 0 | DI53: 0 | DJ53: 0 | DK53: 0 | DL53: 0 | DM53: 0 | DN53: 0 | DO53: 0 | DP53: 0 | DQ53: 0 | DR53: 0 | DS53: 0 | DT53: 0 | DU53: 0 | DV53: 0 | DW53: 0 | DX53: 0 | DY53: 0 | DZ53: 0 | EA53: 0 | EB53: 0 | EC53: 0 | ED53: 0 | EE53: 0 | EF53: 0 | EG53: 0 | EH53: =EH25-EH52 -> 0 | EI53: 0 | EJ53: 0 | EK53: 0 | EL53: 0 | EM53: 0 | EN53: 0 | EO53: 0 | EP53: 0 | EQ53: 0 | ER53: 0 | ES53: 0 | ET53: 0 | EU53: 0 | EV53: 0 | EW53: 0 | EX53: 0 | EY53: 0 | EZ53: 0 | FA53: 0 | FB53: 0
C54: IRR with Development Risk | D54: % | E54: =XIRR(I53:FB53,I5:FB5) -> 0.06227500737
B56: Cash Flow for Sponsor at FC
C57: Project Cash Flow without Development Cost | D57: EUR | I57: =I25+I14 -> 0 | J57: =J25+J14 -> 0 | K57: 0 | L57: 0 | M57: 0 | N57: 0 | O57: 0 | P57: 0 | Q57: 0 | R57: 0 | S57: 0 | T57: 0 | U57: 0 | V57: 0 | W57: -8152.999926 | X57: -13798.63253 | Y57: -18287.56788 | Z57: -21767.58272 | AA57: -24301.01826 | AB57: -25946.42612 | AC57: -26776.35963 | AD57: -26879.57411 | AE57: -26357.87635 | AF57: -25321.01637 | AG57: -23881.13009 | AH57: -22147.53518 | AI57: -20222.33093 | AJ57: -18197.03403 | AK57: -16150.32659 | AL57: -14146.87953 | AM57: -12237.13448 | AN57: -10457.87724 | AO57: -8833.411143 | AP57: -7377.135773 | AQ57: -6093.349314 | AR57: -4979.117613 | AS57: -4026.083965 | AT57: -3222.127008 | AU57: -2552.806442 | AV57: -2002.565111 | AW57: -1555.679916 | AX57: -1196.972276 | AY57: -912.3015942 | AZ57: -688.8727251 | BA57: -515.3917694 | BB57: -382.1044283 | BC57: -280.7487124 | BD57: -204.4498331 | BE57: -147.5803929 | BF57: 30910.01801 | BG57: 31837.31855 | BH57: 32792.4381 | BI57: 33776.21125 | BJ57: 34789.49758 | BK57: 35833.18251 | BL57: 36908.17799 | BM57: 38015.42333 | BN57: 39155.88603 | BO57: 40330.56261 | BP57: 41540.47949 | BQ57: 42786.69387 | BR57: 44070.29469 | BS57: 45392.40353 | BT57: 46754.17563 | BU57: 48156.8009 | BV57: =BV25+BV14 -> 49601.50493 | BW57: 51089.55008 | BX57: 52622.23658 | BY57: 54200.90368 | BZ57: 55826.93079 | CA57: 57501.73871 | CB57: 59226.79087 | CC57: 61003.5946 | CD57: 62833.70244 | CE57: 64718.71351 | CF57: 66660.27491 | CG57: 68660.08316 | CH57: 70719.88566 | CI57: 0 | CJ57: 0 | CK57: 0 | CL57: 0 | CM57: 0 | CN57: 0 | CO57: 0 | CP57: 0 | CQ57: 0 | CR57: 0 | CS57: 0 | CT57: 0 | CU57: 0 | CV57: 0 | CW57: 0 | CX57: 0 | CY57: 0 | CZ57: 0 | DA57: 0 | DB57: 0 | DC57: 0 | DD57: 0 | DE57: 0 | DF57: 0 | DG57: 0 | DH57: 0 | DI57: 0 | DJ57: 0 | DK57: 0 | DL57: 0 | DM57: 0 | DN57: 0 | DO57: 0 | DP57: 0 | DQ57: 0 | DR57: 0 | DS57: 0 | DT57: 0 | DU57: 0 | DV57: 0 | DW57: 0 | DX57: 0 | DY57: 0 | DZ57: 0 | EA57: 0 | EB57: 0 | EC57: 0 | ED57: 0 | EE57: 0 | EF57: 0 | EG57: 0 | EH57: =EH25+EH14 -> 0 | EI57: 0 | EJ57: 0 | EK57: 0 | EL57: 0 | EM57: 0 | EN57: 0 | EO57: 0 | EP57: 0 | EQ57: 0 | ER57: 0 | ES57: 0 | ET57: 0 | EU57: 0 | EV57: 0 | EW57: 0 | EX57: 0 | EY57: 0 | EZ57: 0 | FA57: 0 | FB57: 0
C58: Less: Development Cost to FC | D58: EUR | E58: =E12 -> 30000 | I58: =$E$58*I51 -> 0 | J58: =$E$58*J51 -> 0 | K58: 0 | L58: 0 | M58: 0 | N58: 0 | O58: 0 | P58: 0 | Q58: 0 | R58: 0 | S58: 0 | T58: 0 | U58: 0 | V58: 0 | W58: 30000 | X58: 0 | Y58: 0 | Z58: 0 | AA58: 0 | AB58: 0 | AC58: 0 | AD58: 0 | AE58: 0 | AF58: 0 | AG58: 0 | AH58: 0 | AI58: 0 | AJ58: 0 | AK58: 0 | AL58: 0 | AM58: 0 | AN58: 0 | AO58: 0 | AP58: 0 | AQ58: 0 | AR58: 0 | AS58: 0 | AT58: 0 | AU58: 0 | AV58: 0 | AW58: 0 | AX58: 0 | AY58: 0 | AZ58: 0 | BA58: 0 | BB58: 0 | BC58: 0 | BD58: 0 | BE58: 0 | BF58: 0 | BG58: 0 | BH58: 0 | BI58: 0 | BJ58: 0 | BK58: 0 | BL58: 0 | BM58: 0 | BN58: 0 | BO58: 0 | BP58: 0 | BQ58: 0 | BR58: 0 | BS58: 0 | BT58: 0 | BU58: 0 | BV58: =$E$58*BV51 -> 0 | BW58: 0 | BX58: 0 | BY58: 0 | BZ58: 0 | CA58: 0 | CB58: 0 | CC58: 0 | CD58: 0 | CE58: 0 | CF58: 0 | CG58: 0 | CH58: 0 | CI58: 0 | CJ58: 0 | CK58: 0 | CL58: 0 | CM58: 0 | CN58: 0 | CO58: 0 | CP58: 0 | CQ58: 0 | CR58: 0 | CS58: 0 | CT58: 0 | CU58: 0 | CV58: 0 | CW58: 0 | CX58: 0 | CY58: 0 | CZ58: 0 | DA58: 0 | DB58: 0 | DC58: 0 | DD58: 0 | DE58: 0 | DF58: 0 | DG58: 0 | DH58: 0 | DI58: 0 | DJ58: 0 | DK58: 0 | DL58: 0 | DM58: 0 | DN58: 0 | DO58: 0 | DP58: 0 | DQ58: 0 | DR58: 0 | DS58: 0 | DT58: 0 | DU58: 0 | DV58: 0 | DW58: 0 | DX58: 0 | DY58: 0 | DZ58: 0 | EA58: 0 | EB58: 0 | EC58: 0 | ED58: 0 | EE58: 0 | EF58: 0 | EG58: 0 | EH58: =$E$58*EH51 -> 0 | EI58: 0 | EJ58: 0 | EK58: 0 | EL58: 0 | EM58: 0 | EN58: 0 | EO58: 0 | EP58: 0 | EQ58: 0 | ER58: 0 | ES58: 0 | ET58: 0 | EU58: 0 | EV58: 0 | EW58: 0 | EX58: 0 | EY58: 0 | EZ58: 0 | FA58: 0 | FB58: 0
C59: Less: Development Fee | D59: EUR | E59: =G52 -> 64500 | I59: =I52 -> 0 | J59: =J52 -> 0 | K59: 0 | L59: 0 | M59: 0 | N59: 0 | O59: 0 | P59: 0 | Q59: 0 | R59: 0 | S59: 0 | T59: 0 | U59: 0 | V59: 0 | W59: 64500 | X59: 0 | Y59: 0 | Z59: 0 | AA59: 0 | AB59: 0 | AC59: 0 | AD59: 0 | AE59: 0 | AF59: 0 | AG59: 0 | AH59: 0 | AI59: 0 | AJ59: 0 | AK59: 0 | AL59: 0 | AM59: 0 | AN59: 0 | AO59: 0 | AP59: 0 | AQ59: 0 | AR59: 0 | AS59: 0 | AT59: 0 | AU59: 0 | AV59: 0 | AW59: 0 | AX59: 0 | AY59: 0 | AZ59: 0 | BA59: 0 | BB59: 0 | BC59: 0 | BD59: 0 | BE59: 0 | BF59: 0 | BG59: 0 | BH59: 0 | BI59: 0 | BJ59: 0 | BK59: 0 | BL59: 0 | BM59: 0 | BN59: 0 | BO59: 0 | BP59: 0 | BQ59: 0 | BR59: 0 | BS59: 0 | BT59: 0 | BU59: 0 | BV59: =BV52 -> 0 | BW59: 0 | BX59: 0 | BY59: 0 | BZ59: 0 | CA59: 0 | CB59: 0 | CC59: 0 | CD59: 0 | CE59: 0 | CF59: 0 | CG59: 0 | CH59: 0 | CI59: 0 | CJ59: 0 | CK59: 0 | CL59: 0 | CM59: 0 | CN59: 0 | CO59: 0 | CP59: 0 | CQ59: 0 | CR59: 0 | CS59: 0 | CT59: 0 | CU59: 0 | CV59: 0 | CW59: 0 | CX59: 0 | CY59: 0 | CZ59: 0 | DA59: 0 | DB59: 0 | DC59: 0 | DD59: 0 | DE59: 0 | DF59: 0 | DG59: 0 | DH59: 0 | DI59: 0 | DJ59: 0 | DK59: 0 | DL59: 0 | DM59: 0 | DN59: 0 | DO59: 0 | DP59: 0 | DQ59: 0 | DR59: 0 | DS59: 0 | DT59: 0 | DU59: 0 | DV59: 0 | DW59: 0 | DX59: 0 | DY59: 0 | DZ59: 0 | EA59: 0 | EB59: 0 | EC59: 0 | ED59: 0 | EE59: 0 | EF59: 0 | EG59: 0 | EH59: =EH52 -> 0 | EI59: 0 | EJ59: 0 | EK59: 0 | EL59: 0 | EM59: 0 | EN59: 0 | EO59: 0 | EP59: 0 | EQ59: 0 | ER59: 0 | ES59: 0 | ET59: 0 | EU59: 0 | EV59: 0 | EW59: 0 | EX59: 0 | EY59: 0 | EZ59: 0 | FA59: 0 | FB59: 0
C60: Adjusted Cash Flow | D60: EUR | I60: =I57-I58-I59-0.0000000001 -> -1e-10 | J60: =J57-J58-J59 -> 0 | K60: 0 | L60: 0 | M60: 0 | N60: 0 | O60: 0 | P60: 0 | Q60: 0 | R60: 0 | S60: 0 | T60: 0 | U60: 0 | V60: 0 | W60: -102652.9999 | X60: -13798.63253 | Y60: -18287.56788 | Z60: -21767.58272 | AA60: -24301.01826 | AB60: -25946.42612 | AC60: -26776.35963 | AD60: -26879.57411 | AE60: -26357.87635 | AF60: -25321.01637 | AG60: -23881.13009 | AH60: -22147.53518 | AI60: -20222.33093 | AJ60: -18197.03403 | AK60: -16150.32659 | AL60: -14146.87953 | AM60: -12237.13448 | AN60: -10457.87724 | AO60: -8833.411143 | AP60: -7377.135773 | AQ60: -6093.349314 | AR60: -4979.117613 | AS60: -4026.083965 | AT60: -3222.127008 | AU60: -2552.806442 | AV60: -2002.565111 | AW60: -1555.679916 | AX60: -1196.972276 | AY60: -912.3015942 | AZ60: -688.8727251 | BA60: -515.3917694 | BB60: -382.1044283 | BC60: -280.7487124 | BD60: -204.4498331 | BE60: -147.5803929 | BF60: 30910.01801 | BG60: 31837.31855 | BH60: 32792.4381 | BI60: 33776.21125 | BJ60: 34789.49758 | BK60: 35833.18251 | BL60: 36908.17799 | BM60: 38015.42333 | BN60: 39155.88603 | BO60: 40330.56261 | BP60: 41540.47949 | BQ60: 42786.69387 | BR60: 44070.29469 | BS60: 45392.40353 | BT60: 46754.17563 | BU60: 48156.8009 | BV60: =BV57-BV58-BV59 -> 49601.50493 | BW60: 51089.55008 | BX60: 52622.23658 | BY60: 54200.90368 | BZ60: 55826.93079 | CA60: 57501.73871 | CB60: 59226.79087 | CC60: 61003.5946 | CD60: 62833.70244 | CE60: 64718.71351 | CF60: 66660.27491 | CG60: 68660.08316 | CH60: 70719.88566 | CI60: 0 | CJ60: 0 | CK60: 0 | CL60: 0 | CM60: 0 | CN60: 0 | CO60: 0 | CP60: 0 | CQ60: 0 | CR60: 0 | CS60: 0 | CT60: 0 | CU60: 0 | CV60: 0 | CW60: 0 | CX60: 0 | CY60: 0 | CZ60: 0 | DA60: 0 | DB60: 0 | DC60: 0 | DD60: 0 | DE60: 0 | DF60: 0 | DG60: 0 | DH60: 0 | DI60: 0 | DJ60: 0 | DK60: 0 | DL60: 0 | DM60: 0 | DN60: 0 | DO60: 0 | DP60: 0 | DQ60: 0 | DR60: 0 | DS60: 0 | DT60: 0 | DU60: 0 | DV60: 0 | DW60: 0 | DX60: 0 | DY60: 0 | DZ60: 0 | EA60: 0 | EB60: 0 | EC60: 0 | ED60: 0 | EE60: 0 | EF60: 0 | EG60: 0 | EH60: =EH57-EH58-EH59 -> 0 | EI60: 0 | EJ60: 0 | EK60: 0 | EL60: 0 | EM60: 0 | EN60: 0 | EO60: 0 | EP60: 0 | EQ60: 0 | ER60: 0 | ES60: 0 | ET60: 0 | EU60: 0 | EV60: 0 | EW60: 0 | EX60: 0 | EY60: 0 | EZ60: 0 | FA60: 0 | FB60: 0
C61: Equity IRR with Development Fee Subtracted | D61: % | E61: =XIRR(I60:FB60,I5:FB5) -> 0.06244592369
C63: Co-Sponsor Financing/Cash Flow | D63: % | E63: ='PF Theory Inputs'!F51 -> 0.5 | I63: =$E$63*I60 -> -5e-11 | J63: =$E$63*J60 -> 0 | K63: 0 | L63: 0 | M63: 0 | N63: 0 | O63: 0 | P63: 0 | Q63: 0 | R63: 0 | S63: 0 | T63: 0 | U63: 0 | V63: 0 | W63: -51326.49996 | X63: -6899.316264 | Y63: -9143.783942 | Z63: -10883.79136 | AA63: -12150.50913 | AB63: -12973.21306 | AC63: -13388.17981 | AD63: -13439.78705 | AE63: -13178.93818 | AF63: -12660.50819 | AG63: -11940.56505 | AH63: -11073.76759 | AI63: -10111.16547 | AJ63: -9098.517016 | AK63: -8075.163295 | AL63: -7073.439764 | AM63: -6118.567242 | AN63: -5228.93862 | AO63: -4416.705571 | AP63: -3688.567887 | AQ63: -3046.674657 | AR63: -2489.558807 | AS63: -2013.041982 | AT63: -1611.063504 | AU63: -1276.403221 | AV63: -1001.282556 | AW63: -777.839958 | AX63: -598.4861381 | AY63: -456.1507971 | AZ63: -344.4363626 | BA63: -257.6958847 | BB63: -191.0522141 | BC63: -140.3743562 | BD63: -102.2249166 | BE63: -73.79019643 | BF63: 15455.009 | BG63: 15918.65927 | BH63: 16396.21905 | BI63: 16888.10562 | BJ63: 17394.74879 | BK63: 17916.59126 | BL63: 18454.08899 | BM63: 19007.71166 | BN63: 19577.94301 | BO63: 20165.2813 | BP63: 20770.23974 | BQ63: 21393.34694 | BR63: 22035.14734 | BS63: 22696.20176 | BT63: 23377.08782 | BU63: 24078.40045 | BV63: =$E$63*BV60 -> 24800.75246 | BW63: 25544.77504 | BX63: 26311.11829 | BY63: 27100.45184 | BZ63: 27913.46539 | CA63: 28750.86936 | CB63: 29613.39544 | CC63: 30501.7973 | CD63: 31416.85122 | CE63: 32359.35675 | CF63: 33330.13746 | CG63: 34330.04158 | CH63: 35359.94283 | CI63: 0 | CJ63: 0 | CK63: 0 | CL63: 0 | CM63: 0 | CN63: 0 | CO63: 0 | CP63: 0 | CQ63: 0 | CR63: 0 | CS63: 0 | CT63: 0 | CU63: 0 | CV63: 0 | CW63: 0 | CX63: 0 | CY63: 0 | CZ63: 0 | DA63: 0 | DB63: 0 | DC63: 0 | DD63: 0 | DE63: 0 | DF63: 0 | DG63: 0 | DH63: 0 | DI63: 0 | DJ63: 0 | DK63: 0 | DL63: 0 | DM63: 0 | DN63: 0 | DO63: 0 | DP63: 0 | DQ63: 0 | DR63: 0 | DS63: 0 | DT63: 0 | DU63: 0 | DV63: 0 | DW63: 0 | DX63: 0 | DY63: 0 | DZ63: 0 | EA63: 0 | EB63: 0 | EC63: 0 | ED63: 0 | EE63: 0 | EF63: 0 | EG63: 0 | EH63: =$E$63*EH60 -> 0 | EI63: 0 | EJ63: 0 | EK63: 0 | EL63: 0 | EM63: 0 | EN63: 0 | EO63: 0 | EP63: 0 | EQ63: 0 | ER63: 0 | ES63: 0 | ET63: 0 | EU63: 0 | EV63: 0 | EW63: 0 | EX63: 0 | EY63: 0 | EZ63: 0 | FA63: 0 | FB63: 0
C64: Co-sponsor IRR | D64: % | E64: =XIRR(I63:FB63,I5:FB5) -> 0.06244592369
C66: Project Cash Flow | D66: EUR | I66: =I25 -> -2142.857143 | J66: =J25 -> -2142.857143 | K66: -2142.857143 | L66: -2142.857143 | M66: -2142.857143 | N66: -2142.857143 | O66: -2142.857143 | P66: -2142.857143 | Q66: -2142.857143 | R66: -2142.857143 | S66: -2142.857143 | T66: -2142.857143 | U66: -2142.857143 | V66: -2142.857143 | W66: -8152.999926 | X66: -13798.63253 | Y66: -18287.56788 | Z66: -21767.58272 | AA66: -24301.01826 | AB66: -25946.42612 | AC66: -26776.35963 | AD66: -26879.57411 | AE66: -26357.87635 | AF66: -25321.01637 | AG66: -23881.13009 | AH66: -22147.53518 | AI66: -20222.33093 | AJ66: -18197.03403 | AK66: -16150.32659 | AL66: -14146.87953 | AM66: -12237.13448 | AN66: -10457.87724 | AO66: -8833.411143 | AP66: -7377.135773 | AQ66: -6093.349314 | AR66: -4979.117613 | AS66: -4026.083965 | AT66: -3222.127008 | AU66: -2552.806442 | AV66: -2002.565111 | AW66: -1555.679916 | AX66: -1196.972276 | AY66: -912.3015942 | AZ66: -688.8727251 | BA66: -515.3917694 | BB66: -382.1044283 | BC66: -280.7487124 | BD66: -204.4498331 | BE66: -147.5803929 | BF66: 30910.01801 | BG66: 31837.31855 | BH66: 32792.4381 | BI66: 33776.21125 | BJ66: 34789.49758 | BK66: 35833.18251 | BL66: 36908.17799 | BM66: 38015.42333 | BN66: 39155.88603 | BO66: 40330.56261 | BP66: 41540.47949 | BQ66: 42786.69387 | BR66: 44070.29469 | BS66: 45392.40353 | BT66: 46754.17563 | BU66: 48156.8009 | BV66: =BV25 -> 49601.50493 | BW66: 51089.55008 | BX66: 52622.23658 | BY66: 54200.90368 | BZ66: 55826.93079 | CA66: 57501.73871 | CB66: 59226.79087 | CC66: 61003.5946 | CD66: 62833.70244 | CE66: 64718.71351 | CF66: 66660.27491 | CG66: 68660.08316 | CH66: 70719.88566 | CI66: 0 | CJ66: 0 | CK66: 0 | CL66: 0 | CM66: 0 | CN66: 0 | CO66: 0 | CP66: 0 | CQ66: 0 | CR66: 0 | CS66: 0 | CT66: 0 | CU66: 0 | CV66: 0 | CW66: 0 | CX66: 0 | CY66: 0 | CZ66: 0 | DA66: 0 | DB66: 0 | DC66: 0 | DD66: 0 | DE66: 0 | DF66: 0 | DG66: 0 | DH66: 0 | DI66: 0 | DJ66: 0 | DK66: 0 | DL66: 0 | DM66: 0 | DN66: 0 | DO66: 0 | DP66: 0 | DQ66: 0 | DR66: 0 | DS66: 0 | DT66: 0 | DU66: 0 | DV66: 0 | DW66: 0 | DX66: 0 | DY66: 0 | DZ66: 0 | EA66: 0 | EB66: 0 | EC66: 0 | ED66: 0 | EE66: 0 | EF66: 0 | EG66: 0 | EH66: =EH25 -> 0 | EI66: 0 | EJ66: 0 | EK66: 0 | EL66: 0 | EM66: 0 | EN66: 0 | EO66: 0 | EP66: 0 | EQ66: 0 | ER66: 0 | ES66: 0 | ET66: 0 | EU66: 0 | EV66: 0 | EW66: 0 | EX66: 0 | EY66: 0 | EZ66: 0 | FA66: 0 | FB66: 0
C67: Less: Partner Cash Flow | D67: EUR | I67: =I63 -> -5e-11 | J67: =J63 -> 0 | K67: 0 | L67: 0 | M67: 0 | N67: 0 | O67: 0 | P67: 0 | Q67: 0 | R67: 0 | S67: 0 | T67: 0 | U67: 0 | V67: 0 | W67: -51326.49996 | X67: -6899.316264 | Y67: -9143.783942 | Z67: -10883.79136 | AA67: -12150.50913 | AB67: -12973.21306 | AC67: -13388.17981 | AD67: -13439.78705 | AE67: -13178.93818 | AF67: -12660.50819 | AG67: -11940.56505 | AH67: -11073.76759 | AI67: -10111.16547 | AJ67: -9098.517016 | AK67: -8075.163295 | AL67: -7073.439764 | AM67: -6118.567242 | AN67: -5228.93862 | AO67: -4416.705571 | AP67: -3688.567887 | AQ67: -3046.674657 | AR67: -2489.558807 | AS67: -2013.041982 | AT67: -1611.063504 | AU67: -1276.403221 | AV67: -1001.282556 | AW67: -777.839958 | AX67: -598.4861381 | AY67: -456.1507971 | AZ67: -344.4363626 | BA67: -257.6958847 | BB67: -191.0522141 | BC67: -140.3743562 | BD67: -102.2249166 | BE67: -73.79019643 | BF67: 15455.009 | BG67: 15918.65927 | BH67: 16396.21905 | BI67: 16888.10562 | BJ67: 17394.74879 | BK67: 17916.59126 | BL67: 18454.08899 | BM67: 19007.71166 | BN67: 19577.94301 | BO67: 20165.2813 | BP67: 20770.23974 | BQ67: 21393.34694 | BR67: 22035.14734 | BS67: 22696.20176 | BT67: 23377.08782 | BU67: 24078.40045 | BV67: =BV63 -> 24800.75246 | BW67: 25544.77504 | BX67: 26311.11829 | BY67: 27100.45184 | BZ67: 27913.46539 | CA67: 28750.86936 | CB67: 29613.39544 | CC67: 30501.7973 | CD67: 31416.85122 | CE67: 32359.35675 | CF67: 33330.13746 | CG67: 34330.04158 | CH67: 35359.94283 | CI67: 0 | CJ67: 0 | CK67: 0 | CL67: 0 | CM67: 0 | CN67: 0 | CO67: 0 | CP67: 0 | CQ67: 0 | CR67: 0 | CS67: 0 | CT67: 0 | CU67: 0 | CV67: 0 | CW67: 0 | CX67: 0 | CY67: 0 | CZ67: 0 | DA67: 0 | DB67: 0 | DC67: 0 | DD67: 0 | DE67: 0 | DF67: 0 | DG67: 0 | DH67: 0 | DI67: 0 | DJ67: 0 | DK67: 0 | DL67: 0 | DM67: 0 | DN67: 0 | DO67: 0 | DP67: 0 | DQ67: 0 | DR67: 0 | DS67: 0 | DT67: 0 | DU67: 0 | DV67: 0 | DW67: 0 | DX67: 0 | DY67: 0 | DZ67: 0 | EA67: 0 | EB67: 0 | EC67: 0 | ED67: 0 | EE67: 0 | EF67: 0 | EG67: 0 | EH67: =EH63 -> 0 | EI67: 0 | EJ67: 0 | EK67: 0 | EL67: 0 | EM67: 0 | EN67: 0 | EO67: 0 | EP67: 0 | EQ67: 0 | ER67: 0 | ES67: 0 | ET67: 0 | EU67: 0 | EV67: 0 | EW67: 0 | EX67: 0 | EY67: 0 | EZ67: 0 | FA67: 0 | FB67: 0
C68: Developer Cash Flow | D68: EUR | I68: =I66-I67 -> -2142.857143 | J68: =J66-J67 -> -2142.857143 | K68: -2142.857143 | L68: -2142.857143 | M68: -2142.857143 | N68: -2142.857143 | O68: -2142.857143 | P68: -2142.857143 | Q68: -2142.857143 | R68: -2142.857143 | S68: -2142.857143 | T68: -2142.857143 | U68: -2142.857143 | V68: -2142.857143 | W68: 43173.50004 | X68: -6899.316264 | Y68: -9143.783942 | Z68: -10883.79136 | AA68: -12150.50913 | AB68: -12973.21306 | AC68: -13388.17981 | AD68: -13439.78705 | AE68: -13178.93818 | AF68: -12660.50819 | AG68: -11940.56505 | AH68: -11073.76759 | AI68: -10111.16547 | AJ68: -9098.517016 | AK68: -8075.163295 | AL68: -7073.439764 | AM68: -6118.567242 | AN68: -5228.93862 | AO68: -4416.705571 | AP68: -3688.567887 | AQ68: -3046.674657 | AR68: -2489.558807 | AS68: -2013.041982 | AT68: -1611.063504 | AU68: -1276.403221 | AV68: -1001.282556 | AW68: -777.839958 | AX68: -598.4861381 | AY68: -456.1507971 | AZ68: -344.4363626 | BA68: -257.6958847 | BB68: -191.0522141 | BC68: -140.3743562 | BD68: -102.2249166 | BE68: -73.79019643 | BF68: 15455.009 | BG68: 15918.65927 | BH68: 16396.21905 | BI68: 16888.10562 | BJ68: 17394.74879 | BK68: 17916.59126 | BL68: 18454.08899 | BM68: 19007.71166 | BN68: 19577.94301 | BO68: 20165.2813 | BP68: 20770.23974 | BQ68: 21393.34694 | BR68: 22035.14734 | BS68: 22696.20176 | BT68: 23377.08782 | BU68: 24078.40045 | BV68: =BV66-BV67 -> 24800.75246 | BW68: 25544.77504 | BX68: 26311.11829 | BY68: 27100.45184 | BZ68: 27913.46539 | CA68: 28750.86936 | CB68: 29613.39544 | CC68: 30501.7973 | CD68: 31416.85122 | CE68: 32359.35675 | CF68: 33330.13746 | CG68: 34330.04158 | CH68: 35359.94283 | CI68: 0 | CJ68: 0 | CK68: 0 | CL68: 0 | CM68: 0 | CN68: 0 | CO68: 0 | CP68: 0 | CQ68: 0 | CR68: 0 | CS68: 0 | CT68: 0 | CU68: 0 | CV68: 0 | CW68: 0 | CX68: 0 | CY68: 0 | CZ68: 0 | DA68: 0 | DB68: 0 | DC68: 0 | DD68: 0 | DE68: 0 | DF68: 0 | DG68: 0 | DH68: 0 | DI68: 0 | DJ68: 0 | DK68: 0 | DL68: 0 | DM68: 0 | DN68: 0 | DO68: 0 | DP68: 0 | DQ68: 0 | DR68: 0 | DS68: 0 | DT68: 0 | DU68: 0 | DV68: 0 | DW68: 0 | DX68: 0 | DY68: 0 | DZ68: 0 | EA68: 0 | EB68: 0 | EC68: 0 | ED68: 0 | EE68: 0 | EF68: 0 | EG68: 0 | EH68: =EH66-EH67 -> 0 | EI68: 0 | EJ68: 0 | EK68: 0 | EL68: 0 | EM68: 0 | EN68: 0 | EO68: 0 | EP68: 0 | EQ68: 0 | ER68: 0 | ES68: 0 | ET68: 0 | EU68: 0 | EV68: 0 | EW68: 0 | EX68: 0 | EY68: 0 | EZ68: 0 | FA68: 0 | FB68: 0
C69: Developer IRR | D69: % | E69: =XIRR(I68:FB68,I5:FB5) -> 0.08581813276
C70: NPV of Cash Flow | E70: ='PF Theory Inputs'!F61 -> 0.07 | F70: =XNPV(E70,I68:FB68,I5:FB5) -> 36599.86129
B73: Equity Bridge Loan
C74: Apply Equity Bridge Loan | D74: Flag
C75: Interest Rate on EBL | D75: % p.a.
C77: Repayment date for EBL
C78: Opening Balance | D78: EUR
C79: Borrowing during Construction | D79: EUR
C80: Repayment | D80: EUR
C81: Closing Balance | D81: EUR
C82: Periodic Interest Rate | D82: %
C84: Cash Flow after EBL | D84: EUR
B86: Alternative Cash Flow
C87: Project Cash Flow | D87: EUR
C88: Cash Flow with Holding Period | D88: EUR
C89: Cash Flow after EBL | D89: EUR
C90: Cash Flow with Development Fee as Cost | D90: EUR
C91: Developer Company Cash Flow | D91: EUR
C92: Co-Sponsor Company Cash Flow | D92: EUR
B94: Alternative IRR's
C95: IRR without sale | D95: %
C96: IRR with Sale | D96: %
C97: IRR with EBL | D97: %
C98: XMIRR with EBL | D98: %
C99: IRR with Dev fee | D99: %
C100: Developer IRR | D100: %
C101: Co-Sponsor IRR | D101: %
B104: IRR proofs and Economic Depreciation
C106: Project Cash Flow | D106: EUR | E106: =XIRR(I106:FB106,I5:FB5) -> 0.0728318423 | I106: =I25 -> -2142.857143 | J106: =J25 -> -2142.857143 | K106: -2142.857143 | L106: -2142.857143 | M106: -2142.857143 | N106: -2142.857143 | O106: -2142.857143 | P106: -2142.857143 | Q106: -2142.857143 | R106: -2142.857143 | S106: -2142.857143 | T106: -2142.857143 | U106: -2142.857143 | V106: -2142.857143 | W106: -8152.999926 | X106: -13798.63253 | Y106: -18287.56788 | Z106: -21767.58272 | AA106: -24301.01826 | AB106: -25946.42612 | AC106: -26776.35963 | AD106: -26879.57411 | AE106: -26357.87635 | AF106: -25321.01637 | AG106: -23881.13009 | AH106: -22147.53518 | AI106: -20222.33093 | AJ106: -18197.03403 | AK106: -16150.32659 | AL106: -14146.87953 | AM106: -12237.13448 | AN106: -10457.87724 | AO106: -8833.411143 | AP106: -7377.135773 | AQ106: -6093.349314 | AR106: -4979.117613 | AS106: -4026.083965 | AT106: -3222.127008 | AU106: -2552.806442 | AV106: -2002.565111 | AW106: -1555.679916 | AX106: -1196.972276 | AY106: -912.3015942 | AZ106: -688.8727251 | BA106: -515.3917694 | BB106: -382.1044283 | BC106: -280.7487124 | BD106: -204.4498331 | BE106: -147.5803929 | BF106: 30910.01801 | BG106: 31837.31855 | BH106: 32792.4381 | BI106: 33776.21125 | BJ106: 34789.49758 | BK106: 35833.18251 | BL106: 36908.17799 | BM106: 38015.42333 | BN106: 39155.88603 | BO106: 40330.56261 | BP106: 41540.47949 | BQ106: 42786.69387 | BR106: 44070.29469 | BS106: 45392.40353 | BT106: 46754.17563 | BU106: 48156.8009 | BV106: =BV25 -> 49601.50493 | BW106: 51089.55008 | BX106: 52622.23658 | BY106: 54200.90368 | BZ106: 55826.93079 | CA106: 57501.73871 | CB106: 59226.79087 | CC106: 61003.5946 | CD106: 62833.70244 | CE106: 64718.71351 | CF106: 66660.27491 | CG106: 68660.08316 | CH106: 70719.88566 | CI106: 0 | CJ106: 0 | CK106: 0 | CL106: 0 | CM106: 0 | CN106: 0 | CO106: 0 | CP106: 0 | CQ106: 0 | CR106: 0 | CS106: 0 | CT106: 0 | CU106: 0 | CV106: 0 | CW106: 0 | CX106: 0 | CY106: 0 | CZ106: 0 | DA106: 0 | DB106: 0 | DC106: 0 | DD106: 0 | DE106: 0 | DF106: 0 | DG106: 0 | DH106: 0 | DI106: 0 | DJ106: 0 | DK106: 0 | DL106: 0 | DM106: 0 | DN106: 0 | DO106: 0 | DP106: 0 | DQ106: 0 | DR106: 0 | DS106: 0 | DT106: 0 | DU106: 0 | DV106: 0 | DW106: 0 | DX106: 0 | DY106: 0 | DZ106: 0 | EA106: 0 | EB106: 0 | EC106: 0 | ED106: 0 | EE106: 0 | EF106: 0 | EG106: 0 | EH106: =EH25 -> 0 | EI106: 0 | EJ106: 0 | EK106: 0 | EL106: 0 | EM106: 0 | EN106: 0 | EO106: 0 | EP106: 0 | EQ106: 0 | ER106: 0 | ES106: 0 | ET106: 0 | EU106: 0 | EV106: 0 | EW106: 0 | EX106: 0 | EY106: 0 | EZ106: 0 | FA106: 0 | FB106: 0
C107: Rolling IRR | D107: % | I107: =IFERROR(XIRR($I106:I106,$I5:I5),FALSE) -> FALSE | J107: =IFERROR(XIRR($I106:J106,$I5:J5),FALSE) -> FALSE | K107: =IFERROR(XIRR($I106:K106,$I5:K5),FALSE) -> FALSE | L107: =IFERROR(XIRR($I106:L106,$I5:L5),FALSE) -> FALSE | M107: =IFERROR(XIRR($I106:M106,$I5:M5),FALSE) -> FALSE | N107: =IFERROR(XIRR($I106:N106,$I5:N5),FALSE) -> FALSE | O107: =IFERROR(XIRR($I106:O106,$I5:O5),FALSE) -> FALSE | P107: =IFERROR(XIRR($I106:P106,$I5:P5),FALSE) -> FALSE | Q107: =IFERROR(XIRR($I106:Q106,$I5:Q5),FALSE) -> FALSE | R107: =IFERROR(XIRR($I106:R106,$I5:R5),FALSE) -> FALSE | S107: =IFERROR(XIRR($I106:S106,$I5:S5),FALSE) -> FALSE | T107: =IFERROR(XIRR($I106:T106,$I5:T5),FALSE) -> FALSE | U107: =IFERROR(XIRR($I106:U106,$I5:U5),FALSE) -> FALSE | V107: =IFERROR(XIRR($I106:V106,$I5:V5),FALSE) -> FALSE | W107: =IFERROR(XIRR($I106:W106,$I5:W5),FALSE) -> FALSE | X107: =IFERROR(XIRR($I106:X106,$I5:X5),FALSE) -> FALSE | Y107: =IFERROR(XIRR($I106:Y106,$I5:Y5),FALSE) -> FALSE | Z107: =IFERROR(XIRR($I106:Z106,$I5:Z5),FALSE) -> FALSE | AA107: =IFERROR(XIRR($I106:AA106,$I5:AA5),FALSE) -> FALSE | AB107: =IFERROR(XIRR($I106:AB106,$I5:AB5),FALSE) -> FALSE | AC107: =IFERROR(XIRR($I106:AC106,$I5:AC5),FALSE) -> FALSE | AD107: =IFERROR(XIRR($I106:AD106,$I5:AD5),FALSE) -> FALSE | AE107: =IFERROR(XIRR($I106:AE106,$I5:AE5),FALSE) -> FALSE | AF107: =IFERROR(XIRR($I106:AF106,$I5:AF5),FALSE) -> FALSE | AG107: =IFERROR(XIRR($I106:AG106,$I5:AG5),FALSE) -> FALSE | AH107: =IFERROR(XIRR($I106:AH106,$I5:AH5),FALSE) -> FALSE | AI107: =IFERROR(XIRR($I106:AI106,$I5:AI5),FALSE) -> FALSE | AJ107: =IFERROR(XIRR($I106:AJ106,$I5:AJ5),FALSE) -> FALSE | AK107: =IFERROR(XIRR($I106:AK106,$I5:AK5),FALSE) -> FALSE | AL107: =IFERROR(XIRR($I106:AL106,$I5:AL5),FALSE) -> FALSE | AM107: =IFERROR(XIRR($I106:AM106,$I5:AM5),FALSE) -> FALSE | AN107: =IFERROR(XIRR($I106:AN106,$I5:AN5),FALSE) -> FALSE | AO107: =IFERROR(XIRR($I106:AO106,$I5:AO5),FALSE) -> FALSE | AP107: =IFERROR(XIRR($I106:AP106,$I5:AP5),FALSE) -> FALSE | AQ107: =IFERROR(XIRR($I106:AQ106,$I5:AQ5),FALSE) -> FALSE | AR107: =IFERROR(XIRR($I106:AR106,$I5:AR5),FALSE) -> FALSE | AS107: =IFERROR(XIRR($I106:AS106,$I5:AS5),FALSE) -> FALSE | AT107: =IFERROR(XIRR($I106:AT106,$I5:AT5),FALSE) -> FALSE | AU107: =IFERROR(XIRR($I106:AU106,$I5:AU5),FALSE) -> FALSE | AV107: =IFERROR(XIRR($I106:AV106,$I5:AV5),FALSE) -> FALSE | AW107: =IFERROR(XIRR($I106:AW106,$I5:AW5),FALSE) -> FALSE | AX107: =IFERROR(XIRR($I106:AX106,$I5:AX5),FALSE) -> FALSE | AY107: =IFERROR(XIRR($I106:AY106,$I5:AY5),FALSE) -> FALSE | AZ107: =IFERROR(XIRR($I106:AZ106,$I5:AZ5),FALSE) -> FALSE | BA107: =IFERROR(XIRR($I106:BA106,$I5:BA5),FALSE) -> FALSE | BB107: =IFERROR(XIRR($I106:BB106,$I5:BB5),FALSE) -> FALSE | BC107: =IFERROR(XIRR($I106:BC106,$I5:BC5),FALSE) -> FALSE | BD107: =IFERROR(XIRR($I106:BD106,$I5:BD5),FALSE) -> FALSE | BE107: =IFERROR(XIRR($I106:BE106,$I5:BE5),FALSE) -> FALSE | BF107: =IFERROR(XIRR($I106:BF106,$I5:BF5),FALSE) -> 2.980232239e-09 | BG107: =IFERROR(XIRR($I106:BG106,$I5:BG5),FALSE) -> 2.980232239e-09 | BH107: =IFERROR(XIRR($I106:BH106,$I5:BH5),FALSE) -> 2.980232239e-09 | BI107: =IFERROR(XIRR($I106:BI106,$I5:BI5),FALSE) -> 2.980232239e-09 | BJ107: =IFERROR(XIRR($I106:BJ106,$I5:BJ5),FALSE) -> 2.980232239e-09 | BK107: =IFERROR(XIRR($I106:BK106,$I5:BK5),FALSE) -> 2.980232239e-09 | BL107: =IFERROR(XIRR($I106:BL106,$I5:BL5),FALSE) -> 2.980232239e-09 | BM107: =IFERROR(XIRR($I106:BM106,$I5:BM5),FALSE) -> 2.980232239e-09 | BN107: =IFERROR(XIRR($I106:BN106,$I5:BN5),FALSE) -> 2.980232239e-09 | BO107: =IFERROR(XIRR($I106:BO106,$I5:BO5),FALSE) -> 2.980232239e-09 | BP107: =IFERROR(XIRR($I106:BP106,$I5:BP5),FALSE) -> 2.980232239e-09 | BQ107: =IFERROR(XIRR($I106:BQ106,$I5:BQ5),FALSE) -> 0.002228370309 | BR107: =IFERROR(XIRR($I106:BR106,$I5:BR5),FALSE) -> 0.01229862273 | BS107: =IFERROR(XIRR($I106:BS106,$I5:BS5),FALSE) -> 0.02087161839 | BT107: =IFERROR(XIRR($I106:BT106,$I5:BT5),FALSE) -> 0.02822543681 | BU107: =IFERROR(XIRR($I106:BU106,$I5:BU5),FALSE) -> 0.0345769614 | BV107: =IFERROR(XIRR($I106:BV106,$I5:BV5),FALSE) -> 0.04009659588 | BW107: =IFERROR(XIRR($I106:BW106,$I5:BW5),FALSE) -> 0.04491995871 | BX107: =IFERROR(XIRR($I106:BX106,$I5:BX5),FALSE) -> 0.0491555959 | BY107: =IFERROR(XIRR($I106:BY106,$I5:BY5),FALSE) -> 0.05289262235 | BZ107: =IFERROR(XIRR($I106:BZ106,$I5:BZ5),FALSE) -> 0.05620357096 | CA107: =IFERROR(XIRR($I106:CA106,$I5:CA5),FALSE) -> 0.05914830267 | CB107: =IFERROR(XIRR($I106:CB106,$I5:CB5),FALSE) -> 0.06177616417 | CC107: =IFERROR(XIRR($I106:CC106,$I5:CC5),FALSE) -> 0.06412928998 | CD107: =IFERROR(XIRR($I106:CD106,$I5:CD5),FALSE) -> 0.06624275148 | CE107: =IFERROR(XIRR($I106:CE106,$I5:CE5),FALSE) -> 0.06814627349 | CF107: =IFERROR(XIRR($I106:CF106,$I5:CF5),FALSE) -> 0.06986485422 | CG107: =IFERROR(XIRR($I106:CG106,$I5:CG5),FALSE) -> 0.07142049968 | CH107: =IFERROR(XIRR($I106:CH106,$I5:CH5),FALSE) -> 0.0728318423 | CI107: =IFERROR(XIRR($I106:CI106,$I5:CI5),FALSE) -> 0.0728318423 | CJ107: =IFERROR(XIRR($I106:CJ106,$I5:CJ5),FALSE) -> 0.0728318423 | CK107: =IFERROR(XIRR($I106:CK106,$I5:CK5),FALSE) -> 0.0728318423 | CL107: =IFERROR(XIRR($I106:CL106,$I5:CL5),FALSE) -> 0.0728318423 | CM107: =IFERROR(XIRR($I106:CM106,$I5:CM5),FALSE) -> 0.0728318423 | CN107: =IFERROR(XIRR($I106:CN106,$I5:CN5),FALSE) -> 0.0728318423 | CO107: =IFERROR(XIRR($I106:CO106,$I5:CO5),FALSE) -> 0.0728318423 | CP107: =IFERROR(XIRR($I106:CP106,$I5:CP5),FALSE) -> 0.0728318423 | CQ107: =IFERROR(XIRR($I106:CQ106,$I5:CQ5),FALSE) -> 0.0728318423 | CR107: =IFERROR(XIRR($I106:CR106,$I5:CR5),FALSE) -> 0.0728318423 | CS107: =IFERROR(XIRR($I106:CS106,$I5:CS5),FALSE) -> 0.0728318423 | CT107: =IFERROR(XIRR($I106:CT106,$I5:CT5),FALSE) -> 0.0728318423 | CU107: =IFERROR(XIRR($I106:CU106,$I5:CU5),FALSE) -> 0.0728318423 | CV107: =IFERROR(XIRR($I106:CV106,$I5:CV5),FALSE) -> 0.0728318423 | CW107: =IFERROR(XIRR($I106:CW106,$I5:CW5),FALSE) -> 0.0728318423 | CX107: =IFERROR(XIRR($I106:CX106,$I5:CX5),FALSE) -> 0.0728318423 | CY107: =IFERROR(XIRR($I106:CY106,$I5:CY5),FALSE) -> 0.0728318423 | CZ107: =IFERROR(XIRR($I106:CZ106,$I5:CZ5),FALSE) -> 0.0728318423 | DA107: =IFERROR(XIRR($I106:DA106,$I5:DA5),FALSE) -> 0.0728318423 | DB107: =IFERROR(XIRR($I106:DB106,$I5:DB5),FALSE) -> 0.0728318423 | DC107: =IFERROR(XIRR($I106:DC106,$I5:DC5),FALSE) -> 0.0728318423 | DD107: =IFERROR(XIRR($I106:DD106,$I5:DD5),FALSE) -> 0.0728318423 | DE107: =IFERROR(XIRR($I106:DE106,$I5:DE5),FALSE) -> 0.0728318423 | DF107: =IFERROR(XIRR($I106:DF106,$I5:DF5),FALSE) -> 0.0728318423 | DG107: =IFERROR(XIRR($I106:DG106,$I5:DG5),FALSE) -> 0.0728318423 | DH107: =IFERROR(XIRR($I106:DH106,$I5:DH5),FALSE) -> 0.0728318423 | DI107: =IFERROR(XIRR($I106:DI106,$I5:DI5),FALSE) -> 0.0728318423 | DJ107: =IFERROR(XIRR($I106:DJ106,$I5:DJ5),FALSE) -> 0.0728318423 | DK107: =IFERROR(XIRR($I106:DK106,$I5:DK5),FALSE) -> 0.0728318423 | DL107: =IFERROR(XIRR($I106:DL106,$I5:DL5),FALSE) -> 0.0728318423 | DM107: =IFERROR(XIRR($I106:DM106,$I5:DM5),FALSE) -> 0.0728318423 | DN107: =IFERROR(XIRR($I106:DN106,$I5:DN5),FALSE) -> 0.0728318423 | DO107: =IFERROR(XIRR($I106:DO106,$I5:DO5),FALSE) -> 0.0728318423 | DP107: =IFERROR(XIRR($I106:DP106,$I5:DP5),FALSE) -> 0.0728318423 | DQ107: =IFERROR(XIRR($I106:DQ106,$I5:DQ5),FALSE) -> 0.0728318423 | DR107: =IFERROR(XIRR($I106:DR106,$I5:DR5),FALSE) -> 0.0728318423 | DS107: =IFERROR(XIRR($I106:DS106,$I5:DS5),FALSE) -> 0.0728318423 | DT107: =IFERROR(XIRR($I106:DT106,$I5:DT5),FALSE) -> 0.0728318423 | DU107: =IFERROR(XIRR($I106:DU106,$I5:DU5),FALSE) -> 0.0728318423 | DV107: =IFERROR(XIRR($I106:DV106,$I5:DV5),FALSE) -> 0.0728318423 | DW107: =IFERROR(XIRR($I106:DW106,$I5:DW5),FALSE) -> 0.0728318423 | DX107: =IFERROR(XIRR($I106:DX106,$I5:DX5),FALSE) -> 0.0728318423 | DY107: =IFERROR(XIRR($I106:DY106,$I5:DY5),FALSE) -> 0.0728318423 | DZ107: =IFERROR(XIRR($I106:DZ106,$I5:DZ5),FALSE) -> 0.0728318423 | EA107: =IFERROR(XIRR($I106:EA106,$I5:EA5),FALSE) -> 0.0728318423 | EB107: =IFERROR(XIRR($I106:EB106,$I5:EB5),FALSE) -> 0.0728318423 | EC107: =IFERROR(XIRR($I106:EC106,$I5:EC5),FALSE) -> 0.0728318423 | ED107: =IFERROR(XIRR($I106:ED106,$I5:ED5),FALSE) -> 0.0728318423 | EE107: =IFERROR(XIRR($I106:EE106,$I5:EE5),FALSE) -> 0.0728318423 | EF107: =IFERROR(XIRR($I106:EF106,$I5:EF5),FALSE) -> 0.0728318423 | EG107: =IFERROR(XIRR($I106:EG106,$I5:EG5),FALSE) -> 0.0728318423 | EH107: =IFERROR(XIRR($I106:EH106,$I5:EH5),FALSE) -> 0.0728318423 | EI107: =IFERROR(XIRR($I106:EI106,$I5:EI5),FALSE) -> 0.0728318423 | EJ107: =IFERROR(XIRR($I106:EJ106,$I5:EJ5),FALSE) -> 0.0728318423 | EK107: =IFERROR(XIRR($I106:EK106,$I5:EK5),FALSE) -> 0.0728318423 | EL107: =IFERROR(XIRR($I106:EL106,$I5:EL5),FALSE) -> 0.0728318423 | EM107: =IFERROR(XIRR($I106:EM106,$I5:EM5),FALSE) -> 0.0728318423 | EN107: =IFERROR(XIRR($I106:EN106,$I5:EN5),FALSE) -> 0.0728318423 | EO107: =IFERROR(XIRR($I106:EO106,$I5:EO5),FALSE) -> 0.0728318423 | EP107: =IFERROR(XIRR($I106:EP106,$I5:EP5),FALSE) -> 0.0728318423 | EQ107: =IFERROR(XIRR($I106:EQ106,$I5:EQ5),FALSE) -> 0.0728318423 | ER107: =IFERROR(XIRR($I106:ER106,$I5:ER5),FALSE) -> 0.0728318423 | ES107: =IFERROR(XIRR($I106:ES106,$I5:ES5),FALSE) -> 0.0728318423 | ET107: =IFERROR(XIRR($I106:ET106,$I5:ET5),FALSE) -> 0.0728318423 | EU107: =IFERROR(XIRR($I106:EU106,$I5:EU5),FALSE) -> 0.0728318423 | EV107: =IFERROR(XIRR($I106:EV106,$I5:EV5),FALSE) -> 0.0728318423 | EW107: =IFERROR(XIRR($I106:EW106,$I5:EW5),FALSE) -> 0.0728318423 | EX107: =IFERROR(XIRR($I106:EX106,$I5:EX5),FALSE) -> 0.0728318423 | EY107: =IFERROR(XIRR($I106:EY106,$I5:EY5),FALSE) -> 0.0728318423 | EZ107: =IFERROR(XIRR($I106:EZ106,$I5:EZ5),FALSE) -> 0.0728318423 | FA107: =IFERROR(XIRR($I106:FA106,$I5:FA5),FALSE) -> 0.0728318423 | FB107: =IFERROR(XIRR($I106:FB106,$I5:FB5),FALSE) -> 0.0728318423
C109: Cash Account - Pre-COD | I109: =I5-H5-1 -> 30 | J109: 30 | K109: 27 | L109: 30 | M109: 29 | N109: 30 | O109: 29 | P109: 30 | Q109: 30 | R109: 29 | S109: 30 | T109: 29 | U109: 30 | V109: 30 | W109: 27 | X109: 30 | Y109: 29 | Z109: 30 | AA109: 29 | AB109: 30 | AC109: 30 | AD109: 29 | AE109: 30 | AF109: 29 | AG109: 30 | AH109: 30 | AI109: 28 | AJ109: 30 | AK109: 29 | AL109: 30 | AM109: 29 | AN109: 30 | AO109: =AO5-AN5-1 -> 30 | AP109: 29 | AQ109: 30 | AR109: 29 | AS109: 30 | AT109: 30 | AU109: 27 | AV109: 30 | AW109: 29 | AX109: 30 | AY109: 29 | AZ109: 30 | BA109: 30 | BB109: 29 | BC109: 30 | BD109: 29 | BE109: 30 | BF109: 364 | BG109: 364 | BH109: 365 | BI109: 364 | BJ109: 364 | BK109: 364 | BL109: 365 | BM109: 364 | BN109: 364 | BO109: 364 | BP109: 365 | BQ109: 364 | BR109: 364 | BS109: 364 | BT109: 365 | BU109: =BU5-BT5-1 -> 364 | BV109: 364 | BW109: 364 | BX109: 365 | BY109: 364 | BZ109: 364 | CA109: 364 | CB109: 365 | CC109: 364 | CD109: 364 | CE109: 364 | CF109: 365 | CG109: 364 | CH109: 364 | CI109: 364 | CJ109: 365 | CK109: 364 | CL109: 364 | CM109: 364 | CN109: 365 | CO109: 364 | CP109: 364 | CQ109: 364 | CR109: 365 | CS109: 364 | CT109: 364 | CU109: 364 | CV109: 365 | CW109: 364 | CX109: 364 | CY109: 364 | CZ109: 365 | DA109: =DA5-CZ5-1 -> 364 | DB109: 364 | DC109: 364 | DD109: 365 | DE109: 364 | DF109: 364 | DG109: 364 | DH109: 365 | DI109: 364 | DJ109: 364 | DK109: 364 | DL109: 365 | DM109: 364 | DN109: 364 | DO109: 364 | DP109: 365 | DQ109: 364 | DR109: 364 | DS109: 364 | DT109: 365 | DU109: 364 | DV109: 364 | DW109: 364 | DX109: 365 | DY109: 364 | DZ109: 364 | EA109: 364 | EB109: 364 | EC109: 364 | ED109: 364 | EE109: 364 | EF109: 365 | EG109: =EG5-EF5-1 -> 364 | EH109: 364 | EI109: 364 | EJ109: 365 | EK109: 364 | EL109: 364 | EM109: 364 | EN109: 365 | EO109: 364 | EP109: 364 | EQ109: 364 | ER109: 365 | ES109: 364 | ET109: 364 | EU109: 364 | EV109: 365 | EW109: 364 | EX109: 364 | EY109: 364 | EZ109: 365 | FA109: 364 | FB109: 364 | FC109: -82913 | FD109: -1 | FE109: -1 | FF109: -1 | FG109: -1 | FH109: -1 | FI109: -1 | FJ109: -1 | FK109: -1 | FL109: -1 | FM109: =FM5-FL5-1 -> -1 | FN109: -1 | FO109: -1 | FP109: -1 | FQ109: -1 | FR109: -1 | FS109: -1 | FT109: -1 | FU109: -1 | FV109: -1 | FW109: -1 | FX109: -1 | FY109: -1 | FZ109: -1 | GA109: -1 | GB109: -1 | GC109: -1 | GD109: -1 | GE109: -1 | GF109: -1 | GG109: -1 | GH109: -1 | GI109: -1 | GJ109: -1 | GK109: -1 | GL109: -1 | GM109: -1 | GN109: -1 | GO109: -1 | GP109: -1 | GQ109: -1 | GR109: -1 | GS109: =GS5-GR5-1 -> -1 | GT109: -1 | GU109: -1 | GV109: -1 | GW109: -1 | GX109: -1 | GY109: -1 | GZ109: -1
C110: Openining Balance | D110: EUR | I110: =H113 -> 0 | J110: =I113 -> -2142.857143 | K110: -4298.305012 | L110: -6466.417586 | M110: -8647.26928 | N110: -10840.93494 | O110: -13047.48987 | P110: -15267.00978 | Q110: -17499.57087 | R110: -19745.24976 | S110: -22004.12352 | T110: -24276.26968 | U110: -26561.76623 | V110: -28860.6916 | W110: -31173.12471 | X110: -39509.2877 | Y110: -53540.06386 | Z110: -72142.21561 | AA110: -94333.68235 | AB110: -119188.9744 | AC110: -145835.7159 | AD110: -173468.9584 | AE110: -201367.7792 | AF110: -228908.8267 | AG110: -255574.8363 | AH110: -280957.6404 | AI110: -304755.9906 | AJ110: -326768.9678 | AK110: -346885.9892 | AL110: -365074.5042 | AM110: -381366.4419 | AN110: -395844.3606 | AO110: -408628.0896 | AP110: -419862.4655 | AQ110: -429706.5755 | AR110: -438324.7398 | AS110: -445879.3099 | AT110: -452525.2346 | AU110: -458406.2516 | AV110: -463652.5029 | AW110: -468379.3382 | AX110: -472687.0616 | AY110: -476661.3882 | AZ110: -480374.3959 | BA110: -483885.7911 | BB110: -487244.3372 | BC110: -490489.3297 | BD110: -493652.0329 | BE110: -496757.0203 | BF110: -499823.3822 | BG110: -499823.3822 | BH110: -499823.3822 | BI110: -499823.3822 | BJ110: -499823.3822 | BK110: -499823.3822 | BL110: -499823.3822 | BM110: -499823.3822 | BN110: -499823.3822 | BO110: -499823.3822 | BP110: -499823.3822 | BQ110: -499823.3822 | BR110: -499823.3822 | BS110: -499823.3822 | BT110: -499823.3822 | BU110: -499823.3822 | BV110: =BU113 -> -499823.3822 | BW110: -499823.3822 | BX110: -499823.3822 | BY110: -499823.3822 | BZ110: -499823.3822 | CA110: -499823.3822 | CB110: -499823.3822 | CC110: -499823.3822 | CD110: -499823.3822 | CE110: -499823.3822 | CF110: -499823.3822 | CG110: -499823.3822 | CH110: -499823.3822 | CI110: -499823.3822 | CJ110: -499823.3822 | CK110: -499823.3822 | CL110: -499823.3822 | CM110: -499823.3822 | CN110: -499823.3822 | CO110: -499823.3822 | CP110: -499823.3822 | CQ110: -499823.3822 | CR110: -499823.3822 | CS110: -499823.3822 | CT110: -499823.3822 | CU110: -499823.3822 | CV110: -499823.3822 | CW110: -499823.3822 | CX110: -499823.3822 | CY110: -499823.3822 | CZ110: -499823.3822 | DA110: -499823.3822 | DB110: -499823.3822 | DC110: -499823.3822 | DD110: -499823.3822 | DE110: -499823.3822 | DF110: -499823.3822 | DG110: -499823.3822 | DH110: -499823.3822 | DI110: -499823.3822 | DJ110: -499823.3822 | DK110: -499823.3822 | DL110: -499823.3822 | DM110: -499823.3822 | DN110: -499823.3822 | DO110: -499823.3822 | DP110: -499823.3822 | DQ110: -499823.3822 | DR110: -499823.3822 | DS110: -499823.3822 | DT110: -499823.3822 | DU110: -499823.3822 | DV110: -499823.3822 | DW110: -499823.3822 | DX110: -499823.3822 | DY110: -499823.3822 | DZ110: -499823.3822 | EA110: -499823.3822 | EB110: -499823.3822 | EC110: -499823.3822 | ED110: -499823.3822 | EE110: -499823.3822 | EF110: -499823.3822 | EG110: -499823.3822 | EH110: =EG113 -> -499823.3822 | EI110: -499823.3822 | EJ110: -499823.3822 | EK110: -499823.3822 | EL110: -499823.3822 | EM110: -499823.3822 | EN110: -499823.3822 | EO110: -499823.3822 | EP110: -499823.3822 | EQ110: -499823.3822 | ER110: -499823.3822 | ES110: -499823.3822 | ET110: -499823.3822 | EU110: -499823.3822 | EV110: -499823.3822 | EW110: -499823.3822 | EX110: -499823.3822 | EY110: -499823.3822 | EZ110: -499823.3822 | FA110: -499823.3822 | FB110: -499823.3822 | FC110: -499823.3822 | FD110: -499823.3822 | FE110: -499823.3822 | FF110: -499823.3822 | FG110: -499823.3822 | FH110: -499823.3822 | FI110: -499823.3822 | FJ110: -499823.3822 | FK110: -499823.3822 | FL110: -499823.3822 | FM110: -499823.3822 | FN110: -499823.3822 | FO110: -499823.3822 | FP110: -499823.3822 | FQ110: -499823.3822 | FR110: -499823.3822 | FS110: -499823.3822 | FT110: -499823.3822 | FU110: -499823.3822 | FV110: -499823.3822 | FW110: -499823.3822 | FX110: -499823.3822 | FY110: -499823.3822 | FZ110: -499823.3822 | GA110: -499823.3822 | GB110: -499823.3822 | GC110: -499823.3822 | GD110: -499823.3822 | GE110: -499823.3822 | GF110: -499823.3822 | GG110: -499823.3822 | GH110: -499823.3822 | GI110: -499823.3822 | GJ110: -499823.3822 | GK110: -499823.3822 | GL110: -499823.3822 | GM110: -499823.3822 | GN110: -499823.3822 | GO110: -499823.3822 | GP110: -499823.3822 | GQ110: -499823.3822 | GR110: -499823.3822 | GS110: -499823.3822 | GT110: =GS113 -> -499823.3822 | GU110: -499823.3822 | GV110: -499823.3822 | GW110: -499823.3822 | GX110: -499823.3822 | GY110: -499823.3822 | GZ110: -499823.3822
C111: Re-investment/Opportunity Cost for Construction | D111: EUR | E111: =(1+E27)^(1/12)-1 -> 0.005875672279 | F111: =_xlfn.FORMULATEXT(E111) -> =(1+E27)^(1/12)-1 | I111: =I110*$E$111*I3 -> 0 | J111: -12.59072631 | K111: -25.25543161 | L111: -37.99455056 | M111: -50.8085204 | N111: -63.69778092 | O111: -76.66277452 | P111: -89.70394617 | Q111: -102.8217435 | R111: -116.0166167 | S111: -129.2890186 | T111: -142.6394048 | U111: -156.0682335 | V111: -169.5759656 | W111: -183.1630647 | X111: -232.1436265 | Y111: -314.583869 | Z111: -423.8840164 | AA111: -554.2738023 | AB111: -700.3153529 | AC111: -856.8828731 | AD111: -1019.24675 | AE111: -1183.171078 | AF111: -1344.993247 | AG111: -1501.673981 | AH111: -1650.815019 | AI111: -1790.646326 | AJ111: -1919.987366 | AK111: -2038.188391 | AL111: -2145.058144 | AM111: -2240.784231 | AN111: -2325.851736 | AO111: =AO110*$E$111*AO3 -> -2400.964738 | AP111: -2466.974249 | AQ111: -2524.815014 | AR111: -2575.452523 | AS111: -2619.840701 | AT111: -2658.889976 | AU111: -2693.444905 | AV111: -2724.270159 | AW111: -2752.043494 | AX111: -2777.354265 | AY111: -2800.706105 | AZ111: -2822.522521 | BA111: -2843.154329 | BB111: -2862.888045 | BC111: -2881.954557 | BD111: -2900.537565 | BE111: -2918.781454 | BF111: 0 | BG111: 0 | BH111: 0 | BI111: 0 | BJ111: 0 | BK111: 0 | BL111: 0 | BM111: 0 | BN111: 0 | BO111: 0 | BP111: 0 | BQ111: 0 | BR111: 0 | BS111: 0 | BT111: 0 | BU111: =BU110*$E$111*BU3 -> 0 | BV111: 0 | BW111: 0 | BX111: 0 | BY111: 0 | BZ111: 0 | CA111: 0 | CB111: 0 | CC111: 0 | CD111: 0 | CE111: 0 | CF111: 0 | CG111: 0 | CH111: 0 | CI111: 0 | CJ111: 0 | CK111: 0 | CL111: 0 | CM111: 0 | CN111: 0 | CO111: 0 | CP111: 0 | CQ111: 0 | CR111: 0 | CS111: 0 | CT111: 0 | CU111: 0 | CV111: 0 | CW111: 0 | CX111: 0 | CY111: 0 | CZ111: 0 | DA111: =DA110*$E$111*DA3 -> 0 | DB111: 0 | DC111: 0 | DD111: 0 | DE111: 0 | DF111: 0 | DG111: 0 | DH111: 0 | DI111: 0 | DJ111: 0 | DK111: 0 | DL111: 0 | DM111: 0 | DN111: 0 | DO111: 0 | DP111: 0 | DQ111: 0 | DR111: 0 | DS111: 0 | DT111: 0 | DU111: 0 | DV111: 0 | DW111: 0 | DX111: 0 | DY111: 0 | DZ111: 0 | EA111: 0 | EB111: 0 | EC111: 0 | ED111: 0 | EE111: 0 | EF111: 0 | EG111: =EG110*$E$111*EG3 -> 0 | EH111: 0 | EI111: 0 | EJ111: 0 | EK111: 0 | EL111: 0 | EM111: 0 | EN111: 0 | EO111: 0 | EP111: 0 | EQ111: 0 | ER111: 0 | ES111: 0 | ET111: 0 | EU111: 0 | EV111: 0 | EW111: 0 | EX111: 0 | EY111: 0 | EZ111: 0 | FA111: 0 | FB111: 0 | FC111: 0 | FD111: 0 | FE111: 0 | FF111: 0 | FG111: 0 | FH111: 0 | FI111: 0 | FJ111: 0 | FK111: 0 | FL111: 0 | FM111: =FM110*$E$111*FM3 -> 0 | FN111: 0 | FO111: 0 | FP111: 0 | FQ111: 0 | FR111: 0 | FS111: 0 | FT111: 0 | FU111: 0 | FV111: 0 | FW111: 0 | FX111: 0 | FY111: 0 | FZ111: 0 | GA111: 0 | GB111: 0 | GC111: 0 | GD111: 0 | GE111: 0 | GF111: 0 | GG111: 0 | GH111: 0 | GI111: 0 | GJ111: 0 | GK111: 0 | GL111: 0 | GM111: 0 | GN111: 0 | GO111: 0 | GP111: 0 | GQ111: 0 | GR111: 0 | GS111: =GS110*$E$111*GS3 -> 0 | GT111: 0 | GU111: 0 | GV111: 0 | GW111: 0 | GX111: 0 | GY111: 0 | GZ111: 0
C112: Cash Flow Invested/Received | D112: EUR | E112: =-SUM(I112:GZ112) -> 430000 | I112: =I25*I3 -> -2142.857143 | J112: -2142.857143 | K112: -2142.857143 | L112: -2142.857143 | M112: -2142.857143 | N112: -2142.857143 | O112: -2142.857143 | P112: -2142.857143 | Q112: -2142.857143 | R112: -2142.857143 | S112: -2142.857143 | T112: -2142.857143 | U112: -2142.857143 | V112: -2142.857143 | W112: -8152.999926 | X112: -13798.63253 | Y112: -18287.56788 | Z112: -21767.58272 | AA112: -24301.01826 | AB112: -25946.42612 | AC112: -26776.35963 | AD112: -26879.57411 | AE112: -26357.87635 | AF112: -25321.01637 | AG112: -23881.13009 | AH112: -22147.53518 | AI112: -20222.33093 | AJ112: -18197.03403 | AK112: -16150.32659 | AL112: -14146.87953 | AM112: -12237.13448 | AN112: -10457.87724 | AO112: =AO25*AO3 -> -8833.411143 | AP112: -7377.135773 | AQ112: -6093.349314 | AR112: -4979.117613 | AS112: -4026.083965 | AT112: -3222.127008 | AU112: -2552.806442 | AV112: -2002.565111 | AW112: -1555.679916 | AX112: -1196.972276 | AY112: -912.3015942 | AZ112: -688.8727251 | BA112: -515.3917694 | BB112: -382.1044283 | BC112: -280.7487124 | BD112: -204.4498331 | BE112: -147.5803929 | BF112: 0 | BG112: 0 | BH112: 0 | BI112: 0 | BJ112: 0 | BK112: 0 | BL112: 0 | BM112: 0 | BN112: 0 | BO112: 0 | BP112: 0 | BQ112: 0 | BR112: 0 | BS112: 0 | BT112: 0 | BU112: =BU25*BU3 -> 0 | BV112: 0 | BW112: 0 | BX112: 0 | BY112: 0 | BZ112: 0 | CA112: 0 | CB112: 0 | CC112: 0 | CD112: 0 | CE112: 0 | CF112: 0 | CG112: 0 | CH112: 0 | CI112: 0 | CJ112: 0 | CK112: 0 | CL112: 0 | CM112: 0 | CN112: 0 | CO112: 0 | CP112: 0 | CQ112: 0 | CR112: 0 | CS112: 0 | CT112: 0 | CU112: 0 | CV112: 0 | CW112: 0 | CX112: 0 | CY112: 0 | CZ112: 0 | DA112: =DA25*DA3 -> 0 | DB112: 0 | DC112: 0 | DD112: 0 | DE112: 0 | DF112: 0 | DG112: 0 | DH112: 0 | DI112: 0 | DJ112: 0 | DK112: 0 | DL112: 0 | DM112: 0 | DN112: 0 | DO112: 0 | DP112: 0 | DQ112: 0 | DR112: 0 | DS112: 0 | DT112: 0 | DU112: 0 | DV112: 0 | DW112: 0 | DX112: 0 | DY112: 0 | DZ112: 0 | EA112: 0 | EB112: 0 | EC112: 0 | ED112: 0 | EE112: 0 | EF112: 0 | EG112: =EG25*EG3 -> 0 | EH112: 0 | EI112: 0 | EJ112: 0 | EK112: 0 | EL112: 0 | EM112: 0 | EN112: 0 | EO112: 0 | EP112: 0 | EQ112: 0 | ER112: 0 | ES112: 0 | ET112: 0 | EU112: 0 | EV112: 0 | EW112: 0 | EX112: 0 | EY112: 0 | EZ112: 0 | FA112: 0 | FB112: 0 | FC112: 0 | FD112: 0 | FE112: 0 | FF112: 0 | FG112: 0 | FH112: 0 | FI112: 0 | FJ112: 0 | FK112: 0 | FL112: 0 | FM112: =FM25*FM3 -> 0 | FN112: 0 | FO112: 0 | FP112: 0 | FQ112: 0 | FR112: 0 | FS112: 0 | FT112: 0 | FU112: 0 | FV112: 0 | FW112: 0 | FX112: 0 | FY112: 0 | FZ112: 0 | GA112: 0 | GB112: 0 | GC112: 0 | GD112: 0 | GE112: 0 | GF112: 0 | GG112: 0 | GH112: 0 | GI112: 0 | GJ112: 0 | GK112: 0 | GL112: 0 | GM112: 0 | GN112: 0 | GO112: 0 | GP112: 0 | GQ112: 0 | GR112: 0 | GS112: =GS25*GS3 -> 0 | GT112: 0 | GU112: 0 | GV112: 0 | GW112: 0 | GX112: 0 | GY112: 0 | GZ112: 0
C113: Closing Balance - Accumulates to Economic Cost | D113: EUR | E113: =-MIN(I113:GZ113) -> 499823.3822 | I113: =I110+I111+I112 -> -2142.857143 | J113: =J110+J111+J112 -> -4298.305012 | K113: -6466.417586 | L113: -8647.26928 | M113: -10840.93494 | N113: -13047.48987 | O113: -15267.00978 | P113: -17499.57087 | Q113: -19745.24976 | R113: -22004.12352 | S113: -24276.26968 | T113: -26561.76623 | U113: -28860.6916 | V113: -31173.12471 | W113: -39509.2877 | X113: -53540.06386 | Y113: -72142.21561 | Z113: -94333.68235 | AA113: -119188.9744 | AB113: -145835.7159 | AC113: -173468.9584 | AD113: -201367.7792 | AE113: -228908.8267 | AF113: -255574.8363 | AG113: -280957.6404 | AH113: -304755.9906 | AI113: -326768.9678 | AJ113: -346885.9892 | AK113: -365074.5042 | AL113: -381366.4419 | AM113: -395844.3606 | AN113: -408628.0896 | AO113: -419862.4655 | AP113: -429706.5755 | AQ113: -438324.7398 | AR113: -445879.3099 | AS113: -452525.2346 | AT113: -458406.2516 | AU113: -463652.5029 | AV113: -468379.3382 | AW113: -472687.0616 | AX113: -476661.3882 | AY113: -480374.3959 | AZ113: -483885.7911 | BA113: -487244.3372 | BB113: -490489.3297 | BC113: -493652.0329 | BD113: -496757.0203 | BE113: -499823.3822 | BF113: -499823.3822 | BG113: -499823.3822 | BH113: -499823.3822 | BI113: -499823.3822 | BJ113: -499823.3822 | BK113: -499823.3822 | BL113: -499823.3822 | BM113: -499823.3822 | BN113: -499823.3822 | BO113: -499823.3822 | BP113: -499823.3822 | BQ113: -499823.3822 | BR113: -499823.3822 | BS113: -499823.3822 | BT113: -499823.3822 | BU113: -499823.3822 | BV113: =BV110+BV111+BV112 -> -499823.3822 | BW113: -499823.3822 | BX113: -499823.3822 | BY113: -499823.3822 | BZ113: -499823.3822 | CA113: -499823.3822 | CB113: -499823.3822 | CC113: -499823.3822 | CD113: -499823.3822 | CE113: -499823.3822 | CF113: -499823.3822 | CG113: -499823.3822 | CH113: -499823.3822 | CI113: -499823.3822 | CJ113: -499823.3822 | CK113: -499823.3822 | CL113: -499823.3822 | CM113: -499823.3822 | CN113: -499823.3822 | CO113: -499823.3822 | CP113: -499823.3822 | CQ113: -499823.3822 | CR113: -499823.3822 | CS113: -499823.3822 | CT113: -499823.3822 | CU113: -499823.3822 | CV113: -499823.3822 | CW113: -499823.3822 | CX113: -499823.3822 | CY113: -499823.3822 | CZ113: -499823.3822 | DA113: -499823.3822 | DB113: -499823.3822 | DC113: -499823.3822 | DD113: -499823.3822 | DE113: -499823.3822 | DF113: -499823.3822 | DG113: -499823.3822 | DH113: -499823.3822 | DI113: -499823.3822 | DJ113: -499823.3822 | DK113: -499823.3822 | DL113: -499823.3822 | DM113: -499823.3822 | DN113: -499823.3822 | DO113: -499823.3822 | DP113: -499823.3822 | DQ113: -499823.3822 | DR113: -499823.3822 | DS113: -499823.3822 | DT113: -499823.3822 | DU113: -499823.3822 | DV113: -499823.3822 | DW113: -499823.3822 | DX113: -499823.3822 | DY113: -499823.3822 | DZ113: -499823.3822 | EA113: -499823.3822 | EB113: -499823.3822 | EC113: -499823.3822 | ED113: -499823.3822 | EE113: -499823.3822 | EF113: -499823.3822 | EG113: -499823.3822 | EH113: =EH110+EH111+EH112 -> -499823.3822 | EI113: -499823.3822 | EJ113: -499823.3822 | EK113: -499823.3822 | EL113: -499823.3822 | EM113: -499823.3822 | EN113: -499823.3822 | EO113: -499823.3822 | EP113: -499823.3822 | EQ113: -499823.3822 | ER113: -499823.3822 | ES113: -499823.3822 | ET113: -499823.3822 | EU113: -499823.3822 | EV113: -499823.3822 | EW113: -499823.3822 | EX113: -499823.3822 | EY113: -499823.3822 | EZ113: -499823.3822 | FA113: -499823.3822 | FB113: -499823.3822 | FC113: -499823.3822 | FD113: -499823.3822 | FE113: -499823.3822 | FF113: -499823.3822 | FG113: -499823.3822 | FH113: -499823.3822 | FI113: -499823.3822 | FJ113: -499823.3822 | FK113: -499823.3822 | FL113: -499823.3822 | FM113: -499823.3822 | FN113: -499823.3822 | FO113: -499823.3822 | FP113: -499823.3822 | FQ113: -499823.3822 | FR113: -499823.3822 | FS113: -499823.3822 | FT113: -499823.3822 | FU113: -499823.3822 | FV113: -499823.3822 | FW113: -499823.3822 | FX113: -499823.3822 | FY113: -499823.3822 | FZ113: -499823.3822 | GA113: -499823.3822 | GB113: -499823.3822 | GC113: -499823.3822 | GD113: -499823.3822 | GE113: -499823.3822 | GF113: -499823.3822 | GG113: -499823.3822 | GH113: -499823.3822 | GI113: -499823.3822 | GJ113: -499823.3822 | GK113: -499823.3822 | GL113: -499823.3822 | GM113: -499823.3822 | GN113: -499823.3822 | GO113: -499823.3822 | GP113: -499823.3822 | GQ113: -499823.3822 | GR113: -499823.3822 | GS113: -499823.3822 | GT113: =GT110+GT111+GT112 -> -499823.3822 | GU113: -499823.3822 | GV113: -499823.3822 | GW113: -499823.3822 | GX113: -499823.3822 | GY113: -499823.3822 | GZ113: -499823.3822
C115: Cash Account - Post COD
C116: Opening Balance | D116: EUR | I116: =H119 -> 0 | J116: =I119 -> 0 | K116: 0 | L116: 0 | M116: 0 | N116: 0 | O116: 0 | P116: 0 | Q116: 0 | R116: 0 | S116: 0 | T116: 0 | U116: 0 | V116: 0 | W116: 0 | X116: 0 | Y116: 0 | Z116: 0 | AA116: 0 | AB116: 0 | AC116: 0 | AD116: 0 | AE116: 0 | AF116: 0 | AG116: 0 | AH116: 0 | AI116: 0 | AJ116: 0 | AK116: 0 | AL116: 0 | AM116: 0 | AN116: 0 | AO116: 0 | AP116: 0 | AQ116: 0 | AR116: 0 | AS116: 0 | AT116: 0 | AU116: 0 | AV116: 0 | AW116: 0 | AX116: 0 | AY116: 0 | AZ116: 0 | BA116: 0 | BB116: 0 | BC116: 0 | BD116: 0 | BE116: 0 | BF116: 0 | BG116: 30910.01801 | BH116: 64998.57011 | BI116: 102524.9738 | BJ116: 143768.2678 | BK116: 189028.6732 | BL116: 238629.1622 | BM116: 292917.1417 | BN116: 352266.2601 | BO116: 417078.3468 | BP116: 487785.4938 | BQ116: 564852.2895 | BR116: 648778.2162 | BS116: 740100.2237 | BT116: 839395.49 | BU116: 947284.3856 | BV116: =BU119 -> 1064433.653 | BW116: 1191559.822 | BX116: 1329432.87 | BY116: 1478880.151 | BZ116: 1640790.621 | CA116: 1816119.355 | CB116: 2005892.413 | CC116: 2211212.043 | CD116: 2433262.285 | CE116: 2673314.962 | CF116: 2932736.129 | CG116: 3212992.98 | CH116: 3515661.261 | CI116: 3842433.233 | CJ116: 3842433.233 | CK116: 3842433.233 | CL116: 3842433.233 | CM116: 3842433.233 | CN116: 3842433.233 | CO116: 3842433.233 | CP116: 3842433.233 | CQ116: 3842433.233 | CR116: 3842433.233 | CS116: 3842433.233 | CT116: 3842433.233 | CU116: 3842433.233 | CV116: 3842433.233 | CW116: 3842433.233 | CX116: 3842433.233 | CY116: 3842433.233 | CZ116: 3842433.233 | DA116: 3842433.233 | DB116: 3842433.233 | DC116: 3842433.233 | DD116: 3842433.233 | DE116: 3842433.233 | DF116: 3842433.233 | DG116: 3842433.233 | DH116: 3842433.233 | DI116: 3842433.233 | DJ116: 3842433.233 | DK116: 3842433.233 | DL116: 3842433.233 | DM116: 3842433.233 | DN116: 3842433.233 | DO116: 3842433.233 | DP116: 3842433.233 | DQ116: 3842433.233 | DR116: 3842433.233 | DS116: 3842433.233 | DT116: 3842433.233 | DU116: 3842433.233 | DV116: 3842433.233 | DW116: 3842433.233 | DX116: 3842433.233 | DY116: 3842433.233 | DZ116: 3842433.233 | EA116: 3842433.233 | EB116: 3842433.233 | EC116: 3842433.233 | ED116: 3842433.233 | EE116: 3842433.233 | EF116: 3842433.233 | EG116: 3842433.233 | EH116: =EG119 -> 3842433.233 | EI116: 3842433.233 | EJ116: 3842433.233 | EK116: 3842433.233 | EL116: 3842433.233 | EM116: 3842433.233 | EN116: 3842433.233 | EO116: 3842433.233 | EP116: 3842433.233 | EQ116: 3842433.233 | ER116: 3842433.233 | ES116: 3842433.233 | ET116: 3842433.233 | EU116: 3842433.233 | EV116: 3842433.233 | EW116: 3842433.233 | EX116: 3842433.233 | EY116: 3842433.233 | EZ116: 3842433.233 | FA116: 3842433.233 | FB116: 3842433.233 | FC116: 3842433.233 | FD116: 3842433.233 | FE116: 3842433.233 | FF116: 3842433.233 | FG116: 3842433.233 | FH116: 3842433.233 | FI116: 3842433.233 | FJ116: 3842433.233 | FK116: 3842433.233 | FL116: 3842433.233 | FM116: 3842433.233 | FN116: 3842433.233 | FO116: 3842433.233 | FP116: 3842433.233 | FQ116: 3842433.233 | FR116: 3842433.233 | FS116: 3842433.233 | FT116: 3842433.233 | FU116: 3842433.233 | FV116: 3842433.233 | FW116: 3842433.233 | FX116: 3842433.233 | FY116: 3842433.233 | FZ116: 3842433.233 | GA116: 3842433.233 | GB116: 3842433.233 | GC116: 3842433.233 | GD116: 3842433.233 | GE116: 3842433.233 | GF116: 3842433.233 | GG116: 3842433.233 | GH116: 3842433.233 | GI116: 3842433.233 | GJ116: 3842433.233 | GK116: 3842433.233 | GL116: 3842433.233 | GM116: 3842433.233 | GN116: 3842433.233 | GO116: 3842433.233 | GP116: 3842433.233 | GQ116: 3842433.233 | GR116: 3842433.233 | GS116: 3842433.233 | GT116: =GS119 -> 3842433.233 | GU116: 3842433.233 | GV116: 3842433.233 | GW116: 3842433.233 | GX116: 3842433.233 | GY116: 3842433.233 | GZ116: 3842433.233
C117: Add: Re-investment Income | D117: EUR | E117: =E27 -> 0.0728318423 | I117: =I116*$E$117*I9 -> 0 | J117: 0 | K117: 0 | L117: 0 | M117: 0 | N117: 0 | O117: 0 | P117: 0 | Q117: 0 | R117: 0 | S117: 0 | T117: 0 | U117: 0 | V117: 0 | W117: 0 | X117: 0 | Y117: 0 | Z117: 0 | AA117: 0 | AB117: 0 | AC117: 0 | AD117: 0 | AE117: 0 | AF117: 0 | AG117: 0 | AH117: 0 | AI117: 0 | AJ117: 0 | AK117: 0 | AL117: 0 | AM117: 0 | AN117: 0 | AO117: =AO116*$E$117*AO9 -> 0 | AP117: 0 | AQ117: 0 | AR117: 0 | AS117: 0 | AT117: 0 | AU117: 0 | AV117: 0 | AW117: 0 | AX117: 0 | AY117: 0 | AZ117: 0 | BA117: 0 | BB117: 0 | BC117: 0 | BD117: 0 | BE117: 0 | BF117: 0 | BG117: 2251.233557 | BH117: 4733.965608 | BI117: 7467.082726 | BJ117: 10470.90781 | BK117: 13767.30652 | BL117: 17379.80151 | BM117: 21333.69507 | BN117: 25656.20071 | BO117: 30376.58439 | BP117: 35526.31617 | BQ117: 41139.23287 | BR117: 47251.71273 | BS117: 53902.86278 | BT117: 61134.71996 | BU117: =BU116*$E$117*BU9 -> 68992.46698 | BV117: 77524.66399 | BW117: 86783.49708 | BX117: 96825.0451 | BY117: 107709.566 | BZ117: 119501.8037 | CA117: 132271.3185 | CB117: 146092.8399 | CC117: 161046.6468 | CD117: 177218.975 | CE117: 194702.4538 | CF117: 213596.5753 | CG117: 234008.198 | CH117: 256052.0865 | CI117: 0 | CJ117: 0 | CK117: 0 | CL117: 0 | CM117: 0 | CN117: 0 | CO117: 0 | CP117: 0 | CQ117: 0 | CR117: 0 | CS117: 0 | CT117: 0 | CU117: 0 | CV117: 0 | CW117: 0 | CX117: 0 | CY117: 0 | CZ117: 0 | DA117: =DA116*$E$117*DA9 -> 0 | DB117: 0 | DC117: 0 | DD117: 0 | DE117: 0 | DF117: 0 | DG117: 0 | DH117: 0 | DI117: 0 | DJ117: 0 | DK117: 0 | DL117: 0 | DM117: 0 | DN117: 0 | DO117: 0 | DP117: 0 | DQ117: 0 | DR117: 0 | DS117: 0 | DT117: 0 | DU117: 0 | DV117: 0 | DW117: 0 | DX117: 0 | DY117: 0 | DZ117: 0 | EA117: 0 | EB117: 0 | EC117: 0 | ED117: 0 | EE117: 0 | EF117: 0 | EG117: =EG116*$E$117*EG9 -> 0 | EH117: 0 | EI117: 0 | EJ117: 0 | EK117: 0 | EL117: 0 | EM117: 0 | EN117: 0 | EO117: 0 | EP117: 0 | EQ117: 0 | ER117: 0 | ES117: 0 | ET117: 0 | EU117: 0 | EV117: 0 | EW117: 0 | EX117: 0 | EY117: 0 | EZ117: 0 | FA117: 0 | FB117: 0 | FC117: 0 | FD117: 0 | FE117: 0 | FF117: 0 | FG117: 0 | FH117: 0 | FI117: 0 | FJ117: 0 | FK117: 0 | FL117: 0 | FM117: =FM116*$E$117*FM9 -> 0 | FN117: 0 | FO117: 0 | FP117: 0 | FQ117: 0 | FR117: 0 | FS117: 0 | FT117: 0 | FU117: 0 | FV117: 0 | FW117: 0 | FX117: 0 | FY117: 0 | FZ117: 0 | GA117: 0 | GB117: 0 | GC117: 0 | GD117: 0 | GE117: 0 | GF117: 0 | GG117: 0 | GH117: 0 | GI117: 0 | GJ117: 0 | GK117: 0 | GL117: 0 | GM117: 0 | GN117: 0 | GO117: 0 | GP117: 0 | GQ117: 0 | GR117: 0 | GS117: =GS116*$E$117*GS9 -> 0 | GT117: 0 | GU117: 0 | GV117: 0 | GW117: 0 | GX117: 0 | GY117: 0 | GZ117: 0
C118: Add: Cash Flow | D118: EUR | E118: =SUM(I118:GZ118) -> 1397715.474 | I118: =I25*I9 -> 0 | J118: 0 | K118: 0 | L118: 0 | M118: 0 | N118: 0 | O118: 0 | P118: 0 | Q118: 0 | R118: 0 | S118: 0 | T118: 0 | U118: 0 | V118: 0 | W118: 0 | X118: 0 | Y118: 0 | Z118: 0 | AA118: 0 | AB118: 0 | AC118: 0 | AD118: 0 | AE118: 0 | AF118: 0 | AG118: 0 | AH118: 0 | AI118: 0 | AJ118: 0 | AK118: 0 | AL118: 0 | AM118: 0 | AN118: 0 | AO118: =AO25*AO9 -> 0 | AP118: 0 | AQ118: 0 | AR118: 0 | AS118: 0 | AT118: 0 | AU118: 0 | AV118: 0 | AW118: 0 | AX118: 0 | AY118: 0 | AZ118: 0 | BA118: 0 | BB118: 0 | BC118: 0 | BD118: 0 | BE118: 0 | BF118: 30910.01801 | BG118: 31837.31855 | BH118: 32792.4381 | BI118: 33776.21125 | BJ118: 34789.49758 | BK118: 35833.18251 | BL118: 36908.17799 | BM118: 38015.42333 | BN118: 39155.88603 | BO118: 40330.56261 | BP118: 41540.47949 | BQ118: 42786.69387 | BR118: 44070.29469 | BS118: 45392.40353 | BT118: 46754.17563 | BU118: =BU25*BU9 -> 48156.8009 | BV118: 49601.50493 | BW118: 51089.55008 | BX118: 52622.23658 | BY118: 54200.90368 | BZ118: 55826.93079 | CA118: 57501.73871 | CB118: 59226.79087 | CC118: 61003.5946 | CD118: 62833.70244 | CE118: 64718.71351 | CF118: 66660.27491 | CG118: 68660.08316 | CH118: 70719.88566 | CI118: 0 | CJ118: 0 | CK118: 0 | CL118: 0 | CM118: 0 | CN118: 0 | CO118: 0 | CP118: 0 | CQ118: 0 | CR118: 0 | CS118: 0 | CT118: 0 | CU118: 0 | CV118: 0 | CW118: 0 | CX118: 0 | CY118: 0 | CZ118: 0 | DA118: =DA25*DA9 -> 0 | DB118: 0 | DC118: 0 | DD118: 0 | DE118: 0 | DF118: 0 | DG118: 0 | DH118: 0 | DI118: 0 | DJ118: 0 | DK118: 0 | DL118: 0 | DM118: 0 | DN118: 0 | DO118: 0 | DP118: 0 | DQ118: 0 | DR118: 0 | DS118: 0 | DT118: 0 | DU118: 0 | DV118: 0 | DW118: 0 | DX118: 0 | DY118: 0 | DZ118: 0 | EA118: 0 | EB118: 0 | EC118: 0 | ED118: 0 | EE118: 0 | EF118: 0 | EG118: =EG25*EG9 -> 0 | EH118: 0 | EI118: 0 | EJ118: 0 | EK118: 0 | EL118: 0 | EM118: 0 | EN118: 0 | EO118: 0 | EP118: 0 | EQ118: 0 | ER118: 0 | ES118: 0 | ET118: 0 | EU118: 0 | EV118: 0 | EW118: 0 | EX118: 0 | EY118: 0 | EZ118: 0 | FA118: 0 | FB118: 0 | FC118: 0 | FD118: 0 | FE118: 0 | FF118: 0 | FG118: 0 | FH118: 0 | FI118: 0 | FJ118: 0 | FK118: 0 | FL118: 0 | FM118: =FM25*FM9 -> 0 | FN118: 0 | FO118: 0 | FP118: 0 | FQ118: 0 | FR118: 0 | FS118: 0 | FT118: 0 | FU118: 0 | FV118: 0 | FW118: 0 | FX118: 0 | FY118: 0 | FZ118: 0 | GA118: 0 | GB118: 0 | GC118: 0 | GD118: 0 | GE118: 0 | GF118: 0 | GG118: 0 | GH118: 0 | GI118: 0 | GJ118: 0 | GK118: 0 | GL118: 0 | GM118: 0 | GN118: 0 | GO118: 0 | GP118: 0 | GQ118: 0 | GR118: 0 | GS118: =GS25*GS9 -> 0 | GT118: 0 | GU118: 0 | GV118: 0 | GW118: 0 | GX118: 0 | GY118: 0 | GZ118: 0
C119: Closing Balance | D119: EUR | I119: =I116+I117+I118 -> 0 | J119: =J116+J117+J118 -> 0 | K119: 0 | L119: 0 | M119: 0 | N119: 0 | O119: 0 | P119: 0 | Q119: 0 | R119: 0 | S119: 0 | T119: 0 | U119: 0 | V119: 0 | W119: 0 | X119: 0 | Y119: 0 | Z119: 0 | AA119: 0 | AB119: 0 | AC119: 0 | AD119: 0 | AE119: 0 | AF119: 0 | AG119: 0 | AH119: 0 | AI119: 0 | AJ119: 0 | AK119: 0 | AL119: 0 | AM119: 0 | AN119: 0 | AO119: 0 | AP119: 0 | AQ119: 0 | AR119: 0 | AS119: 0 | AT119: 0 | AU119: 0 | AV119: 0 | AW119: 0 | AX119: 0 | AY119: 0 | AZ119: 0 | BA119: 0 | BB119: 0 | BC119: 0 | BD119: 0 | BE119: 0 | BF119: 30910.01801 | BG119: 64998.57011 | BH119: 102524.9738 | BI119: 143768.2678 | BJ119: 189028.6732 | BK119: 238629.1622 | BL119: 292917.1417 | BM119: 352266.2601 | BN119: 417078.3468 | BO119: 487785.4938 | BP119: 564852.2895 | BQ119: 648778.2162 | BR119: 740100.2237 | BS119: 839395.49 | BT119: 947284.3856 | BU119: 1064433.653 | BV119: =BV116+BV117+BV118 -> 1191559.822 | BW119: 1329432.87 | BX119: 1478880.151 | BY119: 1640790.621 | BZ119: 1816119.355 | CA119: 2005892.413 | CB119: 2211212.043 | CC119: 2433262.285 | CD119: 2673314.962 | CE119: 2932736.129 | CF119: 3212992.98 | CG119: 3515661.261 | CH119: 3842433.233 | CI119: 3842433.233 | CJ119: 3842433.233 | CK119: 3842433.233 | CL119: 3842433.233 | CM119: 3842433.233 | CN119: 3842433.233 | CO119: 3842433.233 | CP119: 3842433.233 | CQ119: 3842433.233 | CR119: 3842433.233 | CS119: 3842433.233 | CT119: 3842433.233 | CU119: 3842433.233 | CV119: 3842433.233 | CW119: 3842433.233 | CX119: 3842433.233 | CY119: 3842433.233 | CZ119: 3842433.233 | DA119: 3842433.233 | DB119: 3842433.233 | DC119: 3842433.233 | DD119: 3842433.233 | DE119: 3842433.233 | DF119: 3842433.233 | DG119: 3842433.233 | DH119: 3842433.233 | DI119: 3842433.233 | DJ119: 3842433.233 | DK119: 3842433.233 | DL119: 3842433.233 | DM119: 3842433.233 | DN119: 3842433.233 | DO119: 3842433.233 | DP119: 3842433.233 | DQ119: 3842433.233 | DR119: 3842433.233 | DS119: 3842433.233 | DT119: 3842433.233 | DU119: 3842433.233 | DV119: 3842433.233 | DW119: 3842433.233 | DX119: 3842433.233 | DY119: 3842433.233 | DZ119: 3842433.233 | EA119: 3842433.233 | EB119: 3842433.233 | EC119: 3842433.233 | ED119: 3842433.233 | EE119: 3842433.233 | EF119: 3842433.233 | EG119: 3842433.233 | EH119: =EH116+EH117+EH118 -> 3842433.233 | EI119: 3842433.233 | EJ119: 3842433.233 | EK119: 3842433.233 | EL119: 3842433.233 | EM119: 3842433.233 | EN119: 3842433.233 | EO119: 3842433.233 | EP119: 3842433.233 | EQ119: 3842433.233 | ER119: 3842433.233 | ES119: 3842433.233 | ET119: 3842433.233 | EU119: 3842433.233 | EV119: 3842433.233 | EW119: 3842433.233 | EX119: 3842433.233 | EY119: 3842433.233 | EZ119: 3842433.233 | FA119: 3842433.233 | FB119: 3842433.233 | FC119: 3842433.233 | FD119: 3842433.233 | FE119: 3842433.233 | FF119: 3842433.233 | FG119: 3842433.233 | FH119: 3842433.233 | FI119: 3842433.233 | FJ119: 3842433.233 | FK119: 3842433.233 | FL119: 3842433.233 | FM119: 3842433.233 | FN119: 3842433.233 | FO119: 3842433.233 | FP119: 3842433.233 | FQ119: 3842433.233 | FR119: 3842433.233 | FS119: 3842433.233 | FT119: 3842433.233 | FU119: 3842433.233 | FV119: 3842433.233 | FW119: 3842433.233 | FX119: 3842433.233 | FY119: 3842433.233 | FZ119: 3842433.233 | GA119: 3842433.233 | GB119: 3842433.233 | GC119: 3842433.233 | GD119: 3842433.233 | GE119: 3842433.233 | GF119: 3842433.233 | GG119: 3842433.233 | GH119: 3842433.233 | GI119: 3842433.233 | GJ119: 3842433.233 | GK119: 3842433.233 | GL119: 3842433.233 | GM119: 3842433.233 | GN119: 3842433.233 | GO119: 3842433.233 | GP119: 3842433.233 | GQ119: 3842433.233 | GR119: 3842433.233 | GS119: 3842433.233 | GT119: =GT116+GT117+GT118 -> 3842433.233 | GU119: 3842433.233 | GV119: 3842433.233 | GW119: 3842433.233 | GX119: 3842433.233 | GY119: 3842433.233 | GZ119: 3842433.233
C121: MOIC - Multiple of Invested Capital | E121: =E118/E112 -> 3.250501102
C122: Total Invested | D122: EUR | E122: =MIN(113:113)*-1 -> 499823.3822
C123: Total Received | D123: EUR | E123: =MAX(119:119) -> 3842433.233
C124: Ratio | D124: EUR | E124: =E123/E122 -> 7.687581994
C125: Annual Growth | D125: % p.a. | E125: =E124^(1/(G9))-1 -> 0.07286351025
C127: Project Cash Flow | D127: EUR | I127: =I25 -> -2142.857143 | J127: -2142.857143 | K127: -2142.857143 | L127: -2142.857143 | M127: -2142.857143 | N127: -2142.857143 | O127: -2142.857143 | P127: -2142.857143 | Q127: -2142.857143 | R127: -2142.857143 | S127: -2142.857143 | T127: -2142.857143 | U127: -2142.857143 | V127: -2142.857143 | W127: -8152.999926 | X127: -13798.63253 | Y127: -18287.56788 | Z127: -21767.58272 | AA127: -24301.01826 | AB127: -25946.42612 | AC127: -26776.35963 | AD127: -26879.57411 | AE127: -26357.87635 | AF127: -25321.01637 | AG127: -23881.13009 | AH127: -22147.53518 | AI127: -20222.33093 | AJ127: -18197.03403 | AK127: -16150.32659 | AL127: -14146.87953 | AM127: -12237.13448 | AN127: -10457.87724 | AO127: =AO25 -> -8833.411143 | AP127: -7377.135773 | AQ127: -6093.349314 | AR127: -4979.117613 | AS127: -4026.083965 | AT127: -3222.127008 | AU127: -2552.806442 | AV127: -2002.565111 | AW127: -1555.679916 | AX127: -1196.972276 | AY127: -912.3015942 | AZ127: -688.8727251 | BA127: -515.3917694 | BB127: -382.1044283 | BC127: -280.7487124 | BD127: -204.4498331 | BE127: -147.5803929 | BF127: 30910.01801 | BG127: 31837.31855 | BH127: 32792.4381 | BI127: 33776.21125 | BJ127: 34789.49758 | BK127: 35833.18251 | BL127: 36908.17799 | BM127: 38015.42333 | BN127: 39155.88603 | BO127: 40330.56261 | BP127: 41540.47949 | BQ127: 42786.69387 | BR127: 44070.29469 | BS127: 45392.40353 | BT127: 46754.17563 | BU127: =BU25 -> 48156.8009 | BV127: 49601.50493 | BW127: 51089.55008 | BX127: 52622.23658 | BY127: 54200.90368 | BZ127: 55826.93079 | CA127: 57501.73871 | CB127: 59226.79087 | CC127: 61003.5946 | CD127: 62833.70244 | CE127: 64718.71351 | CF127: 66660.27491 | CG127: 68660.08316 | CH127: 70719.88566 | CI127: 0 | CJ127: 0 | CK127: 0 | CL127: 0 | CM127: 0 | CN127: 0 | CO127: 0 | CP127: 0 | CQ127: 0 | CR127: 0 | CS127: 0 | CT127: 0 | CU127: 0 | CV127: 0 | CW127: 0 | CX127: 0 | CY127: 0 | CZ127: 0 | DA127: =DA25 -> 0 | DB127: 0 | DC127: 0 | DD127: 0 | DE127: 0 | DF127: 0 | DG127: 0 | DH127: 0 | DI127: 0 | DJ127: 0 | DK127: 0 | DL127: 0 | DM127: 0 | DN127: 0 | DO127: 0 | DP127: 0 | DQ127: 0 | DR127: 0 | DS127: 0 | DT127: 0 | DU127: 0 | DV127: 0 | DW127: 0 | DX127: 0 | DY127: 0 | DZ127: 0 | EA127: 0 | EB127: 0 | EC127: 0 | ED127: 0 | EE127: 0 | EF127: 0 | EG127: =EG25 -> 0 | EH127: 0 | EI127: 0 | EJ127: 0 | EK127: 0 | EL127: 0 | EM127: 0 | EN127: 0 | EO127: 0 | EP127: 0 | EQ127: 0 | ER127: 0 | ES127: 0 | ET127: 0 | EU127: 0 | EV127: 0 | EW127: 0 | EX127: 0 | EY127: 0 | EZ127: 0 | FA127: 0 | FB127: 0 | FC127: 0 | FD127: 0 | FE127: 0 | FF127: 0 | FG127: 0 | FH127: 0 | FI127: 0 | FJ127: 0 | FK127: 0 | FL127: 0 | FM127: =FM25 -> 0 | FN127: 0 | FO127: 0 | FP127: 0 | FQ127: 0 | FR127: 0 | FS127: 0 | FT127: 0 | FU127: 0 | FV127: 0 | FW127: 0 | FX127: 0 | FY127: 0 | FZ127: 0 | GA127: 0 | GB127: 0 | GC127: 0 | GD127: 0 | GE127: 0 | GF127: 0 | GG127: 0 | GH127: 0 | GI127: 0 | GJ127: 0 | GK127: 0 | GL127: 0 | GM127: 0 | GN127: 0 | GO127: 0 | GP127: 0 | GQ127: 0 | GR127: 0 | GS127: =GS25 -> 0 | GT127: 0 | GU127: 0 | GV127: 0 | GW127: 0 | GX127: 0 | GY127: 0 | GZ127: 0
C128: Value at Project IRR | D128: EUR | E128: =E125 -> 0.07286351025 | I128: =IF(J9,NPV($E$128,J127:GZ127)) -> FALSE | J128: FALSE | K128: FALSE | L128: FALSE | M128: FALSE | N128: FALSE | O128: FALSE | P128: FALSE | Q128: FALSE | R128: FALSE | S128: FALSE | T128: FALSE | U128: FALSE | V128: FALSE | W128: FALSE | X128: FALSE | Y128: FALSE | Z128: FALSE | AA128: FALSE | AB128: FALSE | AC128: FALSE | AD128: FALSE | AE128: FALSE | AF128: FALSE | AG128: FALSE | AH128: FALSE | AI128: FALSE | AJ128: FALSE | AK128: FALSE | AL128: FALSE | AM128: FALSE | AN128: FALSE | AO128: =IF(AP9,NPV($E$128,AP127:IF127)) -> FALSE | AP128: FALSE | AQ128: FALSE | AR128: FALSE | AS128: FALSE | AT128: FALSE | AU128: FALSE | AV128: FALSE | AW128: FALSE | AX128: FALSE | AY128: FALSE | AZ128: FALSE | BA128: FALSE | BB128: FALSE | BC128: FALSE | BD128: FALSE | BE128: 500071.137 | BF128: 505598.0575 | BG128: 510600.3882 | BH128: 515012.0867 | BI128: 518761.4639 | BJ128: 521770.7475 | BK128: 523955.6132 | BL128: 525224.6804 | BM128: 525478.971 | BN128: 524611.3273 | BO128: 522505.7876 | BP128: 519036.9139 | BQ128: 514069.0715 | BR128: 507455.6539 | BS128: 499038.2506 | BT128: 488645.7537 | BU128: =IF(BV9,NPV($E$128,BV127:JL127)) -> 476093.3976 | BV128: 461181.7289 | BW128: 443695.4984 | BX128: 423402.4733 | BY128: 400052.1601 | BZ128: 373374.434 | CA128: 343078.0672 | CB128: 308849.1486 | CC128: 270349.3871 | CD128: 227214.29 | CE128: 179051.2072 | CF128: 125437.2318 | CG128: 65916.94561 | CH128: FALSE | CI128: FALSE | CJ128: FALSE | CK128: FALSE | CL128: FALSE | CM128: FALSE | CN128: FALSE | CO128: FALSE | CP128: FALSE | CQ128: FALSE | CR128: FALSE | CS128: FALSE | CT128: FALSE | CU128: FALSE | CV128: FALSE | CW128: FALSE | CX128: FALSE | CY128: FALSE | CZ128: FALSE | DA128: =IF(DB9,NPV($E$128,DB127:KR127)) -> FALSE | DB128: FALSE | DC128: FALSE | DD128: FALSE | DE128: FALSE | DF128: FALSE | DG128: FALSE | DH128: FALSE | DI128: FALSE | DJ128: FALSE | DK128: FALSE | DL128: FALSE | DM128: FALSE | DN128: FALSE | DO128: FALSE | DP128: FALSE | DQ128: FALSE | DR128: FALSE | DS128: FALSE | DT128: FALSE | DU128: FALSE | DV128: FALSE | DW128: FALSE | DX128: FALSE | DY128: FALSE | DZ128: FALSE | EA128: FALSE | EB128: FALSE | EC128: FALSE | ED128: FALSE | EE128: FALSE | EF128: FALSE | EG128: =IF(EH9,NPV($E$128,EH127:LX127)) -> FALSE | EH128: FALSE | EI128: FALSE | EJ128: FALSE | EK128: FALSE | EL128: FALSE | EM128: FALSE | EN128: FALSE | EO128: FALSE | EP128: FALSE | EQ128: FALSE | ER128: FALSE | ES128: FALSE | ET128: FALSE | EU128: FALSE | EV128: FALSE | EW128: FALSE | EX128: FALSE | EY128: FALSE | EZ128: FALSE | FA128: FALSE | FB128: FALSE | FC128: FALSE | FD128: FALSE | FE128: FALSE | FF128: FALSE | FG128: FALSE | FH128: FALSE | FI128: FALSE | FJ128: FALSE | FK128: FALSE | FL128: FALSE | FM128: =IF(FN9,NPV($E$128,FN127:ND127)) -> FALSE | FN128: FALSE | FO128: FALSE | FP128: FALSE | FQ128: FALSE | FR128: FALSE | FS128: FALSE | FT128: FALSE | FU128: FALSE | FV128: FALSE | FW128: FALSE | FX128: FALSE | FY128: FALSE | FZ128: FALSE | GA128: FALSE | GB128: FALSE | GC128: FALSE | GD128: FALSE | GE128: FALSE | GF128: FALSE | GG128: FALSE | GH128: FALSE | GI128: FALSE | GJ128: FALSE | GK128: FALSE | GL128: FALSE | GM128: FALSE | GN128: FALSE | GO128: FALSE | GP128: FALSE | GQ128: FALSE | GR128: FALSE | GS128: =IF(GT9,NPV($E$128,GT127:OJ127)) -> FALSE | GT128: FALSE | GU128: FALSE | GV128: FALSE | GW128: FALSE | GX128: FALSE | GY128: FALSE | GZ128: FALSE
C129: Change in Value | D129: EUR | E129: =SUM(J129:GZ129) -> 500071.137 | J129: =-(J128-I128)*J9 -> 0 | K129: 0 | L129: 0 | M129: 0 | N129: 0 | O129: 0 | P129: 0 | Q129: 0 | R129: 0 | S129: 0 | T129: 0 | U129: 0 | V129: 0 | W129: 0 | X129: 0 | Y129: 0 | Z129: 0 | AA129: 0 | AB129: 0 | AC129: 0 | AD129: 0 | AE129: 0 | AF129: 0 | AG129: 0 | AH129: 0 | AI129: 0 | AJ129: 0 | AK129: 0 | AL129: 0 | AM129: 0 | AN129: 0 | AO129: 0 | AP129: =-(AP128-AO128)*AP9 -> 0 | AQ129: 0 | AR129: 0 | AS129: 0 | AT129: 0 | AU129: 0 | AV129: 0 | AW129: 0 | AX129: 0 | AY129: 0 | AZ129: 0 | BA129: 0 | BB129: 0 | BC129: 0 | BD129: 0 | BE129: 0 | BF129: -5526.920412 | BG129: -5002.330694 | BH129: -4411.698511 | BI129: -3749.377207 | BJ129: -3009.283655 | BK129: -2184.865698 | BL129: -1269.067206 | BM129: -254.2905581 | BN129: 867.643639 | BO129: 2105.539781 | BP129: 3468.873679 | BQ129: 4967.842376 | BR129: 6613.417626 | BS129: 8417.40329 | BT129: 10392.49695 | BU129: 12552.35602 | BV129: =-(BV128-BU128)*BV9 -> 14911.66877 | BW129: 17486.23045 | BX129: 20293.02508 | BY129: 23350.31322 | BZ129: 26677.72612 | CA129: 30296.36681 | CB129: 34228.91861 | CC129: 38499.7615 | CD129: 43135.0971 | CE129: 48163.08276 | CF129: 53613.97544 | CG129: 59520.28614 | CH129: 65916.94561 | CI129: 0 | CJ129: 0 | CK129: 0 | CL129: 0 | CM129: 0 | CN129: 0 | CO129: 0 | CP129: 0 | CQ129: 0 | CR129: 0 | CS129: 0 | CT129: 0 | CU129: 0 | CV129: 0 | CW129: 0 | CX129: 0 | CY129: 0 | CZ129: 0 | DA129: 0 | DB129: =-(DB128-DA128)*DB9 -> 0 | DC129: 0 | DD129: 0 | DE129: 0 | DF129: 0 | DG129: 0 | DH129: 0 | DI129: 0 | DJ129: 0 | DK129: 0 | DL129: 0 | DM129: 0 | DN129: 0 | DO129: 0 | DP129: 0 | DQ129: 0 | DR129: 0 | DS129: 0 | DT129: 0 | DU129: 0 | DV129: 0 | DW129: 0 | DX129: 0 | DY129: 0 | DZ129: 0 | EA129: 0 | EB129: 0 | EC129: 0 | ED129: 0 | EE129: 0 | EF129: 0 | EG129: 0 | EH129: =-(EH128-EG128)*EH9 -> 0 | EI129: 0 | EJ129: 0 | EK129: 0 | EL129: 0 | EM129: 0 | EN129: 0 | EO129: 0 | EP129: 0 | EQ129: 0 | ER129: 0 | ES129: 0 | ET129: 0 | EU129: 0 | EV129: 0 | EW129: 0 | EX129: 0 | EY129: 0 | EZ129: 0 | FA129: 0 | FB129: 0 | FC129: 0 | FD129: 0 | FE129: 0 | FF129: 0 | FG129: 0 | FH129: 0 | FI129: 0 | FJ129: 0 | FK129: 0 | FL129: 0 | FM129: 0 | FN129: =-(FN128-FM128)*FN9 -> 0 | FO129: 0 | FP129: 0 | FQ129: 0 | FR129: 0 | FS129: 0 | FT129: 0 | FU129: 0 | FV129: 0 | FW129: 0 | FX129: 0 | FY129: 0 | FZ129: 0 | GA129: 0 | GB129: 0 | GC129: 0 | GD129: 0 | GE129: 0 | GF129: 0 | GG129: 0 | GH129: 0 | GI129: 0 | GJ129: 0 | GK129: 0 | GL129: 0 | GM129: 0 | GN129: 0 | GO129: 0 | GP129: 0 | GQ129: 0 | GR129: 0 | GS129: 0 | GT129: =-(GT128-GS128)*GT9 -> 0 | GU129: 0 | GV129: 0 | GW129: 0 | GX129: 0 | GY129: 0 | GZ129: 0
C130: EBIT | D130: EUR | J130: =J9*(J106-J129) -> 0 | K130: 0 | L130: 0 | M130: 0 | N130: 0 | O130: 0 | P130: 0 | Q130: 0 | R130: 0 | S130: 0 | T130: 0 | U130: 0 | V130: 0 | W130: 0 | X130: 0 | Y130: 0 | Z130: 0 | AA130: 0 | AB130: 0 | AC130: 0 | AD130: 0 | AE130: 0 | AF130: 0 | AG130: 0 | AH130: 0 | AI130: 0 | AJ130: 0 | AK130: 0 | AL130: 0 | AM130: 0 | AN130: 0 | AO130: 0 | AP130: =AP9*(AP106-AP129) -> 0 | AQ130: 0 | AR130: 0 | AS130: 0 | AT130: 0 | AU130: 0 | AV130: 0 | AW130: 0 | AX130: 0 | AY130: 0 | AZ130: 0 | BA130: 0 | BB130: 0 | BC130: 0 | BD130: 0 | BE130: 0 | BF130: 36436.93842 | BG130: 36839.64924 | BH130: 37204.13661 | BI130: 37525.58845 | BJ130: 37798.78124 | BK130: 38018.04821 | BL130: 38177.24519 | BM130: 38269.71388 | BN130: 38288.24239 | BO130: 38225.02283 | BP130: 38071.60581 | BQ130: 37818.85149 | BR130: 37456.87706 | BS130: 36975.00024 | BT130: 36361.67869 | BU130: 35604.44488 | BV130: =BV9*(BV106-BV129) -> 34689.83616 | BW130: 33603.31963 | BX130: 32329.2115 | BY130: 30850.59045 | BZ130: 29149.20467 | CA130: 27205.3719 | CB130: 24997.87226 | CC130: 22503.8331 | CD130: 19698.60533 | CE130: 16555.63075 | CF130: 13046.29947 | CG130: 9139.797021 | CH130: 4802.940042 | CI130: 0 | CJ130: 0 | CK130: 0 | CL130: 0 | CM130: 0 | CN130: 0 | CO130: 0 | CP130: 0 | CQ130: 0 | CR130: 0 | CS130: 0 | CT130: 0 | CU130: 0 | CV130: 0 | CW130: 0 | CX130: 0 | CY130: 0 | CZ130: 0 | DA130: 0 | DB130: =DB9*(DB106-DB129) -> 0 | DC130: 0 | DD130: 0 | DE130: 0 | DF130: 0 | DG130: 0 | DH130: 0 | DI130: 0 | DJ130: 0 | DK130: 0 | DL130: 0 | DM130: 0 | DN130: 0 | DO130: 0 | DP130: 0 | DQ130: 0 | DR130: 0 | DS130: 0 | DT130: 0 | DU130: 0 | DV130: 0 | DW130: 0 | DX130: 0 | DY130: 0 | DZ130: 0 | EA130: 0 | EB130: 0 | EC130: 0 | ED130: 0 | EE130: 0 | EF130: 0 | EG130: 0 | EH130: =EH9*(EH106-EH129) -> 0 | EI130: 0 | EJ130: 0 | EK130: 0 | EL130: 0 | EM130: 0 | EN130: 0 | EO130: 0 | EP130: 0 | EQ130: 0 | ER130: 0 | ES130: 0 | ET130: 0 | EU130: 0 | EV130: 0 | EW130: 0 | EX130: 0 | EY130: 0 | EZ130: 0 | FA130: 0 | FB130: 0 | FC130: 0 | FD130: 0 | FE130: 0 | FF130: 0 | FG130: 0 | FH130: 0 | FI130: 0 | FJ130: 0 | FK130: 0 | FL130: 0 | FM130: 0 | FN130: =FN9*(FN106-FN129) -> 0 | FO130: 0 | FP130: 0 | FQ130: 0 | FR130: 0 | FS130: 0 | FT130: 0 | FU130: 0 | FV130: 0 | FW130: 0 | FX130: 0 | FY130: 0 | FZ130: 0 | GA130: 0 | GB130: 0 | GC130: 0 | GD130: 0 | GE130: 0 | GF130: 0 | GG130: 0 | GH130: 0 | GI130: 0 | GJ130: 0 | GK130: 0 | GL130: 0 | GM130: 0 | GN130: 0 | GO130: 0 | GP130: 0 | GQ130: 0 | GR130: 0 | GS130: 0 | GT130: =GT9*(GT106-GT129) -> 0 | GU130: 0 | GV130: 0 | GW130: 0 | GX130: 0 | GY130: 0 | GZ130: 0
C131: ROIC with Economic Depreciation | D131: % | J131: =IF(J9,J130/I128) -> FALSE | K131: FALSE | L131: FALSE | M131: FALSE | N131: FALSE | O131: FALSE | P131: FALSE | Q131: FALSE | R131: FALSE | S131: FALSE | T131: FALSE | U131: FALSE | V131: FALSE | W131: FALSE | X131: FALSE | Y131: FALSE | Z131: FALSE | AA131: FALSE | AB131: FALSE | AC131: FALSE | AD131: FALSE | AE131: FALSE | AF131: FALSE | AG131: FALSE | AH131: FALSE | AI131: FALSE | AJ131: FALSE | AK131: FALSE | AL131: FALSE | AM131: FALSE | AN131: FALSE | AO131: FALSE | AP131: =IF(AP9,AP130/AO128) -> FALSE | AQ131: FALSE | AR131: FALSE | AS131: FALSE | AT131: FALSE | AU131: FALSE | AV131: FALSE | AW131: FALSE | AX131: FALSE | AY131: FALSE | AZ131: FALSE | BA131: FALSE | BB131: FALSE | BC131: FALSE | BD131: FALSE | BE131: FALSE | BF131: 0.07286351025 | BG131: 0.07286351025 | BH131: 0.07286351025 | BI131: 0.07286351025 | BJ131: 0.07286351025 | BK131: 0.07286351025 | BL131: 0.07286351025 | BM131: 0.07286351025 | BN131: 0.07286351025 | BO131: 0.07286351025 | BP131: 0.07286351025 | BQ131: 0.07286351025 | BR131: 0.07286351025 | BS131: 0.07286351025 | BT131: 0.07286351025 | BU131: 0.07286351025 | BV131: =IF(BV9,BV130/BU128) -> 0.07286351025 | BW131: 0.07286351025 | BX131: 0.07286351025 | BY131: 0.07286351025 | BZ131: 0.07286351025 | CA131: 0.07286351025 | CB131: 0.07286351025 | CC131: 0.07286351025 | CD131: 0.07286351025 | CE131: 0.07286351025 | CF131: 0.07286351025 | CG131: 0.07286351025 | CH131: 0.07286351025 | CI131: FALSE | CJ131: FALSE | CK131: FALSE | CL131: FALSE | CM131: FALSE | CN131: FALSE | CO131: FALSE | CP131: FALSE | CQ131: FALSE | CR131: FALSE | CS131: FALSE | CT131: FALSE | CU131: FALSE | CV131: FALSE | CW131: FALSE | CX131: FALSE | CY131: FALSE | CZ131: FALSE | DA131: FALSE | DB131: =IF(DB9,DB130/DA128) -> FALSE | DC131: FALSE | DD131: FALSE | DE131: FALSE | DF131: FALSE | DG131: FALSE | DH131: FALSE | DI131: FALSE | DJ131: FALSE | DK131: FALSE | DL131: FALSE | DM131: FALSE | DN131: FALSE | DO131: FALSE | DP131: FALSE | DQ131: FALSE | DR131: FALSE | DS131: FALSE | DT131: FALSE | DU131: FALSE | DV131: FALSE | DW131: FALSE | DX131: FALSE | DY131: FALSE | DZ131: FALSE | EA131: FALSE | EB131: FALSE | EC131: FALSE | ED131: FALSE | EE131: FALSE | EF131: FALSE | EG131: FALSE | EH131: =IF(EH9,EH130/EG128) -> FALSE | EI131: FALSE | EJ131: FALSE | EK131: FALSE | EL131: FALSE | EM131: FALSE | EN131: FALSE | EO131: FALSE | EP131: FALSE | EQ131: FALSE | ER131: FALSE | ES131: FALSE | ET131: FALSE | EU131: FALSE | EV131: FALSE | EW131: FALSE | EX131: FALSE | EY131: FALSE | EZ131: FALSE | FA131: FALSE | FB131: FALSE | FC131: FALSE | FD131: FALSE | FE131: FALSE | FF131: FALSE | FG131: FALSE | FH131: FALSE | FI131: FALSE | FJ131: FALSE | FK131: FALSE | FL131: FALSE | FM131: FALSE | FN131: =IF(FN9,FN130/FM128) -> FALSE | FO131: FALSE | FP131: FALSE | FQ131: FALSE | FR131: FALSE | FS131: FALSE | FT131: FALSE | FU131: FALSE | FV131: FALSE | FW131: FALSE | FX131: FALSE | FY131: FALSE | FZ131: FALSE | GA131: FALSE | GB131: FALSE | GC131: FALSE | GD131: FALSE | GE131: FALSE | GF131: FALSE | GG131: FALSE | GH131: FALSE | GI131: FALSE | GJ131: FALSE | GK131: FALSE | GL131: FALSE | GM131: FALSE | GN131: FALSE | GO131: FALSE | GP131: FALSE | GQ131: FALSE | GR131: FALSE | GS131: FALSE | GT131: =IF(GT9,GT130/GS128) -> FALSE | GU131: FALSE | GV131: FALSE | GW131: FALSE | GX131: FALSE | GY131: FALSE | GZ131: FALSE
B133: Weighted Average ROIC - SL Depreciation
C134: Discount Rate | D134: % | E134: =E128 -> 0.07286351025
C135: PV Factor for Investment | D135: Factor | H135: 1
C136: PV of Investment | D136: PV
C137: Weighting
C138: Weighted Average ROIC
B140: Weighted Average ROIC - Economic Depreciation
C141: Discount Rate | D141: % | E141: =E134 -> 0.07286351025
C142: PV Factor for Investment | H142: 1 | I142: =H142*(1+$E$141*I9) -> 1 | J142: 1 | K142: 1 | L142: 1 | M142: 1 | N142: 1 | O142: 1 | P142: 1 | Q142: 1 | R142: 1 | S142: 1 | T142: 1 | U142: 1 | V142: 1 | W142: 1 | X142: 1 | Y142: 1 | Z142: 1 | AA142: 1 | AB142: 1 | AC142: 1 | AD142: 1 | AE142: 1 | AF142: 1 | AG142: 1 | AH142: 1 | AI142: 1 | AJ142: 1 | AK142: 1 | AL142: 1 | AM142: 1 | AN142: 1 | AO142: =AN142*(1+$E$141*AO9) -> 1 | AP142: 1 | AQ142: 1 | AR142: 1 | AS142: 1 | AT142: 1 | AU142: 1 | AV142: 1 | AW142: 1 | AX142: 1 | AY142: 1 | AZ142: 1 | BA142: 1 | BB142: 1 | BC142: 1 | BD142: 1 | BE142: 1 | BF142: 1.07286351 | BG142: 1.151036112 | BH142: 1.234904643 | BI142: 1.32488413 | BJ142: 1.421419839 | BK142: 1.524989478 | BL142: 1.636105564 | BM142: 1.755317959 | BN142: 1.883216587 | BO142: 2.020434358 | BP142: 2.167650297 | BQ142: 2.325592907 | BR142: 2.49504377 | BS142: 2.676841417 | BT142: 2.871885479 | BU142: =BT142*(1+$E$141*BU9) -> 3.081141136 | BV142: 3.305643895 | BW142: 3.546504712 | BX142: 3.804915495 | BY142: 4.082154994 | BZ142: 4.379595136 | CA142: 4.698707811 | CB142: 5.041072156 | CC142: 5.408382369 | CD142: 5.802456093 | CE142: 6.225243412 | CF142: 6.678836499 | CG142: 7.165479971 | CH142: 7.687581994 | CI142: 7.687581994 | CJ142: 7.687581994 | CK142: 7.687581994 | CL142: 7.687581994 | CM142: 7.687581994 | CN142: 7.687581994 | CO142: 7.687581994 | CP142: 7.687581994 | CQ142: 7.687581994 | CR142: 7.687581994 | CS142: 7.687581994 | CT142: 7.687581994 | CU142: 7.687581994 | CV142: 7.687581994 | CW142: 7.687581994 | CX142: 7.687581994 | CY142: 7.687581994 | CZ142: 7.687581994 | DA142: =CZ142*(1+$E$141*DA9) -> 7.687581994 | DB142: 7.687581994 | DC142: 7.687581994 | DD142: 7.687581994 | DE142: 7.687581994 | DF142: 7.687581994 | DG142: 7.687581994 | DH142: 7.687581994 | DI142: 7.687581994 | DJ142: 7.687581994 | DK142: 7.687581994 | DL142: 7.687581994 | DM142: 7.687581994 | DN142: 7.687581994 | DO142: 7.687581994 | DP142: 7.687581994 | DQ142: 7.687581994 | DR142: 7.687581994 | DS142: 7.687581994 | DT142: 7.687581994 | DU142: 7.687581994 | DV142: 7.687581994 | DW142: 7.687581994 | DX142: 7.687581994 | DY142: 7.687581994 | DZ142: 7.687581994 | EA142: 7.687581994 | EB142: 7.687581994 | EC142: 7.687581994 | ED142: 7.687581994 | EE142: 7.687581994 | EF142: 7.687581994 | EG142: =EF142*(1+$E$141*EG9) -> 7.687581994 | EH142: 7.687581994 | EI142: 7.687581994 | EJ142: 7.687581994 | EK142: 7.687581994 | EL142: 7.687581994 | EM142: 7.687581994 | EN142: 7.687581994 | EO142: 7.687581994 | EP142: 7.687581994 | EQ142: 7.687581994 | ER142: 7.687581994 | ES142: 7.687581994 | ET142: 7.687581994 | EU142: 7.687581994 | EV142: 7.687581994 | EW142: 7.687581994 | EX142: 7.687581994 | EY142: 7.687581994 | EZ142: 7.687581994 | FA142: 7.687581994 | FB142: 7.687581994 | FC142: 7.687581994 | FD142: 7.687581994 | FE142: 7.687581994 | FF142: 7.687581994 | FG142: 7.687581994 | FH142: 7.687581994 | FI142: 7.687581994 | FJ142: 7.687581994 | FK142: 7.687581994 | FL142: 7.687581994 | FM142: =FL142*(1+$E$141*FM9) -> 7.687581994 | FN142: 7.687581994 | FO142: 7.687581994 | FP142: 7.687581994 | FQ142: 7.687581994 | FR142: 7.687581994 | FS142: 7.687581994 | FT142: 7.687581994 | FU142: 7.687581994 | FV142: 7.687581994 | FW142: 7.687581994 | FX142: 7.687581994 | FY142: 7.687581994 | FZ142: 7.687581994 | GA142: 7.687581994 | GB142: 7.687581994 | GC142: 7.687581994 | GD142: 7.687581994 | GE142: 7.687581994 | GF142: 7.687581994 | GG142: 7.687581994 | GH142: 7.687581994 | GI142: 7.687581994 | GJ142: 7.687581994 | GK142: 7.687581994 | GL142: 7.687581994 | GM142: 7.687581994 | GN142: 7.687581994 | GO142: 7.687581994 | GP142: 7.687581994 | GQ142: 7.687581994 | GR142: 7.687581994 | GS142: =GR142*(1+$E$141*GS9) -> 7.687581994 | GT142: 7.687581994 | GU142: 7.687581994 | GV142: 7.687581994 | GW142: 7.687581994 | GX142: 7.687581994 | GY142: 7.687581994 | GZ142: 7.687581994
C143: PV of Investment | I143: =H128*I9/I142 -> 0 | J143: 0 | K143: 0 | L143: 0 | M143: 0 | N143: 0 | O143: 0 | P143: 0 | Q143: 0 | R143: 0 | S143: 0 | T143: 0 | U143: 0 | V143: 0 | W143: 0 | X143: 0 | Y143: 0 | Z143: 0 | AA143: 0 | AB143: 0 | AC143: 0 | AD143: 0 | AE143: 0 | AF143: 0 | AG143: 0 | AH143: 0 | AI143: 0 | AJ143: 0 | AK143: 0 | AL143: 0 | AM143: 0 | AN143: 0 | AO143: =AN128*AO9/AO142 -> 0 | AP143: 0 | AQ143: 0 | AR143: 0 | AS143: 0 | AT143: 0 | AU143: 0 | AV143: 0 | AW143: 0 | AX143: 0 | AY143: 0 | AZ143: 0 | BA143: 0 | BB143: 0 | BC143: 0 | BD143: 0 | BE143: 0 | BF143: 466108.8128 | BG143: 439254.7309 | BH143: 413473.535 | BI143: 388722.3606 | BJ143: 364960.056 | BK143: 342147.1133 | BL143: 320245.6032 | BM143: 299219.1118 | BN143: 279032.6799 | BO143: 259652.7451 | BP143: 241047.086 | BQ143: 223184.7682 | BR143: 206036.0936 | BS143: 189572.5502 | BT143: 173766.7655 | BU143: =BT128*BU9/BU142 -> 158592.4604 | BV143: 144024.4058 | BW143: 130038.3804 | BX143: 116611.1308 | BY143: 103720.3325 | BZ143: 91344.55302 | CA143: 79463.21605 | CB143: 68056.56744 | CC143: 57105.64222 | CD143: 46592.23314 | CE143: 36498.86035 | CF143: 26808.74239 | CG143: 17505.76825 | CH143: 8574.470577 | CI143: 0 | CJ143: 0 | CK143: 0 | CL143: 0 | CM143: 0 | CN143: 0 | CO143: 0 | CP143: 0 | CQ143: 0 | CR143: 0 | CS143: 0 | CT143: 0 | CU143: 0 | CV143: 0 | CW143: 0 | CX143: 0 | CY143: 0 | CZ143: 0 | DA143: =CZ128*DA9/DA142 -> 0 | DB143: 0 | DC143: 0 | DD143: 0 | DE143: 0 | DF143: 0 | DG143: 0 | DH143: 0 | DI143: 0 | DJ143: 0 | DK143: 0 | DL143: 0 | DM143: 0 | DN143: 0 | DO143: 0 | DP143: 0 | DQ143: 0 | DR143: 0 | DS143: 0 | DT143: 0 | DU143: 0 | DV143: 0 | DW143: 0 | DX143: 0 | DY143: 0 | DZ143: 0 | EA143: 0 | EB143: 0 | EC143: 0 | ED143: 0 | EE143: 0 | EF143: 0 | EG143: =EF128*EG9/EG142 -> 0 | EH143: 0 | EI143: 0 | EJ143: 0 | EK143: 0 | EL143: 0 | EM143: 0 | EN143: 0 | EO143: 0 | EP143: 0 | EQ143: 0 | ER143: 0 | ES143: 0 | ET143: 0 | EU143: 0 | EV143: 0 | EW143: 0 | EX143: 0 | EY143: 0 | EZ143: 0 | FA143: 0 | FB143: 0 | FC143: 0 | FD143: 0 | FE143: 0 | FF143: 0 | FG143: 0 | FH143: 0 | FI143: 0 | FJ143: 0 | FK143: 0 | FL143: 0 | FM143: =FL128*FM9/FM142 -> 0 | FN143: 0 | FO143: 0 | FP143: 0 | FQ143: 0 | FR143: 0 | FS143: 0 | FT143: 0 | FU143: 0 | FV143: 0 | FW143: 0 | FX143: 0 | FY143: 0 | FZ143: 0 | GA143: 0 | GB143: 0 | GC143: 0 | GD143: 0 | GE143: 0 | GF143: 0 | GG143: 0 | GH143: 0 | GI143: 0 | GJ143: 0 | GK143: 0 | GL143: 0 | GM143: 0 | GN143: 0 | GO143: 0 | GP143: 0 | GQ143: 0 | GR143: 0 | GS143: =GR128*GS9/GS142 -> 0 | GT143: 0 | GU143: 0 | GV143: 0 | GW143: 0 | GX143: 0 | GY143: 0 | GZ143: 0
C144: Weighting | I144: =I143/SUM(143:143) -> 0 | J144: 0 | K144: 0 | L144: 0 | M144: 0 | N144: 0 | O144: 0 | P144: 0 | Q144: 0 | R144: 0 | S144: 0 | T144: 0 | U144: 0 | V144: 0 | W144: 0 | X144: 0 | Y144: 0 | Z144: 0 | AA144: 0 | AB144: 0 | AC144: 0 | AD144: 0 | AE144: 0 | AF144: 0 | AG144: 0 | AH144: 0 | AI144: 0 | AJ144: 0 | AK144: 0 | AL144: 0 | AM144: 0 | AN144: 0 | AO144: =AO143/SUM(143:143) -> 0 | AP144: 0 | AQ144: 0 | AR144: 0 | AS144: 0 | AT144: 0 | AU144: 0 | AV144: 0 | AW144: 0 | AX144: 0 | AY144: 0 | AZ144: 0 | BA144: 0 | BB144: 0 | BC144: 0 | BD144: 0 | BE144: 0 | BF144: 0.08189760432 | BG144: 0.07717921043 | BH144: 0.07264932787 | BI144: 0.06830042515 | BJ144: 0.06412527168 | BK144: 0.06011692577 | BL144: 0.05626872304 | BM144: 0.05257426538 | BN144: 0.0490274103 | BO144: 0.04562226072 | BP144: 0.04235315516 | BQ144: 0.03921465833 | BR144: 0.03620155209 | BS144: 0.03330882678 | BT144: 0.0305316729 | BU144: =BU143/SUM(143:143) -> 0.02786547307 | BV144: 0.02530579443 | BW144: 0.02284838117 | BX144: 0.02048914757 | BY144: 0.01822417109 | BZ144: 0.01604968594 | CA144: 0.01396207677 | CB144: 0.01195787267 | CC144: 0.0100337414 | CD144: 0.008186483862 | CE144: 0.006413028763 | CF144: 0.004710427515 | CG144: 0.003075849334 | CH144: 0.001506576532 | CI144: 0 | CJ144: 0 | CK144: 0 | CL144: 0 | CM144: 0 | CN144: 0 | CO144: 0 | CP144: 0 | CQ144: 0 | CR144: 0 | CS144: 0 | CT144: 0 | CU144: 0 | CV144: 0 | CW144: 0 | CX144: 0 | CY144: 0 | CZ144: 0 | DA144: =DA143/SUM(143:143) -> 0 | DB144: 0 | DC144: 0 | DD144: 0 | DE144: 0 | DF144: 0 | DG144: 0 | DH144: 0 | DI144: 0 | DJ144: 0 | DK144: 0 | DL144: 0 | DM144: 0 | DN144: 0 | DO144: 0 | DP144: 0 | DQ144: 0 | DR144: 0 | DS144: 0 | DT144: 0 | DU144: 0 | DV144: 0 | DW144: 0 | DX144: 0 | DY144: 0 | DZ144: 0 | EA144: 0 | EB144: 0 | EC144: 0 | ED144: 0 | EE144: 0 | EF144: 0 | EG144: =EG143/SUM(143:143) -> 0 | EH144: 0 | EI144: 0 | EJ144: 0 | EK144: 0 | EL144: 0 | EM144: 0 | EN144: 0 | EO144: 0 | EP144: 0 | EQ144: 0 | ER144: 0 | ES144: 0 | ET144: 0 | EU144: 0 | EV144: 0 | EW144: 0 | EX144: 0 | EY144: 0 | EZ144: 0 | FA144: 0 | FB144: 0 | FC144: 0 | FD144: 0 | FE144: 0 | FF144: 0 | FG144: 0 | FH144: 0 | FI144: 0 | FJ144: 0 | FK144: 0 | FL144: 0 | FM144: =FM143/SUM(143:143) -> 0 | FN144: 0 | FO144: 0 | FP144: 0 | FQ144: 0 | FR144: 0 | FS144: 0 | FT144: 0 | FU144: 0 | FV144: 0 | FW144: 0 | FX144: 0 | FY144: 0 | FZ144: 0 | GA144: 0 | GB144: 0 | GC144: 0 | GD144: 0 | GE144: 0 | GF144: 0 | GG144: 0 | GH144: 0 | GI144: 0 | GJ144: 0 | GK144: 0 | GL144: 0 | GM144: 0 | GN144: 0 | GO144: 0 | GP144: 0 | GQ144: 0 | GR144: 0 | GS144: =GS143/SUM(143:143) -> 0 | GT144: 0 | GU144: 0 | GV144: 0 | GW144: 0 | GX144: 0 | GY144: 0 | GZ144: 0
C145: Weighted Average ROIC | D145: =SUMPRODUCT(I131:GZ131*I144:GZ144) -> 0.07286351025

Sheet Input for A-Z Model
E2: PLCR | G2: Project IRR | I2: ='A-Z Project Finance Model'!F26 -> 0.05589250028
E3: DSCR | F3: ='A-Z Project Finance Model'!D238 -> 1.35 | G3: Equity IRR | I3: ='A-Z Project Finance Model'!F234 -> 0.06654670537
E4: LLCR
B6: Timing Inputs
D7: Financial Close | E7: Date | F7: 2020-01-01
D8: Construction Period | E8: Months | F8: 36
D9: Commercial Operation | E9: Date | F9: =EDATE(F7,F8) -> 2023-01-01
D10: Operation Period | E10: Years | F10: 30
D11: Decommissioning | E11: Date | F11: =EDATE(F9,F10*12) -> 2053-01-01
D13: Pre-COD Periods | E13: Periods | F13: =F8 -> 36
D14: Months in Period Pre-COD | E14: Months | F14: 1
D15: Months in Period Post-COD | E15: Months | F15: 6
B17: Operating Inputs
C18: Captial Expenditures | E18: EUR | F18: 2500
H19: Sum | I19: 1 | J19: 2 | K19: 3 | L19: 4 | M19: 5 | N19: 6 | O19: 7 | P19: 8 | Q19: 9 | R19: 10 | S19: 11 | T19: 12 | U19: 13 | V19: 14 | W19: 15 | X19: 16 | Y19: 17 | Z19: 18 | AA19: 19 | AB19: 20 | AC19: 21 | AD19: 22 | AE19: 23 | AF19: 24 | AG19: 25 | AH19: 26 | AI19: 27 | AJ19: 28 | AK19: 29 | AL19: 30 | AM19: 31 | AN19: 32 | AO19: 33 | AP19: 34 | AQ19: 35 | AR19: 36 | AS19: 37 | AT19: 38 | AU19: 39 | AV19: 40 | AW19: 41 | AX19: 42 | AY19: 43 | AZ19: 44 | BA19: 45 | BB19: 46 | BC19: 47 | BD19: 48 | BE19: 49 | BF19: 50
D20: Flag | E20: Period | F20: =F8 -> 36 | I20: =(I19<=$F$20)*1 -> 1 | J20: =(J19<=$F$20)*1 -> 1 | K20: 1 | L20: 1 | M20: 1 | N20: 1 | O20: 1 | P20: 1 | Q20: 1 | R20: 1 | S20: 1 | T20: 1 | U20: 1 | V20: 1 | W20: 1 | X20: 1 | Y20: 1 | Z20: 1 | AA20: 1 | AB20: 1 | AC20: 1 | AD20: 1 | AE20: 1 | AF20: 1 | AG20: 1 | AH20: 1 | AI20: 1 | AJ20: 1 | AK20: 1 | AL20: 1 | AM20: 1 | AN20: 1 | AO20: 1 | AP20: 1 | AQ20: 1 | AR20: 1 | AS20: 0 | AT20: 0 | AU20: 0 | AV20: 0 | AW20: 0 | AX20: 0 | AY20: 0 | AZ20: 0 | BA20: 0 | BB20: 0 | BC20: 0 | BD20: 0 | BE20: 0 | BF20: 0
D21: Normal (Mean and Std) | E21: =F8/2 -> 18 | F21: 8 | H21: =SUM(I21:BF21) -> 0.9753651802 | I21: =_xlfn.NORM.DIST(I19,$E$21,$F$21,0)*I20 -> 0.005215123157 | J21: =_xlfn.NORM.DIST(J19,$E$21,$F$21,0)*J20 -> 0.006748870814 | K21: 0.008598284478 | L21: 0.01078466485 | M21: 0.01331728352 | N21: 0.01618969946 | O21: 0.01937653318 | P21: 0.02283113567 | Q21: 0.02648458072 | R21: 0.03024634056 | S21: 0.0340068748 | T21: 0.03764217902 | U21: 0.04102012107 | V21: 0.04400816585 | W21: 0.04648188673 | X21: 0.0483335146 | Y21: 0.04947971087 | Z21: 0.04986778505 | AA21: 0.04947971087 | AB21: 0.0483335146 | AC21: 0.04648188673 | AD21: 0.04400816585 | AE21: 0.04102012107 | AF21: 0.03764217902 | AG21: 0.0340068748 | AH21: 0.03024634056 | AI21: 0.02648458072 | AJ21: 0.02283113567 | AK21: 0.01937653318 | AL21: 0.01618969946 | AM21: 0.01331728352 | AN21: 0.01078466485 | AO21: 0.008598284478 | AP21: 0.006748870814 | AQ21: 0.005215123157 | AR21: 0.003967456479 | AS21: 0 | AT21: 0 | AU21: 0 | AV21: 0 | AW21: 0 | AX21: 0 | AY21: 0 | AZ21: 0 | BA21: 0 | BB21: 0 | BC21: 0 | BD21: 0 | BE21: 0 | BF21: 0
D23: S-Curve | E23: % p.p. | H23: =SUM(I23:BF23) -> 1 | I23: =I21/$H$21 -> 0.005346841637 | J23: =J21/$H$21 -> 0.006919327192 | K23: 0.008815451538 | L23: 0.01105705337 | M23: 0.01365363844 | N23: 0.01659860305 | O23: 0.01986592671 | P23: 0.02340778217 | Q23: 0.02715350236 | R23: 0.03101027305 | S23: 0.03486578718 | T23: 0.03859290836 | U23: 0.04205616717 | V23: 0.04511968106 | W23: 0.04765588077 | X23: 0.04955427524 | Y23: 0.05072942101 | Z23: 0.05112729679 | AA23: 0.05072942101 | AB23: 0.04955427524 | AC23: 0.04765588077 | AD23: 0.04511968106 | AE23: 0.04205616717 | AF23: 0.03859290836 | AG23: 0.03486578718 | AH23: 0.03101027305 | AI23: 0.02715350236 | AJ23: 0.02340778217 | AK23: 0.01986592671 | AL23: 0.01659860305 | AM23: 0.01365363844 | AN23: 0.01105705337 | AO23: 0.008815451538 | AP23: 0.006919327192 | AQ23: 0.005346841637 | AR23: 0.004067662615 | AS23: 0 | AT23: 0 | AU23: 0 | AV23: 0 | AW23: 0 | AX23: 0 | AY23: 0 | AZ23: 0 | BA23: 0 | BB23: 0 | BC23: 0 | BD23: 0 | BE23: 0 | BF23: 0
I24: =I23 -> 0.005346841637 | J24: =I24+J23 -> 0.01226616883 | K24: =J24+K23 -> 0.02108162037 | L24: 0.03213867374 | M24: 0.04579231218 | N24: 0.06239091523 | O24: 0.08225684194 | P24: 0.1056646241 | Q24: 0.1328181265 | R24: 0.1638283995 | S24: 0.1986941867 | T24: 0.2372870951 | U24: 0.2793432622 | V24: 0.3244629433 | W24: 0.372118824 | X24: 0.4216730993 | Y24: 0.4724025203 | Z24: 0.5235298171 | AA24: 0.5742592381 | AB24: 0.6238135133 | AC24: 0.6714693941 | AD24: 0.7165890752 | AE24: 0.7586452423 | AF24: 0.7972381507 | AG24: 0.8321039379 | AH24: 0.8631142109 | AI24: 0.8902677133 | AJ24: 0.9136754955 | AK24: 0.9335414222 | AL24: 0.9501400252 | AM24: 0.9637936636 | AN24: 0.974850717 | AO24: 0.9836661686 | AP24: 0.9905854957 | AQ24: 0.9959323374 | AR24: 1 | AS24: 1 | AT24: 1 | AU24: 1 | AV24: 1 | AW24: 1 | AX24: 1 | AY24: 1 | AZ24: 1 | BA24: 1 | BB24: 1 | BC24: 1 | BD24: 1 | BE24: 1 | BF24: 1
C25: EBITDA/CFADS
D26: Year after COD | F26: 0 | G26: 1 | H26: 2 | I26: 3 | J26: 4 | K26: 5 | L26: 6 | M26: 7 | N26: 8 | O26: 9 | P26: 10 | Q26: 11 | R26: 12 | S26: 13 | T26: 14 | U26: 15 | V26: 16 | W26: 17 | X26: 18 | Y26: 19 | Z26: 20 | AA26: 21 | AB26: 22 | AC26: 23 | AD26: 24 | AE26: 25 | AF26: 26 | AG26: 27 | AH26: 28 | AI26: 29 | AJ26: 30 | AK26: 31 | AL26: 32 | AM26: 33 | AN26: 34 | AO26: 35 | AP26: 36 | AQ26: 37 | AR26: 38 | AS26: 39 | AT26: 40
D27: EBITDA/CFADS per Period | E27: EUR | G27: 75 | H27: 80 | I27: 95 | J27: 110 | K27: 110 | L27: 110 | M27: 110 | N27: 110 | O27: 80 | P27: 80 | Q27: 80 | R27: 80 | S27: 80 | T27: 80 | U27: 80 | V27: 95 | W27: 95 | X27: 95 | Y27: 95 | Z27: 95 | AA27: 95 | AB27: 95 | AC27: 95 | AD27: 95 | AE27: 95 | AF27: 95 | AG27: 95 | AH27: 95 | AI27: 95 | AJ27: 100 | AK27: 0 | AL27: 0 | AM27: 0 | AN27: 0 | AO27: 0 | AP27: 0 | AQ27: 0 | AR27: 0 | AS27: 0 | AT27: 0
F29: 0 | G29: 1
D30: Seasonality - SA Period 1 | E30: % | F30: 0.8 | G30: 1.2
B32: Financing Inputs
C33: Debt Size
D34: Min DSCR | E34: x | F34: =G34/100 -> 1.35 | G34: 135
D35: Debt Size from Debt to Capital | E35: % | F35: =G35/100 -> 0.5 | G35: 50
C37: Debt Funding
D38: Equity Up-Front (Zero is Pro Rata) | E38: % | F38: 1
C40: Debt Repayment
D41: Tenor | E41: Year | F41: 20
D42: Repayment Date | E42: Date | F42: =EDATE(F9,F41*Months_in_year) -> 2043-01-01
D43: Level Repayment | E43: Flag
C45: Interest Rate and Fees
D46: Base Swap Rate | E46: % p.a. | F46: 0.02
D48: Credit Spread Period | G48: =F7 -> 2020-01-01 | H48: =F9 -> 2023-01-01 | I48: =EDATE(H48,24) -> 2025-01-01 | J48: =EDATE(I48,24) -> 2027-01-01 | K48: 2029-01-01
D49: Credit Spread Amount | E49: % p.a. | G49: 0.015 | H49: 0.0175 | I49: 0.018 | J49: 0.02 | K49: 0.02
D51: Up-Front Fee | E51: % | F51: 0.015
D52: Commitment Fee | E52: % p.a. | F52: 0.006
C54: DSRA
D55: Months | E55: Month | F55: 6
D56: Periods | E56: Periods | F56: =F55/F15 -> 1
B58: For Auditors
C59: Months in Year | E59: Months | F59: 12 | G59: Months in year

Sheet A-Z Project Finance Model
E1: Units | F1: Driver 1 | G1: Driver 2 | H1: Sum | I1: Test/Start
B2: Timing | E2: ='Audit and UDF'!F11 -> Model OK | F2: ='Audit and UDF'!F10 -> 
C3: Period | E3: # | J3: 1 | K3: 2 | L3: 3 | M3: 4 | N3: 5 | O3: 6 | P3: 7 | Q3: 8 | R3: 9 | S3: 10 | T3: 11 | U3: 12 | V3: 13 | W3: 14 | X3: 15 | Y3: 16 | Z3: 17 | AA3: 18 | AB3: 19 | AC3: 20 | AD3: 21 | AE3: 22 | AF3: 23 | AG3: 24 | AH3: 25 | AI3: 26 | AJ3: 27 | AK3: 28 | AL3: 29 | AM3: 30 | AN3: 31 | AO3: 32 | AP3: 33 | AQ3: 34 | AR3: 35 | AS3: 36 | AT3: 37 | AU3: 38 | AV3: 39 | AW3: 40 | AX3: 41 | AY3: 42 | AZ3: 43 | BA3: 44 | BB3: 45 | BC3: 46 | BD3: 47 | BE3: 48 | BF3: 49 | BG3: 50 | BH3: 51 | BI3: 52 | BJ3: 53 | BK3: 54 | BL3: 55 | BM3: 56 | BN3: 57 | BO3: 58 | BP3: 59 | BQ3: 60 | BR3: 61 | BS3: 62 | BT3: 63 | BU3: 64 | BV3: 65 | BW3: 66 | BX3: 67 | BY3: 68 | BZ3: 69 | CA3: 70 | CB3: 71 | CC3: 72 | CD3: 73 | CE3: 74 | CF3: 75 | CG3: 76 | CH3: 77 | CI3: 78 | CJ3: 79 | CK3: 80 | CL3: 81 | CM3: 82 | CN3: 83 | CO3: 84 | CP3: 85 | CQ3: 86 | CR3: 87 | CS3: 88 | CT3: 89 | CU3: 90 | CV3: 91 | CW3: 92 | CX3: 93 | CY3: 94 | CZ3: 95 | DA3: 96 | DB3: 97 | DC3: 98 | DD3: 99 | DE3: 100 | DF3: 101 | DG3: 102 | DH3: 103 | DI3: 104 | DJ3: 105 | DK3: 106 | DL3: 107 | DM3: 108 | DN3: 109 | DO3: 110 | DP3: 111 | DQ3: 112 | DR3: 113 | DS3: 114 | DT3: 115 | DU3: 116 | DV3: 117 | DW3: 118 | DX3: 119 | DY3: 120 | DZ3: 121 | EA3: 122 | EB3: 123 | EC3: 124 | ED3: 125 | EE3: 126 | EF3: 127 | EG3: 128 | EH3: 129 | EI3: 130 | EJ3: 131 | EK3: 132 | EL3: 133 | EM3: 134 | EN3: 135 | EO3: 136 | EP3: 137 | EQ3: 138 | ER3: 139 | ES3: 140 | ET3: 141 | EU3: 142 | EV3: 143 | EW3: 144 | EX3: 145 | EY3: 146 | EZ3: 147 | FA3: 148 | FB3: 149 | FC3: 150 | FD3: 151 | FE3: 152 | FF3: 153 | FG3: 154 | FH3: 155 | FI3: 156 | FJ3: 157 | FK3: 158 | FL3: 159 | FM3: 160 | FN3: 161 | FO3: 162 | FP3: 163 | FQ3: 164 | FR3: 165 | FS3: 166 | FT3: 167 | FU3: 168 | FV3: 169 | FW3: 170 | FX3: 171 | FY3: 172 | FZ3: 173 | GA3: 174 | GB3: 175 | GC3: 176 | GD3: 177 | GE3: 178 | GF3: 179 | GG3: 180 | GH3: 181 | GI3: 182 | GJ3: 183 | GK3: 184 | GL3: 185 | GM3: 186 | GN3: 187 | GO3: 188 | GP3: 189 | GQ3: 190 | GR3: 191 | GS3: 192 | GT3: 193 | GU3: 194 | GV3: 195 | GW3: 196 | GX3: 197 | GY3: 198 | GZ3: 199 | HA3: 200
C4: Pre-COD Flag | E4: Flag | F4: ='Input for A-Z Model'!F13 -> 36 | J4: =J3<=$F$4 -> TRUE | K4: =K3<=$F$4 -> TRUE | L4: TRUE | M4: TRUE | N4: TRUE | O4: TRUE | P4: TRUE | Q4: TRUE | R4: TRUE | S4: TRUE | T4: TRUE | U4: TRUE | V4: TRUE | W4: TRUE | X4: TRUE | Y4: TRUE | Z4: TRUE | AA4: TRUE | AB4: TRUE | AC4: TRUE | AD4: TRUE | AE4: TRUE | AF4: TRUE | AG4: TRUE | AH4: TRUE | AI4: TRUE | AJ4: TRUE | AK4: TRUE | AL4: TRUE | AM4: TRUE | AN4: TRUE | AO4: TRUE | AP4: TRUE | AQ4: TRUE | AR4: TRUE | AS4: TRUE | AT4: FALSE | AU4: FALSE | AV4: FALSE | AW4: FALSE | AX4: FALSE | AY4: FALSE | AZ4: FALSE | BA4: FALSE | BB4: FALSE | BC4: FALSE | BD4: FALSE | BE4: FALSE | BF4: FALSE | BG4: FALSE | BH4: FALSE | BI4: FALSE | BJ4: FALSE | BK4: FALSE | BL4: FALSE | BM4: FALSE | BN4: FALSE | BO4: FALSE | BP4: FALSE | BQ4: FALSE | BR4: FALSE | BS4: FALSE | BT4: FALSE | BU4: FALSE | BV4: FALSE | BW4: =BW3<=$F$4 -> FALSE | BX4: FALSE | BY4: FALSE | BZ4: FALSE | CA4: FALSE | CB4: FALSE | CC4: FALSE | CD4: FALSE | CE4: FALSE | CF4: FALSE | CG4: FALSE | CH4: FALSE | CI4: FALSE | CJ4: FALSE | CK4: FALSE | CL4: FALSE | CM4: FALSE | CN4: FALSE | CO4: FALSE | CP4: FALSE | CQ4: FALSE | CR4: FALSE | CS4: FALSE | CT4: FALSE | CU4: FALSE | CV4: FALSE | CW4: FALSE | CX4: FALSE | CY4: FALSE | CZ4: FALSE | DA4: FALSE | DB4: FALSE | DC4: FALSE | DD4: FALSE | DE4: FALSE | DF4: FALSE | DG4: FALSE | DH4: FALSE | DI4: FALSE | DJ4: FALSE | DK4: FALSE | DL4: FALSE | DM4: FALSE | DN4: FALSE | DO4: FALSE | DP4: FALSE | DQ4: FALSE | DR4: FALSE | DS4: FALSE | DT4: FALSE | DU4: FALSE | DV4: FALSE | DW4: FALSE | DX4: FALSE | DY4: FALSE | DZ4: FALSE | EA4: FALSE | EB4: FALSE | EC4: FALSE | ED4: FALSE | EE4: FALSE | EF4: FALSE | EG4: FALSE | EH4: FALSE | EI4: =EI3<=$F$4 -> FALSE | EJ4: FALSE | EK4: FALSE | EL4: FALSE | EM4: FALSE | EN4: FALSE | EO4: FALSE | EP4: FALSE | EQ4: FALSE | ER4: FALSE | ES4: FALSE | ET4: FALSE | EU4: FALSE | EV4: FALSE | EW4: FALSE | EX4: FALSE | EY4: FALSE | EZ4: FALSE | FA4: FALSE | FB4: FALSE | FC4: FALSE | FD4: FALSE | FE4: FALSE | FF4: FALSE | FG4: FALSE | FH4: FALSE | FI4: FALSE | FJ4: FALSE | FK4: FALSE | FL4: FALSE | FM4: FALSE | FN4: FALSE | FO4: FALSE | FP4: FALSE | FQ4: FALSE | FR4: FALSE | FS4: FALSE | FT4: FALSE | FU4: FALSE | FV4: FALSE | FW4: FALSE | FX4: FALSE | FY4: FALSE | FZ4: FALSE | GA4: FALSE | GB4: FALSE | GC4: FALSE | GD4: FALSE | GE4: FALSE | GF4: FALSE | GG4: FALSE | GH4: FALSE | GI4: FALSE | GJ4: FALSE | GK4: FALSE | GL4: FALSE | GM4: FALSE | GN4: FALSE | GO4: FALSE | GP4: FALSE | GQ4: FALSE | GR4: FALSE | GS4: FALSE | GT4: FALSE | GU4: =GU3<=$F$4 -> FALSE | GV4: FALSE | GW4: FALSE | GX4: FALSE | GY4: FALSE | GZ4: FALSE | HA4: FALSE
C5: Months per Period | E5: Months | F5: ='Input for A-Z Model'!F14 -> 1 | G5: ='Input for A-Z Model'!F15 -> 6 | J5: =IF(J4,$F$5,$G$5) -> 1 | K5: =IF(K4,$F$5,$G$5) -> 1 | L5: 1 | M5: 1 | N5: 1 | O5: 1 | P5: 1 | Q5: 1 | R5: 1 | S5: 1 | T5: 1 | U5: 1 | V5: 1 | W5: 1 | X5: 1 | Y5: 1 | Z5: 1 | AA5: 1 | AB5: 1 | AC5: 1 | AD5: 1 | AE5: 1 | AF5: 1 | AG5: 1 | AH5: 1 | AI5: 1 | AJ5: 1 | AK5: 1 | AL5: 1 | AM5: 1 | AN5: 1 | AO5: 1 | AP5: 1 | AQ5: 1 | AR5: 1 | AS5: 1 | AT5: 6 | AU5: 6 | AV5: 6 | AW5: 6 | AX5: 6 | AY5: 6 | AZ5: 6 | BA5: 6 | BB5: 6 | BC5: 6 | BD5: 6 | BE5: 6 | BF5: 6 | BG5: 6 | BH5: 6 | BI5: 6 | BJ5: 6 | BK5: 6 | BL5: 6 | BM5: 6 | BN5: 6 | BO5: 6 | BP5: 6 | BQ5: 6 | BR5: 6 | BS5: 6 | BT5: 6 | BU5: 6 | BV5: 6 | BW5: =IF(BW4,$F$5,$G$5) -> 6 | BX5: 6 | BY5: 6 | BZ5: 6 | CA5: 6 | CB5: 6 | CC5: 6 | CD5: 6 | CE5: 6 | CF5: 6 | CG5: 6 | CH5: 6 | CI5: 6 | CJ5: 6 | CK5: 6 | CL5: 6 | CM5: 6 | CN5: 6 | CO5: 6 | CP5: 6 | CQ5: 6 | CR5: 6 | CS5: 6 | CT5: 6 | CU5: 6 | CV5: 6 | CW5: 6 | CX5: 6 | CY5: 6 | CZ5: 6 | DA5: 6 | DB5: 6 | DC5: 6 | DD5: 6 | DE5: 6 | DF5: 6 | DG5: 6 | DH5: 6 | DI5: 6 | DJ5: 6 | DK5: 6 | DL5: 6 | DM5: 6 | DN5: 6 | DO5: 6 | DP5: 6 | DQ5: 6 | DR5: 6 | DS5: 6 | DT5: 6 | DU5: 6 | DV5: 6 | DW5: 6 | DX5: 6 | DY5: 6 | DZ5: 6 | EA5: 6 | EB5: 6 | EC5: 6 | ED5: 6 | EE5: 6 | EF5: 6 | EG5: 6 | EH5: 6 | EI5: =IF(EI4,$F$5,$G$5) -> 6 | EJ5: 6 | EK5: 6 | EL5: 6 | EM5: 6 | EN5: 6 | EO5: 6 | EP5: 6 | EQ5: 6 | ER5: 6 | ES5: 6 | ET5: 6 | EU5: 6 | EV5: 6 | EW5: 6 | EX5: 6 | EY5: 6 | EZ5: 6 | FA5: 6 | FB5: 6 | FC5: 6 | FD5: 6 | FE5: 6 | FF5: 6 | FG5: 6 | FH5: 6 | FI5: 6 | FJ5: 6 | FK5: 6 | FL5: 6 | FM5: 6 | FN5: 6 | FO5: 6 | FP5: 6 | FQ5: 6 | FR5: 6 | FS5: 6 | FT5: 6 | FU5: 6 | FV5: 6 | FW5: 6 | FX5: 6 | FY5: 6 | FZ5: 6 | GA5: 6 | GB5: 6 | GC5: 6 | GD5: 6 | GE5: 6 | GF5: 6 | GG5: 6 | GH5: 6 | GI5: 6 | GJ5: 6 | GK5: 6 | GL5: 6 | GM5: 6 | GN5: 6 | GO5: 6 | GP5: 6 | GQ5: 6 | GR5: 6 | GS5: 6 | GT5: 6 | GU5: =IF(GU4,$F$5,$G$5) -> 6 | GV5: 6 | GW5: 6 | GX5: 6 | GY5: 6 | GZ5: 6 | HA5: 6
C6: Start of Period | E6: Date | J6: =I7+1 -> 2020-01-01 | K6: =J7+1 -> 2020-02-01 | L6: 2020-03-01 | M6: 2020-04-01 | N6: 2020-05-01 | O6: 2020-06-01 | P6: 2020-07-01 | Q6: 2020-08-01 | R6: 2020-09-01 | S6: 2020-10-01 | T6: 2020-11-01 | U6: 2020-12-01 | V6: 2021-01-01 | W6: 2021-02-01 | X6: 2021-03-01 | Y6: 2021-04-01 | Z6: 2021-05-01 | AA6: 2021-06-01 | AB6: 2021-07-01 | AC6: 2021-08-01 | AD6: 2021-09-01 | AE6: 2021-10-01 | AF6: 2021-11-01 | AG6: 2021-12-01 | AH6: 2022-01-01 | AI6: 2022-02-01 | AJ6: 2022-03-01 | AK6: 2022-04-01 | AL6: 2022-05-01 | AM6: 2022-06-01 | AN6: 2022-07-01 | AO6: 2022-08-01 | AP6: 2022-09-01 | AQ6: 2022-10-01 | AR6: 2022-11-01 | AS6: 2022-12-01 | AT6: 2023-01-01 | AU6: 2023-07-01 | AV6: 2024-01-01 | AW6: 2024-07-01 | AX6: 2025-01-01 | AY6: 2025-07-01 | AZ6: 2026-01-01 | BA6: 2026-07-01 | BB6: 2027-01-01 | BC6: 2027-07-01 | BD6: 2028-01-01 | BE6: 2028-07-01 | BF6: 2029-01-01 | BG6: 2029-07-01 | BH6: 2030-01-01 | BI6: 2030-07-01 | BJ6: 2031-01-01 | BK6: 2031-07-01 | BL6: 2032-01-01 | BM6: 2032-07-01 | BN6: 2033-01-01 | BO6: 2033-07-01 | BP6: 2034-01-01 | BQ6: 2034-07-01 | BR6: 2035-01-01 | BS6: 2035-07-01 | BT6: 2036-01-01 | BU6: 2036-07-01 | BV6: 2037-01-01 | BW6: =BV7+1 -> 2037-07-01 | BX6: 2038-01-01 | BY6: 2038-07-01 | BZ6: 2039-01-01 | CA6: 2039-07-01 | CB6: 2040-01-01 | CC6: 2040-07-01 | CD6: 2041-01-01 | CE6: 2041-07-01 | CF6: 2042-01-01 | CG6: 2042-07-01 | CH6: 2043-01-01 | CI6: 2043-07-01 | CJ6: 2044-01-01 | CK6: 2044-07-01 | CL6: 2045-01-01 | CM6: 2045-07-01 | CN6: 2046-01-01 | CO6: 2046-07-01 | CP6: 2047-01-01 | CQ6: 2047-07-01 | CR6: 2048-01-01 | CS6: 2048-07-01 | CT6: 2049-01-01 | CU6: 2049-07-01 | CV6: 2050-01-01 | CW6: 2050-07-01 | CX6: 2051-01-01 | CY6: 2051-07-01 | CZ6: 2052-01-01 | DA6: 2052-07-01 | DB6: 2053-01-01 | DC6: 2053-07-01 | DD6: 2054-01-01 | DE6: 2054-07-01 | DF6: 2055-01-01 | DG6: 2055-07-01 | DH6: 2056-01-01 | DI6: 2056-07-01 | DJ6: 2057-01-01 | DK6: 2057-07-01 | DL6: 2058-01-01 | DM6: 2058-07-01 | DN6: 2059-01-01 | DO6: 2059-07-01 | DP6: 2060-01-01 | DQ6: 2060-07-01 | DR6: 2061-01-01 | DS6: 2061-07-01 | DT6: 2062-01-01 | DU6: 2062-07-01 | DV6: 2063-01-01 | DW6: 2063-07-01 | DX6: 2064-01-01 | DY6: 2064-07-01 | DZ6: 2065-01-01 | EA6: 2065-07-01 | EB6: 2066-01-01 | EC6: 2066-07-01 | ED6: 2067-01-01 | EE6: 2067-07-01 | EF6: 2068-01-01 | EG6: 2068-07-01 | EH6: 2069-01-01 | EI6: =EH7+1 -> 2069-07-01 | EJ6: 2070-01-01 | EK6: 2070-07-01 | EL6: 2071-01-01 | EM6: 2071-07-01 | EN6: 2072-01-01 | EO6: 2072-07-01 | EP6: 2073-01-01 | EQ6: 2073-07-01 | ER6: 2074-01-01 | ES6: 2074-07-01 | ET6: 2075-01-01 | EU6: 2075-07-01 | EV6: 2076-01-01 | EW6: 2076-07-01 | EX6: 2077-01-01 | EY6: 2077-07-01 | EZ6: 2078-01-01 | FA6: 2078-07-01 | FB6: 2079-01-01 | FC6: 2079-07-01 | FD6: 2080-01-01 | FE6: 2080-07-01 | FF6: 2081-01-01 | FG6: 2081-07-01 | FH6: 2082-01-01 | FI6: 2082-07-01 | FJ6: 2083-01-01 | FK6: 2083-07-01 | FL6: 2084-01-01 | FM6: 2084-07-01 | FN6: 2085-01-01 | FO6: 2085-07-01 | FP6: 2086-01-01 | FQ6: 2086-07-01 | FR6: 2087-01-01 | FS6: 2087-07-01 | FT6: 2088-01-01 | FU6: 2088-07-01 | FV6: 2089-01-01 | FW6: 2089-07-01 | FX6: 2090-01-01 | FY6: 2090-07-01 | FZ6: 2091-01-01 | GA6: 2091-07-01 | GB6: 2092-01-01 | GC6: 2092-07-01 | GD6: 2093-01-01 | GE6: 2093-07-01 | GF6: 2094-01-01 | GG6: 2094-07-01 | GH6: 2095-01-01 | GI6: 2095-07-01 | GJ6: 2096-01-01 | GK6: 2096-07-01 | GL6: 2097-01-01 | GM6: 2097-07-01 | GN6: 2098-01-01 | GO6: 2098-07-01 | GP6: 2099-01-01 | GQ6: 2099-07-01 | GR6: 2100-01-01 | GS6: 2100-07-01 | GT6: 2101-01-01 | GU6: =GT7+1 -> 2101-07-01 | GV6: 2102-01-01 | GW6: 2102-07-01 | GX6: 2103-01-01 | GY6: 2103-07-01 | GZ6: 2104-01-01 | HA6: 2104-07-01
C7: End of Period | E7: Date | I7: ='Input for A-Z Model'!F7-1 -> 2019-12-31 | J7: =EDATE(J6,J5)-1 -> 2020-01-31 | K7: =EDATE(K6,K5)-1 -> 2020-02-29 | L7: 2020-03-31 | M7: 2020-04-30 | N7: 2020-05-31 | O7: 2020-06-30 | P7: 2020-07-31 | Q7: 2020-08-31 | R7: 2020-09-30 | S7: 2020-10-31 | T7: 2020-11-30 | U7: 2020-12-31 | V7: 2021-01-31 | W7: 2021-02-28 | X7: 2021-03-31 | Y7: 2021-04-30 | Z7: 2021-05-31 | AA7: 2021-06-30 | AB7: 2021-07-31 | AC7: 2021-08-31 | AD7: 2021-09-30 | AE7: 2021-10-31 | AF7: 2021-11-30 | AG7: 2021-12-31 | AH7: 2022-01-31 | AI7: 2022-02-28 | AJ7: 2022-03-31 | AK7: 2022-04-30 | AL7: 2022-05-31 | AM7: 2022-06-30 | AN7: 2022-07-31 | AO7: 2022-08-31 | AP7: 2022-09-30 | AQ7: 2022-10-31 | AR7: 2022-11-30 | AS7: 2022-12-31 | AT7: 2023-06-30 | AU7: 2023-12-31 | AV7: 2024-06-30 | AW7: 2024-12-31 | AX7: 2025-06-30 | AY7: 2025-12-31 | AZ7: 2026-06-30 | BA7: 2026-12-31 | BB7: 2027-06-30 | BC7: 2027-12-31 | BD7: 2028-06-30 | BE7: 2028-12-31 | BF7: 2029-06-30 | BG7: 2029-12-31 | BH7: 2030-06-30 | BI7: 2030-12-31 | BJ7: 2031-06-30 | BK7: 2031-12-31 | BL7: 2032-06-30 | BM7: 2032-12-31 | BN7: 2033-06-30 | BO7: 2033-12-31 | BP7: 2034-06-30 | BQ7: 2034-12-31 | BR7: 2035-06-30 | BS7: 2035-12-31 | BT7: 2036-06-30 | BU7: 2036-12-31 | BV7: 2037-06-30 | BW7: =EDATE(BW6,BW5)-1 -> 2037-12-31 | BX7: 2038-06-30 | BY7: 2038-12-31 | BZ7: 2039-06-30 | CA7: 2039-12-31 | CB7: 2040-06-30 | CC7: 2040-12-31 | CD7: 2041-06-30 | CE7: 2041-12-31 | CF7: 2042-06-30 | CG7: 2042-12-31 | CH7: 2043-06-30 | CI7: 2043-12-31 | CJ7: 2044-06-30 | CK7: 2044-12-31 | CL7: 2045-06-30 | CM7: 2045-12-31 | CN7: 2046-06-30 | CO7: 2046-12-31 | CP7: 2047-06-30 | CQ7: 2047-12-31 | CR7: 2048-06-30 | CS7: 2048-12-31 | CT7: 2049-06-30 | CU7: 2049-12-31 | CV7: 2050-06-30 | CW7: 2050-12-31 | CX7: 2051-06-30 | CY7: 2051-12-31 | CZ7: 2052-06-30 | DA7: 2052-12-31 | DB7: 2053-06-30 | DC7: 2053-12-31 | DD7: 2054-06-30 | DE7: 2054-12-31 | DF7: 2055-06-30 | DG7: 2055-12-31 | DH7: 2056-06-30 | DI7: 2056-12-31 | DJ7: 2057-06-30 | DK7: 2057-12-31 | DL7: 2058-06-30 | DM7: 2058-12-31 | DN7: 2059-06-30 | DO7: 2059-12-31 | DP7: 2060-06-30 | DQ7: 2060-12-31 | DR7: 2061-06-30 | DS7: 2061-12-31 | DT7: 2062-06-30 | DU7: 2062-12-31 | DV7: 2063-06-30 | DW7: 2063-12-31 | DX7: 2064-06-30 | DY7: 2064-12-31 | DZ7: 2065-06-30 | EA7: 2065-12-31 | EB7: 2066-06-30 | EC7: 2066-12-31 | ED7: 2067-06-30 | EE7: 2067-12-31 | EF7: 2068-06-30 | EG7: 2068-12-31 | EH7: 2069-06-30 | EI7: =EDATE(EI6,EI5)-1 -> 2069-12-31 | EJ7: 2070-06-30 | EK7: 2070-12-31 | EL7: 2071-06-30 | EM7: 2071-12-31 | EN7: 2072-06-30 | EO7: 2072-12-31 | EP7: 2073-06-30 | EQ7: 2073-12-31 | ER7: 2074-06-30 | ES7: 2074-12-31 | ET7: 2075-06-30 | EU7: 2075-12-31 | EV7: 2076-06-30 | EW7: 2076-12-31 | EX7: 2077-06-30 | EY7: 2077-12-31 | EZ7: 2078-06-30 | FA7: 2078-12-31 | FB7: 2079-06-30 | FC7: 2079-12-31 | FD7: 2080-06-30 | FE7: 2080-12-31 | FF7: 2081-06-30 | FG7: 2081-12-31 | FH7: 2082-06-30 | FI7: 2082-12-31 | FJ7: 2083-06-30 | FK7: 2083-12-31 | FL7: 2084-06-30 | FM7: 2084-12-31 | FN7: 2085-06-30 | FO7: 2085-12-31 | FP7: 2086-06-30 | FQ7: 2086-12-31 | FR7: 2087-06-30 | FS7: 2087-12-31 | FT7: 2088-06-30 | FU7: 2088-12-31 | FV7: 2089-06-30 | FW7: 2089-12-31 | FX7: 2090-06-30 | FY7: 2090-12-31 | FZ7: 2091-06-30 | GA7: 2091-12-31 | GB7: 2092-06-30 | GC7: 2092-12-31 | GD7: 2093-06-30 | GE7: 2093-12-31 | GF7: 2094-06-30 | GG7: 2094-12-31 | GH7: 2095-06-30 | GI7: 2095-12-31 | GJ7: 2096-06-30 | GK7: 2096-12-31 | GL7: 2097-06-30 | GM7: 2097-12-31 | GN7: 2098-06-30 | GO7: 2098-12-31 | GP7: 2099-06-30 | GQ7: 2099-12-31 | GR7: 2100-06-30 | GS7: 2100-12-31 | GT7: 2101-06-30 | GU7: =EDATE(GU6,GU5)-1 -> 2101-12-31 | GV7: 2102-06-30 | GW7: 2102-12-31 | GX7: 2103-06-30 | GY7: 2103-12-31 | GZ7: 2104-06-30 | HA7: 2104-12-31
C8: Operating Period | E8: Flag | F8: ='Input for A-Z Model'!F9 -> 2023-01-01 | G8: ='Input for A-Z Model'!F11 -> 2053-01-01 | J8: =AND(J$6>=$F8,J$6<$G8)*1 -> 0 | K8: =AND(K$6>=$F8,K$6<$G8)*1 -> 0 | L8: 0 | M8: 0 | N8: 0 | O8: 0 | P8: 0 | Q8: 0 | R8: 0 | S8: 0 | T8: 0 | U8: 0 | V8: 0 | W8: 0 | X8: 0 | Y8: 0 | Z8: 0 | AA8: 0 | AB8: 0 | AC8: 0 | AD8: 0 | AE8: 0 | AF8: 0 | AG8: 0 | AH8: 0 | AI8: 0 | AJ8: 0 | AK8: 0 | AL8: 0 | AM8: 0 | AN8: 0 | AO8: 0 | AP8: 0 | AQ8: 0 | AR8: 0 | AS8: 0 | AT8: 1 | AU8: 1 | AV8: 1 | AW8: 1 | AX8: 1 | AY8: 1 | AZ8: 1 | BA8: 1 | BB8: 1 | BC8: 1 | BD8: 1 | BE8: 1 | BF8: 1 | BG8: 1 | BH8: 1 | BI8: 1 | BJ8: 1 | BK8: 1 | BL8: 1 | BM8: 1 | BN8: 1 | BO8: 1 | BP8: 1 | BQ8: 1 | BR8: 1 | BS8: 1 | BT8: 1 | BU8: 1 | BV8: 1 | BW8: =AND(BW$6>=$F8,BW$6<$G8)*1 -> 1 | BX8: 1 | BY8: 1 | BZ8: 1 | CA8: 1 | CB8: 1 | CC8: 1 | CD8: 1 | CE8: 1 | CF8: 1 | CG8: 1 | CH8: 1 | CI8: 1 | CJ8: 1 | CK8: 1 | CL8: 1 | CM8: 1 | CN8: 1 | CO8: 1 | CP8: 1 | CQ8: 1 | CR8: 1 | CS8: 1 | CT8: 1 | CU8: 1 | CV8: 1 | CW8: 1 | CX8: 1 | CY8: 1 | CZ8: 1 | DA8: 1 | DB8: 0 | DC8: 0 | DD8: 0 | DE8: 0 | DF8: 0 | DG8: 0 | DH8: 0 | DI8: 0 | DJ8: 0 | DK8: 0 | DL8: 0 | DM8: 0 | DN8: 0 | DO8: 0 | DP8: 0 | DQ8: 0 | DR8: 0 | DS8: 0 | DT8: 0 | DU8: 0 | DV8: 0 | DW8: 0 | DX8: 0 | DY8: 0 | DZ8: 0 | EA8: 0 | EB8: 0 | EC8: 0 | ED8: 0 | EE8: 0 | EF8: 0 | EG8: 0 | EH8: 0 | EI8: =AND(EI$6>=$F8,EI$6<$G8)*1 -> 0 | EJ8: 0 | EK8: 0 | EL8: 0 | EM8: 0 | EN8: 0 | EO8: 0 | EP8: 0 | EQ8: 0 | ER8: 0 | ES8: 0 | ET8: 0 | EU8: 0 | EV8: 0 | EW8: 0 | EX8: 0 | EY8: 0 | EZ8: 0 | FA8: 0 | FB8: 0 | FC8: 0 | FD8: 0 | FE8: 0 | FF8: 0 | FG8: 0 | FH8: 0 | FI8: 0 | FJ8: 0 | FK8: 0 | FL8: 0 | FM8: 0 | FN8: 0 | FO8: 0 | FP8: 0 | FQ8: 0 | FR8: 0 | FS8: 0 | FT8: 0 | FU8: 0 | FV8: 0 | FW8: 0 | FX8: 0 | FY8: 0 | FZ8: 0 | GA8: 0 | GB8: 0 | GC8: 0 | GD8: 0 | GE8: 0 | GF8: 0 | GG8: 0 | GH8: 0 | GI8: 0 | GJ8: 0 | GK8: 0 | GL8: 0 | GM8: 0 | GN8: 0 | GO8: 0 | GP8: 0 | GQ8: 0 | GR8: 0 | GS8: 0 | GT8: 0 | GU8: =AND(GU$6>=$F8,GU$6<$G8)*1 -> 0 | GV8: 0 | GW8: 0 | GX8: 0 | GY8: 0 | GZ8: 0 | HA8: 0
B10: Operations
C11: Total Cost | E11: EUR | F11: ='Input for A-Z Model'!F18 -> 2500 | J11: =$F$11*J5 -> 2500 | K11: =$F$11*K5 -> 2500 | L11: 2500 | M11: 2500 | N11: 2500 | O11: 2500 | P11: 2500 | Q11: 2500 | R11: 2500 | S11: 2500 | T11: 2500 | U11: 2500 | V11: 2500 | W11: 2500 | X11: 2500 | Y11: 2500 | Z11: 2500 | AA11: 2500 | AB11: 2500 | AC11: 2500 | AD11: 2500 | AE11: 2500 | AF11: 2500 | AG11: 2500 | AH11: 2500 | AI11: 2500 | AJ11: 2500 | AK11: 2500 | AL11: 2500 | AM11: 2500 | AN11: 2500 | AO11: 2500 | AP11: 2500 | AQ11: 2500 | AR11: 2500 | AS11: 2500 | AT11: 15000 | AU11: 15000 | AV11: 15000 | AW11: 15000 | AX11: 15000 | AY11: 15000 | AZ11: 15000 | BA11: 15000 | BB11: 15000 | BC11: 15000 | BD11: 15000 | BE11: 15000 | BF11: 15000 | BG11: 15000 | BH11: 15000 | BI11: 15000 | BJ11: 15000 | BK11: 15000 | BL11: 15000 | BM11: 15000 | BN11: 15000 | BO11: 15000 | BP11: 15000 | BQ11: 15000 | BR11: 15000 | BS11: 15000 | BT11: 15000 | BU11: 15000 | BV11: 15000 | BW11: =$F$11*BW5 -> 15000 | BX11: 15000 | BY11: 15000 | BZ11: 15000 | CA11: 15000 | CB11: 15000 | CC11: 15000 | CD11: 15000 | CE11: 15000 | CF11: 15000 | CG11: 15000 | CH11: 15000 | CI11: 15000 | CJ11: 15000 | CK11: 15000 | CL11: 15000 | CM11: 15000 | CN11: 15000 | CO11: 15000 | CP11: 15000 | CQ11: 15000 | CR11: 15000 | CS11: 15000 | CT11: 15000 | CU11: 15000 | CV11: 15000 | CW11: 15000 | CX11: 15000 | CY11: 15000 | CZ11: 15000 | DA11: 15000 | DB11: 15000 | DC11: 15000 | DD11: 15000 | DE11: 15000 | DF11: 15000 | DG11: 15000 | DH11: 15000 | DI11: 15000 | DJ11: 15000 | DK11: 15000 | DL11: 15000 | DM11: 15000 | DN11: 15000 | DO11: 15000 | DP11: 15000 | DQ11: 15000 | DR11: 15000 | DS11: 15000 | DT11: 15000 | DU11: 15000 | DV11: 15000 | DW11: 15000 | DX11: 15000 | DY11: 15000 | DZ11: 15000 | EA11: 15000 | EB11: 15000 | EC11: 15000 | ED11: 15000 | EE11: 15000 | EF11: 15000 | EG11: 15000 | EH11: 15000 | EI11: =$F$11*EI5 -> 15000 | EJ11: 15000 | EK11: 15000 | EL11: 15000 | EM11: 15000 | EN11: 15000 | EO11: 15000 | EP11: 15000 | EQ11: 15000 | ER11: 15000 | ES11: 15000 | ET11: 15000 | EU11: 15000 | EV11: 15000 | EW11: 15000 | EX11: 15000 | EY11: 15000 | EZ11: 15000 | FA11: 15000 | FB11: 15000 | FC11: 15000 | FD11: 15000 | FE11: 15000 | FF11: 15000 | FG11: 15000 | FH11: 15000 | FI11: 15000 | FJ11: 15000 | FK11: 15000 | FL11: 15000 | FM11: 15000 | FN11: 15000 | FO11: 15000 | FP11: 15000 | FQ11: 15000 | FR11: 15000 | FS11: 15000 | FT11: 15000 | FU11: 15000 | FV11: 15000 | FW11: 15000 | FX11: 15000 | FY11: 15000 | FZ11: 15000 | GA11: 15000 | GB11: 15000 | GC11: 15000 | GD11: 15000 | GE11: 15000 | GF11: 15000 | GG11: 15000 | GH11: 15000 | GI11: 15000 | GJ11: 15000 | GK11: 15000 | GL11: 15000 | GM11: 15000 | GN11: 15000 | GO11: 15000 | GP11: 15000 | GQ11: 15000 | GR11: 15000 | GS11: 15000 | GT11: 15000 | GU11: =$F$11*GU5 -> 15000 | GV11: 15000 | GW11: 15000 | GX11: 15000 | GY11: 15000 | GZ11: 15000 | HA11: 15000
C12: Construction Period | E12: Period | J12: =I12+J5 -> 1 | K12: =J12+K5 -> 2 | L12: 3 | M12: 4 | N12: 5 | O12: 6 | P12: 7 | Q12: 8 | R12: 9 | S12: 10 | T12: 11 | U12: 12 | V12: 13 | W12: 14 | X12: 15 | Y12: 16 | Z12: 17 | AA12: 18 | AB12: 19 | AC12: 20 | AD12: 21 | AE12: 22 | AF12: 23 | AG12: 24 | AH12: 25 | AI12: 26 | AJ12: 27 | AK12: 28 | AL12: 29 | AM12: 30 | AN12: 31 | AO12: 32 | AP12: 33 | AQ12: 34 | AR12: 35 | AS12: 36 | AT12: 42 | AU12: 48 | AV12: 54 | AW12: 60 | AX12: 66 | AY12: 72 | AZ12: 78 | BA12: 84 | BB12: 90 | BC12: 96 | BD12: 102 | BE12: 108 | BF12: 114 | BG12: 120 | BH12: 126 | BI12: 132 | BJ12: 138 | BK12: 144 | BL12: 150 | BM12: 156 | BN12: 162 | BO12: 168 | BP12: 174 | BQ12: 180 | BR12: 186 | BS12: 192 | BT12: 198 | BU12: 204 | BV12: 210 | BW12: =BV12+BW5 -> 216 | BX12: 222 | BY12: 228 | BZ12: 234 | CA12: 240 | CB12: 246 | CC12: 252 | CD12: 258 | CE12: 264 | CF12: 270 | CG12: 276 | CH12: 282 | CI12: 288 | CJ12: 294 | CK12: 300 | CL12: 306 | CM12: 312 | CN12: 318 | CO12: 324 | CP12: 330 | CQ12: 336 | CR12: 342 | CS12: 348 | CT12: 354 | CU12: 360 | CV12: 366 | CW12: 372 | CX12: 378 | CY12: 384 | CZ12: 390 | DA12: 396 | DB12: 402 | DC12: 408 | DD12: 414 | DE12: 420 | DF12: 426 | DG12: 432 | DH12: 438 | DI12: 444 | DJ12: 450 | DK12: 456 | DL12: 462 | DM12: 468 | DN12: 474 | DO12: 480 | DP12: 486 | DQ12: 492 | DR12: 498 | DS12: 504 | DT12: 510 | DU12: 516 | DV12: 522 | DW12: 528 | DX12: 534 | DY12: 540 | DZ12: 546 | EA12: 552 | EB12: 558 | EC12: 564 | ED12: 570 | EE12: 576 | EF12: 582 | EG12: 588 | EH12: 594 | EI12: =EH12+EI5 -> 600 | EJ12: 606 | EK12: 612 | EL12: 618 | EM12: 624 | EN12: 630 | EO12: 636 | EP12: 642 | EQ12: 648 | ER12: 654 | ES12: 660 | ET12: 666 | EU12: 672 | EV12: 678 | EW12: 684 | EX12: 690 | EY12: 696 | EZ12: 702 | FA12: 708 | FB12: 714 | FC12: 720 | FD12: 726 | FE12: 732 | FF12: 738 | FG12: 744 | FH12: 750 | FI12: 756 | FJ12: 762 | FK12: 768 | FL12: 774 | FM12: 780 | FN12: 786 | FO12: 792 | FP12: 798 | FQ12: 804 | FR12: 810 | FS12: 816 | FT12: 822 | FU12: 828 | FV12: 834 | FW12: 840 | FX12: 846 | FY12: 852 | FZ12: 858 | GA12: 864 | GB12: 870 | GC12: 876 | GD12: 882 | GE12: 888 | GF12: 894 | GG12: 900 | GH12: 906 | GI12: 912 | GJ12: 918 | GK12: 924 | GL12: 930 | GM12: 936 | GN12: 942 | GO12: 948 | GP12: 954 | GQ12: 960 | GR12: 966 | GS12: 972 | GT12: 978 | GU12: =GT12+GU5 -> 984 | GV12: 990 | GW12: 996 | GX12: 1002 | GY12: 1008 | GZ12: 1014 | HA12: 1020
C13: S-Curve | E13: % | H13: =SUM(J13:HA13) -> 1 | J13: =LOOKUP(J12,'Input for A-Z Model'!19:19,'Input for A-Z Model'!23:23)*J4 -> 0.005346841637 | K13: =LOOKUP(K12,'Input for A-Z Model'!19:19,'Input for A-Z Model'!23:23)*K4 -> 0.006919327192 | L13: =LOOKUP(L12,'Input for A-Z Model'!19:19,'Input for A-Z Model'!23:23)*L4 -> 0.008815451538 | M13: =LOOKUP(M12,'Input for A-Z Model'!19:19,'Input for A-Z Model'!23:23)*M4 -> 0.01105705337 | N13: =LOOKUP(N12,'Input for A-Z Model'!19:19,'Input for A-Z Model'!23:23)*N4 -> 0.01365363844 | O13: =LOOKUP(O12,'Input for A-Z Model'!19:19,'Input for A-Z Model'!23:23)*O4 -> 0.01659860305 | P13: =LOOKUP(P12,'Input for A-Z Model'!19:19,'Input for A-Z Model'!23:23)*P4 -> 0.01986592671 | Q13: =LOOKUP(Q12,'Input for A-Z Model'!19:19,'Input for A-Z Model'!23:23)*Q4 -> 0.02340778217 | R13: =LOOKUP(R12,'Input for A-Z Model'!19:19,'Input for A-Z Model'!23:23)*R4 -> 0.02715350236 | S13: =LOOKUP(S12,'Input for A-Z Model'!19:19,'Input for A-Z Model'!23:23)*S4 -> 0.03101027305 | T13: =LOOKUP(T12,'Input for A-Z Model'!19:19,'Input for A-Z Model'!23:23)*T4 -> 0.03486578718 | U13: =LOOKUP(U12,'Input for A-Z Model'!19:19,'Input for A-Z Model'!23:23)*U4 -> 0.03859290836 | V13: =LOOKUP(V12,'Input for A-Z Model'!19:19,'Input for A-Z Model'!23:23)*V4 -> 0.04205616717 | W13: =LOOKUP(W12,'Input for A-Z Model'!19:19,'Input for A-Z Model'!23:23)*W4 -> 0.04511968106 | X13: =LOOKUP(X12,'Input for A-Z Model'!19:19,'Input for A-Z Model'!23:23)*X4 -> 0.04765588077 | Y13: =LOOKUP(Y12,'Input for A-Z Model'!19:19,'Input for A-Z Model'!23:23)*Y4 -> 0.04955427524 | Z13: =LOOKUP(Z12,'Input for A-Z Model'!19:19,'Input for A-Z Model'!23:23)*Z4 -> 0.05072942101 | AA13: =LOOKUP(AA12,'Input for A-Z Model'!19:19,'Input for A-Z Model'!23:23)*AA4 -> 0.05112729679 | AB13: =LOOKUP(AB12,'Input for A-Z Model'!19:19,'Input for A-Z Model'!23:23)*AB4 -> 0.05072942101 | AC13: =LOOKUP(AC12,'Input for A-Z Model'!19:19,'Input for A-Z Model'!23:23)*AC4 -> 0.04955427524 | AD13: =LOOKUP(AD12,'Input for A-Z Model'!19:19,'Input for A-Z Model'!23:23)*AD4 -> 0.04765588077 | AE13: =LOOKUP(AE12,'Input for A-Z Model'!19:19,'Input for A-Z Model'!23:23)*AE4 -> 0.04511968106 | AF13: =LOOKUP(AF12,'Input for A-Z Model'!19:19,'Input for A-Z Model'!23:23)*AF4 -> 0.04205616717 | AG13: =LOOKUP(AG12,'Input for A-Z Model'!19:19,'Input for A-Z Model'!23:23)*AG4 -> 0.03859290836 | AH13: =LOOKUP(AH12,'Input for A-Z Model'!19:19,'Input for A-Z Model'!23:23)*AH4 -> 0.03486578718 | AI13: =LOOKUP(AI12,'Input for A-Z Model'!19:19,'Input for A-Z Model'!23:23)*AI4 -> 0.03101027305 | AJ13: =LOOKUP(AJ12,'Input for A-Z Model'!19:19,'Input for A-Z Model'!23:23)*AJ4 -> 0.02715350236 | AK13: =LOOKUP(AK12,'Input for A-Z Model'!19:19,'Input for A-Z Model'!23:23)*AK4 -> 0.02340778217 | AL13: =LOOKUP(AL12,'Input for A-Z Model'!19:19,'Input for A-Z Model'!23:23)*AL4 -> 0.01986592671 | AM13: =LOOKUP(AM12,'Input for A-Z Model'!19:19,'Input for A-Z Model'!23:23)*AM4 -> 0.01659860305 | AN13: =LOOKUP(AN12,'Input for A-Z Model'!19:19,'Input for A-Z Model'!23:23)*AN4 -> 0.01365363844 | AO13: =LOOKUP(AO12,'Input for A-Z Model'!19:19,'Input for A-Z Model'!23:23)*AO4 -> 0.01105705337 | AP13: =LOOKUP(AP12,'Input for A-Z Model'!19:19,'Input for A-Z Model'!23:23)*AP4 -> 0.008815451538 | AQ13: =LOOKUP(AQ12,'Input for A-Z Model'!19:19,'Input for A-Z Model'!23:23)*AQ4 -> 0.006919327192 | AR13: =LOOKUP(AR12,'Input for A-Z Model'!19:19,'Input for A-Z Model'!23:23)*AR4 -> 0.005346841637 | AS13: =LOOKUP(AS12,'Input for A-Z Model'!19:19,'Input for A-Z Model'!23:23)*AS4 -> 0.004067662615 | AT13: =LOOKUP(AT12,'Input for A-Z Model'!19:19,'Input for A-Z Model'!23:23)*AT4 -> 0 | AU13: =LOOKUP(AU12,'Input for A-Z Model'!19:19,'Input for A-Z Model'!23:23)*AU4 -> 0 | AV13: =LOOKUP(AV12,'Input for A-Z Model'!19:19,'Input for A-Z Model'!23:23)*AV4 -> 0 | AW13: =LOOKUP(AW12,'Input for A-Z Model'!19:19,'Input for A-Z Model'!23:23)*AW4 -> 0 | AX13: =LOOKUP(AX12,'Input for A-Z Model'!19:19,'Input for A-Z Model'!23:23)*AX4 -> 0 | AY13: =LOOKUP(AY12,'Input for A-Z Model'!19:19,'Input for A-Z Model'!23:23)*AY4 -> 0 | AZ13: =LOOKUP(AZ12,'Input for A-Z Model'!19:19,'Input for A-Z Model'!23:23)*AZ4 -> 0 | BA13: =LOOKUP(BA12,'Input for A-Z Model'!19:19,'Input for A-Z Model'!23:23)*BA4 -> 0 | BB13: =LOOKUP(BB12,'Input for A-Z Model'!19:19,'Input for A-Z Model'!23:23)*BB4 -> 0 | BC13: =LOOKUP(BC12,'Input for A-Z Model'!19:19,'Input for A-Z Model'!23:23)*BC4 -> 0 | BD13: =LOOKUP(BD12,'Input for A-Z Model'!19:19,'Input for A-Z Model'!23:23)*BD4 -> 0 | BE13: =LOOKUP(BE12,'Input for A-Z Model'!19:19,'Input for A-Z Model'!23:23)*BE4 -> 0 | BF13: =LOOKUP(BF12,'Input for A-Z Model'!19:19,'Input for A-Z Model'!23:23)*BF4 -> 0 | BG13: =LOOKUP(BG12,'Input for A-Z Model'!19:19,'Input for A-Z Model'!23:23)*BG4 -> 0 | BH13: =LOOKUP(BH12,'Input for A-Z Model'!19:19,'Input for A-Z Model'!23:23)*BH4 -> 0 | BI13: =LOOKUP(BI12,'Input for A-Z Model'!19:19,'Input for A-Z Model'!23:23)*BI4 -> 0 | BJ13: =LOOKUP(BJ12,'Input for A-Z Model'!19:19,'Input for A-Z Model'!23:23)*BJ4 -> 0 | BK13: =LOOKUP(BK12,'Input for A-Z Model'!19:19,'Input for A-Z Model'!23:23)*BK4 -> 0 | BL13: =LOOKUP(BL12,'Input for A-Z Model'!19:19,'Input for A-Z Model'!23:23)*BL4 -> 0 | BM13: =LOOKUP(BM12,'Input for A-Z Model'!19:19,'Input for A-Z Model'!23:23)*BM4 -> 0 | BN13: =LOOKUP(BN12,'Input for A-Z Model'!19:19,'Input for A-Z Model'!23:23)*BN4 -> 0 | BO13: =LOOKUP(BO12,'Input for A-Z Model'!19:19,'Input for A-Z Model'!23:23)*BO4 -> 0 | BP13: =LOOKUP(BP12,'Input for A-Z Model'!19:19,'Input for A-Z Model'!23:23)*BP4 -> 0 | BQ13: =LOOKUP(BQ12,'Input for A-Z Model'!19:19,'Input for A-Z Model'!23:23)*BQ4 -> 0 | BR13: =LOOKUP(BR12,'Input for A-Z Model'!19:19,'Input for A-Z Model'!23:23)*BR4 -> 0 | BS13: =LOOKUP(BS12,'Input for A-Z Model'!19:19,'Input for A-Z Model'!23:23)*BS4 -> 0 | BT13: =LOOKUP(BT12,'Input for A-Z Model'!19:19,'Input for A-Z Model'!23:23)*BT4 -> 0 | BU13: =LOOKUP(BU12,'Input for A-Z Model'!19:19,'Input for A-Z Model'!23:23)*BU4 -> 0 | BV13: =LOOKUP(BV12,'Input for A-Z Model'!19:19,'Input for A-Z Model'!23:23)*BV4 -> 0 | BW13: =LOOKUP(BW12,'Input for A-Z Model'!19:19,'Input for A-Z Model'!23:23)*BW4 -> 0 | BX13: =LOOKUP(BX12,'Input for A-Z Model'!19:19,'Input for A-Z Model'!23:23)*BX4 -> 0 | BY13: =LOOKUP(BY12,'Input for A-Z Model'!19:19,'Input for A-Z Model'!23:23)*BY4 -> 0 | BZ13: =LOOKUP(BZ12,'Input for A-Z Model'!19:19,'Input for A-Z Model'!23:23)*BZ4 -> 0 | CA13: =LOOKUP(CA12,'Input for A-Z Model'!19:19,'Input for A-Z Model'!23:23)*CA4 -> 0 | CB13: =LOOKUP(CB12,'Input for A-Z Model'!19:19,'Input for A-Z Model'!23:23)*CB4 -> 0 | CC13: =LOOKUP(CC12,'Input for A-Z Model'!19:19,'Input for A-Z Model'!23:23)*CC4 -> 0 | CD13: =LOOKUP(CD12,'Input for A-Z Model'!19:19,'Input for A-Z Model'!23:23)*CD4 -> 0 | CE13: =LOOKUP(CE12,'Input for A-Z Model'!19:19,'Input for A-Z Model'!23:23)*CE4 -> 0 | CF13: =LOOKUP(CF12,'Input for A-Z Model'!19:19,'Input for A-Z Model'!23:23)*CF4 -> 0 | CG13: =LOOKUP(CG12,'Input for A-Z Model'!19:19,'Input for A-Z Model'!23:23)*CG4 -> 0 | CH13: =LOOKUP(CH12,'Input for A-Z Model'!19:19,'Input for A-Z Model'!23:23)*CH4 -> 0 | CI13: =LOOKUP(CI12,'Input for A-Z Model'!19:19,'Input for A-Z Model'!23:23)*CI4 -> 0 | CJ13: =LOOKUP(CJ12,'Input for A-Z Model'!19:19,'Input for A-Z Model'!23:23)*CJ4 -> 0 | CK13: =LOOKUP(CK12,'Input for A-Z Model'!19:19,'Input for A-Z Model'!23:23)*CK4 -> 0 | CL13: =LOOKUP(CL12,'Input for A-Z Model'!19:19,'Input for A-Z Model'!23:23)*CL4 -> 0 | CM13: =LOOKUP(CM12,'Input for A-Z Model'!19:19,'Input for A-Z Model'!23:23)*CM4 -> 0 | CN13: =LOOKUP(CN12,'Input for A-Z Model'!19:19,'Input for A-Z Model'!23:23)*CN4 -> 0 | CO13: =LOOKUP(CO12,'Input for A-Z Model'!19:19,'Input for A-Z Model'!23:23)*CO4 -> 0 | CP13: =LOOKUP(CP12,'Input for A-Z Model'!19:19,'Input for A-Z Model'!23:23)*CP4 -> 0 | CQ13: =LOOKUP(CQ12,'Input for A-Z Model'!19:19,'Input for A-Z Model'!23:23)*CQ4 -> 0 | CR13: =LOOKUP(CR12,'Input for A-Z Model'!19:19,'Input for A-Z Model'!23:23)*CR4 -> 0 | CS13: =LOOKUP(CS12,'Input for A-Z Model'!19:19,'Input for A-Z Model'!23:23)*CS4 -> 0 | CT13: =LOOKUP(CT12,'Input for A-Z Model'!19:19,'Input for A-Z Model'!23:23)*CT4 -> 0 | CU13: =LOOKUP(CU12,'Input for A-Z Model'!19:19,'Input for A-Z Model'!23:23)*CU4 -> 0 | CV13: =LOOKUP(CV12,'Input for A-Z Model'!19:19,'Input for A-Z Model'!23:23)*CV4 -> 0 | CW13: =LOOKUP(CW12,'Input for A-Z Model'!19:19,'Input for A-Z Model'!23:23)*CW4 -> 0 | CX13: =LOOKUP(CX12,'Input for A-Z Model'!19:19,'Input for A-Z Model'!23:23)*CX4 -> 0 | CY13: =LOOKUP(CY12,'Input for A-Z Model'!19:19,'Input for A-Z Model'!23:23)*CY4 -> 0 | CZ13: =LOOKUP(CZ12,'Input for A-Z Model'!19:19,'Input for A-Z Model'!23:23)*CZ4 -> 0 | DA13: =LOOKUP(DA12,'Input for A-Z Model'!19:19,'Input for A-Z Model'!23:23)*DA4 -> 0 | DB13: =LOOKUP(DB12,'Input for A-Z Model'!19:19,'Input for A-Z Model'!23:23)*DB4 -> 0 | DC13: =LOOKUP(DC12,'Input for A-Z Model'!19:19,'Input for A-Z Model'!23:23)*DC4 -> 0 | DD13: =LOOKUP(DD12,'Input for A-Z Model'!19:19,'Input for A-Z Model'!23:23)*DD4 -> 0 | DE13: =LOOKUP(DE12,'Input for A-Z Model'!19:19,'Input for A-Z Model'!23:23)*DE4 -> 0 | DF13: =LOOKUP(DF12,'Input for A-Z Model'!19:19,'Input for A-Z Model'!23:23)*DF4 -> 0 | DG13: =LOOKUP(DG12,'Input for A-Z Model'!19:19,'Input for A-Z Model'!23:23)*DG4 -> 0 | DH13: =LOOKUP(DH12,'Input for A-Z Model'!19:19,'Input for A-Z Model'!23:23)*DH4 -> 0 | DI13: =LOOKUP(DI12,'Input for A-Z Model'!19:19,'Input for A-Z Model'!23:23)*DI4 -> 0 | DJ13: =LOOKUP(DJ12,'Input for A-Z Model'!19:19,'Input for A-Z Model'!23:23)*DJ4 -> 0 | DK13: =LOOKUP(DK12,'Input for A-Z Model'!19:19,'Input for A-Z Model'!23:23)*DK4 -> 0 | DL13: =LOOKUP(DL12,'Input for A-Z Model'!19:19,'Input for A-Z Model'!23:23)*DL4 -> 0 | DM13: =LOOKUP(DM12,'Input for A-Z Model'!19:19,'Input for A-Z Model'!23:23)*DM4 -> 0 | DN13: =LOOKUP(DN12,'Input for A-Z Model'!19:19,'Input for A-Z Model'!23:23)*DN4 -> 0 | DO13: =LOOKUP(DO12,'Input for A-Z Model'!19:19,'Input for A-Z Model'!23:23)*DO4 -> 0 | DP13: =LOOKUP(DP12,'Input for A-Z Model'!19:19,'Input for A-Z Model'!23:23)*DP4 -> 0 | DQ13: =LOOKUP(DQ12,'Input for A-Z Model'!19:19,'Input for A-Z Model'!23:23)*DQ4 -> 0 | DR13: =LOOKUP(DR12,'Input for A-Z Model'!19:19,'Input for A-Z Model'!23:23)*DR4 -> 0 | DS13: =LOOKUP(DS12,'Input for A-Z Model'!19:19,'Input for A-Z Model'!23:23)*DS4 -> 0 | DT13: =LOOKUP(DT12,'Input for A-Z Model'!19:19,'Input for A-Z Model'!23:23)*DT4 -> 0 | DU13: =LOOKUP(DU12,'Input for A-Z Model'!19:19,'Input for A-Z Model'!23:23)*DU4 -> 0 | DV13: =LOOKUP(DV12,'Input for A-Z Model'!19:19,'Input for A-Z Model'!23:23)*DV4 -> 0 | DW13: =LOOKUP(DW12,'Input for A-Z Model'!19:19,'Input for A-Z Model'!23:23)*DW4 -> 0 | DX13: =LOOKUP(DX12,'Input for A-Z Model'!19:19,'Input for A-Z Model'!23:23)*DX4 -> 0 | DY13: =LOOKUP(DY12,'Input for A-Z Model'!19:19,'Input for A-Z Model'!23:23)*DY4 -> 0 | DZ13: =LOOKUP(DZ12,'Input for A-Z Model'!19:19,'Input for A-Z Model'!23:23)*DZ4 -> 0 | EA13: =LOOKUP(EA12,'Input for A-Z Model'!19:19,'Input for A-Z Model'!23:23)*EA4 -> 0 | EB13: =LOOKUP(EB12,'Input for A-Z Model'!19:19,'Input for A-Z Model'!23:23)*EB4 -> 0 | EC13: =LOOKUP(EC12,'Input for A-Z Model'!19:19,'Input for A-Z Model'!23:23)*EC4 -> 0 | ED13: =LOOKUP(ED12,'Input for A-Z Model'!19:19,'Input for A-Z Model'!23:23)*ED4 -> 0 | EE13: =LOOKUP(EE12,'Input for A-Z Model'!19:19,'Input for A-Z Model'!23:23)*EE4 -> 0 | EF13: =LOOKUP(EF12,'Input for A-Z Model'!19:19,'Input for A-Z Model'!23:23)*EF4 -> 0 | EG13: =LOOKUP(EG12,'Input for A-Z Model'!19:19,'Input for A-Z Model'!23:23)*EG4 -> 0 | EH13: =LOOKUP(EH12,'Input for A-Z Model'!19:19,'Input for A-Z Model'!23:23)*EH4 -> 0 | EI13: =LOOKUP(EI12,'Input for A-Z Model'!19:19,'Input for A-Z Model'!23:23)*EI4 -> 0 | EJ13: =LOOKUP(EJ12,'Input for A-Z Model'!19:19,'Input for A-Z Model'!23:23)*EJ4 -> 0 | EK13: =LOOKUP(EK12,'Input for A-Z Model'!19:19,'Input for A-Z Model'!23:23)*EK4 -> 0 | EL13: =LOOKUP(EL12,'Input for A-Z Model'!19:19,'Input for A-Z Model'!23:23)*EL4 -> 0 | EM13: =LOOKUP(EM12,'Input for A-Z Model'!19:19,'Input for A-Z Model'!23:23)*EM4 -> 0 | EN13: =LOOKUP(EN12,'Input for A-Z Model'!19:19,'Input for A-Z Model'!23:23)*EN4 -> 0 | EO13: =LOOKUP(EO12,'Input for A-Z Model'!19:19,'Input for A-Z Model'!23:23)*EO4 -> 0 | EP13: =LOOKUP(EP12,'Input for A-Z Model'!19:19,'Input for A-Z Model'!23:23)*EP4 -> 0 | EQ13: =LOOKUP(EQ12,'Input for A-Z Model'!19:19,'Input for A-Z Model'!23:23)*EQ4 -> 0 | ER13: =LOOKUP(ER12,'Input for A-Z Model'!19:19,'Input for A-Z Model'!23:23)*ER4 -> 0 | ES13: =LOOKUP(ES12,'Input for A-Z Model'!19:19,'Input for A-Z Model'!23:23)*ES4 -> 0 | ET13: =LOOKUP(ET12,'Input for A-Z Model'!19:19,'Input for A-Z Model'!23:23)*ET4 -> 0 | EU13: =LOOKUP(EU12,'Input for A-Z Model'!19:19,'Input for A-Z Model'!23:23)*EU4 -> 0 | EV13: =LOOKUP(EV12,'Input for A-Z Model'!19:19,'Input for A-Z Model'!23:23)*EV4 -> 0 | EW13: =LOOKUP(EW12,'Input for A-Z Model'!19:19,'Input for A-Z Model'!23:23)*EW4 -> 0 | EX13: =LOOKUP(EX12,'Input for A-Z Model'!19:19,'Input for A-Z Model'!23:23)*EX4 -> 0 | EY13: =LOOKUP(EY12,'Input for A-Z Model'!19:19,'Input for A-Z Model'!23:23)*EY4 -> 0 | EZ13: =LOOKUP(EZ12,'Input for A-Z Model'!19:19,'Input for A-Z Model'!23:23)*EZ4 -> 0 | FA13: =LOOKUP(FA12,'Input for A-Z Model'!19:19,'Input for A-Z Model'!23:23)*FA4 -> 0 | FB13: =LOOKUP(FB12,'Input for A-Z Model'!19:19,'Input for A-Z Model'!23:23)*FB4 -> 0 | FC13: =LOOKUP(FC12,'Input for A-Z Model'!19:19,'Input for A-Z Model'!23:23)*FC4 -> 0 | FD13: =LOOKUP(FD12,'Input for A-Z Model'!19:19,'Input for A-Z Model'!23:23)*FD4 -> 0 | FE13: =LOOKUP(FE12,'Input for A-Z Model'!19:19,'Input for A-Z Model'!23:23)*FE4 -> 0 | FF13: =LOOKUP(FF12,'Input for A-Z Model'!19:19,'Input for A-Z Model'!23:23)*FF4 -> 0 | FG13: =LOOKUP(FG12,'Input for A-Z Model'!19:19,'Input for A-Z Model'!23:23)*FG4 -> 0 | FH13: =LOOKUP(FH12,'Input for A-Z Model'!19:19,'Input for A-Z Model'!23:23)*FH4 -> 0 | FI13: =LOOKUP(FI12,'Input for A-Z Model'!19:19,'Input for A-Z Model'!23:23)*FI4 -> 0 | FJ13: =LOOKUP(FJ12,'Input for A-Z Model'!19:19,'Input for A-Z Model'!23:23)*FJ4 -> 0 | FK13: =LOOKUP(FK12,'Input for A-Z Model'!19:19,'Input for A-Z Model'!23:23)*FK4 -> 0 | FL13: =LOOKUP(FL12,'Input for A-Z Model'!19:19,'Input for A-Z Model'!23:23)*FL4 -> 0 | FM13: =LOOKUP(FM12,'Input for A-Z Model'!19:19,'Input for A-Z Model'!23:23)*FM4 -> 0 | FN13: =LOOKUP(FN12,'Input for A-Z Model'!19:19,'Input for A-Z Model'!23:23)*FN4 -> 0 | FO13: =LOOKUP(FO12,'Input for A-Z Model'!19:19,'Input for A-Z Model'!23:23)*FO4 -> 0 | FP13: =LOOKUP(FP12,'Input for A-Z Model'!19:19,'Input for A-Z Model'!23:23)*FP4 -> 0 | FQ13: =LOOKUP(FQ12,'Input for A-Z Model'!19:19,'Input for A-Z Model'!23:23)*FQ4 -> 0 | FR13: =LOOKUP(FR12,'Input for A-Z Model'!19:19,'Input for A-Z Model'!23:23)*FR4 -> 0 | FS13: =LOOKUP(FS12,'Input for A-Z Model'!19:19,'Input for A-Z Model'!23:23)*FS4 -> 0 | FT13: =LOOKUP(FT12,'Input for A-Z Model'!19:19,'Input for A-Z Model'!23:23)*FT4 -> 0 | FU13: =LOOKUP(FU12,'Input for A-Z Model'!19:19,'Input for A-Z Model'!23:23)*FU4 -> 0 | FV13: =LOOKUP(FV12,'Input for A-Z Model'!19:19,'Input for A-Z Model'!23:23)*FV4 -> 0 | FW13: =LOOKUP(FW12,'Input for A-Z Model'!19:19,'Input for A-Z Model'!23:23)*FW4 -> 0 | FX13: =LOOKUP(FX12,'Input for A-Z Model'!19:19,'Input for A-Z Model'!23:23)*FX4 -> 0 | FY13: =LOOKUP(FY12,'Input for A-Z Model'!19:19,'Input for A-Z Model'!23:23)*FY4 -> 0 | FZ13: =LOOKUP(FZ12,'Input for A-Z Model'!19:19,'Input for A-Z Model'!23:23)*FZ4 -> 0 | GA13: =LOOKUP(GA12,'Input for A-Z Model'!19:19,'Input for A-Z Model'!23:23)*GA4 -> 0 | GB13: =LOOKUP(GB12,'Input for A-Z Model'!19:19,'Input for A-Z Model'!23:23)*GB4 -> 0 | GC13: =LOOKUP(GC12,'Input for A-Z Model'!19:19,'Input for A-Z Model'!23:23)*GC4 -> 0 | GD13: =LOOKUP(GD12,'Input for A-Z Model'!19:19,'Input for A-Z Model'!23:23)*GD4 -> 0 | GE13: =LOOKUP(GE12,'Input for A-Z Model'!19:19,'Input for A-Z Model'!23:23)*GE4 -> 0 | GF13: =LOOKUP(GF12,'Input for A-Z Model'!19:19,'Input for A-Z Model'!23:23)*GF4 -> 0 | GG13: =LOOKUP(GG12,'Input for A-Z Model'!19:19,'Input for A-Z Model'!23:23)*GG4 -> 0 | GH13: =LOOKUP(GH12,'Input for A-Z Model'!19:19,'Input for A-Z Model'!23:23)*GH4 -> 0 | GI13: =LOOKUP(GI12,'Input for A-Z Model'!19:19,'Input for A-Z Model'!23:23)*GI4 -> 0 | GJ13: =LOOKUP(GJ12,'Input for A-Z Model'!19:19,'Input for A-Z Model'!23:23)*GJ4 -> 0 | GK13: =LOOKUP(GK12,'Input for A-Z Model'!19:19,'Input for A-Z Model'!23:23)*GK4 -> 0 | GL13: =LOOKUP(GL12,'Input for A-Z Model'!19:19,'Input for A-Z Model'!23:23)*GL4 -> 0 | GM13: =LOOKUP(GM12,'Input for A-Z Model'!19:19,'Input for A-Z Model'!23:23)*GM4 -> 0 | GN13: =LOOKUP(GN12,'Input for A-Z Model'!19:19,'Input for A-Z Model'!23:23)*GN4 -> 0 | GO13: =LOOKUP(GO12,'Input for A-Z Model'!19:19,'Input for A-Z Model'!23:23)*GO4 -> 0 | GP13: =LOOKUP(GP12,'Input for A-Z Model'!19:19,'Input for A-Z Model'!23:23)*GP4 -> 0 | GQ13: =LOOKUP(GQ12,'Input for A-Z Model'!19:19,'Input for A-Z Model'!23:23)*GQ4 -> 0 | GR13: =LOOKUP(GR12,'Input for A-Z Model'!19:19,'Input for A-Z Model'!23:23)*GR4 -> 0 | GS13: =LOOKUP(GS12,'Input for A-Z Model'!19:19,'Input for A-Z Model'!23:23)*GS4 -> 0 | GT13: =LOOKUP(GT12,'Input for A-Z Model'!19:19,'Input for A-Z Model'!23:23)*GT4 -> 0 | GU13: =LOOKUP(GU12,'Input for A-Z Model'!19:19,'Input for A-Z Model'!23:23)*GU4 -> 0 | GV13: =LOOKUP(GV12,'Input for A-Z Model'!19:19,'Input for A-Z Model'!23:23)*GV4 -> 0 | GW13: =LOOKUP(GW12,'Input for A-Z Model'!19:19,'Input for A-Z Model'!23:23)*GW4 -> 0 | GX13: =LOOKUP(GX12,'Input for A-Z Model'!19:19,'Input for A-Z Model'!23:23)*GX4 -> 0 | GY13: =LOOKUP(GY12,'Input for A-Z Model'!19:19,'Input for A-Z Model'!23:23)*GY4 -> 0 | GZ13: =LOOKUP(GZ12,'Input for A-Z Model'!19:19,'Input for A-Z Model'!23:23)*GZ4 -> 0 | HA13: =LOOKUP(HA12,'Input for A-Z Model'!19:19,'Input for A-Z Model'!23:23)*HA4 -> 0
C14: Capital Expenditures | E14: EUR | H14: =SUM(J14:HA14) -> 2500 | J14: =J11*J13 -> 13.36710409 | K14: =K11*K13 -> 17.29831798 | L14: 22.03862885 | M14: 27.64263343 | N14: 34.1340961 | O14: 41.49650763 | P14: 49.66481677 | Q14: 58.51945542 | R14: 67.8837559 | S14: 77.52568263 | T14: 87.16446795 | U14: 96.4822709 | V14: 105.1404179 | W14: 112.7992026 | X14: 119.1397019 | Y14: 123.8856881 | Z14: 126.8235525 | AA14: 127.818242 | AB14: 126.8235525 | AC14: 123.8856881 | AD14: 119.1397019 | AE14: 112.7992026 | AF14: 105.1404179 | AG14: 96.4822709 | AH14: 87.16446795 | AI14: 77.52568263 | AJ14: 67.8837559 | AK14: 58.51945542 | AL14: 49.66481677 | AM14: 41.49650763 | AN14: 34.1340961 | AO14: 27.64263343 | AP14: 22.03862885 | AQ14: 17.29831798 | AR14: 13.36710409 | AS14: 10.16915654 | AT14: 0 | AU14: 0 | AV14: 0 | AW14: 0 | AX14: 0 | AY14: 0 | AZ14: 0 | BA14: 0 | BB14: 0 | BC14: 0 | BD14: 0 | BE14: 0 | BF14: 0 | BG14: 0 | BH14: 0 | BI14: 0 | BJ14: 0 | BK14: 0 | BL14: 0 | BM14: 0 | BN14: 0 | BO14: 0 | BP14: 0 | BQ14: 0 | BR14: 0 | BS14: 0 | BT14: 0 | BU14: 0 | BV14: 0 | BW14: =BW11*BW13 -> 0 | BX14: 0 | BY14: 0 | BZ14: 0 | CA14: 0 | CB14: 0 | CC14: 0 | CD14: 0 | CE14: 0 | CF14: 0 | CG14: 0 | CH14: 0 | CI14: 0 | CJ14: 0 | CK14: 0 | CL14: 0 | CM14: 0 | CN14: 0 | CO14: 0 | CP14: 0 | CQ14: 0 | CR14: 0 | CS14: 0 | CT14: 0 | CU14: 0 | CV14: 0 | CW14: 0 | CX14: 0 | CY14: 0 | CZ14: 0 | DA14: 0 | DB14: 0 | DC14: 0 | DD14: 0 | DE14: 0 | DF14: 0 | DG14: 0 | DH14: 0 | DI14: 0 | DJ14: 0 | DK14: 0 | DL14: 0 | DM14: 0 | DN14: 0 | DO14: 0 | DP14: 0 | DQ14: 0 | DR14: 0 | DS14: 0 | DT14: 0 | DU14: 0 | DV14: 0 | DW14: 0 | DX14: 0 | DY14: 0 | DZ14: 0 | EA14: 0 | EB14: 0 | EC14: 0 | ED14: 0 | EE14: 0 | EF14: 0 | EG14: 0 | EH14: 0 | EI14: =EI11*EI13 -> 0 | EJ14: 0 | EK14: 0 | EL14: 0 | EM14: 0 | EN14: 0 | EO14: 0 | EP14: 0 | EQ14: 0 | ER14: 0 | ES14: 0 | ET14: 0 | EU14: 0 | EV14: 0 | EW14: 0 | EX14: 0 | EY14: 0 | EZ14: 0 | FA14: 0 | FB14: 0 | FC14: 0 | FD14: 0 | FE14: 0 | FF14: 0 | FG14: 0 | FH14: 0 | FI14: 0 | FJ14: 0 | FK14: 0 | FL14: 0 | FM14: 0 | FN14: 0 | FO14: 0 | FP14: 0 | FQ14: 0 | FR14: 0 | FS14: 0 | FT14: 0 | FU14: 0 | FV14: 0 | FW14: 0 | FX14: 0 | FY14: 0 | FZ14: 0 | GA14: 0 | GB14: 0 | GC14: 0 | GD14: 0 | GE14: 0 | GF14: 0 | GG14: 0 | GH14: 0 | GI14: 0 | GJ14: 0 | GK14: 0 | GL14: 0 | GM14: 0 | GN14: 0 | GO14: 0 | GP14: 0 | GQ14: 0 | GR14: 0 | GS14: 0 | GT14: 0 | GU14: =GU11*GU13 -> 0 | GV14: 0 | GW14: 0 | GX14: 0 | GY14: 0 | GZ14: 0 | HA14: 0
C16: Operating Age | E16: Period | J16: =I16+J8 -> 0 | K16: =J16+K8 -> 0 | L16: 0 | M16: 0 | N16: 0 | O16: 0 | P16: 0 | Q16: 0 | R16: 0 | S16: 0 | T16: 0 | U16: 0 | V16: 0 | W16: 0 | X16: 0 | Y16: 0 | Z16: 0 | AA16: 0 | AB16: 0 | AC16: 0 | AD16: 0 | AE16: 0 | AF16: 0 | AG16: 0 | AH16: 0 | AI16: 0 | AJ16: 0 | AK16: 0 | AL16: 0 | AM16: 0 | AN16: 0 | AO16: 0 | AP16: 0 | AQ16: 0 | AR16: 0 | AS16: 0 | AT16: 1 | AU16: 2 | AV16: 3 | AW16: 4 | AX16: 5 | AY16: 6 | AZ16: 7 | BA16: 8 | BB16: 9 | BC16: 10 | BD16: 11 | BE16: 12 | BF16: 13 | BG16: 14 | BH16: 15 | BI16: 16 | BJ16: 17 | BK16: 18 | BL16: 19 | BM16: 20 | BN16: 21 | BO16: 22 | BP16: 23 | BQ16: 24 | BR16: 25 | BS16: 26 | BT16: 27 | BU16: 28 | BV16: 29 | BW16: =BV16+BW8 -> 30 | BX16: 31 | BY16: 32 | BZ16: 33 | CA16: 34 | CB16: 35 | CC16: 36 | CD16: 37 | CE16: 38 | CF16: 39 | CG16: 40 | CH16: 41 | CI16: 42 | CJ16: 43 | CK16: 44 | CL16: 45 | CM16: 46 | CN16: 47 | CO16: 48 | CP16: 49 | CQ16: 50 | CR16: 51 | CS16: 52 | CT16: 53 | CU16: 54 | CV16: 55 | CW16: 56 | CX16: 57 | CY16: 58 | CZ16: 59 | DA16: 60 | DB16: 60 | DC16: 60 | DD16: 60 | DE16: 60 | DF16: 60 | DG16: 60 | DH16: 60 | DI16: 60 | DJ16: 60 | DK16: 60 | DL16: 60 | DM16: 60 | DN16: 60 | DO16: 60 | DP16: 60 | DQ16: 60 | DR16: 60 | DS16: 60 | DT16: 60 | DU16: 60 | DV16: 60 | DW16: 60 | DX16: 60 | DY16: 60 | DZ16: 60 | EA16: 60 | EB16: 60 | EC16: 60 | ED16: 60 | EE16: 60 | EF16: 60 | EG16: 60 | EH16: 60 | EI16: =EH16+EI8 -> 60 | EJ16: 60 | EK16: 60 | EL16: 60 | EM16: 60 | EN16: 60 | EO16: 60 | EP16: 60 | EQ16: 60 | ER16: 60 | ES16: 60 | ET16: 60 | EU16: 60 | EV16: 60 | EW16: 60 | EX16: 60 | EY16: 60 | EZ16: 60 | FA16: 60 | FB16: 60 | FC16: 60 | FD16: 60 | FE16: 60 | FF16: 60 | FG16: 60 | FH16: 60 | FI16: 60 | FJ16: 60 | FK16: 60 | FL16: 60 | FM16: 60 | FN16: 60 | FO16: 60 | FP16: 60 | FQ16: 60 | FR16: 60 | FS16: 60 | FT16: 60 | FU16: 60 | FV16: 60 | FW16: 60 | FX16: 60 | FY16: 60 | FZ16: 60 | GA16: 60 | GB16: 60 | GC16: 60 | GD16: 60 | GE16: 60 | GF16: 60 | GG16: 60 | GH16: 60 | GI16: 60 | GJ16: 60 | GK16: 60 | GL16: 60 | GM16: 60 | GN16: 60 | GO16: 60 | GP16: 60 | GQ16: 60 | GR16: 60 | GS16: 60 | GT16: 60 | GU16: =GT16+GU8 -> 60 | GV16: 60 | GW16: 60 | GX16: 60 | GY16: 60 | GZ16: 60 | HA16: 60
C17: Operating Age in Years | E17: Year | F17: =12/G5 -> 2 | J17: =ROUNDUP(J16/$F$17,0) -> 0 | K17: =ROUNDUP(K16/$F$17,0) -> 0 | L17: 0 | M17: 0 | N17: 0 | O17: 0 | P17: 0 | Q17: 0 | R17: 0 | S17: 0 | T17: 0 | U17: 0 | V17: 0 | W17: 0 | X17: 0 | Y17: 0 | Z17: 0 | AA17: 0 | AB17: 0 | AC17: 0 | AD17: 0 | AE17: 0 | AF17: 0 | AG17: 0 | AH17: 0 | AI17: 0 | AJ17: 0 | AK17: 0 | AL17: 0 | AM17: 0 | AN17: 0 | AO17: 0 | AP17: 0 | AQ17: 0 | AR17: 0 | AS17: 0 | AT17: 1 | AU17: 1 | AV17: 2 | AW17: 2 | AX17: 3 | AY17: 3 | AZ17: 4 | BA17: 4 | BB17: 5 | BC17: 5 | BD17: 6 | BE17: 6 | BF17: 7 | BG17: 7 | BH17: 8 | BI17: 8 | BJ17: 9 | BK17: 9 | BL17: 10 | BM17: 10 | BN17: 11 | BO17: 11 | BP17: 12 | BQ17: 12 | BR17: 13 | BS17: 13 | BT17: 14 | BU17: 14 | BV17: 15 | BW17: =ROUNDUP(BW16/$F$17,0) -> 15 | BX17: 16 | BY17: 16 | BZ17: 17 | CA17: 17 | CB17: 18 | CC17: 18 | CD17: 19 | CE17: 19 | CF17: 20 | CG17: 20 | CH17: 21 | CI17: 21 | CJ17: 22 | CK17: 22 | CL17: 23 | CM17: 23 | CN17: 24 | CO17: 24 | CP17: 25 | CQ17: 25 | CR17: 26 | CS17: 26 | CT17: 27 | CU17: 27 | CV17: 28 | CW17: 28 | CX17: 29 | CY17: 29 | CZ17: 30 | DA17: 30 | DB17: 30 | DC17: 30 | DD17: 30 | DE17: 30 | DF17: 30 | DG17: 30 | DH17: 30 | DI17: 30 | DJ17: 30 | DK17: 30 | DL17: 30 | DM17: 30 | DN17: 30 | DO17: 30 | DP17: 30 | DQ17: 30 | DR17: 30 | DS17: 30 | DT17: 30 | DU17: 30 | DV17: 30 | DW17: 30 | DX17: 30 | DY17: 30 | DZ17: 30 | EA17: 30 | EB17: 30 | EC17: 30 | ED17: 30 | EE17: 30 | EF17: 30 | EG17: 30 | EH17: 30 | EI17: =ROUNDUP(EI16/$F$17,0) -> 30 | EJ17: 30 | EK17: 30 | EL17: 30 | EM17: 30 | EN17: 30 | EO17: 30 | EP17: 30 | EQ17: 30 | ER17: 30 | ES17: 30 | ET17: 30 | EU17: 30 | EV17: 30 | EW17: 30 | EX17: 30 | EY17: 30 | EZ17: 30 | FA17: 30 | FB17: 30 | FC17: 30 | FD17: 30 | FE17: 30 | FF17: 30 | FG17: 30 | FH17: 30 | FI17: 30 | FJ17: 30 | FK17: 30 | FL17: 30 | FM17: 30 | FN17: 30 | FO17: 30 | FP17: 30 | FQ17: 30 | FR17: 30 | FS17: 30 | FT17: 30 | FU17: 30 | FV17: 30 | FW17: 30 | FX17: 30 | FY17: 30 | FZ17: 30 | GA17: 30 | GB17: 30 | GC17: 30 | GD17: 30 | GE17: 30 | GF17: 30 | GG17: 30 | GH17: 30 | GI17: 30 | GJ17: 30 | GK17: 30 | GL17: 30 | GM17: 30 | GN17: 30 | GO17: 30 | GP17: 30 | GQ17: 30 | GR17: 30 | GS17: 30 | GT17: 30 | GU17: =ROUNDUP(GU16/$F$17,0) -> 30 | GV17: 30 | GW17: 30 | GX17: 30 | GY17: 30 | GZ17: 30 | HA17: 30
C19: EBITDA/CFADS | E19: EUR | J19: =LOOKUP(J17,'Input for A-Z Model'!26:26,'Input for A-Z Model'!27:27)*J8 -> 0 | K19: =LOOKUP(K17,'Input for A-Z Model'!26:26,'Input for A-Z Model'!27:27)*K8 -> 0 | L19: =LOOKUP(L17,'Input for A-Z Model'!26:26,'Input for A-Z Model'!27:27)*L8 -> 0 | M19: =LOOKUP(M17,'Input for A-Z Model'!26:26,'Input for A-Z Model'!27:27)*M8 -> 0 | N19: =LOOKUP(N17,'Input for A-Z Model'!26:26,'Input for A-Z Model'!27:27)*N8 -> 0 | O19: =LOOKUP(O17,'Input for A-Z Model'!26:26,'Input for A-Z Model'!27:27)*O8 -> 0 | P19: =LOOKUP(P17,'Input for A-Z Model'!26:26,'Input for A-Z Model'!27:27)*P8 -> 0 | Q19: =LOOKUP(Q17,'Input for A-Z Model'!26:26,'Input for A-Z Model'!27:27)*Q8 -> 0 | R19: =LOOKUP(R17,'Input for A-Z Model'!26:26,'Input for A-Z Model'!27:27)*R8 -> 0 | S19: =LOOKUP(S17,'Input for A-Z Model'!26:26,'Input for A-Z Model'!27:27)*S8 -> 0 | T19: =LOOKUP(T17,'Input for A-Z Model'!26:26,'Input for A-Z Model'!27:27)*T8 -> 0 | U19: =LOOKUP(U17,'Input for A-Z Model'!26:26,'Input for A-Z Model'!27:27)*U8 -> 0 | V19: =LOOKUP(V17,'Input for A-Z Model'!26:26,'Input for A-Z Model'!27:27)*V8 -> 0 | W19: =LOOKUP(W17,'Input for A-Z Model'!26:26,'Input for A-Z Model'!27:27)*W8 -> 0 | X19: =LOOKUP(X17,'Input for A-Z Model'!26:26,'Input for A-Z Model'!27:27)*X8 -> 0 | Y19: =LOOKUP(Y17,'Input for A-Z Model'!26:26,'Input for A-Z Model'!27:27)*Y8 -> 0 | Z19: =LOOKUP(Z17,'Input for A-Z Model'!26:26,'Input for A-Z Model'!27:27)*Z8 -> 0 | AA19: =LOOKUP(AA17,'Input for A-Z Model'!26:26,'Input for A-Z Model'!27:27)*AA8 -> 0 | AB19: =LOOKUP(AB17,'Input for A-Z Model'!26:26,'Input for A-Z Model'!27:27)*AB8 -> 0 | AC19: =LOOKUP(AC17,'Input for A-Z Model'!26:26,'Input for A-Z Model'!27:27)*AC8 -> 0 | AD19: =LOOKUP(AD17,'Input for A-Z Model'!26:26,'Input for A-Z Model'!27:27)*AD8 -> 0 | AE19: =LOOKUP(AE17,'Input for A-Z Model'!26:26,'Input for A-Z Model'!27:27)*AE8 -> 0 | AF19: =LOOKUP(AF17,'Input for A-Z Model'!26:26,'Input for A-Z Model'!27:27)*AF8 -> 0 | AG19: =LOOKUP(AG17,'Input for A-Z Model'!26:26,'Input for A-Z Model'!27:27)*AG8 -> 0 | AH19: =LOOKUP(AH17,'Input for A-Z Model'!26:26,'Input for A-Z Model'!27:27)*AH8 -> 0 | AI19: =LOOKUP(AI17,'Input for A-Z Model'!26:26,'Input for A-Z Model'!27:27)*AI8 -> 0 | AJ19: =LOOKUP(AJ17,'Input for A-Z Model'!26:26,'Input for A-Z Model'!27:27)*AJ8 -> 0 | AK19: =LOOKUP(AK17,'Input for A-Z Model'!26:26,'Input for A-Z Model'!27:27)*AK8 -> 0 | AL19: =LOOKUP(AL17,'Input for A-Z Model'!26:26,'Input for A-Z Model'!27:27)*AL8 -> 0 | AM19: =LOOKUP(AM17,'Input for A-Z Model'!26:26,'Input for A-Z Model'!27:27)*AM8 -> 0 | AN19: =LOOKUP(AN17,'Input for A-Z Model'!26:26,'Input for A-Z Model'!27:27)*AN8 -> 0 | AO19: =LOOKUP(AO17,'Input for A-Z Model'!26:26,'Input for A-Z Model'!27:27)*AO8 -> 0 | AP19: =LOOKUP(AP17,'Input for A-Z Model'!26:26,'Input for A-Z Model'!27:27)*AP8 -> 0 | AQ19: =LOOKUP(AQ17,'Input for A-Z Model'!26:26,'Input for A-Z Model'!27:27)*AQ8 -> 0 | AR19: =LOOKUP(AR17,'Input for A-Z Model'!26:26,'Input for A-Z Model'!27:27)*AR8 -> 0 | AS19: =LOOKUP(AS17,'Input for A-Z Model'!26:26,'Input for A-Z Model'!27:27)*AS8 -> 0 | AT19: =LOOKUP(AT17,'Input for A-Z Model'!26:26,'Input for A-Z Model'!27:27)*AT8 -> 75 | AU19: =LOOKUP(AU17,'Input for A-Z Model'!26:26,'Input for A-Z Model'!27:27)*AU8 -> 75 | AV19: =LOOKUP(AV17,'Input for A-Z Model'!26:26,'Input for A-Z Model'!27:27)*AV8 -> 80 | AW19: =LOOKUP(AW17,'Input for A-Z Model'!26:26,'Input for A-Z Model'!27:27)*AW8 -> 80 | AX19: =LOOKUP(AX17,'Input for A-Z Model'!26:26,'Input for A-Z Model'!27:27)*AX8 -> 95 | AY19: =LOOKUP(AY17,'Input for A-Z Model'!26:26,'Input for A-Z Model'!27:27)*AY8 -> 95 | AZ19: =LOOKUP(AZ17,'Input for A-Z Model'!26:26,'Input for A-Z Model'!27:27)*AZ8 -> 110 | BA19: =LOOKUP(BA17,'Input for A-Z Model'!26:26,'Input for A-Z Model'!27:27)*BA8 -> 110 | BB19: =LOOKUP(BB17,'Input for A-Z Model'!26:26,'Input for A-Z Model'!27:27)*BB8 -> 110 | BC19: =LOOKUP(BC17,'Input for A-Z Model'!26:26,'Input for A-Z Model'!27:27)*BC8 -> 110 | BD19: =LOOKUP(BD17,'Input for A-Z Model'!26:26,'Input for A-Z Model'!27:27)*BD8 -> 110 | BE19: =LOOKUP(BE17,'Input for A-Z Model'!26:26,'Input for A-Z Model'!27:27)*BE8 -> 110 | BF19: =LOOKUP(BF17,'Input for A-Z Model'!26:26,'Input for A-Z Model'!27:27)*BF8 -> 110 | BG19: =LOOKUP(BG17,'Input for A-Z Model'!26:26,'Input for A-Z Model'!27:27)*BG8 -> 110 | BH19: =LOOKUP(BH17,'Input for A-Z Model'!26:26,'Input for A-Z Model'!27:27)*BH8 -> 110 | BI19: =LOOKUP(BI17,'Input for A-Z Model'!26:26,'Input for A-Z Model'!27:27)*BI8 -> 110 | BJ19: =LOOKUP(BJ17,'Input for A-Z Model'!26:26,'Input for A-Z Model'!27:27)*BJ8 -> 80 | BK19: =LOOKUP(BK17,'Input for A-Z Model'!26:26,'Input for A-Z Model'!27:27)*BK8 -> 80 | BL19: =LOOKUP(BL17,'Input for A-Z Model'!26:26,'Input for A-Z Model'!27:27)*BL8 -> 80 | BM19: =LOOKUP(BM17,'Input for A-Z Model'!26:26,'Input for A-Z Model'!27:27)*BM8 -> 80 | BN19: =LOOKUP(BN17,'Input for A-Z Model'!26:26,'Input for A-Z Model'!27:27)*BN8 -> 80 | BO19: =LOOKUP(BO17,'Input for A-Z Model'!26:26,'Input for A-Z Model'!27:27)*BO8 -> 80 | BP19: =LOOKUP(BP17,'Input for A-Z Model'!26:26,'Input for A-Z Model'!27:27)*BP8 -> 80 | BQ19: =LOOKUP(BQ17,'Input for A-Z Model'!26:26,'Input for A-Z Model'!27:27)*BQ8 -> 80 | BR19: =LOOKUP(BR17,'Input for A-Z Model'!26:26,'Input for A-Z Model'!27:27)*BR8 -> 80 | BS19: =LOOKUP(BS17,'Input for A-Z Model'!26:26,'Input for A-Z Model'!27:27)*BS8 -> 80 | BT19: =LOOKUP(BT17,'Input for A-Z Model'!26:26,'Input for A-Z Model'!27:27)*BT8 -> 80 | BU19: =LOOKUP(BU17,'Input for A-Z Model'!26:26,'Input for A-Z Model'!27:27)*BU8 -> 80 | BV19: =LOOKUP(BV17,'Input for A-Z Model'!26:26,'Input for A-Z Model'!27:27)*BV8 -> 80 | BW19: =LOOKUP(BW17,'Input for A-Z Model'!26:26,'Input for A-Z Model'!27:27)*BW8 -> 80 | BX19: =LOOKUP(BX17,'Input for A-Z Model'!26:26,'Input for A-Z Model'!27:27)*BX8 -> 95 | BY19: =LOOKUP(BY17,'Input for A-Z Model'!26:26,'Input for A-Z Model'!27:27)*BY8 -> 95 | BZ19: =LOOKUP(BZ17,'Input for A-Z Model'!26:26,'Input for A-Z Model'!27:27)*BZ8 -> 95 | CA19: =LOOKUP(CA17,'Input for A-Z Model'!26:26,'Input for A-Z Model'!27:27)*CA8 -> 95 | CB19: =LOOKUP(CB17,'Input for A-Z Model'!26:26,'Input for A-Z Model'!27:27)*CB8 -> 95 | CC19: =LOOKUP(CC17,'Input for A-Z Model'!26:26,'Input for A-Z Model'!27:27)*CC8 -> 95 | CD19: =LOOKUP(CD17,'Input for A-Z Model'!26:26,'Input for A-Z Model'!27:27)*CD8 -> 95 | CE19: =LOOKUP(CE17,'Input for A-Z Model'!26:26,'Input for A-Z Model'!27:27)*CE8 -> 95 | CF19: =LOOKUP(CF17,'Input for A-Z Model'!26:26,'Input for A-Z Model'!27:27)*CF8 -> 95 | CG19: =LOOKUP(CG17,'Input for A-Z Model'!26:26,'Input for A-Z Model'!27:27)*CG8 -> 95 | CH19: =LOOKUP(CH17,'Input for A-Z Model'!26:26,'Input for A-Z Model'!27:27)*CH8 -> 95 | CI19: =LOOKUP(CI17,'Input for A-Z Model'!26:26,'Input for A-Z Model'!27:27)*CI8 -> 95 | CJ19: =LOOKUP(CJ17,'Input for A-Z Model'!26:26,'Input for A-Z Model'!27:27)*CJ8 -> 95 | CK19: =LOOKUP(CK17,'Input for A-Z Model'!26:26,'Input for A-Z Model'!27:27)*CK8 -> 95 | CL19: =LOOKUP(CL17,'Input for A-Z Model'!26:26,'Input for A-Z Model'!27:27)*CL8 -> 95 | CM19: =LOOKUP(CM17,'Input for A-Z Model'!26:26,'Input for A-Z Model'!27:27)*CM8 -> 95 | CN19: =LOOKUP(CN17,'Input for A-Z Model'!26:26,'Input for A-Z Model'!27:27)*CN8 -> 95 | CO19: =LOOKUP(CO17,'Input for A-Z Model'!26:26,'Input for A-Z Model'!27:27)*CO8 -> 95 | CP19: =LOOKUP(CP17,'Input for A-Z Model'!26:26,'Input for A-Z Model'!27:27)*CP8 -> 95 | CQ19: =LOOKUP(CQ17,'Input for A-Z Model'!26:26,'Input for A-Z Model'!27:27)*CQ8 -> 95 | CR19: =LOOKUP(CR17,'Input for A-Z Model'!26:26,'Input for A-Z Model'!27:27)*CR8 -> 95 | CS19: =LOOKUP(CS17,'Input for A-Z Model'!26:26,'Input for A-Z Model'!27:27)*CS8 -> 95 | CT19: =LOOKUP(CT17,'Input for A-Z Model'!26:26,'Input for A-Z Model'!27:27)*CT8 -> 95 | CU19: =LOOKUP(CU17,'Input for A-Z Model'!26:26,'Input for A-Z Model'!27:27)*CU8 -> 95 | CV19: =LOOKUP(CV17,'Input for A-Z Model'!26:26,'Input for A-Z Model'!27:27)*CV8 -> 95 | CW19: =LOOKUP(CW17,'Input for A-Z Model'!26:26,'Input for A-Z Model'!27:27)*CW8 -> 95 | CX19: =LOOKUP(CX17,'Input for A-Z Model'!26:26,'Input for A-Z Model'!27:27)*CX8 -> 95 | CY19: =LOOKUP(CY17,'Input for A-Z Model'!26:26,'Input for A-Z Model'!27:27)*CY8 -> 95 | CZ19: =LOOKUP(CZ17,'Input for A-Z Model'!26:26,'Input for A-Z Model'!27:27)*CZ8 -> 100 | DA19: =LOOKUP(DA17,'Input for A-Z Model'!26:26,'Input for A-Z Model'!27:27)*DA8 -> 100 | DB19: =LOOKUP(DB17,'Input for A-Z Model'!26:26,'Input for A-Z Model'!27:27)*DB8 -> 0 | DC19: =LOOKUP(DC17,'Input for A-Z Model'!26:26,'Input for A-Z Model'!27:27)*DC8 -> 0 | DD19: =LOOKUP(DD17,'Input for A-Z Model'!26:26,'Input for A-Z Model'!27:27)*DD8 -> 0 | DE19: =LOOKUP(DE17,'Input for A-Z Model'!26:26,'Input for A-Z Model'!27:27)*DE8 -> 0 | DF19: =LOOKUP(DF17,'Input for A-Z Model'!26:26,'Input for A-Z Model'!27:27)*DF8 -> 0 | DG19: =LOOKUP(DG17,'Input for A-Z Model'!26:26,'Input for A-Z Model'!27:27)*DG8 -> 0 | DH19: =LOOKUP(DH17,'Input for A-Z Model'!26:26,'Input for A-Z Model'!27:27)*DH8 -> 0 | DI19: =LOOKUP(DI17,'Input for A-Z Model'!26:26,'Input for A-Z Model'!27:27)*DI8 -> 0 | DJ19: =LOOKUP(DJ17,'Input for A-Z Model'!26:26,'Input for A-Z Model'!27:27)*DJ8 -> 0 | DK19: =LOOKUP(DK17,'Input for A-Z Model'!26:26,'Input for A-Z Model'!27:27)*DK8 -> 0 | DL19: =LOOKUP(DL17,'Input for A-Z Model'!26:26,'Input for A-Z Model'!27:27)*DL8 -> 0 | DM19: =LOOKUP(DM17,'Input for A-Z Model'!26:26,'Input for A-Z Model'!27:27)*DM8 -> 0 | DN19: =LOOKUP(DN17,'Input for A-Z Model'!26:26,'Input for A-Z Model'!27:27)*DN8 -> 0 | DO19: =LOOKUP(DO17,'Input for A-Z Model'!26:26,'Input for A-Z Model'!27:27)*DO8 -> 0 | DP19: =LOOKUP(DP17,'Input for A-Z Model'!26:26,'Input for A-Z Model'!27:27)*DP8 -> 0 | DQ19: =LOOKUP(DQ17,'Input for A-Z Model'!26:26,'Input for A-Z Model'!27:27)*DQ8 -> 0 | DR19: =LOOKUP(DR17,'Input for A-Z Model'!26:26,'Input for A-Z Model'!27:27)*DR8 -> 0 | DS19: =LOOKUP(DS17,'Input for A-Z Model'!26:26,'Input for A-Z Model'!27:27)*DS8 -> 0 | DT19: =LOOKUP(DT17,'Input for A-Z Model'!26:26,'Input for A-Z Model'!27:27)*DT8 -> 0 | DU19: =LOOKUP(DU17,'Input for A-Z Model'!26:26,'Input for A-Z Model'!27:27)*DU8 -> 0 | DV19: =LOOKUP(DV17,'Input for A-Z Model'!26:26,'Input for A-Z Model'!27:27)*DV8 -> 0 | DW19: =LOOKUP(DW17,'Input for A-Z Model'!26:26,'Input for A-Z Model'!27:27)*DW8 -> 0 | DX19: =LOOKUP(DX17,'Input for A-Z Model'!26:26,'Input for A-Z Model'!27:27)*DX8 -> 0 | DY19: =LOOKUP(DY17,'Input for A-Z Model'!26:26,'Input for A-Z Model'!27:27)*DY8 -> 0 | DZ19: =LOOKUP(DZ17,'Input for A-Z Model'!26:26,'Input for A-Z Model'!27:27)*DZ8 -> 0 | EA19: =LOOKUP(EA17,'Input for A-Z Model'!26:26,'Input for A-Z Model'!27:27)*EA8 -> 0 | EB19: =LOOKUP(EB17,'Input for A-Z Model'!26:26,'Input for A-Z Model'!27:27)*EB8 -> 0 | EC19: =LOOKUP(EC17,'Input for A-Z Model'!26:26,'Input for A-Z Model'!27:27)*EC8 -> 0 | ED19: =LOOKUP(ED17,'Input for A-Z Model'!26:26,'Input for A-Z Model'!27:27)*ED8 -> 0 | EE19: =LOOKUP(EE17,'Input for A-Z Model'!26:26,'Input for A-Z Model'!27:27)*EE8 -> 0 | EF19: =LOOKUP(EF17,'Input for A-Z Model'!26:26,'Input for A-Z Model'!27:27)*EF8 -> 0 | EG19: =LOOKUP(EG17,'Input for A-Z Model'!26:26,'Input for A-Z Model'!27:27)*EG8 -> 0 | EH19: =LOOKUP(EH17,'Input for A-Z Model'!26:26,'Input for A-Z Model'!27:27)*EH8 -> 0 | EI19: =LOOKUP(EI17,'Input for A-Z Model'!26:26,'Input for A-Z Model'!27:27)*EI8 -> 0 | EJ19: =LOOKUP(EJ17,'Input for A-Z Model'!26:26,'Input for A-Z Model'!27:27)*EJ8 -> 0 | EK19: =LOOKUP(EK17,'Input for A-Z Model'!26:26,'Input for A-Z Model'!27:27)*EK8 -> 0 | EL19: =LOOKUP(EL17,'Input for A-Z Model'!26:26,'Input for A-Z Model'!27:27)*EL8 -> 0 | EM19: =LOOKUP(EM17,'Input for A-Z Model'!26:26,'Input for A-Z Model'!27:27)*EM8 -> 0 | EN19: =LOOKUP(EN17,'Input for A-Z Model'!26:26,'Input for A-Z Model'!27:27)*EN8 -> 0 | EO19: =LOOKUP(EO17,'Input for A-Z Model'!26:26,'Input for A-Z Model'!27:27)*EO8 -> 0 | EP19: =LOOKUP(EP17,'Input for A-Z Model'!26:26,'Input for A-Z Model'!27:27)*EP8 -> 0 | EQ19: =LOOKUP(EQ17,'Input for A-Z Model'!26:26,'Input for A-Z Model'!27:27)*EQ8 -> 0 | ER19: =LOOKUP(ER17,'Input for A-Z Model'!26:26,'Input for A-Z Model'!27:27)*ER8 -> 0 | ES19: =LOOKUP(ES17,'Input for A-Z Model'!26:26,'Input for A-Z Model'!27:27)*ES8 -> 0 | ET19: =LOOKUP(ET17,'Input for A-Z Model'!26:26,'Input for A-Z Model'!27:27)*ET8 -> 0 | EU19: =LOOKUP(EU17,'Input for A-Z Model'!26:26,'Input for A-Z Model'!27:27)*EU8 -> 0 | EV19: =LOOKUP(EV17,'Input for A-Z Model'!26:26,'Input for A-Z Model'!27:27)*EV8 -> 0 | EW19: =LOOKUP(EW17,'Input for A-Z Model'!26:26,'Input for A-Z Model'!27:27)*EW8 -> 0 | EX19: =LOOKUP(EX17,'Input for A-Z Model'!26:26,'Input for A-Z Model'!27:27)*EX8 -> 0 | EY19: =LOOKUP(EY17,'Input for A-Z Model'!26:26,'Input for A-Z Model'!27:27)*EY8 -> 0 | EZ19: =LOOKUP(EZ17,'Input for A-Z Model'!26:26,'Input for A-Z Model'!27:27)*EZ8 -> 0 | FA19: =LOOKUP(FA17,'Input for A-Z Model'!26:26,'Input for A-Z Model'!27:27)*FA8 -> 0 | FB19: =LOOKUP(FB17,'Input for A-Z Model'!26:26,'Input for A-Z Model'!27:27)*FB8 -> 0 | FC19: =LOOKUP(FC17,'Input for A-Z Model'!26:26,'Input for A-Z Model'!27:27)*FC8 -> 0 | FD19: =LOOKUP(FD17,'Input for A-Z Model'!26:26,'Input for A-Z Model'!27:27)*FD8 -> 0 | FE19: =LOOKUP(FE17,'Input for A-Z Model'!26:26,'Input for A-Z Model'!27:27)*FE8 -> 0 | FF19: =LOOKUP(FF17,'Input for A-Z Model'!26:26,'Input for A-Z Model'!27:27)*FF8 -> 0 | FG19: =LOOKUP(FG17,'Input for A-Z Model'!26:26,'Input for A-Z Model'!27:27)*FG8 -> 0 | FH19: =LOOKUP(FH17,'Input for A-Z Model'!26:26,'Input for A-Z Model'!27:27)*FH8 -> 0 | FI19: =LOOKUP(FI17,'Input for A-Z Model'!26:26,'Input for A-Z Model'!27:27)*FI8 -> 0 | FJ19: =LOOKUP(FJ17,'Input for A-Z Model'!26:26,'Input for A-Z Model'!27:27)*FJ8 -> 0 | FK19: =LOOKUP(FK17,'Input for A-Z Model'!26:26,'Input for A-Z Model'!27:27)*FK8 -> 0 | FL19: =LOOKUP(FL17,'Input for A-Z Model'!26:26,'Input for A-Z Model'!27:27)*FL8 -> 0 | FM19: =LOOKUP(FM17,'Input for A-Z Model'!26:26,'Input for A-Z Model'!27:27)*FM8 -> 0 | FN19: =LOOKUP(FN17,'Input for A-Z Model'!26:26,'Input for A-Z Model'!27:27)*FN8 -> 0 | FO19: =LOOKUP(FO17,'Input for A-Z Model'!26:26,'Input for A-Z Model'!27:27)*FO8 -> 0 | FP19: =LOOKUP(FP17,'Input for A-Z Model'!26:26,'Input for A-Z Model'!27:27)*FP8 -> 0 | FQ19: =LOOKUP(FQ17,'Input for A-Z Model'!26:26,'Input for A-Z Model'!27:27)*FQ8 -> 0 | FR19: =LOOKUP(FR17,'Input for A-Z Model'!26:26,'Input for A-Z Model'!27:27)*FR8 -> 0 | FS19: =LOOKUP(FS17,'Input for A-Z Model'!26:26,'Input for A-Z Model'!27:27)*FS8 -> 0 | FT19: =LOOKUP(FT17,'Input for A-Z Model'!26:26,'Input for A-Z Model'!27:27)*FT8 -> 0 | FU19: =LOOKUP(FU17,'Input for A-Z Model'!26:26,'Input for A-Z Model'!27:27)*FU8 -> 0 | FV19: =LOOKUP(FV17,'Input for A-Z Model'!26:26,'Input for A-Z Model'!27:27)*FV8 -> 0 | FW19: =LOOKUP(FW17,'Input for A-Z Model'!26:26,'Input for A-Z Model'!27:27)*FW8 -> 0 | FX19: =LOOKUP(FX17,'Input for A-Z Model'!26:26,'Input for A-Z Model'!27:27)*FX8 -> 0 | FY19: =LOOKUP(FY17,'Input for A-Z Model'!26:26,'Input for A-Z Model'!27:27)*FY8 -> 0 | FZ19: =LOOKUP(FZ17,'Input for A-Z Model'!26:26,'Input for A-Z Model'!27:27)*FZ8 -> 0 | GA19: =LOOKUP(GA17,'Input for A-Z Model'!26:26,'Input for A-Z Model'!27:27)*GA8 -> 0 | GB19: =LOOKUP(GB17,'Input for A-Z Model'!26:26,'Input for A-Z Model'!27:27)*GB8 -> 0 | GC19: =LOOKUP(GC17,'Input for A-Z Model'!26:26,'Input for A-Z Model'!27:27)*GC8 -> 0 | GD19: =LOOKUP(GD17,'Input for A-Z Model'!26:26,'Input for A-Z Model'!27:27)*GD8 -> 0 | GE19: =LOOKUP(GE17,'Input for A-Z Model'!26:26,'Input for A-Z Model'!27:27)*GE8 -> 0 | GF19: =LOOKUP(GF17,'Input for A-Z Model'!26:26,'Input for A-Z Model'!27:27)*GF8 -> 0 | GG19: =LOOKUP(GG17,'Input for A-Z Model'!26:26,'Input for A-Z Model'!27:27)*GG8 -> 0 | GH19: =LOOKUP(GH17,'Input for A-Z Model'!26:26,'Input for A-Z Model'!27:27)*GH8 -> 0 | GI19: =LOOKUP(GI17,'Input for A-Z Model'!26:26,'Input for A-Z Model'!27:27)*GI8 -> 0 | GJ19: =LOOKUP(GJ17,'Input for A-Z Model'!26:26,'Input for A-Z Model'!27:27)*GJ8 -> 0 | GK19: =LOOKUP(GK17,'Input for A-Z Model'!26:26,'Input for A-Z Model'!27:27)*GK8 -> 0 | GL19: =LOOKUP(GL17,'Input for A-Z Model'!26:26,'Input for A-Z Model'!27:27)*GL8 -> 0 | GM19: =LOOKUP(GM17,'Input for A-Z Model'!26:26,'Input for A-Z Model'!27:27)*GM8 -> 0 | GN19: =LOOKUP(GN17,'Input for A-Z Model'!26:26,'Input for A-Z Model'!27:27)*GN8 -> 0 | GO19: =LOOKUP(GO17,'Input for A-Z Model'!26:26,'Input for A-Z Model'!27:27)*GO8 -> 0 | GP19: =LOOKUP(GP17,'Input for A-Z Model'!26:26,'Input for A-Z Model'!27:27)*GP8 -> 0 | GQ19: =LOOKUP(GQ17,'Input for A-Z Model'!26:26,'Input for A-Z Model'!27:27)*GQ8 -> 0 | GR19: =LOOKUP(GR17,'Input for A-Z Model'!26:26,'Input for A-Z Model'!27:27)*GR8 -> 0 | GS19: =LOOKUP(GS17,'Input for A-Z Model'!26:26,'Input for A-Z Model'!27:27)*GS8 -> 0 | GT19: =LOOKUP(GT17,'Input for A-Z Model'!26:26,'Input for A-Z Model'!27:27)*GT8 -> 0 | GU19: =LOOKUP(GU17,'Input for A-Z Model'!26:26,'Input for A-Z Model'!27:27)*GU8 -> 0 | GV19: =LOOKUP(GV17,'Input for A-Z Model'!26:26,'Input for A-Z Model'!27:27)*GV8 -> 0 | GW19: =LOOKUP(GW17,'Input for A-Z Model'!26:26,'Input for A-Z Model'!27:27)*GW8 -> 0 | GX19: =LOOKUP(GX17,'Input for A-Z Model'!26:26,'Input for A-Z Model'!27:27)*GX8 -> 0 | GY19: =LOOKUP(GY17,'Input for A-Z Model'!26:26,'Input for A-Z Model'!27:27)*GY8 -> 0 | GZ19: =LOOKUP(GZ17,'Input for A-Z Model'!26:26,'Input for A-Z Model'!27:27)*GZ8 -> 0 | HA19: =LOOKUP(HA17,'Input for A-Z Model'!26:26,'Input for A-Z Model'!27:27)*HA8 -> 0
C20: Period (1/2) | E20: Period | J20: =MOD(J16,2)=0 -> TRUE | K20: =MOD(K16,2)=0 -> TRUE | L20: TRUE | M20: TRUE | N20: TRUE | O20: TRUE | P20: TRUE | Q20: TRUE | R20: TRUE | S20: TRUE | T20: TRUE | U20: TRUE | V20: TRUE | W20: TRUE | X20: TRUE | Y20: TRUE | Z20: TRUE | AA20: TRUE | AB20: TRUE | AC20: TRUE | AD20: TRUE | AE20: TRUE | AF20: TRUE | AG20: TRUE | AH20: TRUE | AI20: TRUE | AJ20: TRUE | AK20: TRUE | AL20: TRUE | AM20: TRUE | AN20: TRUE | AO20: TRUE | AP20: TRUE | AQ20: TRUE | AR20: TRUE | AS20: TRUE | AT20: FALSE | AU20: TRUE | AV20: FALSE | AW20: TRUE | AX20: FALSE | AY20: TRUE | AZ20: FALSE | BA20: TRUE | BB20: FALSE | BC20: TRUE | BD20: FALSE | BE20: TRUE | BF20: FALSE | BG20: TRUE | BH20: FALSE | BI20: TRUE | BJ20: FALSE | BK20: TRUE | BL20: FALSE | BM20: TRUE | BN20: FALSE | BO20: TRUE | BP20: FALSE | BQ20: TRUE | BR20: FALSE | BS20: TRUE | BT20: FALSE | BU20: TRUE | BV20: FALSE | BW20: =MOD(BW16,2)=0 -> TRUE | BX20: FALSE | BY20: TRUE | BZ20: FALSE | CA20: TRUE | CB20: FALSE | CC20: TRUE | CD20: FALSE | CE20: TRUE | CF20: FALSE | CG20: TRUE | CH20: FALSE | CI20: TRUE | CJ20: FALSE | CK20: TRUE | CL20: FALSE | CM20: TRUE | CN20: FALSE | CO20: TRUE | CP20: FALSE | CQ20: TRUE | CR20: FALSE | CS20: TRUE | CT20: FALSE | CU20: TRUE | CV20: FALSE | CW20: TRUE | CX20: FALSE | CY20: TRUE | CZ20: FALSE | DA20: TRUE | DB20: TRUE | DC20: TRUE | DD20: TRUE | DE20: TRUE | DF20: TRUE | DG20: TRUE | DH20: TRUE | DI20: TRUE | DJ20: TRUE | DK20: TRUE | DL20: TRUE | DM20: TRUE | DN20: TRUE | DO20: TRUE | DP20: TRUE | DQ20: TRUE | DR20: TRUE | DS20: TRUE | DT20: TRUE | DU20: TRUE | DV20: TRUE | DW20: TRUE | DX20: TRUE | DY20: TRUE | DZ20: TRUE | EA20: TRUE | EB20: TRUE | EC20: TRUE | ED20: TRUE | EE20: TRUE | EF20: TRUE | EG20: TRUE | EH20: TRUE | EI20: =MOD(EI16,2)=0 -> TRUE | EJ20: TRUE | EK20: TRUE | EL20: TRUE | EM20: TRUE | EN20: TRUE | EO20: TRUE | EP20: TRUE | EQ20: TRUE | ER20: TRUE | ES20: TRUE | ET20: TRUE | EU20: TRUE | EV20: TRUE | EW20: TRUE | EX20: TRUE | EY20: TRUE | EZ20: TRUE | FA20: TRUE | FB20: TRUE | FC20: TRUE | FD20: TRUE | FE20: TRUE | FF20: TRUE | FG20: TRUE | FH20: TRUE | FI20: TRUE | FJ20: TRUE | FK20: TRUE | FL20: TRUE | FM20: TRUE | FN20: TRUE | FO20: TRUE | FP20: TRUE | FQ20: TRUE | FR20: TRUE | FS20: TRUE | FT20: TRUE | FU20: TRUE | FV20: TRUE | FW20: TRUE | FX20: TRUE | FY20: TRUE | FZ20: TRUE | GA20: TRUE | GB20: TRUE | GC20: TRUE | GD20: TRUE | GE20: TRUE | GF20: TRUE | GG20: TRUE | GH20: TRUE | GI20: TRUE | GJ20: TRUE | GK20: TRUE | GL20: TRUE | GM20: TRUE | GN20: TRUE | GO20: TRUE | GP20: TRUE | GQ20: TRUE | GR20: TRUE | GS20: TRUE | GT20: TRUE | GU20: =MOD(GU16,2)=0 -> TRUE | GV20: TRUE | GW20: TRUE | GX20: TRUE | GY20: TRUE | GZ20: TRUE | HA20: TRUE
C21: Seasonality Factor | E21: Factor | F21: ='Input for A-Z Model'!F30 -> 0.8 | G21: ='Input for A-Z Model'!G30 -> 1.2 | J21: =IF(J20,$F$21,$G$21) -> 0.8 | K21: =IF(K20,$F$21,$G$21) -> 0.8 | L21: 0.8 | M21: 0.8 | N21: 0.8 | O21: 0.8 | P21: 0.8 | Q21: 0.8 | R21: 0.8 | S21: 0.8 | T21: 0.8 | U21: 0.8 | V21: 0.8 | W21: 0.8 | X21: 0.8 | Y21: 0.8 | Z21: 0.8 | AA21: 0.8 | AB21: 0.8 | AC21: 0.8 | AD21: 0.8 | AE21: 0.8 | AF21: 0.8 | AG21: 0.8 | AH21: 0.8 | AI21: 0.8 | AJ21: 0.8 | AK21: 0.8 | AL21: 0.8 | AM21: 0.8 | AN21: 0.8 | AO21: 0.8 | AP21: 0.8 | AQ21: 0.8 | AR21: 0.8 | AS21: 0.8 | AT21: 1.2 | AU21: 0.8 | AV21: 1.2 | AW21: 0.8 | AX21: 1.2 | AY21: 0.8 | AZ21: 1.2 | BA21: 0.8 | BB21: 1.2 | BC21: 0.8 | BD21: 1.2 | BE21: 0.8 | BF21: 1.2 | BG21: 0.8 | BH21: 1.2 | BI21: 0.8 | BJ21: 1.2 | BK21: 0.8 | BL21: 1.2 | BM21: 0.8 | BN21: 1.2 | BO21: 0.8 | BP21: 1.2 | BQ21: 0.8 | BR21: 1.2 | BS21: 0.8 | BT21: 1.2 | BU21: 0.8 | BV21: 1.2 | BW21: =IF(BW20,$F$21,$G$21) -> 0.8 | BX21: 1.2 | BY21: 0.8 | BZ21: 1.2 | CA21: 0.8 | CB21: 1.2 | CC21: 0.8 | CD21: 1.2 | CE21: 0.8 | CF21: 1.2 | CG21: 0.8 | CH21: 1.2 | CI21: 0.8 | CJ21: 1.2 | CK21: 0.8 | CL21: 1.2 | CM21: 0.8 | CN21: 1.2 | CO21: 0.8 | CP21: 1.2 | CQ21: 0.8 | CR21: 1.2 | CS21: 0.8 | CT21: 1.2 | CU21: 0.8 | CV21: 1.2 | CW21: 0.8 | CX21: 1.2 | CY21: 0.8 | CZ21: 1.2 | DA21: 0.8 | DB21: 0.8 | DC21: 0.8 | DD21: 0.8 | DE21: 0.8 | DF21: 0.8 | DG21: 0.8 | DH21: 0.8 | DI21: 0.8 | DJ21: 0.8 | DK21: 0.8 | DL21: 0.8 | DM21: 0.8 | DN21: 0.8 | DO21: 0.8 | DP21: 0.8 | DQ21: 0.8 | DR21: 0.8 | DS21: 0.8 | DT21: 0.8 | DU21: 0.8 | DV21: 0.8 | DW21: 0.8 | DX21: 0.8 | DY21: 0.8 | DZ21: 0.8 | EA21: 0.8 | EB21: 0.8 | EC21: 0.8 | ED21: 0.8 | EE21: 0.8 | EF21: 0.8 | EG21: 0.8 | EH21: 0.8 | EI21: =IF(EI20,$F$21,$G$21) -> 0.8 | EJ21: 0.8 | EK21: 0.8 | EL21: 0.8 | EM21: 0.8 | EN21: 0.8 | EO21: 0.8 | EP21: 0.8 | EQ21: 0.8 | ER21: 0.8 | ES21: 0.8 | ET21: 0.8 | EU21: 0.8 | EV21: 0.8 | EW21: 0.8 | EX21: 0.8 | EY21: 0.8 | EZ21: 0.8 | FA21: 0.8 | FB21: 0.8 | FC21: 0.8 | FD21: 0.8 | FE21: 0.8 | FF21: 0.8 | FG21: 0.8 | FH21: 0.8 | FI21: 0.8 | FJ21: 0.8 | FK21: 0.8 | FL21: 0.8 | FM21: 0.8 | FN21: 0.8 | FO21: 0.8 | FP21: 0.8 | FQ21: 0.8 | FR21: 0.8 | FS21: 0.8 | FT21: 0.8 | FU21: 0.8 | FV21: 0.8 | FW21: 0.8 | FX21: 0.8 | FY21: 0.8 | FZ21: 0.8 | GA21: 0.8 | GB21: 0.8 | GC21: 0.8 | GD21: 0.8 | GE21: 0.8 | GF21: 0.8 | GG21: 0.8 | GH21: 0.8 | GI21: 0.8 | GJ21: 0.8 | GK21: 0.8 | GL21: 0.8 | GM21: 0.8 | GN21: 0.8 | GO21: 0.8 | GP21: 0.8 | GQ21: 0.8 | GR21: 0.8 | GS21: 0.8 | GT21: 0.8 | GU21: =IF(GU20,$F$21,$G$21) -> 0.8 | GV21: 0.8 | GW21: 0.8 | GX21: 0.8 | GY21: 0.8 | GZ21: 0.8 | HA21: 0.8
C23: Final EBITDA/CFADS | E23: EUR | J23: =J21*J19 -> 0 | K23: =K21*K19 -> 0 | L23: 0 | M23: 0 | N23: 0 | O23: 0 | P23: 0 | Q23: 0 | R23: 0 | S23: 0 | T23: 0 | U23: 0 | V23: 0 | W23: 0 | X23: 0 | Y23: 0 | Z23: 0 | AA23: 0 | AB23: 0 | AC23: 0 | AD23: 0 | AE23: 0 | AF23: 0 | AG23: 0 | AH23: 0 | AI23: 0 | AJ23: 0 | AK23: 0 | AL23: 0 | AM23: 0 | AN23: 0 | AO23: 0 | AP23: 0 | AQ23: 0 | AR23: 0 | AS23: 0 | AT23: 90 | AU23: 60 | AV23: 96 | AW23: 64 | AX23: 114 | AY23: 76 | AZ23: 132 | BA23: 88 | BB23: 132 | BC23: 88 | BD23: 132 | BE23: 88 | BF23: 132 | BG23: 88 | BH23: 132 | BI23: 88 | BJ23: 96 | BK23: 64 | BL23: 96 | BM23: 64 | BN23: 96 | BO23: 64 | BP23: 96 | BQ23: 64 | BR23: 96 | BS23: 64 | BT23: 96 | BU23: 64 | BV23: 96 | BW23: =BW21*BW19 -> 64 | BX23: 114 | BY23: 76 | BZ23: 114 | CA23: 76 | CB23: 114 | CC23: 76 | CD23: 114 | CE23: 76 | CF23: 114 | CG23: 76 | CH23: 114 | CI23: 76 | CJ23: 114 | CK23: 76 | CL23: 114 | CM23: 76 | CN23: 114 | CO23: 76 | CP23: 114 | CQ23: 76 | CR23: 114 | CS23: 76 | CT23: 114 | CU23: 76 | CV23: 114 | CW23: 76 | CX23: 114 | CY23: 76 | CZ23: 120 | DA23: 80 | DB23: 0 | DC23: 0 | DD23: 0 | DE23: 0 | DF23: 0 | DG23: 0 | DH23: 0 | DI23: 0 | DJ23: 0 | DK23: 0 | DL23: 0 | DM23: 0 | DN23: 0 | DO23: 0 | DP23: 0 | DQ23: 0 | DR23: 0 | DS23: 0 | DT23: 0 | DU23: 0 | DV23: 0 | DW23: 0 | DX23: 0 | DY23: 0 | DZ23: 0 | EA23: 0 | EB23: 0 | EC23: 0 | ED23: 0 | EE23: 0 | EF23: 0 | EG23: 0 | EH23: 0 | EI23: =EI21*EI19 -> 0 | EJ23: 0 | EK23: 0 | EL23: 0 | EM23: 0 | EN23: 0 | EO23: 0 | EP23: 0 | EQ23: 0 | ER23: 0 | ES23: 0 | ET23: 0 | EU23: 0 | EV23: 0 | EW23: 0 | EX23: 0 | EY23: 0 | EZ23: 0 | FA23: 0 | FB23: 0 | FC23: 0 | FD23: 0 | FE23: 0 | FF23: 0 | FG23: 0 | FH23: 0 | FI23: 0 | FJ23: 0 | FK23: 0 | FL23: 0 | FM23: 0 | FN23: 0 | FO23: 0 | FP23: 0 | FQ23: 0 | FR23: 0 | FS23: 0 | FT23: 0 | FU23: 0 | FV23: 0 | FW23: 0 | FX23: 0 | FY23: 0 | FZ23: 0 | GA23: 0 | GB23: 0 | GC23: 0 | GD23: 0 | GE23: 0 | GF23: 0 | GG23: 0 | GH23: 0 | GI23: 0 | GJ23: 0 | GK23: 0 | GL23: 0 | GM23: 0 | GN23: 0 | GO23: 0 | GP23: 0 | GQ23: 0 | GR23: 0 | GS23: 0 | GT23: 0 | GU23: =GU21*GU19 -> 0 | GV23: 0 | GW23: 0 | GX23: 0 | GY23: 0 | GZ23: 0 | HA23: 0
C24: Project Cash Flow | E24: EUR | J24: =J23-J14 -> -13.36710409 | K24: =K23-K14 -> -17.29831798 | L24: -22.03862885 | M24: -27.64263343 | N24: -34.1340961 | O24: -41.49650763 | P24: -49.66481677 | Q24: -58.51945542 | R24: -67.8837559 | S24: -77.52568263 | T24: -87.16446795 | U24: -96.4822709 | V24: -105.1404179 | W24: -112.7992026 | X24: -119.1397019 | Y24: -123.8856881 | Z24: -126.8235525 | AA24: -127.818242 | AB24: -126.8235525 | AC24: -123.8856881 | AD24: -119.1397019 | AE24: -112.7992026 | AF24: -105.1404179 | AG24: -96.4822709 | AH24: -87.16446795 | AI24: -77.52568263 | AJ24: -67.8837559 | AK24: -58.51945542 | AL24: -49.66481677 | AM24: -41.49650763 | AN24: -34.1340961 | AO24: -27.64263343 | AP24: -22.03862885 | AQ24: -17.29831798 | AR24: -13.36710409 | AS24: -10.16915654 | AT24: 90 | AU24: 60 | AV24: 96 | AW24: 64 | AX24: 114 | AY24: 76 | AZ24: 132 | BA24: 88 | BB24: 132 | BC24: 88 | BD24: 132 | BE24: 88 | BF24: 132 | BG24: 88 | BH24: 132 | BI24: 88 | BJ24: 96 | BK24: 64 | BL24: 96 | BM24: 64 | BN24: 96 | BO24: 64 | BP24: 96 | BQ24: 64 | BR24: 96 | BS24: 64 | BT24: 96 | BU24: 64 | BV24: 96 | BW24: =BW23-BW14 -> 64 | BX24: 114 | BY24: 76 | BZ24: 114 | CA24: 76 | CB24: 114 | CC24: 76 | CD24: 114 | CE24: 76 | CF24: 114 | CG24: 76 | CH24: 114 | CI24: 76 | CJ24: 114 | CK24: 76 | CL24: 114 | CM24: 76 | CN24: 114 | CO24: 76 | CP24: 114 | CQ24: 76 | CR24: 114 | CS24: 76 | CT24: 114 | CU24: 76 | CV24: 114 | CW24: 76 | CX24: 114 | CY24: 76 | CZ24: 120 | DA24: 80 | DB24: 0 | DC24: 0 | DD24: 0 | DE24: 0 | DF24: 0 | DG24: 0 | DH24: 0 | DI24: 0 | DJ24: 0 | DK24: 0 | DL24: 0 | DM24: 0 | DN24: 0 | DO24: 0 | DP24: 0 | DQ24: 0 | DR24: 0 | DS24: 0 | DT24: 0 | DU24: 0 | DV24: 0 | DW24: 0 | DX24: 0 | DY24: 0 | DZ24: 0 | EA24: 0 | EB24: 0 | EC24: 0 | ED24: 0 | EE24: 0 | EF24: 0 | EG24: 0 | EH24: 0 | EI24: =EI23-EI14 -> 0 | EJ24: 0 | EK24: 0 | EL24: 0 | EM24: 0 | EN24: 0 | EO24: 0 | EP24: 0 | EQ24: 0 | ER24: 0 | ES24: 0 | ET24: 0 | EU24: 0 | EV24: 0 | EW24: 0 | EX24: 0 | EY24: 0 | EZ24: 0 | FA24: 0 | FB24: 0 | FC24: 0 | FD24: 0 | FE24: 0 | FF24: 0 | FG24: 0 | FH24: 0 | FI24: 0 | FJ24: 0 | FK24: 0 | FL24: 0 | FM24: 0 | FN24: 0 | FO24: 0 | FP24: 0 | FQ24: 0 | FR24: 0 | FS24: 0 | FT24: 0 | FU24: 0 | FV24: 0 | FW24: 0 | FX24: 0 | FY24: 0 | FZ24: 0 | GA24: 0 | GB24: 0 | GC24: 0 | GD24: 0 | GE24: 0 | GF24: 0 | GG24: 0 | GH24: 0 | GI24: 0 | GJ24: 0 | GK24: 0 | GL24: 0 | GM24: 0 | GN24: 0 | GO24: 0 | GP24: 0 | GQ24: 0 | GR24: 0 | GS24: 0 | GT24: 0 | GU24: =GU23-GU14 -> 0 | GV24: 0 | GW24: 0 | GX24: 0 | GY24: 0 | GZ24: 0 | HA24: 0
C26: Project IRR | E26: % | F26: =XIRR(J24:HA24,J7:HA7) -> 0.05589250028
B28: Debt Sizing
C29: Debt Repayment Period | E29: Flag | F29: ='Input for A-Z Model'!F9 -> 2023-01-01 | G29: ='Input for A-Z Model'!F42 -> 2043-01-01 | H29: =SUM(J29:HA29) -> 40 | J29: =AND(J6>=$F$29,J6<$G$29)*1 -> 0 | K29: =AND(K6>=$F$29,K6<$G$29)*1 -> 0 | L29: 0 | M29: 0 | N29: 0 | O29: 0 | P29: 0 | Q29: 0 | R29: 0 | S29: 0 | T29: 0 | U29: 0 | V29: 0 | W29: 0 | X29: 0 | Y29: 0 | Z29: 0 | AA29: 0 | AB29: 0 | AC29: 0 | AD29: 0 | AE29: 0 | AF29: 0 | AG29: 0 | AH29: 0 | AI29: 0 | AJ29: 0 | AK29: 0 | AL29: 0 | AM29: 0 | AN29: 0 | AO29: 0 | AP29: 0 | AQ29: 0 | AR29: 0 | AS29: 0 | AT29: 1 | AU29: 1 | AV29: 1 | AW29: 1 | AX29: 1 | AY29: 1 | AZ29: 1 | BA29: 1 | BB29: 1 | BC29: 1 | BD29: 1 | BE29: 1 | BF29: 1 | BG29: 1 | BH29: 1 | BI29: 1 | BJ29: 1 | BK29: 1 | BL29: 1 | BM29: 1 | BN29: 1 | BO29: 1 | BP29: 1 | BQ29: 1 | BR29: 1 | BS29: 1 | BT29: 1 | BU29: 1 | BV29: 1 | BW29: =AND(BW6>=$F$29,BW6<$G$29)*1 -> 1 | BX29: 1 | BY29: 1 | BZ29: 1 | CA29: 1 | CB29: 1 | CC29: 1 | CD29: 1 | CE29: 1 | CF29: 1 | CG29: 1 | CH29: 0 | CI29: 0 | CJ29: 0 | CK29: 0 | CL29: 0 | CM29: 0 | CN29: 0 | CO29: 0 | CP29: 0 | CQ29: 0 | CR29: 0 | CS29: 0 | CT29: 0 | CU29: 0 | CV29: 0 | CW29: 0 | CX29: 0 | CY29: 0 | CZ29: 0 | DA29: 0 | DB29: 0 | DC29: 0 | DD29: 0 | DE29: 0 | DF29: 0 | DG29: 0 | DH29: 0 | DI29: 0 | DJ29: 0 | DK29: 0 | DL29: 0 | DM29: 0 | DN29: 0 | DO29: 0 | DP29: 0 | DQ29: 0 | DR29: 0 | DS29: 0 | DT29: 0 | DU29: 0 | DV29: 0 | DW29: 0 | DX29: 0 | DY29: 0 | DZ29: 0 | EA29: 0 | EB29: 0 | EC29: 0 | ED29: 0 | EE29: 0 | EF29: 0 | EG29: 0 | EH29: 0 | EI29: =AND(EI6>=$F$29,EI6<$G$29)*1 -> 0 | EJ29: 0 | EK29: 0 | EL29: 0 | EM29: 0 | EN29: 0 | EO29: 0 | EP29: 0 | EQ29: 0 | ER29: 0 | ES29: 0 | ET29: 0 | EU29: 0 | EV29: 0 | EW29: 0 | EX29: 0 | EY29: 0 | EZ29: 0 | FA29: 0 | FB29: 0 | FC29: 0 | FD29: 0 | FE29: 0 | FF29: 0 | FG29: 0 | FH29: 0 | FI29: 0 | FJ29: 0 | FK29: 0 | FL29: 0 | FM29: 0 | FN29: 0 | FO29: 0 | FP29: 0 | FQ29: 0 | FR29: 0 | FS29: 0 | FT29: 0 | FU29: 0 | FV29: 0 | FW29: 0 | FX29: 0 | FY29: 0 | FZ29: 0 | GA29: 0 | GB29: 0 | GC29: 0 | GD29: 0 | GE29: 0 | GF29: 0 | GG29: 0 | GH29: 0 | GI29: 0 | GJ29: 0 | GK29: 0 | GL29: 0 | GM29: 0 | GN29: 0 | GO29: 0 | GP29: 0 | GQ29: 0 | GR29: 0 | GS29: 0 | GT29: 0 | GU29: =AND(GU6>=$F$29,GU6<$G$29)*1 -> 0 | GV29: 0 | GW29: 0 | GX29: 0 | GY29: 0 | GZ29: 0 | HA29: 0
C30: CFADS over Repayment | E30: EUR | J30: =J29*J23 -> 0 | K30: =K29*K23 -> 0 | L30: 0 | M30: 0 | N30: 0 | O30: 0 | P30: 0 | Q30: 0 | R30: 0 | S30: 0 | T30: 0 | U30: 0 | V30: 0 | W30: 0 | X30: 0 | Y30: 0 | Z30: 0 | AA30: 0 | AB30: 0 | AC30: 0 | AD30: 0 | AE30: 0 | AF30: 0 | AG30: 0 | AH30: 0 | AI30: 0 | AJ30: 0 | AK30: 0 | AL30: 0 | AM30: 0 | AN30: 0 | AO30: 0 | AP30: 0 | AQ30: 0 | AR30: 0 | AS30: 0 | AT30: 90 | AU30: 60 | AV30: 96 | AW30: 64 | AX30: 114 | AY30: 76 | AZ30: 132 | BA30: 88 | BB30: 132 | BC30: 88 | BD30: 132 | BE30: 88 | BF30: 132 | BG30: 88 | BH30: 132 | BI30: 88 | BJ30: 96 | BK30: 64 | BL30: 96 | BM30: 64 | BN30: 96 | BO30: 64 | BP30: 96 | BQ30: 64 | BR30: 96 | BS30: 64 | BT30: 96 | BU30: 64 | BV30: 96 | BW30: =BW29*BW23 -> 64 | BX30: 114 | BY30: 76 | BZ30: 114 | CA30: 76 | CB30: 114 | CC30: 76 | CD30: 114 | CE30: 76 | CF30: 114 | CG30: 76 | CH30: 0 | CI30: 0 | CJ30: 0 | CK30: 0 | CL30: 0 | CM30: 0 | CN30: 0 | CO30: 0 | CP30: 0 | CQ30: 0 | CR30: 0 | CS30: 0 | CT30: 0 | CU30: 0 | CV30: 0 | CW30: 0 | CX30: 0 | CY30: 0 | CZ30: 0 | DA30: 0 | DB30: 0 | DC30: 0 | DD30: 0 | DE30: 0 | DF30: 0 | DG30: 0 | DH30: 0 | DI30: 0 | DJ30: 0 | DK30: 0 | DL30: 0 | DM30: 0 | DN30: 0 | DO30: 0 | DP30: 0 | DQ30: 0 | DR30: 0 | DS30: 0 | DT30: 0 | DU30: 0 | DV30: 0 | DW30: 0 | DX30: 0 | DY30: 0 | DZ30: 0 | EA30: 0 | EB30: 0 | EC30: 0 | ED30: 0 | EE30: 0 | EF30: 0 | EG30: 0 | EH30: 0 | EI30: =EI29*EI23 -> 0 | EJ30: 0 | EK30: 0 | EL30: 0 | EM30: 0 | EN30: 0 | EO30: 0 | EP30: 0 | EQ30: 0 | ER30: 0 | ES30: 0 | ET30: 0 | EU30: 0 | EV30: 0 | EW30: 0 | EX30: 0 | EY30: 0 | EZ30: 0 | FA30: 0 | FB30: 0 | FC30: 0 | FD30: 0 | FE30: 0 | FF30: 0 | FG30: 0 | FH30: 0 | FI30: 0 | FJ30: 0 | FK30: 0 | FL30: 0 | FM30: 0 | FN30: 0 | FO30: 0 | FP30: 0 | FQ30: 0 | FR30: 0 | FS30: 0 | FT30: 0 | FU30: 0 | FV30: 0 | FW30: 0 | FX30: 0 | FY30: 0 | FZ30: 0 | GA30: 0 | GB30: 0 | GC30: 0 | GD30: 0 | GE30: 0 | GF30: 0 | GG30: 0 | GH30: 0 | GI30: 0 | GJ30: 0 | GK30: 0 | GL30: 0 | GM30: 0 | GN30: 0 | GO30: 0 | GP30: 0 | GQ30: 0 | GR30: 0 | GS30: 0 | GT30: 0 | GU30: =GU29*GU23 -> 0 | GV30: 0 | GW30: 0 | GX30: 0 | GY30: 0 | GZ30: 0 | HA30: 0
C32: Periodic Interest
D33: Annual Swap Rate | E33: % p.a. | F33: ='Input for A-Z Model'!F46 -> 0.02 | J33: =$F$33 -> 0.02 | K33: =$F$33 -> 0.02 | L33: 0.02 | M33: 0.02 | N33: 0.02 | O33: 0.02 | P33: 0.02 | Q33: 0.02 | R33: 0.02 | S33: 0.02 | T33: 0.02 | U33: 0.02 | V33: 0.02 | W33: 0.02 | X33: 0.02 | Y33: 0.02 | Z33: 0.02 | AA33: 0.02 | AB33: 0.02 | AC33: 0.02 | AD33: 0.02 | AE33: 0.02 | AF33: 0.02 | AG33: 0.02 | AH33: 0.02 | AI33: 0.02 | AJ33: 0.02 | AK33: 0.02 | AL33: 0.02 | AM33: 0.02 | AN33: 0.02 | AO33: 0.02 | AP33: 0.02 | AQ33: 0.02 | AR33: 0.02 | AS33: 0.02 | AT33: 0.02 | AU33: 0.02 | AV33: 0.02 | AW33: 0.02 | AX33: 0.02 | AY33: 0.02 | AZ33: 0.02 | BA33: 0.02 | BB33: 0.02 | BC33: 0.02 | BD33: 0.02 | BE33: 0.02 | BF33: 0.02 | BG33: 0.02 | BH33: 0.02 | BI33: 0.02 | BJ33: 0.02 | BK33: 0.02 | BL33: 0.02 | BM33: 0.02 | BN33: 0.02 | BO33: 0.02 | BP33: 0.02 | BQ33: 0.02 | BR33: 0.02 | BS33: 0.02 | BT33: 0.02 | BU33: 0.02 | BV33: 0.02 | BW33: =$F$33 -> 0.02 | BX33: 0.02 | BY33: 0.02 | BZ33: 0.02 | CA33: 0.02 | CB33: 0.02 | CC33: 0.02 | CD33: 0.02 | CE33: 0.02 | CF33: 0.02 | CG33: 0.02 | CH33: 0.02 | CI33: 0.02 | CJ33: 0.02 | CK33: 0.02 | CL33: 0.02 | CM33: 0.02 | CN33: 0.02 | CO33: 0.02 | CP33: 0.02 | CQ33: 0.02 | CR33: 0.02 | CS33: 0.02 | CT33: 0.02 | CU33: 0.02 | CV33: 0.02 | CW33: 0.02 | CX33: 0.02 | CY33: 0.02 | CZ33: 0.02 | DA33: 0.02 | DB33: 0.02 | DC33: 0.02 | DD33: 0.02 | DE33: 0.02 | DF33: 0.02 | DG33: 0.02 | DH33: 0.02 | DI33: 0.02 | DJ33: 0.02 | DK33: 0.02 | DL33: 0.02 | DM33: 0.02 | DN33: 0.02 | DO33: 0.02 | DP33: 0.02 | DQ33: 0.02 | DR33: 0.02 | DS33: 0.02 | DT33: 0.02 | DU33: 0.02 | DV33: 0.02 | DW33: 0.02 | DX33: 0.02 | DY33: 0.02 | DZ33: 0.02 | EA33: 0.02 | EB33: 0.02 | EC33: 0.02 | ED33: 0.02 | EE33: 0.02 | EF33: 0.02 | EG33: 0.02 | EH33: 0.02 | EI33: =$F$33 -> 0.02 | EJ33: 0.02 | EK33: 0.02 | EL33: 0.02 | EM33: 0.02 | EN33: 0.02 | EO33: 0.02 | EP33: 0.02 | EQ33: 0.02 | ER33: 0.02 | ES33: 0.02 | ET33: 0.02 | EU33: 0.02 | EV33: 0.02 | EW33: 0.02 | EX33: 0.02 | EY33: 0.02 | EZ33: 0.02 | FA33: 0.02 | FB33: 0.02 | FC33: 0.02 | FD33: 0.02 | FE33: 0.02 | FF33: 0.02 | FG33: 0.02 | FH33: 0.02 | FI33: 0.02 | FJ33: 0.02 | FK33: 0.02 | FL33: 0.02 | FM33: 0.02 | FN33: 0.02 | FO33: 0.02 | FP33: 0.02 | FQ33: 0.02 | FR33: 0.02 | FS33: 0.02 | FT33: 0.02 | FU33: 0.02 | FV33: 0.02 | FW33: 0.02 | FX33: 0.02 | FY33: 0.02 | FZ33: 0.02 | GA33: 0.02 | GB33: 0.02 | GC33: 0.02 | GD33: 0.02 | GE33: 0.02 | GF33: 0.02 | GG33: 0.02 | GH33: 0.02 | GI33: 0.02 | GJ33: 0.02 | GK33: 0.02 | GL33: 0.02 | GM33: 0.02 | GN33: 0.02 | GO33: 0.02 | GP33: 0.02 | GQ33: 0.02 | GR33: 0.02 | GS33: 0.02 | GT33: 0.02 | GU33: =$F$33 -> 0.02 | GV33: 0.02 | GW33: 0.02 | GX33: 0.02 | GY33: 0.02 | GZ33: 0.02 | HA33: 0.02
D34: Annual Credit Spread (Lookup) | E34: % p.a. | J34: =LOOKUP(J6,'Input for A-Z Model'!48:48,'Input for A-Z Model'!49:49) -> 0.015 | K34: =LOOKUP(K6,'Input for A-Z Model'!48:48,'Input for A-Z Model'!49:49) -> 0.015 | L34: =LOOKUP(L6,'Input for A-Z Model'!48:48,'Input for A-Z Model'!49:49) -> 0.015 | M34: =LOOKUP(M6,'Input for A-Z Model'!48:48,'Input for A-Z Model'!49:49) -> 0.015 | N34: =LOOKUP(N6,'Input for A-Z Model'!48:48,'Input for A-Z Model'!49:49) -> 0.015 | O34: =LOOKUP(O6,'Input for A-Z Model'!48:48,'Input for A-Z Model'!49:49) -> 0.015 | P34: =LOOKUP(P6,'Input for A-Z Model'!48:48,'Input for A-Z Model'!49:49) -> 0.015 | Q34: =LOOKUP(Q6,'Input for A-Z Model'!48:48,'Input for A-Z Model'!49:49) -> 0.015 | R34: =LOOKUP(R6,'Input for A-Z Model'!48:48,'Input for A-Z Model'!49:49) -> 0.015 | S34: =LOOKUP(S6,'Input for A-Z Model'!48:48,'Input for A-Z Model'!49:49) -> 0.015 | T34: =LOOKUP(T6,'Input for A-Z Model'!48:48,'Input for A-Z Model'!49:49) -> 0.015 | U34: =LOOKUP(U6,'Input for A-Z Model'!48:48,'Input for A-Z Model'!49:49) -> 0.015 | V34: =LOOKUP(V6,'Input for A-Z Model'!48:48,'Input for A-Z Model'!49:49) -> 0.015 | W34: =LOOKUP(W6,'Input for A-Z Model'!48:48,'Input for A-Z Model'!49:49) -> 0.015 | X34: =LOOKUP(X6,'Input for A-Z Model'!48:48,'Input for A-Z Model'!49:49) -> 0.015 | Y34: =LOOKUP(Y6,'Input for A-Z Model'!48:48,'Input for A-Z Model'!49:49) -> 0.015 | Z34: =LOOKUP(Z6,'Input for A-Z Model'!48:48,'Input for A-Z Model'!49:49) -> 0.015 | AA34: =LOOKUP(AA6,'Input for A-Z Model'!48:48,'Input for A-Z Model'!49:49) -> 0.015 | AB34: =LOOKUP(AB6,'Input for A-Z Model'!48:48,'Input for A-Z Model'!49:49) -> 0.015 | AC34: =LOOKUP(AC6,'Input for A-Z Model'!48:48,'Input for A-Z Model'!49:49) -> 0.015 | AD34: =LOOKUP(AD6,'Input for A-Z Model'!48:48,'Input for A-Z Model'!49:49) -> 0.015 | AE34: =LOOKUP(AE6,'Input for A-Z Model'!48:48,'Input for A-Z Model'!49:49) -> 0.015 | AF34: =LOOKUP(AF6,'Input for A-Z Model'!48:48,'Input for A-Z Model'!49:49) -> 0.015 | AG34: =LOOKUP(AG6,'Input for A-Z Model'!48:48,'Input for A-Z Model'!49:49) -> 0.015 | AH34: =LOOKUP(AH6,'Input for A-Z Model'!48:48,'Input for A-Z Model'!49:49) -> 0.015 | AI34: =LOOKUP(AI6,'Input for A-Z Model'!48:48,'Input for A-Z Model'!49:49) -> 0.015 | AJ34: =LOOKUP(AJ6,'Input for A-Z Model'!48:48,'Input for A-Z Model'!49:49) -> 0.015 | AK34: =LOOKUP(AK6,'Input for A-Z Model'!48:48,'Input for A-Z Model'!49:49) -> 0.015 | AL34: =LOOKUP(AL6,'Input for A-Z Model'!48:48,'Input for A-Z Model'!49:49) -> 0.015 | AM34: =LOOKUP(AM6,'Input for A-Z Model'!48:48,'Input for A-Z Model'!49:49) -> 0.015 | AN34: =LOOKUP(AN6,'Input for A-Z Model'!48:48,'Input for A-Z Model'!49:49) -> 0.015 | AO34: =LOOKUP(AO6,'Input for A-Z Model'!48:48,'Input for A-Z Model'!49:49) -> 0.015 | AP34: =LOOKUP(AP6,'Input for A-Z Model'!48:48,'Input for A-Z Model'!49:49) -> 0.015 | AQ34: =LOOKUP(AQ6,'Input for A-Z Model'!48:48,'Input for A-Z Model'!49:49) -> 0.015 | AR34: =LOOKUP(AR6,'Input for A-Z Model'!48:48,'Input for A-Z Model'!49:49) -> 0.015 | AS34: =LOOKUP(AS6,'Input for A-Z Model'!48:48,'Input for A-Z Model'!49:49) -> 0.015 | AT34: =LOOKUP(AT6,'Input for A-Z Model'!48:48,'Input for A-Z Model'!49:49) -> 0.0175 | AU34: =LOOKUP(AU6,'Input for A-Z Model'!48:48,'Input for A-Z Model'!49:49) -> 0.0175 | AV34: =LOOKUP(AV6,'Input for A-Z Model'!48:48,'Input for A-Z Model'!49:49) -> 0.0175 | AW34: =LOOKUP(AW6,'Input for A-Z Model'!48:48,'Input for A-Z Model'!49:49) -> 0.0175 | AX34: =LOOKUP(AX6,'Input for A-Z Model'!48:48,'Input for A-Z Model'!49:49) -> 0.018 | AY34: =LOOKUP(AY6,'Input for A-Z Model'!48:48,'Input for A-Z Model'!49:49) -> 0.018 | AZ34: =LOOKUP(AZ6,'Input for A-Z Model'!48:48,'Input for A-Z Model'!49:49) -> 0.018 | BA34: =LOOKUP(BA6,'Input for A-Z Model'!48:48,'Input for A-Z Model'!49:49) -> 0.018 | BB34: =LOOKUP(BB6,'Input for A-Z Model'!48:48,'Input for A-Z Model'!49:49) -> 0.02 | BC34: =LOOKUP(BC6,'Input for A-Z Model'!48:48,'Input for A-Z Model'!49:49) -> 0.02 | BD34: =LOOKUP(BD6,'Input for A-Z Model'!48:48,'Input for A-Z Model'!49:49) -> 0.02 | BE34: =LOOKUP(BE6,'Input for A-Z Model'!48:48,'Input for A-Z Model'!49:49) -> 0.02 | BF34: =LOOKUP(BF6,'Input for A-Z Model'!48:48,'Input for A-Z Model'!49:49) -> 0.02 | BG34: =LOOKUP(BG6,'Input for A-Z Model'!48:48,'Input for A-Z Model'!49:49) -> 0.02 | BH34: =LOOKUP(BH6,'Input for A-Z Model'!48:48,'Input for A-Z Model'!49:49) -> 0.02 | BI34: =LOOKUP(BI6,'Input for A-Z Model'!48:48,'Input for A-Z Model'!49:49) -> 0.02 | BJ34: =LOOKUP(BJ6,'Input for A-Z Model'!48:48,'Input for A-Z Model'!49:49) -> 0.02 | BK34: =LOOKUP(BK6,'Input for A-Z Model'!48:48,'Input for A-Z Model'!49:49) -> 0.02 | BL34: =LOOKUP(BL6,'Input for A-Z Model'!48:48,'Input for A-Z Model'!49:49) -> 0.02 | BM34: =LOOKUP(BM6,'Input for A-Z Model'!48:48,'Input for A-Z Model'!49:49) -> 0.02 | BN34: =LOOKUP(BN6,'Input for A-Z Model'!48:48,'Input for A-Z Model'!49:49) -> 0.02 | BO34: =LOOKUP(BO6,'Input for A-Z Model'!48:48,'Input for A-Z Model'!49:49) -> 0.02 | BP34: =LOOKUP(BP6,'Input for A-Z Model'!48:48,'Input for A-Z Model'!49:49) -> 0.02 | BQ34: =LOOKUP(BQ6,'Input for A-Z Model'!48:48,'Input for A-Z Model'!49:49) -> 0.02 | BR34: =LOOKUP(BR6,'Input for A-Z Model'!48:48,'Input for A-Z Model'!49:49) -> 0.02 | BS34: =LOOKUP(BS6,'Input for A-Z Model'!48:48,'Input for A-Z Model'!49:49) -> 0.02 | BT34: =LOOKUP(BT6,'Input for A-Z Model'!48:48,'Input for A-Z Model'!49:49) -> 0.02 | BU34: =LOOKUP(BU6,'Input for A-Z Model'!48:48,'Input for A-Z Model'!49:49) -> 0.02 | BV34: =LOOKUP(BV6,'Input for A-Z Model'!48:48,'Input for A-Z Model'!49:49) -> 0.02 | BW34: =LOOKUP(BW6,'Input for A-Z Model'!48:48,'Input for A-Z Model'!49:49) -> 0.02 | BX34: =LOOKUP(BX6,'Input for A-Z Model'!48:48,'Input for A-Z Model'!49:49) -> 0.02 | BY34: =LOOKUP(BY6,'Input for A-Z Model'!48:48,'Input for A-Z Model'!49:49) -> 0.02 | BZ34: =LOOKUP(BZ6,'Input for A-Z Model'!48:48,'Input for A-Z Model'!49:49) -> 0.02 | CA34: =LOOKUP(CA6,'Input for A-Z Model'!48:48,'Input for A-Z Model'!49:49) -> 0.02 | CB34: =LOOKUP(CB6,'Input for A-Z Model'!48:48,'Input for A-Z Model'!49:49) -> 0.02 | CC34: =LOOKUP(CC6,'Input for A-Z Model'!48:48,'Input for A-Z Model'!49:49) -> 0.02 | CD34: =LOOKUP(CD6,'Input for A-Z Model'!48:48,'Input for A-Z Model'!49:49) -> 0.02 | CE34: =LOOKUP(CE6,'Input for A-Z Model'!48:48,'Input for A-Z Model'!49:49) -> 0.02 | CF34: =LOOKUP(CF6,'Input for A-Z Model'!48:48,'Input for A-Z Model'!49:49) -> 0.02 | CG34: =LOOKUP(CG6,'Input for A-Z Model'!48:48,'Input for A-Z Model'!49:49) -> 0.02 | CH34: =LOOKUP(CH6,'Input for A-Z Model'!48:48,'Input for A-Z Model'!49:49) -> 0.02 | CI34: =LOOKUP(CI6,'Input for A-Z Model'!48:48,'Input for A-Z Model'!49:49) -> 0.02 | CJ34: =LOOKUP(CJ6,'Input for A-Z Model'!48:48,'Input for A-Z Model'!49:49) -> 0.02 | CK34: =LOOKUP(CK6,'Input for A-Z Model'!48:48,'Input for A-Z Model'!49:49) -> 0.02 | CL34: =LOOKUP(CL6,'Input for A-Z Model'!48:48,'Input for A-Z Model'!49:49) -> 0.02 | CM34: =LOOKUP(CM6,'Input for A-Z Model'!48:48,'Input for A-Z Model'!49:49) -> 0.02 | CN34: =LOOKUP(CN6,'Input for A-Z Model'!48:48,'Input for A-Z Model'!49:49) -> 0.02 | CO34: =LOOKUP(CO6,'Input for A-Z Model'!48:48,'Input for A-Z Model'!49:49) -> 0.02 | CP34: =LOOKUP(CP6,'Input for A-Z Model'!48:48,'Input for A-Z Model'!49:49) -> 0.02 | CQ34: =LOOKUP(CQ6,'Input for A-Z Model'!48:48,'Input for A-Z Model'!49:49) -> 0.02 | CR34: =LOOKUP(CR6,'Input for A-Z Model'!48:48,'Input for A-Z Model'!49:49) -> 0.02 | CS34: =LOOKUP(CS6,'Input for A-Z Model'!48:48,'Input for A-Z Model'!49:49) -> 0.02 | CT34: =LOOKUP(CT6,'Input for A-Z Model'!48:48,'Input for A-Z Model'!49:49) -> 0.02 | CU34: =LOOKUP(CU6,'Input for A-Z Model'!48:48,'Input for A-Z Model'!49:49) -> 0.02 | CV34: =LOOKUP(CV6,'Input for A-Z Model'!48:48,'Input for A-Z Model'!49:49) -> 0.02 | CW34: =LOOKUP(CW6,'Input for A-Z Model'!48:48,'Input for A-Z Model'!49:49) -> 0.02 | CX34: =LOOKUP(CX6,'Input for A-Z Model'!48:48,'Input for A-Z Model'!49:49) -> 0.02 | CY34: =LOOKUP(CY6,'Input for A-Z Model'!48:48,'Input for A-Z Model'!49:49) -> 0.02 | CZ34: =LOOKUP(CZ6,'Input for A-Z Model'!48:48,'Input for A-Z Model'!49:49) -> 0.02 | DA34: =LOOKUP(DA6,'Input for A-Z Model'!48:48,'Input for A-Z Model'!49:49) -> 0.02 | DB34: =LOOKUP(DB6,'Input for A-Z Model'!48:48,'Input for A-Z Model'!49:49) -> 0.02 | DC34: =LOOKUP(DC6,'Input for A-Z Model'!48:48,'Input for A-Z Model'!49:49) -> 0.02 | DD34: =LOOKUP(DD6,'Input for A-Z Model'!48:48,'Input for A-Z Model'!49:49) -> 0.02 | DE34: =LOOKUP(DE6,'Input for A-Z Model'!48:48,'Input for A-Z Model'!49:49) -> 0.02 | DF34: =LOOKUP(DF6,'Input for A-Z Model'!48:48,'Input for A-Z Model'!49:49) -> 0.02 | DG34: =LOOKUP(DG6,'Input for A-Z Model'!48:48,'Input for A-Z Model'!49:49) -> 0.02 | DH34: =LOOKUP(DH6,'Input for A-Z Model'!48:48,'Input for A-Z Model'!49:49) -> 0.02 | DI34: =LOOKUP(DI6,'Input for A-Z Model'!48:48,'Input for A-Z Model'!49:49) -> 0.02 | DJ34: =LOOKUP(DJ6,'Input for A-Z Model'!48:48,'Input for A-Z Model'!49:49) -> 0.02 | DK34: =LOOKUP(DK6,'Input for A-Z Model'!48:48,'Input for A-Z Model'!49:49) -> 0.02 | DL34: =LOOKUP(DL6,'Input for A-Z Model'!48:48,'Input for A-Z Model'!49:49) -> 0.02 | DM34: =LOOKUP(DM6,'Input for A-Z Model'!48:48,'Input for A-Z Model'!49:49) -> 0.02 | DN34: =LOOKUP(DN6,'Input for A-Z Model'!48:48,'Input for A-Z Model'!49:49) -> 0.02 | DO34: =LOOKUP(DO6,'Input for A-Z Model'!48:48,'Input for A-Z Model'!49:49) -> 0.02 | DP34: =LOOKUP(DP6,'Input for A-Z Model'!48:48,'Input for A-Z Model'!49:49) -> 0.02 | DQ34: =LOOKUP(DQ6,'Input for A-Z Model'!48:48,'Input for A-Z Model'!49:49) -> 0.02 | DR34: =LOOKUP(DR6,'Input for A-Z Model'!48:48,'Input for A-Z Model'!49:49) -> 0.02 | DS34: =LOOKUP(DS6,'Input for A-Z Model'!48:48,'Input for A-Z Model'!49:49) -> 0.02 | DT34: =LOOKUP(DT6,'Input for A-Z Model'!48:48,'Input for A-Z Model'!49:49) -> 0.02 | DU34: =LOOKUP(DU6,'Input for A-Z Model'!48:48,'Input for A-Z Model'!49:49) -> 0.02 | DV34: =LOOKUP(DV6,'Input for A-Z Model'!48:48,'Input for A-Z Model'!49:49) -> 0.02 | DW34: =LOOKUP(DW6,'Input for A-Z Model'!48:48,'Input for A-Z Model'!49:49) -> 0.02 | DX34: =LOOKUP(DX6,'Input for A-Z Model'!48:48,'Input for A-Z Model'!49:49) -> 0.02 | DY34: =LOOKUP(DY6,'Input for A-Z Model'!48:48,'Input for A-Z Model'!49:49) -> 0.02 | DZ34: =LOOKUP(DZ6,'Input for A-Z Model'!48:48,'Input for A-Z Model'!49:49) -> 0.02 | EA34: =LOOKUP(EA6,'Input for A-Z Model'!48:48,'Input for A-Z Model'!49:49) -> 0.02 | EB34: =LOOKUP(EB6,'Input for A-Z Model'!48:48,'Input for A-Z Model'!49:49) -> 0.02 | EC34: =LOOKUP(EC6,'Input for A-Z Model'!48:48,'Input for A-Z Model'!49:49) -> 0.02 | ED34: =LOOKUP(ED6,'Input for A-Z Model'!48:48,'Input for A-Z Model'!49:49) -> 0.02 | EE34: =LOOKUP(EE6,'Input for A-Z Model'!48:48,'Input for A-Z Model'!49:49) -> 0.02 | EF34: =LOOKUP(EF6,'Input for A-Z Model'!48:48,'Input for A-Z Model'!49:49) -> 0.02 | EG34: =LOOKUP(EG6,'Input for A-Z Model'!48:48,'Input for A-Z Model'!49:49) -> 0.02 | EH34: =LOOKUP(EH6,'Input for A-Z Model'!48:48,'Input for A-Z Model'!49:49) -> 0.02 | EI34: =LOOKUP(EI6,'Input for A-Z Model'!48:48,'Input for A-Z Model'!49:49) -> 0.02 | EJ34: =LOOKUP(EJ6,'Input for A-Z Model'!48:48,'Input for A-Z Model'!49:49) -> 0.02 | EK34: =LOOKUP(EK6,'Input for A-Z Model'!48:48,'Input for A-Z Model'!49:49) -> 0.02 | EL34: =LOOKUP(EL6,'Input for A-Z Model'!48:48,'Input for A-Z Model'!49:49) -> 0.02 | EM34: =LOOKUP(EM6,'Input for A-Z Model'!48:48,'Input for A-Z Model'!49:49) -> 0.02 | EN34: =LOOKUP(EN6,'Input for A-Z Model'!48:48,'Input for A-Z Model'!49:49) -> 0.02 | EO34: =LOOKUP(EO6,'Input for A-Z Model'!48:48,'Input for A-Z Model'!49:49) -> 0.02 | EP34: =LOOKUP(EP6,'Input for A-Z Model'!48:48,'Input for A-Z Model'!49:49) -> 0.02 | EQ34: =LOOKUP(EQ6,'Input for A-Z Model'!48:48,'Input for A-Z Model'!49:49) -> 0.02 | ER34: =LOOKUP(ER6,'Input for A-Z Model'!48:48,'Input for A-Z Model'!49:49) -> 0.02 | ES34: =LOOKUP(ES6,'Input for A-Z Model'!48:48,'Input for A-Z Model'!49:49) -> 0.02 | ET34: =LOOKUP(ET6,'Input for A-Z Model'!48:48,'Input for A-Z Model'!49:49) -> 0.02 | EU34: =LOOKUP(EU6,'Input for A-Z Model'!48:48,'Input for A-Z Model'!49:49) -> 0.02 | EV34: =LOOKUP(EV6,'Input for A-Z Model'!48:48,'Input for A-Z Model'!49:49) -> 0.02 | EW34: =LOOKUP(EW6,'Input for A-Z Model'!48:48,'Input for A-Z Model'!49:49) -> 0.02 | EX34: =LOOKUP(EX6,'Input for A-Z Model'!48:48,'Input for A-Z Model'!49:49) -> 0.02 | EY34: =LOOKUP(EY6,'Input for A-Z Model'!48:48,'Input for A-Z Model'!49:49) -> 0.02 | EZ34: =LOOKUP(EZ6,'Input for A-Z Model'!48:48,'Input for A-Z Model'!49:49) -> 0.02 | FA34: =LOOKUP(FA6,'Input for A-Z Model'!48:48,'Input for A-Z Model'!49:49) -> 0.02 | FB34: =LOOKUP(FB6,'Input for A-Z Model'!48:48,'Input for A-Z Model'!49:49) -> 0.02 | FC34: =LOOKUP(FC6,'Input for A-Z Model'!48:48,'Input for A-Z Model'!49:49) -> 0.02 | FD34: =LOOKUP(FD6,'Input for A-Z Model'!48:48,'Input for A-Z Model'!49:49) -> 0.02 | FE34: =LOOKUP(FE6,'Input for A-Z Model'!48:48,'Input for A-Z Model'!49:49) -> 0.02 | FF34: =LOOKUP(FF6,'Input for A-Z Model'!48:48,'Input for A-Z Model'!49:49) -> 0.02 | FG34: =LOOKUP(FG6,'Input for A-Z Model'!48:48,'Input for A-Z Model'!49:49) -> 0.02 | FH34: =LOOKUP(FH6,'Input for A-Z Model'!48:48,'Input for A-Z Model'!49:49) -> 0.02 | FI34: =LOOKUP(FI6,'Input for A-Z Model'!48:48,'Input for A-Z Model'!49:49) -> 0.02 | FJ34: =LOOKUP(FJ6,'Input for A-Z Model'!48:48,'Input for A-Z Model'!49:49) -> 0.02 | FK34: =LOOKUP(FK6,'Input for A-Z Model'!48:48,'Input for A-Z Model'!49:49) -> 0.02 | FL34: =LOOKUP(FL6,'Input for A-Z Model'!48:48,'Input for A-Z Model'!49:49) -> 0.02 | FM34: =LOOKUP(FM6,'Input for A-Z Model'!48:48,'Input for A-Z Model'!49:49) -> 0.02 | FN34: =LOOKUP(FN6,'Input for A-Z Model'!48:48,'Input for A-Z Model'!49:49) -> 0.02 | FO34: =LOOKUP(FO6,'Input for A-Z Model'!48:48,'Input for A-Z Model'!49:49) -> 0.02 | FP34: =LOOKUP(FP6,'Input for A-Z Model'!48:48,'Input for A-Z Model'!49:49) -> 0.02 | FQ34: =LOOKUP(FQ6,'Input for A-Z Model'!48:48,'Input for A-Z Model'!49:49) -> 0.02 | FR34: =LOOKUP(FR6,'Input for A-Z Model'!48:48,'Input for A-Z Model'!49:49) -> 0.02 | FS34: =LOOKUP(FS6,'Input for A-Z Model'!48:48,'Input for A-Z Model'!49:49) -> 0.02 | FT34: =LOOKUP(FT6,'Input for A-Z Model'!48:48,'Input for A-Z Model'!49:49) -> 0.02 | FU34: =LOOKUP(FU6,'Input for A-Z Model'!48:48,'Input for A-Z Model'!49:49) -> 0.02 | FV34: =LOOKUP(FV6,'Input for A-Z Model'!48:48,'Input for A-Z Model'!49:49) -> 0.02 | FW34: =LOOKUP(FW6,'Input for A-Z Model'!48:48,'Input for A-Z Model'!49:49) -> 0.02 | FX34: =LOOKUP(FX6,'Input for A-Z Model'!48:48,'Input for A-Z Model'!49:49) -> 0.02 | FY34: =LOOKUP(FY6,'Input for A-Z Model'!48:48,'Input for A-Z Model'!49:49) -> 0.02 | FZ34: =LOOKUP(FZ6,'Input for A-Z Model'!48:48,'Input for A-Z Model'!49:49) -> 0.02 | GA34: =LOOKUP(GA6,'Input for A-Z Model'!48:48,'Input for A-Z Model'!49:49) -> 0.02 | GB34: =LOOKUP(GB6,'Input for A-Z Model'!48:48,'Input for A-Z Model'!49:49) -> 0.02 | GC34: =LOOKUP(GC6,'Input for A-Z Model'!48:48,'Input for A-Z Model'!49:49) -> 0.02 | GD34: =LOOKUP(GD6,'Input for A-Z Model'!48:48,'Input for A-Z Model'!49:49) -> 0.02 | GE34: =LOOKUP(GE6,'Input for A-Z Model'!48:48,'Input for A-Z Model'!49:49) -> 0.02 | GF34: =LOOKUP(GF6,'Input for A-Z Model'!48:48,'Input for A-Z Model'!49:49) -> 0.02 | GG34: =LOOKUP(GG6,'Input for A-Z Model'!48:48,'Input for A-Z Model'!49:49) -> 0.02 | GH34: =LOOKUP(GH6,'Input for A-Z Model'!48:48,'Input for A-Z Model'!49:49) -> 0.02 | GI34: =LOOKUP(GI6,'Input for A-Z Model'!48:48,'Input for A-Z Model'!49:49) -> 0.02 | GJ34: =LOOKUP(GJ6,'Input for A-Z Model'!48:48,'Input for A-Z Model'!49:49) -> 0.02 | GK34: =LOOKUP(GK6,'Input for A-Z Model'!48:48,'Input for A-Z Model'!49:49) -> 0.02 | GL34: =LOOKUP(GL6,'Input for A-Z Model'!48:48,'Input for A-Z Model'!49:49) -> 0.02 | GM34: =LOOKUP(GM6,'Input for A-Z Model'!48:48,'Input for A-Z Model'!49:49) -> 0.02 | GN34: =LOOKUP(GN6,'Input for A-Z Model'!48:48,'Input for A-Z Model'!49:49) -> 0.02 | GO34: =LOOKUP(GO6,'Input for A-Z Model'!48:48,'Input for A-Z Model'!49:49) -> 0.02 | GP34: =LOOKUP(GP6,'Input for A-Z Model'!48:48,'Input for A-Z Model'!49:49) -> 0.02 | GQ34: =LOOKUP(GQ6,'Input for A-Z Model'!48:48,'Input for A-Z Model'!49:49) -> 0.02 | GR34: =LOOKUP(GR6,'Input for A-Z Model'!48:48,'Input for A-Z Model'!49:49) -> 0.02 | GS34: =LOOKUP(GS6,'Input for A-Z Model'!48:48,'Input for A-Z Model'!49:49) -> 0.02 | GT34: =LOOKUP(GT6,'Input for A-Z Model'!48:48,'Input for A-Z Model'!49:49) -> 0.02 | GU34: =LOOKUP(GU6,'Input for A-Z Model'!48:48,'Input for A-Z Model'!49:49) -> 0.02 | GV34: =LOOKUP(GV6,'Input for A-Z Model'!48:48,'Input for A-Z Model'!49:49) -> 0.02 | GW34: =LOOKUP(GW6,'Input for A-Z Model'!48:48,'Input for A-Z Model'!49:49) -> 0.02 | GX34: =LOOKUP(GX6,'Input for A-Z Model'!48:48,'Input for A-Z Model'!49:49) -> 0.02 | GY34: =LOOKUP(GY6,'Input for A-Z Model'!48:48,'Input for A-Z Model'!49:49) -> 0.02 | GZ34: =LOOKUP(GZ6,'Input for A-Z Model'!48:48,'Input for A-Z Model'!49:49) -> 0.02 | HA34: =LOOKUP(HA6,'Input for A-Z Model'!48:48,'Input for A-Z Model'!49:49) -> 0.02
